Workbook

Sheet Home
AM1: No Selection
B2: Simplex Battery Calculator | AM2: Loading%
AM3: Field Device
B4: =IF(ISBLANK(E4),0,1) -> 1 | C4: Project Name | E4: Example Project
B6: =IF(ISBLANK(E6),0,1) -> 1 | C6: Customer Name | E6: abc tower
B8: =IF(ISBLANK(E8),0,1) -> 1 | E8: Singapore
B10: =IF(ISBLANK(E10),0,1) -> 1 | C10: Phase | E10: Phase 1
B12: =IF(ISBLANK(E12),0,1) -> 1 | C12: Prepared by | E12: Alan Ang
B14: =IF(ISBLANK(E14),0,1) -> 1 | C14: Date | E14: 15th July 2024
B19: Selection for Battery Calculation for the Option Below:
C20: IDNet | E20: ESMX | G20: NAC | I20: IDNAC | K20: AUX
B21: Selection | C21: Field Device | E21: Field Device | G21: Field Device | I21: Field Device | K21: Field Device
B23: *Note:
B24: If Loading % is selected will be base on o%, 25%, 50%, 75% and 100% Loadin
B25: Selection Navigator is base on Worst Case(100%) or base number of Address deviceeeee or Current Selected(NAC)

Sheet Battery Selection
A1: 1 | I1: =IF(SUM(I3:W3)>0,"A Battery Set has more than one main panel selected","Battery Set Selections are OK") -> Battery Set Selections are OK
A2: 1 | G2: =COUNT(G8:G2000) -> 0 | I2: =COUNT(I8:I2000) -> 0 | K2: =COUNT(K8:K2000) -> 0 | M2: =COUNT(M8:M2000) -> 0 | O2: =COUNT(O8:O2000) -> 0 | Q2: =COUNT(Q8:Q2000) -> 0 | S2: =COUNT(S8:S2000) -> 0 | U2: =COUNT(U8:U2000) -> 0 | W2: =COUNT(W8:W2000) -> 0
A3: 1 | G3: Totals Only | I3: =IF(SUMPRODUCT(I8:I2000,$AD$8:$AD$2000)>1,1,0) -> 0 | K3: =IF(SUMPRODUCT(K8:K2000,$AD$8:$AD$2000)>1,1,0) -> 0 | M3: =IF(SUMPRODUCT(M8:M2000,$AD$8:$AD$2000)>1,1,0) -> 0 | O3: =IF(SUMPRODUCT(O8:O2000,$AD$8:$AD$2000)>1,1,0) -> 0 | Q3: =IF(SUMPRODUCT(Q8:Q2000,$AD$8:$AD$2000)>1,1,0) -> 0 | S3: =IF(SUMPRODUCT(S8:S2000,$AD$8:$AD$2000)>1,1,0) -> 0 | U3: =IF(SUMPRODUCT(U8:U2000,$AD$8:$AD$2000)>1,1,0) -> 0 | W3: =IF(SUMPRODUCT(W8:W2000,$AD$8:$AD$2000)>1,1,0) -> 0
A4: 1 | D4: Product Description | E4: Part Codes | G4: Set 0 | I4: Set 1 | K4: Set 2 | M4: Set 3 | O4: Set 4 | Q4: Set 5 | S4: Set 6 | U4: Set 7 | W4: Set 8 | AC4: Total Qty | AD4: DevCode | AE4: Product Description | AF4: Part Codes | AG4: Qty | AH4: Unit Standby Amps | AI4: Total Standby Amps | AJ4: Unit Alarm Amps | AK4: Total Alarm Amps | AL4: Unit Standby mA | AM4: Unit Alarm mA | AO4: MX Device
A5: 1 | B5: =IF(OR(C5="+",C5="-"),0,B4+1) -> 0 | C5: + | D5: =REPT(" ",A5-1)&AE5 -> PANELS AND CONTROL EQUIPMENT | AD5: =IF(SUM(AG5:AG486)>0,"h","") ->  | AE5: PANELS AND CONTROL EQUIPMENT | AH5: header | AI5: header | AJ5: header | AK5: header
A6: 2 | B6: =IF(OR(C6="+",C6="-"),0,B5+1) -> 0 | C6: + | D6: FOUNDATION SERIES | AE6: FOUNDATION SERIES
A7: 3 | B7: 0 | C7: - | D7: 2004FS 4 ZONE CONVENTIONAL PANEL | AE7: 2004FS 4 ZONE CONVENTIONAL PANEL
A8: 4 | B8: 1 | C8: ★ | D8: 2004FS Conventional 4 Zone Panel | E8: =AF8 -> 4004-9101 | AC8: =SUM(G8:W8) -> 0 | AD8: 1 | AE8: 2004FS Conventional 4 Zone Panel | AF8: 4004-9101 | AG8: =CHOOSE(brBatterySet,I8:I2000,K8:K2000,M8:M2000,O8:O2000,Q8:Q2000,S8:S2000,U8:U2000,W8:W2000) -> 0 | AH8: =AL8/1000 -> 0.1 | AI8: =AG8*AH8 -> 0 | AJ8: =AM8/1000 -> 0.15 | AK8: =AG8*AJ8 -> 0 | AL8: 100 | AM8: 150
A9: 4 | B9: 2 | D9: Remote LED Annunciator | E9: =AF9 -> 4606-9111 | AC9: =SUM(G9:W9) -> 0 | AE9: Remote LED Annunciator | AF9: 4606-9111 | AG9: 0 | AH9: 0.024 | AI9: =AG9*AH9 -> 0 | AJ9: 0.026 | AK9: =AG9*AJ9 -> 0 | AL9: 24 | AM9: 26
A10: 4 | B10: 3 | D10: City Circuit Module | E10: 4004-9909 | AC10: 0 | AE10: City Circuit Module | AF10: 4004-9909 | AG10: 0 | AH10: 0.03 | AI10: 0 | AJ10: 0.06 | AK10: 0 | AL10: 30 | AM10: 60
A11: 4 | B11: 4 | D11: Zones Used | E11: 0 | AC11: 0 | AE11: Zones Used | AG11: 0 | AH11: 0.009 | AI11: 0 | AJ11: 0.06 | AK11: 0 | AL11: 9 | AM11: 60
A12: 3 | B12: 0 | C12: - | D12: 2008FS 8 ZONE CONVENTIONAL PANEL | E12: 0 | AC12: 0 | AD12: 1 | AE12: 2008FS 8 ZONE CONVENTIONAL PANEL | AG12: 0 | AH12: 0 | AI12: 0 | AJ12: 0 | AK12: 0
A13: 4 | B13: 1 | C13: ★ | D13: 2008FS Conventional 8 Zone Panel | E13: 4008-9101 | AC13: 0 | AD13: 1 | AE13: 2008FS Conventional 8 Zone Panel | AF13: 4008-9101 | AG13: 0 | AH13: 0.13 | AI13: 0 | AJ13: 0.16 | AK13: 0 | AL13: 130 | AM13: 160
A14: 4 | B14: 2 | D14: Remote LCD Annunciator | E14: 4606-9101 | AC14: 0 | AE14: Remote LCD Annunciator | AF14: 4606-9101 | AG14: 0 | AH14: 0.04 | AI14: 0 | AJ14: 0.048 | AK14: 0 | AL14: 40 | AM14: 48
A15: 4 | B15: 3 | D15: City Circuit Module | E15: 4004-9909 | AC15: 0 | AE15: City Circuit Module | AF15: 4004-9909 | AG15: 0 | AH15: 0.03 | AI15: 0 | AJ15: 0.06 | AK15: 0 | AL15: 30 | AM15: 60
A16: 4 | B16: 4 | D16: Zones Used | E16: 0 | AC16: 0 | AE16: Zones Used | AG16: 0 | AH16: 0.009 | AI16: 0 | AJ16: 0.06 | AK16: 0 | AL16: 9 | AM16: 60
A17: 3 | B17: 0 | C17: - | D17: 2050FS 50 POINT ADDRESSABLE PANEL | E17: 0 | AC17: 0 | AE17: 2050FS 50 POINT ADDRESSABLE PANEL | AG17: 0 | AH17: 0 | AI17: 0 | AJ17: 0 | AK17: 0
A18: 5 | B18: 1 | C18: ★ | D18: 2050FS Conventional 8 Zone Panel | E18: 4050-9101 | AC18: 0 | AD18: 1 | AE18: 2050FS Conventional 8 Zone Panel | AF18: 4050-9101 | AG18: 0 | AH18: 0.175 | AI18: 0 | AJ18: 0.215 | AK18: 0 | AL18: 175 | AM18: 215
A19: 5 | B19: 2 | D19: Remote LCD Annunciator | E19: 4606-9101 | AC19: 0 | AE19: Remote LCD Annunciator | AF19: 4606-9101 | AG19: 0 | AH19: 0.04 | AI19: 0 | AJ19: 0.048 | AK19: 0 | AL19: 40 | AM19: 48
A20: 5 | B20: 3 | D20: City Circuit Module | E20: 4050-9909 | AC20: 0 | AE20: City Circuit Module | AF20: 4050-9909 | AG20: 0 | AH20: 0.02 | AI20: 0 | AJ20: 0.036 | AK20: 0 | AL20: 20 | AM20: 36
A21: 5 | B21: 4 | C21: ★ | D21: Connected Services Gateway and IP Communicator Module | E21: 4250-9800 | AC21: 0 | AE21: Connected Services Gateway and IP Communicator Module | AF21: 4250-9800 | AG21: 0 | AH21: 0.125 | AI21: 0 | AJ21: 0.125 | AK21: 0 | AL21: 125 | AM21: 125
A22: 5 | B22: 5 | C22: ★ | D22: GSM 4G/LTE Cellular module kit | E22: 4007-6416|4007-6417 | AC22: 0 | AE22: GSM 4G/LTE Cellular module kit | AF22: 4007-6416|4007-6417 | AG22: 0 | AH22: 0.02 | AI22: 0 | AJ22: 0.02 | AK22: 0 | AL22: 20 | AM22: 20
A23: 3 | B23: 0 | C23: - | D23: 2250FS 250 POINT ADDRESSABLE PANEL | E23: 0 | AC23: 0 | AE23: 2250FS 250 POINT ADDRESSABLE PANEL | AG23: 0 | AH23: 0 | AI23: 0 | AJ23: 0 | AK23: 0
A24: 5 | B24: 1 | C24: ★ | D24: 2250FS Conventional 8 Zone Panel | E24: 4250-9101 | AC24: 0 | AD24: 1 | AE24: 2250FS Conventional 8 Zone Panel | AF24: 4250-9101 | AG24: 0 | AH24: 0.175 | AI24: 0 | AJ24: 0.215 | AK24: 0 | AL24: 175 | AM24: 215
A25: 5 | B25: 2 | D25: Remote LCD Annunciator | E25: 4606-9101 | AC25: 0 | AE25: Remote LCD Annunciator | AF25: 4606-9101 | AG25: 0 | AH25: 0.04 | AI25: 0 | AJ25: 0.048 | AK25: 0 | AL25: 40 | AM25: 48
A26: 5 | B26: 3 | D26: City Circuit Module | E26: 4050-9909 | AC26: 0 | AE26: City Circuit Module | AF26: 4050-9909 | AG26: 0 | AH26: 0.02 | AI26: 0 | AJ26: 0.036 | AK26: 0 | AL26: 20 | AM26: 36
A27: 5 | B27: 4 | C27: ★ | D27: Connected Services Gateway and IP Communicator Module | E27: 4250-9800 | AC27: 0 | AE27: Connected Services Gateway and IP Communicator Module | AF27: 4250-9800 | AG27: 0 | AH27: 0.125 | AI27: 0 | AJ27: 0.125 | AK27: 0 | AL27: 125 | AM27: 125
A28: 5 | B28: 5 | C28: ★ | D28: GSM 4G/LTE Cellular module kit | E28: 4007-6416|4007-6417 | AC28: 0 | AE28: GSM 4G/LTE Cellular module kit | AF28: 4007-6416|4007-6417 | AG28: 0 | AH28: 0.02 | AI28: 0 | AJ28: 0.02 | AK28: 0 | AL28: 20 | AM28: 20
A29: 2 | B29: 0 | C29: + | D29: 4007ES | E29: 0 | AC29: 0 | AE29: 4007ES | AG29: 0 | AH29: 0 | AI29: 0 | AJ29: 0 | AK29: 0
A30: 3 | B30: 0 | C30: - | D30: 4007ES HYBRID PANEL IDNET WITH 4 CONVENTIONAL NACS | E30: 0 | AC30: 0 | AE30: 4007ES HYBRID PANEL IDNET WITH 4 CONVENTIONAL NACS | AG30: 0 | AH30: 0 | AI30: 0 | AJ30: 0 | AK30: 0
A31: 4 | B31: 1 | C31: ★ | D31: Red 4007ES Hybrid Panel | E31: 4007-9101 | AC31: 0 | AD31: 1 | AE31: Red 4007ES Hybrid Panel | AF31: 4007-9101 | AG31: 0 | AH31: 0.145 | AI31: =AG31*AH31 -> 0 | AJ31: 0.195 | AK31: =AG31*AJ31 -> 0 | AL31: 145 | AM31: 195
A32: 4 | B32: 2 | D32: Red 4007ES Hybrid Panel Buy America | E32: 4007-9101BA | AC32: 0 | AD32: 1 | AE32: Red 4007ES Hybrid Panel Buy America | AF32: 4007-9101BA | AG32: 0 | AH32: 0.145 | AI32: =AG32*AH32 -> 0 | AJ32: 0.195 | AK32: =AG32*AJ32 -> 0 | AL32: 145 | AM32: 195
A33: 4 | B33: 3 | C33: ★ | D33: Platinum 4007ES Hybrid Panel | E33: 4007-9102 | AC33: 0 | AD33: 1 | AE33: Platinum 4007ES Hybrid Panel | AF33: 4007-9102 | AG33: 0 | AH33: 0.145 | AI33: 0 | AJ33: 0.195 | AK33: 0 | AL33: 145 | AM33: 195
A34: 4 | B34: 4 | D34: Platinum 4007ES Hybrid Panel Buy America | E34: 4007-9102BA | AC34: 0 | AD34: 1 | AE34: Platinum 4007ES Hybrid Panel Buy America | AF34: 4007-9102BA | AG34: 0 | AH34: 0.145 | AI34: 0 | AJ34: 0.195 | AK34: 0 | AL34: 145 | AM34: 195
A35: 4 | B35: 5 | D35: Panel Mounted 48 LED Status Annunciator | E35: 4007-9805 | AC35: 0 | AE35: Panel Mounted 48 LED Status Annunciator | AF35: 4007-9805 | AG35: 0 | AH35: 0.01 | AI35: 0 | AJ35: 0.01 | AK35: 0 | AL35: 10 | AM35: 10
A36: 4 | B36: 6 | D36: Total Status Annunciator LEDs on in Alarm | E36: 0 | AC36: 0 | AE36: Total Status Annunciator LEDs on in Alarm | AG36: 0 | AH36: 0 | AI36: 0 | AJ36: 0.00175 | AK36: 0 | AM36: 1.75
A37: 4 | B37: 7 | C37: ★ | D37: Factory Fitted 8 Point Zone/Relay Card - FULLY LOADED | E37: 4007-9801 | AC37: 0 | AE37: Factory Fitted 8 Point Zone/Relay Card - FULLY LOADED | AF37: 4007-9801 | AG37: 0 | AH37: 0.083 | AI37: 0 | AJ37: 0.351 | AK37: 0 | AL37: 83 | AM37: 351
A38: 4 | B38: 8 | C38: ★ | D38: Factory Fitted 8 Point Zone/Relay Card - CARD ONLY | E38: 4007-9801 | AC38: 0 | AE38: Factory Fitted 8 Point Zone/Relay Card - CARD ONLY | AF38: 4007-9801 | AG38: 0 | AH38: 0.027 | AI38: 0 | AJ38: 0.027 | AK38: 0 | AL38: 27 | AM38: 27
A39: 4 | B39: 9 | C39: ★ | D39: Total Configured Class B Zones | E39: 0 | AC39: 0 | AE39: Total Configured Class B Zones | AG39: 0 | AH39: 0.011 | AI39: 0 | AJ39: 0.06 | AK39: 0 | AL39: 11 | AM39: 60
A40: 4 | B40: 10 | C40: ★ | D40: Total Cconfigured Class A Zones | E40: 0 | AC40: 0 | AE40: Total Cconfigured Class A Zones | AG40: 0 | AH40: 0.02 | AI40: 0 | AJ40: 0.069 | AK40: 0 | AL40: 20 | AM40: 69
A41: 4 | B41: 11 | C41: ★ | D41: Total Configured Relays De-Energized Normally | E41: 0 | AC41: 0 | AE41: Total Configured Relays De-Energized Normally | AG41: 0 | AH41: 0 | AI41: 0 | AJ41: 0.009 | AK41: 0 | AL41: 0 | AM41: 9
A42: 4 | B42: 12 | C42: ★ | D42: Total Configured Relays Energized Normally | E42: 0 | AC42: 0 | AE42: Total Configured Relays Energized Normally | AG42: 0 | AH42: 0.009 | AI42: 0 | AJ42: 0 | AK42: 0 | AL42: 9 | AM42: 0
A43: 4 | B43: 0 | C43: + | D43: HYBRID PANEL COMPATIBLE OPTIONAL CARDS | E43: 0 | AC43: 0 | AE43: HYBRID PANEL COMPATIBLE OPTIONAL CARDS | AG43: 0 | AH43: 0 | AI43: 0 | AJ43: 0 | AK43: 0
A44: 5 | B44: 1 | D44: 8 Point Zone/Relay Card - FULLY LOADED | E44: 4007-9801 | AC44: 0 | AE44: 8 Point Zone/Relay Card - FULLY LOADED | AF44: 4007-9801 | AG44: 0 | AH44: 0.083 | AI44: 0 | AJ44: 0.351 | AK44: 0 | AL44: 83 | AM44: 351
A45: 5 | B45: 2 | D45: 8 Point Zone/Relay Card - CARD ONLY | E45: 4007-9801 | AC45: 0 | AE45: 8 Point Zone/Relay Card - CARD ONLY | AF45: 4007-9801 | AG45: 0 | AH45: 0.027 | AI45: 0 | AJ45: 0.027 | AK45: 0 | AL45: 27 | AM45: 27
A46: 5 | B46: 3 | D46: Total Configured Class B Zones | E46: 0 | AC46: 0 | AE46: Total Configured Class B Zones | AG46: 0 | AH46: 0.011 | AI46: 0 | AJ46: 0.06 | AK46: 0 | AL46: 11 | AM46: 60
A47: 5 | B47: 4 | D47: Total Cconfigured Class A Zones | E47: 0 | AC47: 0 | AE47: Total Cconfigured Class A Zones | AG47: 0 | AH47: 0.02 | AI47: 0 | AJ47: 0.069 | AK47: 0 | AL47: 20 | AM47: 69
A48: 5 | B48: 5 | D48: Total Configured Relays De-Energized Normally | E48: 0 | AC48: 0 | AE48: Total Configured Relays De-Energized Normally | AG48: 0 | AH48: 0 | AI48: 0 | AJ48: 0.009 | AK48: 0 | AL48: 0 | AM48: 9
A49: 5 | B49: 6 | D49: Total Configured Relays Energized Normally | E49: 0 | AC49: 0 | AE49: Total Configured Relays Energized Normally | AG49: 0 | AH49: 0.009 | AI49: 0 | AJ49: 0 | AK49: 0 | AL49: 9 | AM49: 0
A50: 5 | B50: 7 | D50: 25 VDC Regulator Module with 1 x 8 Zone Relay Card | E50: 4007-9802 | AC50: 0 | AE50: 25 VDC Regulator Module with 1 x 8 Zone Relay Card | AF50: 4007-9802 | AG50: 0 | AH50: 0.19 | AI50: 0 | AJ50: 0.445 | AK50: 0 | AL50: 190 | AM50: 445
A51: 5 | B51: 8 | D51: 25 VDC Regulator Module with 2 x 8 Zone Relay Cards | E51: 4007-9802 | AC51: 0 | AE51: 25 VDC Regulator Module with 2 x 8 Zone Relay Cards | AF51: 4007-9802 | AG51: 0 | AH51: 0.29 | AI51: 0 | AJ51: 0.801 | AK51: 0 | AL51: 290 | AM51: 801
A52: 5 | B52: 9 | D52: 25 VDC Regulator Module with 3 x 8 Zone Relay Cards | E52: 4007-9802 | AC52: 0 | AE52: 25 VDC Regulator Module with 3 x 8 Zone Relay Cards | AF52: 4007-9802 | AG52: 0 | AH52: 0.39 | AI52: 0 | AJ52: 1.156 | AK52: 0 | AL52: 390 | AM52: 1156
A53: 5 | B53: 10 | D53: IDNet+ Loop Expansion Module | E53: 4007-9803 | AC53: 0 | AE53: IDNet+ Loop Expansion Module | AF53: 4007-9803 | AG53: 0 | AH53: 0 | AI53: 0 | AJ53: 0 | AK53: 0 | AL53: 0 | AM53: 0
A54: 5 | B54: 11 | D54: Dual RS-232 Interface Module | E54: 4007-9812 | AC54: 0 | AE54: Dual RS-232 Interface Module | AF54: 4007-9812 | AG54: 0 | AH54: 0.06 | AI54: 0 | AJ54: 0.06 | AK54: 0 | AL54: 60 | AM54: 60
A55: 5 | B55: 12 | D55: Relay Module Alarm, Supervisory and Trouble | E55: 4007-9809 | AC55: 0 | AE55: Relay Module Alarm, Supervisory and Trouble | AF55: 4007-9809 | AG55: 0 | AH55: 0.015 | AI55: 0 | AJ55: 0.037 | AK55: 0 | AL55: 15 | AM55: 37
A56: 5 | B56: 13 | D56: City Circuit Module with Disconnect Switch | E56: 4007-9807 | AC56: 0 | AE56: City Circuit Module with Disconnect Switch | AF56: 4007-9807 | AG56: 0 | AH56: 0.02 | AI56: 0 | AJ56: 0.036 | AK56: 0 | AL56: 20 | AM56: 36
A57: 5 | B57: 14 | D57: City Circuit Module without Disconnect Switch | E57: 4007-9808 | AC57: 0 | AE57: City Circuit Module without Disconnect Switch | AF57: 4007-9808 | AG57: 0 | AH57: 0.02 | AI57: 0 | AJ57: 0.036 | AK57: 0 | AL57: 20 | AM57: 36
A58: 4 | B58: 0 | C58: - | D58: COMMUNICATIONS | E58: 0 | AC58: 0 | AE58: COMMUNICATIONS | AG58: 0 | AH58: 0 | AI58: 0 | AJ58: 0 | AK58: 0
A59: 5 | B59: 1 | C59: ★ | D59: SDACT Module for Point or Event Reporting | E59: 4007-9806 | AC59: 0 | AE59: SDACT Module for Point or Event Reporting | AF59: 4007-9806 | AG59: 0 | AH59: 0.03 | AI59: 0 | AJ59: 0.04 | AK59: 0 | AL59: 30 | AM59: 40
A60: 5 | B60: 2 | C60: ★ | D60: IP Communicator Connected Services Gateway | E60: 4007-2504 | AC60: 0 | AE60: IP Communicator Connected Services Gateway | AF60: 4007-2504 | AG60: 0 | AH60: 0.125 | AI60: 0 | AJ60: 0.125 | AK60: 0 | AL60: 125 | AM60: 125
A61: 5 | B61: 3 | C61: ★ | D61: GSM 4G/LTE Cellular Module Kit for Internal Mount | E61: 4007-6416 | AC61: 0 | AE61: GSM 4G/LTE Cellular Module Kit for Internal Mount | AF61: 4007-6416 | AG61: 0 | AH61: 0.02 | AI61: 0 | AJ61: 0.02 | AK61: 0 | AL61: 20 | AM61: 20
A62: 4 | B62: 0 | C62: + | D62: ESNET | E62: 0 | AC62: 0 | AE62: ESNET | AG62: 0 | AH62: 0 | AI62: 0 | AJ62: 0 | AK62: 0
A63: 5 | B63: 1 | D63: 4007ES ESNet Network Card | E63: 4007-9817 | AC63: 0 | AE63: 4007ES ESNet Network Card | AF63: 4007-9817 | AG63: 0 | AH63: 0.12 | AI63: 0 | AJ63: 0.12 | AK63: 0 | AL63: 120 | AM63: 120
A64: 5 | B64: 2 | D64: ESNet Ethernet media card | E64: 4007-6306 | AC64: 0 | AE64: ESNet Ethernet media card | AF64: 4007-6306 | AG64: 0 | AH64: 0.02 | AI64: 0 | AJ64: 0.02 | AK64: 0 | AL64: 20 | AM64: 20
A65: 5 | B65: 3 | D65: ESNet Single-mode fiber media card | E65: 4007-6308 | AC65: 0 | AE65: ESNet Single-mode fiber media card | AF65: 4007-6308 | AG65: 0 | AH65: 0.135 | AI65: 0 | AJ65: 0.135 | AK65: 0 | AL65: 135 | AM65: 135
A66: 5 | B66: 4 | D66: ESNet Multi-mode fiber media card | E66: 4007-6309 | AC66: 0 | AE66: ESNet Multi-mode fiber media card | AF66: 4007-6309 | AG66: 0 | AH66: 0.135 | AI66: 0 | AJ66: 0.135 | AK66: 0 | AL66: 135 | AM66: 135
A67: 5 | B67: 5 | D67: ESNet DSL (copper) media card | E67: 4007-6307 | AC67: 0 | AE67: ESNet DSL (copper) media card | AF67: 4007-6307 | AG67: 0 | AH67: 0.155 | AI67: 0 | AJ67: 0.155 | AK67: 0 | AL67: 155 | AM67: 155
A68: 4 | B68: 0 | C68: - | D68: REMOTE ANNUNCIATORS | E68: 0 | AC68: 0 | AE68: REMOTE ANNUNCIATORS | AG68: 0 | AH68: 0 | AI68: 0 | AJ68: 0 | AK68: 0
A69: 5 | B69: 1 | C69: ★ | D69: =REPT(" ",A69-1)&AE69 -> Red Color Touchscreen Annunciator | E69: 4606-9202 | AC69: 0 | AE69: Red Color Touchscreen Annunciator | AF69: 4606-9202 | AG69: 0 | AH69: 0.07 | AI69: 0 | AJ69: 0.124 | AK69: 0 | AL69: 70 | AM69: 124
A70: 5 | B70: =IF(OR(C70="+",C70="-"),0,B69+1) -> 2 | C70: ★ | D70: Platinum Color Touchscreen Annunciator | E70: 4606-9205 | AC70: 0 | AE70: Platinum Color Touchscreen Annunciator | AF70: 4606-9205 | AG70: 0 | AH70: 0.07 | AI70: 0 | AJ70: 0.124 | AK70: 0 | AL70: 70 | AM70: 124
A71: 5 | B71: 3 | D71: Status Command Unit | E71: 4602-9101 | AC71: 0 | AE71: Status Command Unit | AF71: 4602-9101 | AG71: 0 | AH71: 0.036 | AI71: 0 | AJ71: 0.055 | AK71: 0 | AL71: 36 | AM71: 55
A72: 5 | B72: 4 | D72: Remote Command Unit | E72: 4602-9102 | AC72: 0 | AE72: Remote Command Unit | AF72: 4602-9102 | AG72: 0 | AH72: 0.04 | AI72: 0 | AJ72: 0.08 | AK72: 0 | AL72: 40 | AM72: 80
A73: 3 | B73: 0 | C73: - | D73: 4007ES HYBRID/IDNAC IDNET WITH ADDRESSABLE NOTIFICATION | E73: =AF73 -> 0 | AC73: =SUM(G73:W73) -> 0 | AE73: 4007ES HYBRID/IDNAC IDNET WITH ADDRESSABLE NOTIFICATION | AG73: 0 | AH73: 0 | AI73: 0 | AJ73: 0 | AK73: 0
A74: 4 | B74: 1 | C74: ★ | D74: Red 4007ES IDNAC Panel | E74: 4007-9201 | AC74: 0 | AD74: 1 | AE74: Red 4007ES IDNAC Panel | AF74: 4007-9201 | AG74: 0 | AH74: 0.18 | AI74: 0 | AJ74: 0.185 | AK74: 0 | AL74: 180 | AM74: 185
A75: 4 | B75: 2 | D75: Red 4007ES IDNAC Panel Buy America | E75: 4007-9201BA | AC75: 0 | AD75: 1 | AE75: Red 4007ES IDNAC Panel Buy America | AF75: 4007-9201BA | AG75: 0 | AH75: 0.18 | AI75: 0 | AJ75: 0.185 | AK75: 0 | AL75: 180 | AM75: 185
A76: 4 | B76: 3 | C76: ★ | D76: Platinum 4007ES IDNAC Panel | E76: 4007-9202 | AC76: 0 | AD76: 1 | AE76: Platinum 4007ES IDNAC Panel | AF76: 4007-9202 | AG76: 0 | AH76: 0.18 | AI76: 0 | AJ76: 0.185 | AK76: 0 | AL76: 180 | AM76: 185
A77: 4 | B77: 4 | D77: Platinum 4007ES IDNAC Panel Buy America | E77: 4007-9202BA | AC77: 0 | AD77: 1 | AE77: Platinum 4007ES IDNAC Panel Buy America | AF77: 4007-9202BA | AG77: 0 | AH77: 0.18 | AI77: 0 | AJ77: 0.185 | AK77: 0 | AL77: 180 | AM77: 185
A78: 4 | B78: 5 | D78: Panel Mounted 48 LED Status Annunciator | E78: 4007-9805 | AC78: 0 | AE78: Panel Mounted 48 LED Status Annunciator | AF78: 4007-9805 | AG78: 0 | AH78: 0.01 | AI78: 0 | AJ78: 0.01 | AK78: 0 | AL78: 10 | AM78: 10
A79: 4 | B79: 6 | D79: Total Status Annunciator LEDs on in Alarm | E79: 0 | AC79: 0 | AE79: Total Status Annunciator LEDs on in Alarm | AG79: 0 | AH79: 0 | AI79: 0 | AJ79: 0.00175 | AK79: 0 | AM79: 1.75
A80: 4 | B80: 0 | C80: + | D80: HYBRID/IDNAC PANEL COMPATIBLE OPTIONAL CARDS | E80: 0 | AC80: 0 | AE80: HYBRID/IDNAC PANEL COMPATIBLE OPTIONAL CARDS | AG80: 0 | AH80: 0 | AI80: 0 | AJ80: 0 | AK80: 0
A81: 5 | B81: 1 | D81: 8 Point Zone/Relay Card - FULLY LOADED | E81: 4007-9801 | AC81: 0 | AE81: 8 Point Zone/Relay Card - FULLY LOADED | AF81: 4007-9801 | AG81: 0 | AH81: 0.083 | AI81: 0 | AJ81: 0.351 | AK81: 0 | AL81: 83 | AM81: 351
A82: 5 | B82: 2 | D82: 8 Point Zone/Relay Card - CARD ONLY | E82: 4007-9801 | AC82: 0 | AE82: 8 Point Zone/Relay Card - CARD ONLY | AF82: 4007-9801 | AG82: 0 | AH82: 0.027 | AI82: 0 | AJ82: 0.027 | AK82: 0 | AL82: 27 | AM82: 27
A83: 5 | B83: 3 | D83: Total Configured Class B Zones | E83: 0 | AC83: 0 | AE83: Total Configured Class B Zones | AG83: 0 | AH83: 0.011 | AI83: 0 | AJ83: 0.06 | AK83: 0 | AL83: 11 | AM83: 60
A84: 5 | B84: 4 | D84: Total Cconfigured Class A Zones | E84: 0 | AC84: 0 | AE84: Total Cconfigured Class A Zones | AG84: 0 | AH84: 0.02 | AI84: 0 | AJ84: 0.069 | AK84: 0 | AL84: 20 | AM84: 69
A85: 5 | B85: 5 | D85: Total Configured Relays De-Energized Normally | E85: 0 | AC85: 0 | AE85: Total Configured Relays De-Energized Normally | AG85: 0 | AH85: 0 | AI85: 0 | AJ85: 0.009 | AK85: 0 | AL85: 0 | AM85: 9
A86: 5 | B86: 6 | D86: Total Configured Relays Energized Normally | E86: 0 | AC86: 0 | AE86: Total Configured Relays Energized Normally | AG86: 0 | AH86: 0.009 | AI86: 0 | AJ86: 0 | AK86: 0 | AL86: 9 | AM86: 0
A87: 5 | B87: 7 | D87: 25 VDC Regulator Module with 1 x 8 Zone Relay Card | E87: 4007-9802 | AC87: 0 | AE87: 25 VDC Regulator Module with 1 x 8 Zone Relay Card | AF87: 4007-9802 | AG87: 0 | AH87: 0.19 | AI87: 0 | AJ87: 0.445 | AK87: 0 | AL87: 190 | AM87: 445
A88: 5 | B88: 8 | D88: 25 VDC Regulator Module with 2 x 8 Zone Relay Cards | E88: 4007-9802 | AC88: 0 | AE88: 25 VDC Regulator Module with 2 x 8 Zone Relay Cards | AF88: 4007-9802 | AG88: 0 | AH88: 0.29 | AI88: 0 | AJ88: 0.801 | AK88: 0 | AL88: 290 | AM88: 801
A89: 5 | B89: 9 | D89: 25 VDC Regulator Module with 3 x 8 Zone Relay Cards | E89: 4007-9802 | AC89: 0 | AE89: 25 VDC Regulator Module with 3 x 8 Zone Relay Cards | AF89: 4007-9802 | AG89: 0 | AH89: 0.39 | AI89: 0 | AJ89: 1.156 | AK89: 0 | AL89: 390 | AM89: 1156
A90: 5 | B90: 10 | D90: IDNet+ Loop Expansion Module | E90: 4007-9803 | AC90: 0 | AE90: IDNet+ Loop Expansion Module | AF90: 4007-9803 | AG90: 0 | AH90: 0 | AI90: 0 | AJ90: 0 | AK90: 0 | AL90: 0 | AM90: 0
A91: 5 | B91: 11 | D91: Dual Class A Isolator Card | E91: 4007-9804 | AC91: 0 | AE91: Dual Class A Isolator Card | AF91: 4007-9804 | AG91: 0 | AH91: 0.0127 | AI91: 0 | AJ91: 0.025 | AK91: 0 | AL91: 12.7 | AM91: 25
A92: 5 | B92: 12 | D92: Dual RS-232 Interface Module | E92: 4007-9812 | AC92: 0 | AE92: Dual RS-232 Interface Module | AF92: 4007-9812 | AG92: 0 | AH92: 0.06 | AI92: 0 | AJ92: 0.06 | AK92: 0 | AL92: 60 | AM92: 60
A93: 5 | B93: 13 | D93: Relay Module Alarm, Supervisory and Trouble | E93: 4007-9809 | AC93: 0 | AE93: Relay Module Alarm, Supervisory and Trouble | AF93: 4007-9809 | AG93: 0 | AH93: 0.015 | AI93: 0 | AJ93: 0.037 | AK93: 0 | AL93: 15 | AM93: 37
A94: 5 | B94: 14 | D94: City Circuit Module with Disconnect Switch | E94: 4007-9807 | AC94: 0 | AE94: City Circuit Module with Disconnect Switch | AF94: 4007-9807 | AG94: 0 | AH94: 0.02 | AI94: 0 | AJ94: 0.036 | AK94: 0 | AL94: 20 | AM94: 36
A95: 5 | B95: 15 | D95: City Circuit Module without Disconnect Switch | E95: 4007-9808 | AC95: 0 | AE95: City Circuit Module without Disconnect Switch | AF95: 4007-9808 | AG95: 0 | AH95: 0.02 | AI95: 0 | AJ95: 0.036 | AK95: 0 | AL95: 20 | AM95: 36
A96: 4 | B96: 0 | C96: - | D96: COMMUNICATIONS | E96: 0 | AC96: 0 | AE96: COMMUNICATIONS | AG96: 0 | AH96: 0 | AI96: 0 | AJ96: 0 | AK96: 0
A97: 5 | B97: 1 | C97: ★ | D97: SDACT Module for Point or Event Reporting | E97: 4007-9806 | AC97: 0 | AE97: SDACT Module for Point or Event Reporting | AF97: 4007-9806 | AG97: 0 | AH97: =AL97/1000 -> 0.03 | AI97: 0 | AJ97: =AM97/1000 -> 0.04 | AK97: 0 | AL97: 30 | AM97: 40
A98: 5 | B98: 2 | C98: ★ | D98: IP Communicator Connected Services Gateway | E98: 4007-2504 | AC98: 0 | AE98: IP Communicator Connected Services Gateway | AF98: 4007-2504 | AG98: 0 | AH98: 0.125 | AI98: =AG98*AH98 -> 0 | AJ98: 0.125 | AK98: =AG98*AJ98 -> 0 | AL98: 125 | AM98: 125
A99: 5 | B99: 3 | C99: ★ | D99: GSM 4G/LTE Cellular Module Kit for Internal Mount | E99: 4007-6416 | AC99: 0 | AE99: GSM 4G/LTE Cellular Module Kit for Internal Mount | AF99: 4007-6416 | AG99: 0 | AH99: 0.02 | AI99: 0 | AJ99: 0.02 | AK99: 0 | AL99: 20 | AM99: 20
A100: 4 | B100: 0 | C100: + | D100: ESNET | E100: 0 | AC100: 0 | AE100: ESNET | AG100: 0 | AH100: 0 | AI100: 0 | AJ100: 0 | AK100: 0
A101: 5 | B101: 1 | D101: 4007ES ESNet Network Card | E101: 4007-9817 | AC101: 0 | AE101: 4007ES ESNet Network Card | AF101: 4007-9817 | AG101: 0 | AH101: 0.12 | AI101: 0 | AJ101: 0.12 | AK101: 0 | AL101: 120 | AM101: 120
A102: 5 | B102: 2 | D102: ESNet Ethernet media card | E102: 4007-6306 | AC102: 0 | AE102: ESNet Ethernet media card | AF102: 4007-6306 | AG102: 0 | AH102: 0.02 | AI102: 0 | AJ102: 0.02 | AK102: 0 | AL102: 20 | AM102: 20
A103: 5 | B103: 3 | D103: ESNet Single-mode fiber media card | E103: 4007-6308 | AC103: 0 | AE103: ESNet Single-mode fiber media card | AF103: 4007-6308 | AG103: 0 | AH103: 0.135 | AI103: 0 | AJ103: 0.135 | AK103: 0 | AL103: 135 | AM103: 135
A104: 5 | B104: 4 | D104: ESNet Multi-mode fiber media card | E104: 4007-6309 | AC104: 0 | AE104: ESNet Multi-mode fiber media card | AF104: 4007-6309 | AG104: 0 | AH104: 0.135 | AI104: 0 | AJ104: 0.135 | AK104: 0 | AL104: 135 | AM104: 135
A105: 5 | B105: 5 | D105: ESNet DSL (copper) media card | E105: 4007-6307 | AC105: 0 | AE105: ESNet DSL (copper) media card | AF105: 4007-6307 | AG105: 0 | AH105: 0.155 | AI105: 0 | AJ105: 0.155 | AK105: 0 | AL105: 155 | AM105: 155
A106: 4 | B106: 0 | C106: - | D106: REMOTE ANNUNCIATORS | E106: 0 | AC106: 0 | AE106: REMOTE ANNUNCIATORS | AG106: 0 | AH106: 0 | AI106: 0 | AJ106: 0 | AK106: 0
A107: 5 | B107: 1 | C107: ★ | D107: Red Color Touchscreen Annunciator | E107: 4606-9202 | AC107: 0 | AE107: Red Color Touchscreen Annunciator | AF107: 4606-9202 | AG107: 0 | AH107: 0.07 | AI107: 0 | AJ107: 0.124 | AK107: 0 | AL107: 70 | AM107: 124
A108: 5 | B108: 2 | C108: ★ | D108: Platinum Color Touchscreen Annunciator | E108: 4606-9205 | AC108: 0 | AE108: Platinum Color Touchscreen Annunciator | AF108: 4606-9205 | AG108: 0 | AH108: 0.07 | AI108: 0 | AJ108: 0.124 | AK108: 0 | AL108: 70 | AM108: 124
A109: 5 | B109: 3 | D109: Status Command Unit | E109: 4602-9101 | AC109: 0 | AE109: Status Command Unit | AF109: 4602-9101 | AG109: 0 | AH109: 0.036 | AI109: 0 | AJ109: 0.055 | AK109: 0 | AL109: 36 | AM109: 55
A110: 5 | B110: 4 | D110: Remote Command Unit | E110: 4602-9102 | AC110: 0 | AE110: Remote Command Unit | AF110: 4602-9102 | AG110: 0 | AH110: 0.04 | AI110: 0 | AJ110: 0.08 | AK110: 0 | AL110: 40 | AM110: 80
A111: 3 | B111: 0 | C111: - | D111: 4007ES HYBRID PANEL MX LOOP WITH 4 CONVENTIONAL NACS | E111: 0 | AC111: 0 | AE111: 4007ES HYBRID PANEL MX LOOP WITH 4 CONVENTIONAL NACS | AG111: 0 | AH111: 0 | AI111: 0 | AJ111: 0 | AK111: 0
A112: 4 | B112: 1 | C112: ★ | D112: Red 4007ES Hybrid Panel | E112: 4007-9301 | AC112: 0 | AD112: 1 | AE112: Red 4007ES Hybrid Panel | AF112: 4007-9301 | AG112: 0 | AH112: 0.19 | AI112: 0 | AJ112: 0.235 | AK112: 0 | AL112: 190 | AM112: 235
A113: 4 | B113: 2 | C113: ★ | D113: Platinum 4007ES Hybrid Panel | E113: 4007-9302 | AC113: 0 | AD113: 1 | AE113: Platinum 4007ES Hybrid Panel | AF113: 4007-9302 | AG113: 0 | AH113: 0.19 | AI113: 0 | AJ113: 0.235 | AK113: 0 | AL113: 190 | AM113: 235
A114: 4 | B114: 3 | D114: Panel Mounted 48 LED Status Annunciator | E114: 4007-9805 | AC114: 0 | AE114: Panel Mounted 48 LED Status Annunciator | AF114: 4007-9805 | AG114: 0 | AH114: 0.01 | AI114: 0 | AJ114: 0.01 | AK114: 0 | AL114: 10 | AM114: 10
A115: 4 | B115: 4 | D115: Total Status Annunciator LEDs on in Alarm | E115: 0 | AC115: 0 | AE115: Total Status Annunciator LEDs on in Alarm | AG115: 0 | AH115: 0 | AI115: 0 | AJ115: 0.00175 | AK115: 0 | AM115: 1.75
A116: 4 | B116: 0 | C116: + | D116: HYBRID PANEL COMPATIBLE OPTIONAL CARDS | E116: 0 | AC116: 0 | AE116: HYBRID PANEL COMPATIBLE OPTIONAL CARDS | AG116: 0 | AH116: 0 | AI116: 0 | AJ116: 0 | AK116: 0
A117: 5 | B117: 1 | D117: 8 Point Zone/Relay Card - FULLY LOADED | E117: 4007-9801 | AC117: 0 | AE117: 8 Point Zone/Relay Card - FULLY LOADED | AF117: 4007-9801 | AG117: 0 | AH117: 0.083 | AI117: 0 | AJ117: 0.351 | AK117: 0 | AL117: 83 | AM117: 351
A118: 5 | B118: 2 | D118: 8 Point Zone/Relay Card - CARD ONLY | E118: 4007-9801 | AC118: 0 | AE118: 8 Point Zone/Relay Card - CARD ONLY | AF118: 4007-9801 | AG118: 0 | AH118: 0.027 | AI118: 0 | AJ118: 0.027 | AK118: 0 | AL118: 27 | AM118: 27
A119: 5 | B119: 3 | D119: Total Configured Class B Zones | E119: 0 | AC119: 0 | AE119: Total Configured Class B Zones | AG119: 0 | AH119: 0.011 | AI119: 0 | AJ119: 0.06 | AK119: 0 | AL119: 11 | AM119: 60
A120: 5 | B120: 4 | D120: Total Cconfigured Class A Zones | E120: 0 | AC120: 0 | AE120: Total Cconfigured Class A Zones | AG120: 0 | AH120: 0.02 | AI120: 0 | AJ120: 0.069 | AK120: 0 | AL120: 20 | AM120: 69
A121: 5 | B121: 5 | D121: Total Configured Relays De-Energized Normally | E121: 0 | AC121: 0 | AE121: Total Configured Relays De-Energized Normally | AG121: 0 | AH121: 0 | AI121: 0 | AJ121: 0.009 | AK121: 0 | AL121: 0 | AM121: 9
A122: 5 | B122: 6 | D122: Total Configured Relays Energized Normally | E122: 0 | AC122: 0 | AE122: Total Configured Relays Energized Normally | AG122: 0 | AH122: 0.009 | AI122: 0 | AJ122: 0 | AK122: 0 | AL122: 9 | AM122: 0
A123: 5 | B123: 7 | D123: 25 VDC Regulator Module with 1 x 8 Zone Relay Card | E123: 4007-9802 | AC123: 0 | AE123: 25 VDC Regulator Module with 1 x 8 Zone Relay Card | AF123: 4007-9802 | AG123: 0 | AH123: 0.19 | AI123: 0 | AJ123: 0.445 | AK123: 0 | AL123: 190 | AM123: 445
A124: 5 | B124: 8 | D124: 25 VDC Regulator Module with 2 x 8 Zone Relay Cards | E124: 4007-9802 | AC124: 0 | AE124: 25 VDC Regulator Module with 2 x 8 Zone Relay Cards | AF124: 4007-9802 | AG124: 0 | AH124: 0.29 | AI124: 0 | AJ124: 0.801 | AK124: 0 | AL124: 290 | AM124: 801
A125: 5 | B125: 9 | D125: 25 VDC Regulator Module with 3 x 8 Zone Relay Cards | E125: 4007-9802 | AC125: 0 | AE125: 25 VDC Regulator Module with 3 x 8 Zone Relay Cards | AF125: 4007-9802 | AG125: 0 | AH125: 0.39 | AI125: 0 | AJ125: 1.156 | AK125: 0 | AL125: 390 | AM125: 1156
A126: 5 | B126: 10 | D126: ESMX Optional Loop Mezzanine Card | E126: 4007-6312 | AC126: 0 | AE126: ESMX Optional Loop Mezzanine Card | AF126: 4007-6312 | AG126: 0 | AH126: 0 | AI126: 0 | AJ126: 0 | AK126: 0 | AL126: 0 | AM126: 0
A127: 5 | B127: 11 | D127: Dual RS-232 Interface Module | E127: 4007-9812 | AC127: 0 | AE127: Dual RS-232 Interface Module | AF127: 4007-9812 | AG127: 0 | AH127: 0.06 | AI127: 0 | AJ127: 0.06 | AK127: 0 | AL127: 60 | AM127: 60
A128: 5 | B128: 12 | D128: Relay Module Alarm, Supervisory and Trouble | E128: 4007-9809 | AC128: 0 | AE128: Relay Module Alarm, Supervisory and Trouble | AF128: 4007-9809 | AG128: 0 | AH128: 0.015 | AI128: 0 | AJ128: 0.037 | AK128: 0 | AL128: 15 | AM128: 37
A129: 5 | B129: 13 | D129: City Circuit Module with Disconnect Switch | E129: 4007-9807 | AC129: 0 | AE129: City Circuit Module with Disconnect Switch | AF129: 4007-9807 | AG129: 0 | AH129: 0.02 | AI129: 0 | AJ129: 0.036 | AK129: 0 | AL129: 20 | AM129: 36
A130: 5 | B130: 14 | D130: City Circuit Module without Disconnect Switch | E130: 4007-9808 | AC130: 0 | AE130: City Circuit Module without Disconnect Switch | AF130: 4007-9808 | AG130: 0 | AH130: 0.02 | AI130: 0 | AJ130: 0.036 | AK130: 0 | AL130: 20 | AM130: 36
A131: 4 | B131: 0 | C131: - | D131: COMMUNICATIONS | E131: 0 | AC131: 0 | AE131: COMMUNICATIONS | AG131: 0 | AH131: 0 | AI131: 0 | AJ131: 0 | AK131: 0
A132: 5 | B132: 1 | C132: ★ | D132: SDACT Module for Point or Event Reporting | E132: 4007-9806 | AC132: 0 | AE132: SDACT Module for Point or Event Reporting | AF132: 4007-9806 | AG132: 0 | AH132: 0.03 | AI132: 0 | AJ132: 0.04 | AK132: 0 | AL132: 30 | AM132: 40
A133: 5 | B133: 2 | C133: ★ | D133: IP Communicator Connected Services Gateway | E133: 4007-2504 | AC133: 0 | AE133: IP Communicator Connected Services Gateway | AF133: 4007-2504 | AG133: 0 | AH133: 0.125 | AI133: 0 | AJ133: 0.125 | AK133: 0 | AL133: 125 | AM133: 125
A134: 5 | B134: =IF(OR(C134="+",C134="-"),0,B133+1) -> 3 | C134: ★ | D134: GSM 4G/LTE Cellular Module Kit for Internal Mount | E134: 4007-6416 | AC134: 0 | AE134: GSM 4G/LTE Cellular Module Kit for Internal Mount | AF134: 4007-6416 | AG134: 0 | AH134: 0.02 | AI134: 0 | AJ134: 0.02 | AK134: 0 | AL134: 20 | AM134: 20
A135: 4 | B135: 0 | C135: + | D135: ESNET | E135: 0 | AC135: 0 | AE135: ESNET | AG135: 0 | AH135: 0 | AI135: 0 | AJ135: 0 | AK135: 0
A136: 5 | B136: 1 | D136: 4007ES ESNet Network Card | E136: 4007-9817 | AC136: 0 | AE136: 4007ES ESNet Network Card | AF136: 4007-9817 | AG136: 0 | AH136: 0.12 | AI136: 0 | AJ136: 0.12 | AK136: 0 | AL136: 120 | AM136: 120
A137: 5 | B137: 2 | D137: =REPT(" ",A137-1)&AE137 -> ESNet Ethernet media card | E137: =AF137 -> 4007-6306 | AC137: =SUM(G137:W137) -> 0 | AE137: ESNet Ethernet media card | AF137: 4007-6306 | AG137: 0 | AH137: 0.02 | AI137: 0 | AJ137: 0.02 | AK137: 0 | AL137: 20 | AM137: 20
A138: 5 | B138: 3 | D138: ESNet Single-mode fiber media card | E138: 4007-6308 | AC138: 0 | AE138: ESNet Single-mode fiber media card | AF138: 4007-6308 | AG138: 0 | AH138: 0.135 | AI138: 0 | AJ138: 0.135 | AK138: 0 | AL138: 135 | AM138: 135
A139: 5 | B139: 4 | D139: ESNet Multi-mode fiber media card | E139: 4007-6309 | AC139: 0 | AE139: ESNet Multi-mode fiber media card | AF139: 4007-6309 | AG139: 0 | AH139: 0.135 | AI139: 0 | AJ139: 0.135 | AK139: 0 | AL139: 135 | AM139: 135
A140: 5 | B140: 5 | D140: ESNet DSL (copper) media card | E140: 4007-6307 | AC140: 0 | AE140: ESNet DSL (copper) media card | AF140: 4007-6307 | AG140: 0 | AH140: 0.155 | AI140: 0 | AJ140: 0.155 | AK140: 0 | AL140: 155 | AM140: 155
A141: 4 | B141: 0 | C141: - | D141: REMOTE ANNUNCIATORS | E141: 0 | AC141: 0 | AE141: REMOTE ANNUNCIATORS | AG141: 0 | AH141: 0 | AI141: 0 | AJ141: 0 | AK141: 0
A142: 5 | B142: 1 | C142: ★ | D142: Red Color Touchscreen Annunciator | E142: 4606-9202 | AC142: 0 | AE142: Red Color Touchscreen Annunciator | AF142: 4606-9202 | AG142: 0 | AH142: 0.07 | AI142: 0 | AJ142: 0.124 | AK142: 0 | AL142: 70 | AM142: 124
A143: 5 | B143: 2 | C143: ★ | D143: Platinum Color Touchscreen Annunciator | E143: 4606-9205 | AC143: 0 | AE143: Platinum Color Touchscreen Annunciator | AF143: 4606-9205 | AG143: 0 | AH143: 0.07 | AI143: 0 | AJ143: 0.124 | AK143: 0 | AL143: 70 | AM143: 124
A144: 5 | B144: 3 | D144: Status Command Unit | E144: 4602-9101 | AC144: 0 | AE144: Status Command Unit | AF144: 4602-9101 | AG144: 0 | AH144: 0.036 | AI144: 0 | AJ144: 0.055 | AK144: 0 | AL144: 36 | AM144: 55
A145: 5 | B145: 4 | D145: Remote Command Unit | E145: 4602-9102 | AC145: 0 | AE145: Remote Command Unit | AF145: 4602-9102 | AG145: 0 | AH145: 0.04 | AI145: 0 | AJ145: 0.08 | AK145: 0 | AL145: 40 | AM145: 80
A146: 3 | B146: 0 | C146: - | D146: 4007ES HYBRID/IDNAC MX LOOP WITH ADDRESSABLE NOTIFICATION | E146: 0 | AC146: 0 | AE146: 4007ES HYBRID/IDNAC MX LOOP WITH ADDRESSABLE NOTIFICATION | AG146: 0 | AH146: 0 | AI146: 0 | AJ146: 0 | AK146: 0
A147: 4 | B147: 1 | C147: ★ | D147: Red 4007ES IDNAC Panel | E147: 4007-9401 | AC147: 0 | AD147: 1 | AE147: Red 4007ES IDNAC Panel | AF147: 4007-9401 | AG147: 0 | AH147: 0.19 | AI147: 0 | AJ147: 0.29 | AK147: 0 | AL147: 190 | AM147: 290
A148: 4 | B148: 2 | C148: ★ | D148: Platinum 4007ES IDNAC Panel | E148: 4007-9402 | AC148: 0 | AD148: 1 | AE148: Platinum 4007ES IDNAC Panel | AF148: 4007-9402 | AG148: 0 | AH148: 0.19 | AI148: 0 | AJ148: 0.29 | AK148: 0 | AL148: 190 | AM148: 290
A149: 4 | B149: 3 | D149: Panel Mounted 48 LED Status Annunciator | E149: 4007-9805 | AC149: 0 | AE149: Panel Mounted 48 LED Status Annunciator | AF149: 4007-9805 | AG149: 0 | AH149: 0.01 | AI149: 0 | AJ149: 0.01 | AK149: 0 | AL149: 10 | AM149: 10
A150: 4 | B150: 4 | D150: Total Status Annunciator LEDs on in Alarm | E150: 0 | AC150: 0 | AE150: Total Status Annunciator LEDs on in Alarm | AG150: 0 | AH150: 0 | AI150: 0 | AJ150: 0.00175 | AK150: 0 | AM150: 1.75
A151: 4 | B151: 0 | C151: + | D151: HYBRID/IDNAC PANEL COMPATIBLE OPTIONAL CARDS | E151: 0 | AC151: 0 | AE151: HYBRID/IDNAC PANEL COMPATIBLE OPTIONAL CARDS | AG151: 0 | AH151: 0 | AI151: 0 | AJ151: 0 | AK151: 0
A152: 5 | B152: 1 | D152: 8 Point Zone/Relay Card - FULLY LOADED | E152: 4007-9801 | AC152: 0 | AE152: 8 Point Zone/Relay Card - FULLY LOADED | AF152: 4007-9801 | AG152: 0 | AH152: 0.083 | AI152: 0 | AJ152: 0.351 | AK152: 0 | AL152: 83 | AM152: 351
A153: 5 | B153: 2 | D153: 8 Point Zone/Relay Card - CARD ONLY | E153: 4007-9801 | AC153: 0 | AE153: 8 Point Zone/Relay Card - CARD ONLY | AF153: 4007-9801 | AG153: 0 | AH153: 0.027 | AI153: 0 | AJ153: 0.027 | AK153: 0 | AL153: 27 | AM153: 27
A154: 5 | B154: 3 | D154: Total Configured Class B Zones | E154: 0 | AC154: 0 | AE154: Total Configured Class B Zones | AG154: 0 | AH154: 0.011 | AI154: 0 | AJ154: 0.06 | AK154: 0 | AL154: 11 | AM154: 60
A155: 5 | B155: 4 | D155: Total Cconfigured Class A Zones | E155: 0 | AC155: 0 | AE155: Total Cconfigured Class A Zones | AG155: 0 | AH155: 0.02 | AI155: 0 | AJ155: 0.069 | AK155: 0 | AL155: 20 | AM155: 69
A156: 5 | B156: 5 | D156: Total Configured Relays De-Energized Normally | E156: 0 | AC156: 0 | AE156: Total Configured Relays De-Energized Normally | AG156: 0 | AH156: 0 | AI156: 0 | AJ156: 0.009 | AK156: 0 | AL156: 0 | AM156: 9
A157: 5 | B157: 6 | D157: Total Configured Relays Energized Normally | E157: 0 | AC157: 0 | AE157: Total Configured Relays Energized Normally | AG157: 0 | AH157: 0.009 | AI157: 0 | AJ157: 0 | AK157: 0 | AL157: 9 | AM157: 0
A158: 5 | B158: 7 | D158: 25 VDC Regulator Module with 1 x 8 Zone Relay Card | E158: 4007-9802 | AC158: 0 | AE158: 25 VDC Regulator Module with 1 x 8 Zone Relay Card | AF158: 4007-9802 | AG158: 0 | AH158: 0.19 | AI158: 0 | AJ158: 0.445 | AK158: 0 | AL158: 190 | AM158: 445
A159: 5 | B159: 8 | D159: 25 VDC Regulator Module with 2 x 8 Zone Relay Cards | E159: 4007-9802 | AC159: 0 | AE159: 25 VDC Regulator Module with 2 x 8 Zone Relay Cards | AF159: 4007-9802 | AG159: 0 | AH159: 0.29 | AI159: 0 | AJ159: 0.801 | AK159: 0 | AL159: 290 | AM159: 801
A160: 5 | B160: 9 | D160: 25 VDC Regulator Module with 3 x 8 Zone Relay Cards | E160: 4007-9802 | AC160: 0 | AE160: 25 VDC Regulator Module with 3 x 8 Zone Relay Cards | AF160: 4007-9802 | AG160: 0 | AH160: 0.39 | AI160: 0 | AJ160: 1.156 | AK160: 0 | AL160: 390 | AM160: 1156
A161: 5 | B161: 10 | D161: ESMX Optional Loop Mezzanine Card | E161: 4007-6312 | AC161: 0 | AE161: ESMX Optional Loop Mezzanine Card | AF161: 4007-6312 | AG161: 0 | AH161: 0 | AI161: 0 | AJ161: 0 | AK161: 0 | AL161: 0 | AM161: 0
A162: 5 | B162: 11 | D162: Dual Class A Isolator Card | E162: 4007-9804 | AC162: 0 | AE162: Dual Class A Isolator Card | AF162: 4007-9804 | AG162: 0 | AH162: 0.0127 | AI162: 0 | AJ162: 0.025 | AK162: 0 | AL162: 12.7 | AM162: 25
A163: 5 | B163: 12 | D163: Dual RS-232 Interface Module | E163: 4007-9812 | AC163: 0 | AE163: Dual RS-232 Interface Module | AF163: 4007-9812 | AG163: 0 | AH163: 0.06 | AI163: 0 | AJ163: 0.06 | AK163: 0 | AL163: 60 | AM163: 60
A164: 5 | B164: 13 | D164: Relay Module Alarm, Supervisory and Trouble | E164: 4007-9809 | AC164: 0 | AE164: Relay Module Alarm, Supervisory and Trouble | AF164: 4007-9809 | AG164: 0 | AH164: 0.015 | AI164: 0 | AJ164: 0.037 | AK164: 0 | AL164: 15 | AM164: 37
A165: 5 | B165: 14 | D165: City Circuit Module with Disconnect Switch | E165: 4007-9807 | AC165: 0 | AE165: City Circuit Module with Disconnect Switch | AF165: 4007-9807 | AG165: 0 | AH165: =AL165/1000 -> 0.02 | AI165: 0 | AJ165: =AM165/1000 -> 0.036 | AK165: 0 | AL165: 20 | AM165: 36
A166: 5 | B166: 15 | D166: City Circuit Module without Disconnect Switch | E166: 4007-9808 | AC166: 0 | AE166: City Circuit Module without Disconnect Switch | AF166: 4007-9808 | AG166: 0 | AH166: 0.02 | AI166: =AG166*AH166 -> 0 | AJ166: 0.036 | AK166: =AG166*AJ166 -> 0 | AL166: 20 | AM166: 36
A167: 4 | B167: 0 | C167: - | D167: COMMUNICATIONS | E167: 0 | AC167: 0 | AE167: COMMUNICATIONS | AG167: 0 | AH167: 0 | AI167: 0 | AJ167: 0 | AK167: 0
A168: 5 | B168: 1 | C168: ★ | D168: SDACT Module for Point or Event Reporting | E168: 4007-9806 | AC168: 0 | AE168: SDACT Module for Point or Event Reporting | AF168: 4007-9806 | AG168: 0 | AH168: 0.03 | AI168: 0 | AJ168: 0.04 | AK168: 0 | AL168: 30 | AM168: 40
A169: 5 | B169: 2 | C169: ★ | D169: IP Communicator Connected Services Gateway | E169: 4007-2504 | AC169: 0 | AE169: IP Communicator Connected Services Gateway | AF169: 4007-2504 | AG169: 0 | AH169: 0.125 | AI169: 0 | AJ169: 0.125 | AK169: 0 | AL169: 125 | AM169: 125
A170: 5 | B170: 3 | C170: ★ | D170: GSM 4G/LTE Cellular Module Kit for Internal Mount | E170: 4007-6416 | AC170: 0 | AE170: GSM 4G/LTE Cellular Module Kit for Internal Mount | AF170: 4007-6416 | AG170: 0 | AH170: 0.02 | AI170: 0 | AJ170: 0.02 | AK170: 0 | AL170: 20 | AM170: 20
A171: 4 | B171: 0 | C171: + | D171: ESNET | E171: 0 | AC171: 0 | AE171: ESNET | AG171: 0 | AH171: 0 | AI171: 0 | AJ171: 0 | AK171: 0
A172: 5 | B172: 1 | D172: 4007ES ESNet Network Card | E172: 4007-9817 | AC172: 0 | AE172: 4007ES ESNet Network Card | AF172: 4007-9817 | AG172: 0 | AH172: 0.12 | AI172: 0 | AJ172: 0.12 | AK172: 0 | AL172: 120 | AM172: 120
A173: 5 | B173: 2 | D173: ESNet Ethernet media card | E173: 4007-6306 | AC173: 0 | AE173: ESNet Ethernet media card | AF173: 4007-6306 | AG173: 0 | AH173: 0.02 | AI173: 0 | AJ173: 0.02 | AK173: 0 | AL173: 20 | AM173: 20
A174: 5 | B174: 3 | D174: ESNet Single-mode fiber media card | E174: 4007-6308 | AC174: 0 | AE174: ESNet Single-mode fiber media card | AF174: 4007-6308 | AG174: 0 | AH174: 0.135 | AI174: 0 | AJ174: 0.135 | AK174: 0 | AL174: 135 | AM174: 135
A175: 5 | B175: 4 | D175: ESNet Multi-mode fiber media card | E175: 4007-6309 | AC175: 0 | AE175: ESNet Multi-mode fiber media card | AF175: 4007-6309 | AG175: 0 | AH175: 0.135 | AI175: 0 | AJ175: 0.135 | AK175: 0 | AL175: 135 | AM175: 135
A176: 5 | B176: 5 | D176: ESNet DSL (copper) media card | E176: 4007-6307 | AC176: 0 | AE176: ESNet DSL (copper) media card | AF176: 4007-6307 | AG176: 0 | AH176: 0.155 | AI176: 0 | AJ176: 0.155 | AK176: 0 | AL176: 155 | AM176: 155
A177: 4 | B177: 0 | C177: - | D177: REMOTE ANNUNCIATORS | E177: 0 | AC177: 0 | AE177: REMOTE ANNUNCIATORS | AG177: 0 | AH177: 0 | AI177: 0 | AJ177: 0 | AK177: 0
A178: 5 | B178: 1 | C178: ★ | D178: Red Color Touchscreen Annunciator | E178: 4606-9202 | AC178: 0 | AE178: Red Color Touchscreen Annunciator | AF178: 4606-9202 | AG178: 0 | AH178: 0.07 | AI178: 0 | AJ178: 0.124 | AK178: 0 | AL178: 70 | AM178: 124
A179: 5 | B179: 2 | C179: ★ | D179: Platinum Color Touchscreen Annunciator | E179: 4606-9205 | AC179: 0 | AE179: Platinum Color Touchscreen Annunciator | AF179: 4606-9205 | AG179: 0 | AH179: 0.07 | AI179: 0 | AJ179: 0.124 | AK179: 0 | AL179: 70 | AM179: 124
A180: 5 | B180: 3 | D180: Status Command Unit | E180: 4602-9101 | AC180: 0 | AE180: Status Command Unit | AF180: 4602-9101 | AG180: 0 | AH180: 0.036 | AI180: 0 | AJ180: 0.055 | AK180: 0 | AL180: 36 | AM180: 55
A181: 5 | B181: 4 | D181: Remote Command Unit | E181: 4602-9102 | AC181: 0 | AE181: Remote Command Unit | AF181: 4602-9102 | AG181: 0 | AH181: 0.04 | AI181: 0 | AJ181: 0.08 | AK181: 0 | AL181: 40 | AM181: 80
A182: 2 | B182: 0 | C182: + | D182: 4010ES | E182: 0 | AC182: 0 | AE182: 4010ES | AG182: 0 | AH182: 0 | AI182: 0 | AJ182: 0 | AK182: 0
A183: 3 | B183: 0 | C183: - | D183: CONTROL PANELS | E183: 0 | AC183: 0 | AE183: CONTROL PANELS | AG183: 0 | AH183: 0 | AI183: 0 | AJ183: 0 | AK183: 0
A184: 4 | B184: 1 | C184: ★ | D184: English 2x40 Display, 120V, 4 NACs, Red, 1 IDNet Channel, 1 Bay Box | E184: 4010-9401 | AC184: 0 | AD184: 1 | AE184: English 2x40 Display, 120V, 4 NACs, Red, 1 IDNet Channel, 1 Bay Box | AF184: 4010-9401 | AG184: 0 | AH184: 0.316 | AI184: 0 | AJ184: 0.43 | AK184: 0 | AL184: 316 | AM184: 430
A185: 4 | B185: 2 | C185: ★ | D185: English 2x40 Display, 120V, 4 NACs, Platinum, 1 IDNet Channel, 1 Bay Box | E185: 4010-9402 | AC185: 0 | AD185: 1 | AE185: English 2x40 Display, 120V, 4 NACs, Platinum, 1 IDNet Channel, 1 Bay Box | AF185: 4010-9402 | AG185: 0 | AH185: 0.316 | AI185: 0 | AJ185: 0.43 | AK185: 0 | AL185: 316 | AM185: 430
A186: 4 | B186: 3 | D186: English 2x40 Display, 120V, 4 NACs, Platinum, 1 IDNet Channel, 48 LEDs, 1 Bay Box | E186: 4010-9404 | AC186: 0 | AD186: 1 | AE186: English 2x40 Display, 120V, 4 NACs, Platinum, 1 IDNet Channel, 48 LEDs, 1 Bay Box | AF186: 4010-9404 | AG186: 0 | AH186: 0.336 | AI186: 0 | AJ186: 0.495 | AK186: 0 | AL186: 336 | AM186: 495
A187: 4 | B187: 4 | D187: French 2x40 Display, 120V, 4 NACs, Platinum, 1 IDNet Channel, 48 LEDs, 1 Bay Box | E187: 4010-9406 | AC187: 0 | AD187: 1 | AE187: French 2x40 Display, 120V, 4 NACs, Platinum, 1 IDNet Channel, 48 LEDs, 1 Bay Box | AF187: 4010-9406 | AG187: 0 | AH187: 0.336 | AI187: 0 | AJ187: 0.495 | AK187: 0 | AL187: 336 | AM187: 495
A188: 4 | B188: 5 | D188: English 2x40 Display, 120V, 4 NACs, Red, 2 IDNet Channels, 2 Bay Box | E188: 4010-9421 | AC188: 0 | AD188: 1 | AE188: English 2x40 Display, 120V, 4 NACs, Red, 2 IDNet Channels, 2 Bay Box | AF188: 4010-9421 | AG188: 0 | AH188: 0.391 | AI188: 0 | AJ188: 0.545 | AK188: 0 | AL188: 391 | AM188: 545
A189: 4 | B189: 6 | D189: English 2x40 Display, 120V, 4 NACs, Platinum, 2 IDNet Channels, 48 LEDs, 2 Bay Box | E189: 4010-9428 | AC189: 0 | AD189: 1 | AE189: English 2x40 Display, 120V, 4 NACs, Platinum, 2 IDNet Channels, 48 LEDs, 2 Bay Box | AF189: 4010-9428 | AG189: 0 | AH189: 0.411 | AI189: 0 | AJ189: 0.61 | AK189: 0 | AL189: 411 | AM189: 610
A190: 4 | B190: 7 | D190: Touch Screen Display, 120V, 4 NACs, Red, 2 IDNet Channels, 2 Bay Box | E190: 4010-9435 | AC190: 0 | AD190: 1 | AE190: Touch Screen Display, 120V, 4 NACs, Red, 2 IDNet Channels, 2 Bay Box | AF190: 4010-9435 | AG190: 0 | AH190: 0.486 | AI190: 0 | AJ190: 0.661 | AK190: 0 | AL190: 486 | AM190: 661
A191: 4 | B191: 8 | D191: English 2x40 Display, 220V-240V, 4 NACs, Red, 2 IDNet Channels, 2 Bay Box | E191: 4010-9521 | AC191: 0 | AD191: 1 | AE191: English 2x40 Display, 220V-240V, 4 NACs, Red, 2 IDNet Channels, 2 Bay Box | AF191: 4010-9521 | AG191: 0 | AH191: 0.391 | AI191: 0 | AJ191: 0.545 | AK191: 0 | AL191: 391 | AM191: 545
A192: 4 | B192: 9 | D192: English 2x40 Display, 220V-240V, 4 NACs, Platinum, 2 IDNet Channels, 2 Bay Box | E192: 4010-9522 | AC192: 0 | AD192: 1 | AE192: English 2x40 Display, 220V-240V, 4 NACs, Platinum, 2 IDNet Channels, 2 Bay Box | AF192: 4010-9522 | AG192: 0 | AH192: 0.391 | AI192: 0 | AJ192: 0.545 | AK192: 0 | AL192: 391 | AM192: 545
A193: 4 | B193: 10 | D193: English 2x40 Display, IDNAC, 120V, Red, 1 IDNet Channel, 1 Bay Box | E193: 4010-9601 | AC193: 0 | AD193: 1 | AE193: English 2x40 Display, IDNAC, 120V, Red, 1 IDNet Channel, 1 Bay Box | AF193: 4010-9601 | AG193: 0 | AH193: 0.336 | AI193: 0 | AJ193: 0.54 | AK193: 0 | AL193: 336 | AM193: 540
A194: 4 | B194: 11 | D194: English 2x40 Display, IDNAC, 120V, Platinum, 1 IDNet Channel, 1 Bay Box | E194: 4010-9602 | AC194: 0 | AD194: 1 | AE194: English 2x40 Display, IDNAC, 120V, Platinum, 1 IDNet Channel, 1 Bay Box | AF194: 4010-9602 | AG194: 0 | AH194: 0.336 | AI194: 0 | AJ194: 0.54 | AK194: 0 | AL194: 336 | AM194: 540
A195: 4 | B195: 12 | D195: English 2x40 Display, 120V, IDNAC, Red, 2 IDNet Channels, 2 Bay Box | E195: 4010-9621 | AC195: 0 | AD195: 1 | AE195: English 2x40 Display, 120V, IDNAC, Red, 2 IDNet Channels, 2 Bay Box | AF195: 4010-9621 | AG195: 0 | AH195: 0.411 | AI195: 0 | AJ195: 0.655 | AK195: 0 | AL195: 411 | AM195: 655
A196: 4 | B196: 13 | D196: Touch Screen Display, 120V, IDNAC, Red, 2 IDNet Channels, 2 Bay Box | E196: 4010-9633 | AC196: 0 | AD196: 1 | AE196: Touch Screen Display, 120V, IDNAC, Red, 2 IDNet Channels, 2 Bay Box | AF196: 4010-9633 | AG196: 0 | AH196: 0.506 | AI196: 0 | AJ196: 0.771 | AK196: 0 | AL196: 506 | AM196: 771
A197: 4 | B197: 14 | C197: ★ | D197: English 2x40 Display, IDNAC, 220-240V, Red, 1 IDNet Channel, 1 Bay Box | E197: 4010-9701 | AC197: 0 | AD197: 1 | AE197: English 2x40 Display, IDNAC, 220-240V, Red, 1 IDNet Channel, 1 Bay Box | AF197: 4010-9701 | AG197: 0 | AH197: 0.336 | AI197: 0 | AJ197: 0.54 | AK197: 0 | AL197: 336 | AM197: 540
A198: 4 | B198: =IF(OR(C198="+",C198="-"),0,B197+1) -> 15 | C198: ★ | D198: English 2x40 Display, IDNAC, 220-240V, Platinum, 1 IDNet Channel, 1 Bay Box | E198: 4010-9702 | AC198: 0 | AD198: 1 | AE198: English 2x40 Display, IDNAC, 220-240V, Platinum, 1 IDNet Channel, 1 Bay Box | AF198: 4010-9702 | AG198: 0 | AH198: 0.336 | AI198: 0 | AJ198: 0.54 | AK198: 0 | AL198: 336 | AM198: 540
A199: 4 | B199: 16 | D199: English 2x40 Display, 220V-240V, IDNAC, Red, 2 IDNet Channels, 2 Bay Box | E199: 4010-9721 | AC199: 0 | AD199: 1 | AE199: English 2x40 Display, 220V-240V, IDNAC, Red, 2 IDNet Channels, 2 Bay Box | AF199: 4010-9721 | AG199: 0 | AH199: 0.411 | AI199: 0 | AJ199: 0.655 | AK199: 0 | AL199: 411 | AM199: 655
A200: 4 | B200: 17 | D200: English 2x40 Display, 220V-240V, IDNAC, Platinum, 2 IDNet Channels, 2 Bay Box | E200: 4010-9722 | AC200: 0 | AD200: 1 | AE200: English 2x40 Display, 220V-240V, IDNAC, Platinum, 2 IDNet Channels, 2 Bay Box | AF200: 4010-9722 | AG200: 0 | AH200: 0.411 | AI200: 0 | AJ200: 0.655 | AK200: 0 | AL200: 411 | AM200: 655
... 1800 more rows

Sheet Battery Report
B2: ="Project Name: "&ProjectNameField -> Project Name: Example Project | F2: SELECTED BATTERY SET | H2: 1
B3: ="Customer Name: "&ProjectCustomerNameField -> Customer Name: abc tower
B4: ="Project Location: "&ProjectLocationField -> Project Location: | F4: STANDBY HOURS | H4: 24 | AD4: Qty
B5: ="Project Phase: "&ProjectPhaseField -> Project Phase: Phase 1 | F5: STANDBY MINUTES | H5: 5
B6: ="Prepared By: "&Projectpreparedbyfield -> Prepared By: Alan Ang | F6: BATTERY FACTOR | H6: 0.25
B7: ="Date: "&(IF(ISBLANK(ProjectDateField),TODAY(),ProjectDateField)) -> Date: 15th July 2024 | F7: SPARE CAPACITY | H7: 0
C8: =IF(E9>0,"IDNAC 29 VDC BOOST MULTIPLIER","") -> 
B9: ="Battery Set Location: " & INDEX(dataBattSetLocation,brBatterySet) ->  | C9: =IF(E9>0,"IDNAC ALARM CURRENT AMPS","") ->  | E9: =SUMPRODUCT('Battery Selection'!AG763:AG1576,'Battery Selection'!AJ763:AJ1576) -> 0 | F9: TOTAL STANDBY AMPS | H9: =SUMPRODUCT('Battery Selection'!AG8:AG2000,'Battery Selection'!AH8:AH2000)+E15 -> 0
C10: =IF(E9>0,"IDNAC BOOST FACTOR " & IF(SUM('Battery Selection'!AG481:AG484)>0,1.37,1.57) & " AMPS","") ->  | E10: =IF(E9>0,(E9*IF(SUM('Battery Selection'!AG481:AG484)>0,1.37,1.57))-E9,0) -> 0 | F10: TOTAL ALARM AMPS | H10: =SUMPRODUCT('Battery Selection'!AG8:AG2000,'Battery Selection'!AJ8:AJ2000)+E10+E13 -> 0
C11: =IF(E12>0,"ESMX LOOP 40 VDC BOOST MULTIPLIER","") -> 
C12: =IF(E12>0,"ESMX LOOP ALARM CURRENT AMPS","") ->  | E12: =SUMPRODUCT(IF('Battery Selection'!AO668:AO757=1,1,0),'Battery Selection'!AG668:AG757,'Battery Selection'!AJ668:AJ757) -> 0
C13: =IF(E12>0,"ESMX LOOP BOOST FACTOR 2.496 AMPS","") ->  | E13: =IF(E12>0,(E12*2.496)-E12,0) -> 0
C14: =IF(E14>0,"ESMX LOOP STANDBY CURRENT AMPS","") ->  | E14: =SUMPRODUCT(IF('Battery Selection'!AO668:AO757=1,1,0),'Battery Selection'!AG668:AG757,'Battery Selection'!AH668:AH757) -> 0 | F14: TOTAL AMPERE HOURS | H14: =(H9*H4)+(H10*(H5/60)) -> 0
C15: =IF(E14>0,"ESMX LOOP BOOST FACTOR 2.496 AMPS","") ->  | E15: =IF(E14>0,(E14*2.496)-E14,0) -> 0 | F15: MINIMUM BATTERY | H15: =(H14+(H14*H6))+(H14+(H14*H6))*H7 -> 0
E18: UNIT AMPS | F18: TOTAL AMPS | G18: UNIT AMPS | H18: TOTAL AMPS
A19: Item | B19: Product Description | C19: Part Code | D19: Qty | E19: STANDBY | F19: STANDBY | G19: ALARM | H19: ALARM
A20: =ROW(_xlfn.ANCHORARRAY(B20))-19 -> 1 | B20: =_xlfn._xlws.FILTER('Battery Selection'!AE5:AK2000,('Battery Selection'!AG5:AG2000>0)+('Battery Selection'!AD5:AD2000="h"),"Battery Set Empty") -> Battery Set Empty
W1263: 50 | Y1263: 100 | AI1263: =W1263 -> 50 | AJ1263: =Y1263 -> 100
AI1264: =W1264 -> 0 | AJ1264: =Y1264 -> 0
AI1265: 0 | AJ1265: 0
AI1266: 0 | AJ1266: 0
AI1267: 0 | AJ1267: 0
AI1268: 0 | AJ1268: 0
AI1269: 0 | AJ1269: 0
AI1270: 0 | AJ1270: 0
AI1271: 0 | AJ1271: 0
AI1272: 0 | AJ1272: 0
AI1273: 0 | AJ1273: 0
AI1274: 0 | AJ1274: 0
AI1275: 0 | AJ1275: 0
AI1276: 0 | AJ1276: 0
AI1277: 0 | AJ1277: 0
AI1278: 0 | AJ1278: 0
AI1279: 0 | AJ1279: 0
AI1280: 0 | AJ1280: 0
AI1281: 0 | AJ1281: 0
AI1282: 0 | AJ1282: 0
AI1283: 0 | AJ1283: 0
AI1284: 0 | AJ1284: 0
AI1285: 0 | AJ1285: 0
AI1286: 0 | AJ1286: 0
AI1287: 0 | AJ1287: 0
AI1288: 0 | AJ1288: 0
AI1289: 0 | AJ1289: 0
AI1290: 0 | AJ1290: 0
AI1291: 0 | AJ1291: 0
AI1292: 0 | AJ1292: 0
AI1293: 0 | AJ1293: 0
AI1294: 0 | AJ1294: 0
AI1295: 0 | AJ1295: 0
AI1296: 0 | AJ1296: 0
AI1297: 0 | AJ1297: 0
AI1298: 0 | AJ1298: 0
AI1299: 0 | AJ1299: 0
AI1300: 0 | AJ1300: 0
AI1301: 0 | AJ1301: 0
AI1302: 0 | AJ1302: 0
AI1303: 0 | AJ1303: 0
AI1304: 0 | AJ1304: 0
AI1305: 0 | AJ1305: 0
AI1306: 0 | AJ1306: 0
AI1307: 0 | AJ1307: 0
AI1308: 0 | AJ1308: 0
AI1309: 0 | AJ1309: 0
AI1310: 0 | AJ1310: 0
AI1311: 0 | AJ1311: 0
AI1312: 0 | AJ1312: 0
AI1314: 0 | AJ1314: 0
AI1315: 0 | AJ1315: 0
AI1316: 0 | AJ1316: 0
AI1317: 0 | AJ1317: 0
AI1318: 0 | AJ1318: 0
AI1319: 0 | AJ1319: 0
AI1320: 0 | AJ1320: 0
AI1321: 0 | AJ1321: 0
AI1322: 0 | AJ1322: 0
AI1323: 0 | AJ1323: 0
AI1324: 0 | AJ1324: 0
AI1325: 0 | AJ1325: 0
AI1326: 0 | AJ1326: 0
AI1327: 0 | AJ1327: 0
AI1328: =W1328 -> 0 | AJ1328: =Y1328 -> 0
AI1329: 0 | AJ1329: 0
AI1330: 0 | AJ1330: 0
AI1331: 0 | AJ1331: 0
AI1332: 0 | AJ1332: 0
AI1333: 0 | AJ1333: 0
AI1334: 0 | AJ1334: 0
AI1335: 0 | AJ1335: 0
AI1336: 0 | AJ1336: 0
AI1337: 0 | AJ1337: 0
AI1338: 0 | AJ1338: 0
AI1339: 0 | AJ1339: 0
AI1340: 0 | AJ1340: 0
AI1341: 0 | AJ1341: 0
AI1342: 0 | AJ1342: 0
AI1343: 0 | AJ1343: 0
AI1344: 0 | AJ1344: 0
AI1345: 0 | AJ1345: 0
AI1346: 0 | AJ1346: 0
AI1347: 0 | AJ1347: 0
AI1348: 0 | AJ1348: 0
AI1349: 0 | AJ1349: 0
AI1350: 0 | AJ1350: 0
AI1351: 0 | AJ1351: 0
AI1352: 0 | AJ1352: 0
AI1353: 0 | AJ1353: 0
AI1354: 0 | AJ1354: 0
AI1355: 0 | AJ1355: 0
AI1356: 0 | AJ1356: 0
AI1357: 0 | AJ1357: 0
AI1358: 0 | AJ1358: 0
AI1359: 0 | AJ1359: 0
AI1360: 0 | AJ1360: 0
AI1361: 0 | AJ1361: 0
AI1362: 0 | AJ1362: 0
AI1363: 0 | AJ1363: 0
AI1365: 0 | AJ1365: 0
AI1366: 0 | AJ1366: 0
AI1367: 0 | AJ1367: 0
AI1368: 0 | AJ1368: 0
AI1369: 0 | AJ1369: 0
AI1370: 0 | AJ1370: 0
AI1371: 0 | AJ1371: 0
AI1372: 0 | AJ1372: 0
AI1373: 0 | AJ1373: 0
AI1374: 0 | AJ1374: 0
AI1375: 0 | AJ1375: 0
AI1376: 0 | AJ1376: 0
AI1377: 0 | AJ1377: 0
AI1378: 0 | AJ1378: 0
AI1379: 0 | AJ1379: 0
AI1380: 0 | AJ1380: 0
AI1381: 0 | AJ1381: 0
AI1382: 0 | AJ1382: 0
AI1383: 0 | AJ1383: 0
AI1384: 0 | AJ1384: 0
AI1385: 0 | AJ1385: 0
AI1386: 0 | AJ1386: 0
AI1387: 0 | AJ1387: 0
AI1388: 0 | AJ1388: 0
AI1389: 0 | AJ1389: 0
AI1390: 0 | AJ1390: 0
AI1391: 0 | AJ1391: 0
AI1392: =W1392 -> 0 | AJ1392: =Y1392 -> 0
AI1393: 0 | AJ1393: 0
AI1394: 0 | AJ1394: 0
AI1395: 0 | AJ1395: 0
AI1396: 0 | AJ1396: 0
AI1397: 0 | AJ1397: 0
AI1398: 0 | AJ1398: 0
AI1399: 0 | AJ1399: 0
AI1400: 0 | AJ1400: 0
AI1401: 0 | AJ1401: 0
AI1402: 0 | AJ1402: 0
AI1403: 0 | AJ1403: 0
AI1404: 0 | AJ1404: 0
AI1405: 0 | AJ1405: 0
AI1406: 0 | AJ1406: 0
AI1407: 0 | AJ1407: 0
AI1408: 0 | AJ1408: 0
AI1409: 0 | AJ1409: 0
AI1410: 0 | AJ1410: 0
AI1411: 0 | AJ1411: 0
AI1412: 0 | AJ1412: 0
AI1413: 0 | AJ1413: 0
AI1414: 0 | AJ1414: 0
AB1415: EQUIPMENT CONNECTED TO AUX POWER
AI1416: 0 | AJ1416: 0
AI1417: 0 | AJ1417: 0
AI1418: 0 | AJ1418: 0
AI1419: 0 | AJ1419: 0
AI1420: 0 | AJ1420: 0
AI1421: 0 | AJ1421: 0
AI1422: 0 | AJ1422: 0
AI1423: 0 | AJ1423: 0
AI1424: 0 | AJ1424: 0
AI1425: 0 | AJ1425: 0
AI1426: 0 | AJ1426: 0
AI1427: 0 | AJ1427: 0
AI1428: 0 | AJ1428: 0
AI1429: 0 | AJ1429: 0
AI1430: 0 | AJ1430: 0
AI1431: 0 | AJ1431: 0
AI1432: 0 | AJ1432: 0
AI1433: 0 | AJ1433: 0
AI1434: 0 | AJ1434: 0
AI1435: 0 | AJ1435: 0
AI1436: 0 | AJ1436: 0
AI1437: 0 | AJ1437: 0
AI1438: 0 | AJ1438: 0
AI1439: 0 | AJ1439: 0
AI1440: 0 | AJ1440: 0
AI1441: 0 | AJ1441: 0
AI1442: 0 | AJ1442: 0
AI1443: 0 | AJ1443: 0
AI1444: 0 | AJ1444: 0
AI1445: 0 | AJ1445: 0
AI1446: 0 | AJ1446: 0
AI1447: 0 | AJ1447: 0
... 18 more rows

Sheet Battery Report Output (hidden)
B2: Project Name: | F2: SELECTED BATTERY SET | H2: 4
B3: Customer Name:
B4: Project Location: | F4: STANDBY HOURS | H4: 24 | AD4: Qty
B5: Project Phase: | F5: STANDBY MINUTES | H5: 5
B6: Prepared By: Jason Crouch | F6: BATTERY FACTOR | H6: 0.2
B7: 2024-04-22 | F7: SPARE CAPACITY | H7: 0
C8: IDNAC 29 VDC BOOST MULTIPLIER
B9: Battery Set Location: FACP | C9: IDNAC ALARM CURRENT AMPS | E9: 0.849 | F9: TOTAL STANDBY AMPS | H9: 0.082
C10: IDNAC BOOST FACTOR 1.37 AMPS | E10: 0.31413 | F10: TOTAL ALARM AMPS | H10: 1.25913
E12: 0
E13: 0
E14: 0 | F14: TOTAL AMPERE HOURS | H14: 2.0729275
E15: 0 | F15: MINIMUM BATTERY | H15: 2.487513
E18: UNIT AMPS | F18: TOTAL AMPS | G18: UNIT AMPS | H18: TOTAL AMPS
A19: ITEM | B19: PRODUCT DESCRIPTION | C19: PART CODE | D19: QTY | E19: STANDBY | F19: STANDBY | G19: ALARM | H19: ALARM
A20: 1 | B20: PANELS AND CONTROL EQUIPMENT | C20: 0 | D20: 0 | E20: header | F20: header | G20: header | H20: header
A21: 2 | B21: IDNAC Repeater Red | C21: A009-9602 | D21: 1 | E21: 0.07 | F21: 0.07 | G21: 0.096 | H21: 0.096
A22: 3 | B22: ADDRESSABLE NOTIFICATION | C22: 0 | D22: 0 | E22: header | F22: header | G22: header | H22: header
A23: 4 | B23: Wall Horn Strobe | C23: A49AV-APPLW|15 cd | D23: 7 | E23: 0.0008 | F23: 0.0056 | G23: 0.059 | H23: 0.413
A24: 5 | B24: Wall Horn Strobe | C24: A49AV-APPLW|30 cd | D24: 3 | E24: 0.0008 | F24: 0.0024 | G24: 0.067 | H24: 0.201
A25: 6 | B25: Wall Strobe | C25: A49VO-APPLW|15 cd | D25: 5 | E25: 0.0008 | F25: 0.004 | G25: 0.047 | H25: 0.235
W1263: 50 | Y1263: 100 | AI1263: =W1263 -> 50 | AJ1263: =Y1263 -> 100
AI1264: =W1264 -> 0 | AJ1264: =Y1264 -> 0
AI1265: 0 | AJ1265: 0
AI1266: 0 | AJ1266: 0
AI1267: 0 | AJ1267: 0
AI1268: 0 | AJ1268: 0
AI1269: 0 | AJ1269: 0
AI1270: 0 | AJ1270: 0
AI1271: 0 | AJ1271: 0
AI1272: 0 | AJ1272: 0
AI1273: 0 | AJ1273: 0
AI1274: 0 | AJ1274: 0
AI1275: 0 | AJ1275: 0
AI1276: 0 | AJ1276: 0
AI1277: 0 | AJ1277: 0
AI1278: 0 | AJ1278: 0
AI1279: 0 | AJ1279: 0
AI1280: 0 | AJ1280: 0
AI1281: 0 | AJ1281: 0
AI1282: 0 | AJ1282: 0
AI1283: 0 | AJ1283: 0
AI1284: 0 | AJ1284: 0
AI1285: 0 | AJ1285: 0
AI1286: 0 | AJ1286: 0
AI1287: 0 | AJ1287: 0
AI1288: 0 | AJ1288: 0
AI1289: 0 | AJ1289: 0
AI1290: 0 | AJ1290: 0
AI1291: 0 | AJ1291: 0
AI1292: 0 | AJ1292: 0
AI1293: 0 | AJ1293: 0
AI1294: 0 | AJ1294: 0
AI1295: 0 | AJ1295: 0
AI1296: 0 | AJ1296: 0
AI1297: 0 | AJ1297: 0
AI1298: 0 | AJ1298: 0
AI1299: 0 | AJ1299: 0
AI1300: 0 | AJ1300: 0
AI1301: 0 | AJ1301: 0
AI1302: 0 | AJ1302: 0
AI1303: 0 | AJ1303: 0
AI1304: 0 | AJ1304: 0
AI1305: 0 | AJ1305: 0
AI1306: 0 | AJ1306: 0
AI1307: 0 | AJ1307: 0
AI1308: 0 | AJ1308: 0
AI1309: 0 | AJ1309: 0
AI1310: 0 | AJ1310: 0
AI1311: 0 | AJ1311: 0
AI1312: 0 | AJ1312: 0
AI1314: 0 | AJ1314: 0
AI1315: 0 | AJ1315: 0
AI1316: 0 | AJ1316: 0
AI1317: 0 | AJ1317: 0
AI1318: 0 | AJ1318: 0
AI1319: 0 | AJ1319: 0
AI1320: 0 | AJ1320: 0
AI1321: 0 | AJ1321: 0
AI1322: 0 | AJ1322: 0
AI1323: 0 | AJ1323: 0
AI1324: 0 | AJ1324: 0
AI1325: 0 | AJ1325: 0
AI1326: 0 | AJ1326: 0
AI1327: 0 | AJ1327: 0
AI1328: =W1328 -> 0 | AJ1328: =Y1328 -> 0
AI1329: 0 | AJ1329: 0
AI1330: 0 | AJ1330: 0
AI1331: 0 | AJ1331: 0
AI1332: 0 | AJ1332: 0
AI1333: 0 | AJ1333: 0
AI1334: 0 | AJ1334: 0
AI1335: 0 | AJ1335: 0
AI1336: 0 | AJ1336: 0
AI1337: 0 | AJ1337: 0
AI1338: 0 | AJ1338: 0
AI1339: 0 | AJ1339: 0
AI1340: 0 | AJ1340: 0
AI1341: 0 | AJ1341: 0
AI1342: 0 | AJ1342: 0
AI1343: 0 | AJ1343: 0
AI1344: 0 | AJ1344: 0
AI1345: 0 | AJ1345: 0
AI1346: 0 | AJ1346: 0
AI1347: 0 | AJ1347: 0
AI1348: 0 | AJ1348: 0
AI1349: 0 | AJ1349: 0
AI1350: 0 | AJ1350: 0
AI1351: 0 | AJ1351: 0
AI1352: 0 | AJ1352: 0
AI1353: 0 | AJ1353: 0
AI1354: 0 | AJ1354: 0
AI1355: 0 | AJ1355: 0
AI1356: 0 | AJ1356: 0
AI1357: 0 | AJ1357: 0
AI1358: 0 | AJ1358: 0
AI1359: 0 | AJ1359: 0
AI1360: 0 | AJ1360: 0
AI1361: 0 | AJ1361: 0
AI1362: 0 | AJ1362: 0
AI1363: 0 | AJ1363: 0
AI1365: 0 | AJ1365: 0
AI1366: 0 | AJ1366: 0
AI1367: 0 | AJ1367: 0
AI1368: 0 | AJ1368: 0
AI1369: 0 | AJ1369: 0
AI1370: 0 | AJ1370: 0
AI1371: 0 | AJ1371: 0
AI1372: 0 | AJ1372: 0
AI1373: 0 | AJ1373: 0
AI1374: 0 | AJ1374: 0
AI1375: 0 | AJ1375: 0
AI1376: 0 | AJ1376: 0
AI1377: 0 | AJ1377: 0
AI1378: 0 | AJ1378: 0
AI1379: 0 | AJ1379: 0
AI1380: 0 | AJ1380: 0
AI1381: 0 | AJ1381: 0
AI1382: 0 | AJ1382: 0
AI1383: 0 | AJ1383: 0
AI1384: 0 | AJ1384: 0
AI1385: 0 | AJ1385: 0
AI1386: 0 | AJ1386: 0
AI1387: 0 | AJ1387: 0
AI1388: 0 | AJ1388: 0
AI1389: 0 | AJ1389: 0
AI1390: 0 | AJ1390: 0
AI1391: 0 | AJ1391: 0
AI1392: =W1392 -> 0 | AJ1392: =Y1392 -> 0
AI1393: 0 | AJ1393: 0
AI1394: 0 | AJ1394: 0
AI1395: 0 | AJ1395: 0
AI1396: 0 | AJ1396: 0
AI1397: 0 | AJ1397: 0
AI1398: 0 | AJ1398: 0
AI1399: 0 | AJ1399: 0
AI1400: 0 | AJ1400: 0
AI1401: 0 | AJ1401: 0
AI1402: 0 | AJ1402: 0
AI1403: 0 | AJ1403: 0
AI1404: 0 | AJ1404: 0
AI1405: 0 | AJ1405: 0
AI1406: 0 | AJ1406: 0
AI1407: 0 | AJ1407: 0
AI1408: 0 | AJ1408: 0
AI1409: 0 | AJ1409: 0
AI1410: 0 | AJ1410: 0
AI1411: 0 | AJ1411: 0
AI1412: 0 | AJ1412: 0
AI1413: 0 | AJ1413: 0
AI1414: 0 | AJ1414: 0
AB1415: EQUIPMENT CONNECTED TO AUX POWER
AI1416: 0 | AJ1416: 0
AI1417: 0 | AJ1417: 0
AI1418: 0 | AJ1418: 0
AI1419: 0 | AJ1419: 0
AI1420: 0 | AJ1420: 0
AI1421: 0 | AJ1421: 0
AI1422: 0 | AJ1422: 0
AI1423: 0 | AJ1423: 0
AI1424: 0 | AJ1424: 0
AI1425: 0 | AJ1425: 0
AI1426: 0 | AJ1426: 0
AI1427: 0 | AJ1427: 0
AI1428: 0 | AJ1428: 0
AI1429: 0 | AJ1429: 0
AI1430: 0 | AJ1430: 0
AI1431: 0 | AJ1431: 0
AI1432: 0 | AJ1432: 0
AI1433: 0 | AJ1433: 0
AI1434: 0 | AJ1434: 0
AI1435: 0 | AJ1435: 0
AI1436: 0 | AJ1436: 0
AI1437: 0 | AJ1437: 0
AI1438: 0 | AJ1438: 0
AI1439: 0 | AJ1439: 0
AI1440: 0 | AJ1440: 0
AI1441: 0 | AJ1441: 0
AI1442: 0 | AJ1442: 0
AI1443: 0 | AJ1443: 0
... 22 more rows

Sheet Loading Reference
T1: Do not delete
H2: Standby Current findings from Solution Navigator | L2: Total Standby | N2: Alarm Current findings from Solution Navigator | R2: Total Alarm | T2: 0 | U2: 0
B3: PID | C3: Description | E3: Qty | F3: cct | G3: Unit Standby mA | H3: Unit Standby mA | I3: Unit Standby mA | J3: Unit Standby mA | K3: Unit Standby mA | L3: Select NAC % | M3: Unit Alarm mA | N3: Unit Alarm mA | O3: Unit Alarm mA | P3: Unit Alarm mA | Q3: Unit Alarm mA | R3: Select IDNET % | T3: 0.25 | U3: 1
E4: Loading % | G4: 0 | H4: 0.25 | I4: 0.5 | J4: 0.75 | K4: 1 | L4: 0 | M4: 0 | N4: 0.25 | O4: 0.5 | P4: 0.75 | Q4: 1 | R4: 0 | T4: 0.5 | U4: 2
D5: Amp | E5: 3000 | G5: 0 | H5: =+E5*H4 -> 750 | I5: =+I4*E5 -> 1500 | J5: =+J4*E5 -> 2250 | K5: =+K4*E5 -> 3000 | T5: 0.75 | U5: 3
B6: 4100-5450 | C6: NAC Card(Assume 3 active cct) | D6: mA | E6: 1 | F6: 3 | G6: =66 -> 66 | H6: =66 -> 66 | I6: =66 -> 66 | J6: =66 -> 66 | K6: =66 -> 66 | L6: =IF($L$4=1,(+E6*K6),(IF($L$4=0.75,(+E6*J6),(IF($L$4=0.5,(+E6*I6),(IF($L$4=0.25,(+E6*H6),(IF($L$4=0,(+E6*G6),0))))))))) -> 66 | M6: 66 | N6: =+O6-600 -> 3966 | O6: 4566 | P6: 6816 | Q6: =3022*$E$6*$E$6*$F$6 -> 9066 | R6: =IF($L$4=1,(+E6*Q6),(IF($L$4=0.75,(+E6*P6),(IF($L$4=0.5,(+E6*O6),(IF($L$4=0.25,(+E6*N6),(IF($L$4=0,(+E6*M6),0))))))))) -> 66 | T6: 1 | U6: 4
D7: Points | E7: 250 | G7: 0 | H7: =+H4*E7 -> 62.5 | I7: =+I4*E7 -> 125 | J7: =+J4*E7 -> 187.5 | K7: =+K4*E7 -> 250 | U7: 5
B8: 4100-3117/09 | C8: Master Controller IDNET 2 | D8: mA | E8: 8 | G8: 50 | H8: 100 | I8: 150 | J8: 199.6 | K8: 250 | L8: =IF($R$4=1,(+E8*K8),(IF($R$4=0.75,(+E8*J8),(IF($R$4=0.5,(+E8*I8),(IF($R$4=0.25,(+E8*H8),(IF($R$4=0,(+E8*G8),0))))))))) -> 400 | M8: 60 | N8: =+O8-$E$6 -> 264 | O8: 265 | P8: 327 | Q8: 390 | R8: =IF($R$4=1,(+E8*Q8),(IF($R$4=0.75,(+E8*P8),(IF($R$4=0.5,(+E8*O8),(IF($R$4=0.25,(+E8*N8),(IF($R$4=0,(+E8*M8),0))))))))) -> 480 | U8: 6
U9: 7
U10: 8
B11: Typical Panel Basic Requirements | F11: Unit Standby Amp | G11: Total Standby | H11: Unit Alarm Amp | I11: Total Alarm | U11: 9
B12: 4100-9701 | C12: ES-PS MSTR CTRLR 2X40 | D12: 1 | F12: 0.277 | G12: =+F12*D12 -> 0.277 | H12: 0.441 | I12: =+H12*D12 -> 0.441 | U12: 10
B13: 4100-5401 | C13: ES-PS POWER SUPPLY | D13: =(IF(R8>2000,(IF(R8>4000,3,2)),1)) -> 1 | F13: 0.068 | G13: =+F13*D13 -> 0.068 | H13: 0.077 | I13: =+H13*D13 -> 0.077 | U13: 11
U14: 12
C15: STANDBY HOURS | D15: 24 | T15: 0 | U15: 5 | V15: 0.05 | W15: 0
C16: STANDBY MINUTES | D16: 5 | T16: 24 | U16: 10 | V16: 0.1 | W16: 0.05
C17: BATTERY FACTOR | D17: 0.25 | T17: 48 | U17: 15 | V17: 0.2 | W17: 0.1
C18: SPARE CAPACITY | D18: 0 | T18: 72 | U18: 30 | V18: 0.25 | W18: 0.2
T19: =24*4 -> 96 | U19: 45 | V19: 0.3 | W19: 0.25
C20: Equipment | D20: TOTAL STBY AMPS | F20: TOTAL Alarm AMPS | T20: =24*5 -> 120 | U20: 60 | V20: 0.35 | W20: 0.3
C21: NAC | D21: =+L6/1000 -> 0.066 | F21: =+R6/1000 -> 0.066 | V21: 0.4 | W21: 0.35
C22: Loop Card | D22: =+L8/1000 -> 0.4 | F22: =+R8/1000 -> 0.48 | V22: 0.45 | W22: 0.4
C23: Master Controller | D23: =+G12 -> 0.277 | F23: =+I12 -> 0.441 | V23: 0.5 | W23: 0.45
C24: Power Supply | D24: =+G13 -> 0.068 | F24: =+I13 -> 0.077 | W24: 0.5
C25: Subtotal | D25: =SUM(D21:D24) -> 0.811 | F25: =SUM(F21:F24) -> 1.064
C28: TOTAL AMPERE HOURS | D28: =(D25*D15)+(F25*(D16/60)) -> 19.55266667 | E28: AH
C29: MINIMUM BATTERY | D29: =(D28+(D28*D17))+(D28+(D28*D17))*D18 -> 24.44083333 | E29: AH

Sheet 4100Selector
A1: A | C1: Pre Configured Fixed Loop 4100ES Configuration
C3: Default Value for All Panel Nodes | H3: =IF(H14="1 Loop",1,IF(H14="2 Loop",2,IF(H14="3 Loop",3,IF(H14="4 Loop",4,IF(H14="5 Loop",5,IF(H14="6 Loop",6,IF(H14="7 Loop",7,IF(H14="8 Loop",8,IF(H14="9 Loop",9,IF(H14="10 Loop",10,IF(H14="11 Loop",11,IF(H14="12 Loop",12,0)))))))))))) -> 0 | J3: =IF(J14="1 Loop",1,IF(J14="2 Loop",2,IF(J14="3 Loop",3,IF(J14="4 Loop",4,IF(J14="5 Loop",5,IF(J14="6 Loop",6,IF(J14="7 Loop",7,IF(J14="8 Loop",8,IF(J14="9 Loop",9,IF(J14="10 Loop",10,IF(J14="11 Loop",11,IF(J14="12 Loop",12,0)))))))))))) -> 0 | L3: =IF(L14="1 Loop",1,IF(L14="2 Loop",2,IF(L14="3 Loop",3,IF(L14="4 Loop",4,IF(L14="5 Loop",5,IF(L14="6 Loop",6,IF(L14="7 Loop",7,IF(L14="8 Loop",8,IF(L14="9 Loop",9,IF(L14="10 Loop",10,IF(L14="11 Loop",11,IF(L14="12 Loop",12,0)))))))))))) -> 0 | N3: =IF(N14="1 Loop",1,IF(N14="2 Loop",2,IF(N14="3 Loop",3,IF(N14="4 Loop",4,IF(N14="5 Loop",5,IF(N14="6 Loop",6,IF(N14="7 Loop",7,IF(N14="8 Loop",8,IF(N14="9 Loop",9,IF(N14="10 Loop",10,IF(N14="11 Loop",11,IF(N14="12 Loop",12,0)))))))))))) -> 0 | P3: =IF(P14="1 Loop",1,IF(P14="2 Loop",2,IF(P14="3 Loop",3,IF(P14="4 Loop",4,IF(P14="5 Loop",5,IF(P14="6 Loop",6,IF(P14="7 Loop",7,IF(P14="8 Loop",8,IF(P14="9 Loop",9,IF(P14="10 Loop",10,IF(P14="11 Loop",11,IF(P14="12 Loop",12,0)))))))))))) -> 0 | R3: =IF(R14="1 Loop",1,IF(R14="2 Loop",2,IF(R14="3 Loop",3,IF(R14="4 Loop",4,IF(R14="5 Loop",5,IF(R14="6 Loop",6,IF(R14="7 Loop",7,IF(R14="8 Loop",8,IF(R14="9 Loop",9,IF(R14="10 Loop",10,IF(R14="11 Loop",11,IF(R14="12 Loop",12,0)))))))))))) -> 0 | T3: =IF(T14="1 Loop",1,IF(T14="2 Loop",2,IF(T14="3 Loop",3,IF(T14="4 Loop",4,IF(T14="5 Loop",5,IF(T14="6 Loop",6,IF(T14="7 Loop",7,IF(T14="8 Loop",8,IF(T14="9 Loop",9,IF(T14="10 Loop",10,IF(T14="11 Loop",11,IF(T14="12 Loop",12,0)))))))))))) -> 0 | V3: =IF(V14="1 Loop",1,IF(V14="2 Loop",2,IF(V14="3 Loop",3,IF(V14="4 Loop",4,IF(V14="5 Loop",5,IF(V14="6 Loop",6,IF(V14="7 Loop",7,IF(V14="8 Loop",8,IF(V14="9 Loop",9,IF(V14="10 Loop",10,IF(V14="11 Loop",11,IF(V14="12 Loop",12,0)))))))))))) -> 0 | X3: =IF(X14="1 Loop",1,IF(X14="2 Loop",2,IF(X14="3 Loop",3,IF(X14="4 Loop",4,IF(X14="5 Loop",5,IF(X14="6 Loop",6,IF(X14="7 Loop",7,IF(X14="8 Loop",8,IF(X14="9 Loop",9,IF(X14="10 Loop",10,IF(X14="11 Loop",11,IF(X14="12 Loop",12,0)))))))))))) -> 0 | Z3: =IF(Z14="1 Loop",1,IF(Z14="2 Loop",2,IF(Z14="3 Loop",3,IF(Z14="4 Loop",4,IF(Z14="5 Loop",5,IF(Z14="6 Loop",6,IF(Z14="7 Loop",7,IF(Z14="8 Loop",8,IF(Z14="9 Loop",9,IF(Z14="10 Loop",10,IF(Z14="11 Loop",11,IF(Z14="12 Loop",12,0)))))))))))) -> 0 | AB3: =IF(AB14="1 Loop",1,IF(AB14="2 Loop",2,IF(AB14="3 Loop",3,IF(AB14="4 Loop",4,IF(AB14="5 Loop",5,IF(AB14="6 Loop",6,IF(AB14="7 Loop",7,IF(AB14="8 Loop",8,IF(AB14="9 Loop",9,IF(AB14="10 Loop",10,IF(AB14="11 Loop",11,IF(AB14="12 Loop",12,0)))))))))))) -> 0 | AD3: =IF(AD14="1 Loop",1,IF(AD14="2 Loop",2,IF(AD14="3 Loop",3,IF(AD14="4 Loop",4,IF(AD14="5 Loop",5,IF(AD14="6 Loop",6,IF(AD14="7 Loop",7,IF(AD14="8 Loop",8,IF(AD14="9 Loop",9,IF(AD14="10 Loop",10,IF(AD14="11 Loop",11,IF(AD14="12 Loop",12,0)))))))))))) -> 0 | IA3: =IF(IA14="1 Loop",1,IF(IA14="2 Loop",2,IF(IA14="3 Loop",3,IF(IA14="4 Loop",4,IF(IA14="5 Loop",5,IF(IA14="6 Loop",6,IF(IA14="7 Loop",7,IF(IA14="8 Loop",8,IF(IA14="9 Loop",9,IF(IA14="10 Loop",10,IF(IA14="11 Loop",11,IF(IA14="12 Loop",12,0)))))))))))) -> 1
C4: Platinium/Red Color - Default Platinium | D4: Red
C5: Glass Door or Solid Door - Default is Glass Door | D5: Glass
C6: 120VAC/220VAC/230VAC/240VAC-Default 230VAC | D6: 220VAC
C7: 2 Line/TSD - Default 2 Line | D7: 2 Lines
C8: ES Network/Standalone | D8: Standalone
C9: Ext Network 24VDC/120-240VAC - Default 24VDC | D9: Yes
C10: Media Card Type for All Network - Default DSL | D10: DSL
C11: IDNet/ESMX Loop Card - Default IDNet | D11: IDnet2+
C12: Battery Shelf or Battery Cabinet
H13: Node 1 to Node 10 | AB13: Node 11 to Node 20 | AV13: Node 21 to Node 30 | BP13: Node 31 to Node 40 | CJ13: Node 41 to Node 50 | DD13: Node 51 to Node 60 | DX13: Node 61 to Node 70 | ER13: Node 71 to Node 80 | FL13: Node 81 to Node 90 | GF13: Node 91 to Node 99 | IA13: Node 1 to Node 10 | IU13: Node 11 to Node 20 | JO13: Node 21 to Node 30 | KI13: Node 31 to Node 40 | LC13: Node 41 to Node 50 | LW13: Node 51 to Node 60 | MQ13: Node 61 to Node 70 | NK13: Node 71 to Node 80 | OE13: Node 81 to Node 90 | OY13: Node 91 to Node 99
A14: =A15 -> - | F14: All | H14: To Select | J14: To Select | L14: To Select | N14: To Select | P14: To Select | R14: To Select | T14: To Select | V14: To Select | X14: To Select | Z14: To Select | AB14: To Select | AD14: To Select | AF14: 1 Loop | AH14: 2 Loop | AJ14: 8 Loop | AL14: To Select | AN14: To Select | AP14: To Select | AR14: To Select | AT14: To Select | AV14: To Select | AX14: To Select | AZ14: To Select | BB14: To Select | BD14: 1 Loop | BF14: 2 Loop | BH14: 8 Loop | BJ14: To Select | BL14: To Select | BN14: To Select | BP14: To Select | BR14: To Select | BT14: To Select | BV14: To Select | BX14: To Select | BZ14: To Select | CB14: 1 Loop | CD14: 2 Loop | CF14: 8 Loop | CH14: To Select | CJ14: To Select | CL14: To Select | CN14: To Select | CP14: To Select | CR14: To Select | CT14: To Select | CV14: To Select | CX14: To Select | CZ14: 1 Loop | DB14: 2 Loop | DD14: 8 Loop | DF14: To Select | DH14: To Select | DJ14: To Select | DL14: To Select | DN14: To Select | DP14: To Select | DR14: To Select | DT14: To Select | DV14: To Select | DX14: To Select | DZ14: To Select | EB14: To Select | ED14: To Select | EF14: To Select | EH14: To Select | EJ14: 1 Loop | EL14: 2 Loop | EN14: 8 Loop | EP14: To Select | ER14: To Select | ET14: To Select | EV14: To Select | EX14: To Select | EZ14: To Select | FB14: To Select | FD14: To Select | FF14: To Select | FH14: 1 Loop | FJ14: 2 Loop | FL14: 8 Loop | FN14: To Select | FP14: To Select | FR14: To Select | FT14: To Select | FV14: To Select | FX14: To Select | FZ14: To Select | GB14: To Select | GD14: To Select | GF14: 8 Loop | GH14: To Select | GJ14: To Select | GL14: To Select | GN14: To Select | GP14: To Select | GR14: To Select | GT14: To Select | GV14: To Select | IA14: 1 Loop | IC14: 2 Loop | IE14: 8 Loop | IG14: To Select | II14: To Select | IK14: To Select | IM14: To Select | IO14: To Select | IQ14: To Select | IS14: To Select | IU14: To Select | IW14: To Select | IY14: 1 Loop | JA14: 2 Loop | JC14: 8 Loop | JE14: To Select | JG14: To Select | JI14: To Select | JK14: To Select | JM14: To Select | JO14: To Select | JQ14: To Select | JS14: To Select | JU14: To Select | JW14: 1 Loop | JY14: 2 Loop | KA14: 8 Loop | KC14: To Select | KE14: To Select | KG14: To Select | KI14: To Select | KK14: To Select | KM14: To Select | KO14: To Select | KQ14: To Select | KS14: To Select | KU14: 1 Loop | KW14: 2 Loop | KY14: 8 Loop | LA14: To Select | LC14: To Select | LE14: To Select | LG14: To Select | LI14: To Select | LK14: To Select | LM14: To Select | LO14: To Select | LQ14: To Select | LS14: 1 Loop | LU14: 2 Loop | LW14: 8 Loop | LY14: To Select | MA14: To Select | MC14: To Select | ME14: To Select | MG14: To Select | MI14: To Select | MK14: To Select | MM14: To Select | MO14: To Select | MQ14: To Select | MS14: To Select | MU14: To Select | MW14: To Select | MY14: To Select | NA14: To Select | NC14: 1 Loop | NE14: 2 Loop | NG14: 8 Loop | NI14: To Select | NK14: To Select | NM14: To Select | NO14: To Select | NQ14: To Select | NS14: To Select | NU14: To Select | NW14: To Select | NY14: To Select | OA14: 1 Loop | OC14: 2 Loop | OE14: 8 Loop | OG14: To Select | OI14: To Select | OK14: To Select | OM14: To Select | OO14: To Select | OQ14: To Select | OS14: To Select | OU14: To Select | OW14: To Select | OY14: 8 Loop | PA14: To Select | PC14: To Select | PE14: To Select | PG14: To Select | PI14: To Select | PK14: To Select | PM14: To Select | PO14: To Select
A15: - | C15: BASIC MASTER CONTROLLERS | D15: 0 | F15: Node Nos | H15: Node 1 | J15: Node 2 | L15: Node 3 | N15: Node 4 | P15: Node 5 | R15: Node 6 | T15: Node 7 | V15: Node 8 | X15: Node 9 | Z15: Node 10 | AB15: Node 11 | AD15: Node 12 | AF15: Node 13 | AH15: Node 14 | AJ15: Node 15 | AL15: Node 16 | AN15: Node 17 | AP15: Node 18 | AR15: Node 19 | AT15: Node 20 | AV15: Node 21 | AX15: Node 22 | AZ15: Node 23 | BB15: Node 24 | BD15: Node 25 | BF15: Node 26 | BH15: Node 27 | BJ15: Node 28 | BL15: Node 29 | BN15: Node 30 | BP15: Node 21 | BR15: Node 22 | BT15: Node 23 | BV15: Node 24 | BX15: Node 25 | BZ15: Node 26 | CB15: Node 27 | CD15: Node 28 | CF15: Node 29 | CH15: Node 30 | CJ15: Node 41 | CL15: Node 44 | CN15: Node 43 | CP15: Node 44 | CR15: Node 45 | CT15: Node 46 | CV15: Node 47 | CX15: Node 48 | CZ15: Node 49 | DB15: Node 50 | DD15: Node 51 | DF15: Node 55 | DH15: Node 53 | DJ15: Node 54 | DL15: Node 55 | DN15: Node 56 | DP15: Node 57 | DR15: Node 58 | DT15: Node 59 | DV15: Node 60 | DX15: Node 61 | DZ15: Node 66 | EB15: Node 63 | ED15: Node 64 | EF15: Node 65 | EH15: Node 66 | EJ15: Node 67 | EL15: Node 68 | EN15: Node 69 | EP15: Node 70 | ER15: Node 71 | ET15: Node 77 | EV15: Node 73 | EX15: Node 74 | EZ15: Node 75 | FB15: Node 76 | FD15: Node 77 | FF15: Node 78 | FH15: Node 79 | FJ15: Node 80 | FL15: Node 81 | FN15: Node 82 | FP15: Node 83 | FR15: Node 84 | FT15: Node 85 | FV15: Node 86 | FX15: Node 87 | FZ15: Node 88 | GB15: Node 89 | GD15: Node 90 | GF15: Node 91 | GH15: Node 92 | GJ15: Node 93 | GL15: Node 94 | GN15: Node 95 | GP15: Node 96 | GR15: Node 97 | GT15: Node 98 | GV15: Node 99 | IA15: Node 1 | IC15: Node 2 | IE15: Node 3 | IG15: Node 4 | II15: Node 5 | IK15: Node 6 | IM15: Node 7 | IO15: Node 8 | IQ15: Node 9 | IS15: Node 10 | IU15: Node 11 | IW15: Node 12 | IY15: Node 13 | JA15: Node 14 | JC15: Node 15 | JE15: Node 16 | JG15: Node 17 | JI15: Node 18 | JK15: Node 19 | JM15: Node 20 | JO15: Node 21 | JQ15: Node 22 | JS15: Node 23 | JU15: Node 24 | JW15: Node 25 | JY15: Node 26 | KA15: Node 27 | KC15: Node 28 | KE15: Node 29 | KG15: Node 30 | KI15: Node 21 | KK15: Node 22 | KM15: Node 23 | KO15: Node 24 | KQ15: Node 25 | KS15: Node 26 | KU15: Node 27 | KW15: Node 28 | KY15: Node 29 | LA15: Node 30 | LC15: Node 41 | LE15: Node 44 | LG15: Node 43 | LI15: Node 44 | LK15: Node 45 | LM15: Node 46 | LO15: Node 47 | LQ15: Node 48 | LS15: Node 49 | LU15: Node 50 | LW15: Node 51 | LY15: Node 55 | MA15: Node 53 | MC15: Node 54 | ME15: Node 55 | MG15: Node 56 | MI15: Node 57 | MK15: Node 58 | MM15: Node 59 | MO15: Node 60 | MQ15: Node 61 | MS15: Node 66 | MU15: Node 63 | MW15: Node 64 | MY15: Node 65 | NA15: Node 66 | NC15: Node 67 | NE15: Node 68 | NG15: Node 69 | NI15: Node 70 | NK15: Node 71 | NM15: Node 77 | NO15: Node 73 | NQ15: Node 74 | NS15: Node 75 | NU15: Node 76 | NW15: Node 77 | NY15: Node 78 | OA15: Node 79 | OC15: Node 80 | OE15: Node 81 | OG15: Node 82 | OI15: Node 83 | OK15: Node 84 | OM15: Node 85 | OO15: Node 86 | OQ15: Node 87 | OS15: Node 88 | OU15: Node 89 | OW15: Node 90 | OY15: Node 91 | PA15: Node 92 | PC15: Node 93 | PE15: Node 94 | PG15: Node 95 | PI15: Node 96 | PK15: Node 97 | PM15: Node 98 | PO15: Node 99
A16: ★ | B16: =COUNTIF(F16:F16,0)-1 -> 0 | C16: ES-PS MSTR CTRLR 2X40 | D16: 4100-9701 | F16: =SUM(H16:Z16) -> 0 | H16: =IF(OR(ISNUMBER(SEARCH("Loop",H$14)),ISNUMBER(SEARCH("Loop",H$14))),1,0)*(IF($D$7="2 Lines",1,0)) -> 0 | J16: =IF(OR(ISNUMBER(SEARCH("Loop",J$14)),ISNUMBER(SEARCH("Loop",J$14))),1,0)*(IF($D$7="2 Lines",1,0)) -> 0 | L16: =IF(OR(ISNUMBER(SEARCH("Loop",L$14)),ISNUMBER(SEARCH("Loop",L$14))),1,0)*(IF($D$7="2 Lines",1,0)) -> 0 | N16: =IF(OR(ISNUMBER(SEARCH("Loop",N$14)),ISNUMBER(SEARCH("Loop",N$14))),1,0)*(IF($D$7="2 Lines",1,0)) -> 0 | P16: =IF(OR(ISNUMBER(SEARCH("Loop",P$14)),ISNUMBER(SEARCH("Loop",P$14))),1,0)*(IF($D$7="2 Lines",1,0)) -> 0 | R16: =IF(OR(ISNUMBER(SEARCH("Loop",R$14)),ISNUMBER(SEARCH("Loop",R$14))),1,0)*(IF($D$7="2 Lines",1,0)) -> 0 | T16: =IF(OR(ISNUMBER(SEARCH("Loop",T$14)),ISNUMBER(SEARCH("Loop",T$14))),1,0)*(IF($D$7="2 Lines",1,0)) -> 0 | V16: =IF(OR(ISNUMBER(SEARCH("Loop",V$14)),ISNUMBER(SEARCH("Loop",V$14))),1,0)*(IF($D$7="2 Lines",1,0)) -> 0 | X16: =IF(OR(ISNUMBER(SEARCH("Loop",X$14)),ISNUMBER(SEARCH("Loop",X$14))),1,0)*(IF($D$7="2 Lines",1,0)) -> 0 | Z16: =IF(OR(ISNUMBER(SEARCH("Loop",Z$14)),ISNUMBER(SEARCH("Loop",Z$14))),1,0)*(IF($D$7="2 Lines",1,0)) -> 0 | IA16: =IF(OR(ISNUMBER(SEARCH("Loop",IA$14)),ISNUMBER(SEARCH("Loop",IA$14))),"1 ","0")*(IF($D$7="2 Lines",1,0)) -> 1
B17: 0 | C17: ES-PS MSTR CTRLR 2X40 FRENCH | D17: 4100-9702 | F17: =SUM(H17:Z17) -> 0
A18: ★ | B18: =COUNTIF(F18:F18,0)-1 -> 0 | C18: ES-PS MASTER CONTROLLER W/ TOUCH SCREEN DISPLAY | D18: 4100-9706 | F18: 0 | H18: =IF(OR(ISNUMBER(SEARCH("Loop",H$14)),ISNUMBER(SEARCH("Loop",H$14))),1,0)*(IF($D$7="TSD",1,0)) -> 0 | J18: =IF(OR(ISNUMBER(SEARCH("Loop",J$14)),ISNUMBER(SEARCH("Loop",J$14))),1,0)*(IF($D$7="TSD",1,0)) -> 0 | L18: =IF(OR(ISNUMBER(SEARCH("Loop",L$14)),ISNUMBER(SEARCH("Loop",L$14))),1,0)*(IF($D$7="TSD",1,0)) -> 0 | N18: =IF(OR(ISNUMBER(SEARCH("Loop",N$14)),ISNUMBER(SEARCH("Loop",N$14))),1,0)*(IF($D$7="TSD",1,0)) -> 0 | P18: =IF(OR(ISNUMBER(SEARCH("Loop",P$14)),ISNUMBER(SEARCH("Loop",P$14))),1,0)*(IF($D$7="TSD",1,0)) -> 0 | R18: =IF(OR(ISNUMBER(SEARCH("Loop",R$14)),ISNUMBER(SEARCH("Loop",R$14))),1,0)*(IF($D$7="TSD",1,0)) -> 0 | T18: =IF(OR(ISNUMBER(SEARCH("Loop",T$14)),ISNUMBER(SEARCH("Loop",T$14))),1,0)*(IF($D$7="TSD",1,0)) -> 0 | V18: =IF(OR(ISNUMBER(SEARCH("Loop",V$14)),ISNUMBER(SEARCH("Loop",V$14))),1,0)*(IF($D$7="TSD",1,0)) -> 0 | X18: =IF(OR(ISNUMBER(SEARCH("Loop",X$14)),ISNUMBER(SEARCH("Loop",X$14))),1,0)*(IF($D$7="TSD",1,0)) -> 0 | Z18: =IF(OR(ISNUMBER(SEARCH("Loop",Z$14)),ISNUMBER(SEARCH("Loop",Z$14))),1,0)*(IF($D$7="TSD",1,0)) -> 0 | IA18: =IF(OR(ISNUMBER(SEARCH("Loop",IA$14)),ISNUMBER(SEARCH("Loop",IA$14))),"1 ","0")*(IF($D$7="TSD",1,0)) -> 0
B19: 0 | C19: ES-PS MSTR CTRLR NO DISPLAY | D19: 4100-9709 | F19: 0
B20: 0 | C20: 4100ES PRECONFIG REDUNDNT 120V | D20: 4100-9121 | F20: 0
B21: 0 | C21: INFOALARM REDUNDANT CPU 120V | D21: 4100-9122 | F21: 0
B22: 0 | C22: INFOALM REDUNDANT CPU 220/240V | D22: 4100-9222 | F22: 0
A23: + | B23: 0 | C23: TRANSPONDERS | D23: 0
A24: ★ | B24: =COUNTIF(F24:F24,0)-1 -> 0 | C24: BASIC TRANSPONDER | D24: 4100-9600 | F24: =SUM(H24:Z24) -> 0
A25: ★ | B25: 0 | C25: LOCAL MODE TRANSPONDER | D25: 4100-9601 | F25: 0
A26: + | B26: 0 | C26: REMOTE ANNUNCIATORS | D26: 0
B27: =COUNTIF(F27:F27,0)-1 -> 0 | C27: REMOTE ANNUNCIATOR | D27: 4100-9610 | F27: =SUM(H27:Z27) -> 0
B28: 0 | C28: REMOTE ANNUN EXTERNAL POWER | D28: 4100-9611 | F28: 0
B29: 0 | C29: REMOTE ANNUNCIATOR W/TOUCH SCREEN | D29: 4100-9616 | F29: 0
B30: 0 | C30: BASIC REMOTE ANNUNCIATOR W/TOUCH SCREEN | D30: 4100-9617 | F30: 0
B31: 0 | C31: REMOTE ES TOUCH SCREEN DISPLAY RED | D31: 4100-9404 | F31: 0
B32: 0 | C32: REMOTE ES TOUCH SCREEN DISPLAY PLATINUM | D32: 4100-9405 | F32: 0
B33: 0 | C33: STATUS COMMAND UNIT (SCU) | D33: 4602-9101 | F33: 0
B34: 0 | C34: REMOTE COMMAND UNIT (RCU) | D34: 4602-9102 | F34: 0
B35: 0 | C35: REMOTE LCD ANNUNCIATOR | D35: A4603-9101 | F35: 0
A36: - | C36: ES NET NETWORK DISPLAY UNITS (NDU) | D36: 0
B37: 0 | C37: ES NET NDU 2X40 | D37: 4100-9750 | F37: 0
B38: 0 | C38: ES NET NDU 2X40 FRENCH | D38: 4100-9751 | F38: 0
B39: 0 | C39: ES NET NDU W/ ES-PS, TOUCH SCREEN DISPLAY | D39: 4100-9755 | F39: 0
B40: 0 | C40: ES NET NDU 2X40 VOICE | D40: 4100-9760 | F40: 0
B41: 0 | C41: ES NET NDU 2X40 VOICE FRENCH | D41: 4100-9761 | F41: 0
B42: 0 | C42: ES NET NDU W/ ES-PS, VOICE, TOUCH SCREEN DISPLAY | D42: 4100-9765 | F42: 0
A43: + | B43: 0 | C43: 4120 NETWORK DISPLAY UNITS (NDU) | D43: 0
B44: 0 | C44: 4120 NDU 2X40 | D44: 4100-9720 | F44: 0
B45: 0 | C45: 4120 NDU 2X40 FRENCH | D45: 4100-9721 | F45: 0
B46: 0 | C46: 4120 NDU W/ ES-PS, TOUCH SCREEN DISPLAY | D46: 4100-9725 | F46: 0
B47: 0 | C47: 4120 NDU 2X40 VOICE | D47: 4100-9730 | F47: 0
B48: 0 | C48: 4120 NDU 2X40 VOICE FRENCH | D48: 4100-9731 | F48: 0
B49: 0 | C49: 4120 NDU W/ ES-PS, VOICE, TOUCH SCREEN DISPLAY | D49: 4100-9735 | F49: 0
A50: - | C50: POWER SUPPLIES AND NAC EXPANSION MODULES | D50: 0
B51: 0 | C51: 8V DC CONVERTER | D51: 4100-0156 | F51: 0
B52: 0 | C52: 25VDC VOLTAGE REGULATOR | D52: 4100-5130 | F52: 0
A53: ★ | B53: =COUNTIF(F53:F53,0)-1 -> 0 | C53: ES-PS FAN MODULE | D53: 4100-5131 | F53: 0 | H53: 0 | J53: 0 | L53: 0 | N53: 0 | P53: 0 | R53: 0 | T53: 0 | V53: 0 | X53: 0 | Z53: 0 | IA53: 0
B54: 0 | C54: POWER MODULE, 2A, 12 VOLTS | D54: 4100-5152 | F54: 0
A55: ★ | B55: 0 | C55: ES-PS POWER SUPPLY | D55: 4100-5401 | F55: 0 | H55: 0 | J55: 0 | L55: 0 | N55: 0 | P55: 0 | R55: 0 | T55: 0 | V55: 0 | X55: 0 | Z55: 0 | IA55: 0
A56: ★ | B56: 0 | C56: ES-XPS POWER SUPPLY | D56: 4100-5402 | F56: 0 | H56: 0 | J56: 0 | L56: 0 | N56: 0 | P56: 0 | R56: 0 | T56: 0 | V56: 0 | X56: 0 | Z56: 0 | IA56: 0
A57: ★ | B57: 0 | C57: NAC CARD | D57: 4100-5450 | F57: 0 | H57: 0 | J57: 0 | L57: 0 | N57: 0 | P57: 0 | R57: 0 | T57: 0 | V57: 0 | X57: 0 | Z57: 0 | IA57: 0
A58: ★ | B58: 0 | C58: IDNAC CARD | D58: 4100-5451 | F58: 0 | H58: 0 | J58: 0 | L58: 0 | N58: 0 | P58: 0 | R58: 0 | T58: 0 | V58: 0 | X58: 0 | Z58: 0 | IA58: 0
B59: 0 | C59: DUAL CLASS A ISOLATOR - IDNAC | D59: 4100-6103 | F59: 0 | H59: 0 | J59: 0 | L59: 0 | N59: 0 | P59: 0 | R59: 0 | T59: 0 | V59: 0 | X59: 0 | Z59: 0 | IA59: 0
A60: + | B60: 0 | C60: TRANSPONDER INTERFACE MODULES | D60: 0
B61: 0 | C61: TRANSPONDER IF MODULE | D61: 4100-0620 | F61: 0 | H61: 0 | J61: 0 | L61: 0 | N61: 0 | P61: 0 | R61: 0 | T61: 0 | V61: 0 | X61: 0 | Z61: 0 | IA61: 0
B62: 0 | C62: ANALOG AUDIO RISER MODULE | D62: 4100-0621 | F62: 0
B63: 0 | C63: DIGITAL AUDIO RISER MODULE | D63: 4100-0622 | F63: 0
B64: 0 | C64: LOCAL MODE TPR IF | D64: 4100-0625 | F64: 0
B65: 0 | C65: UTILITY BLOC, 16 TERMINALS | D65: 4100-0632 | F65: 0
B66: 0 | C66: TRANSPONDER TAMPER SWITCH | D66: 4100-0633 | F66: 0
A67: - | C67: NETWORK MODULES | D67: 0
B68: 0 | C68: NETWORK MEDIA CARD WIRED | D68: 4100-6056 | F68: 0
B69: 0 | C69: MODULAR NIC, REDUNDANT | D69: 4100-6061 | F69: 0
B70: 0 | C70: PHYSICAL BRIDGE, CLASS B | D70: 4100-6101 | F70: 0
B71: 0 | C71: PHYSICAL BRIDGE, CLASS X | D71: 4100-6102 | F71: 0
B72: =COUNTIF(F72:F72,0)-1 -> 0 | C72: ESNET NTWK INTERFACE CARD SLOT | D72: 4100-6104 | F72: 0 | H72: 0 | J72: 0 | L72: 0 | N72: 0 | P72: 0 | R72: 0 | T72: 0 | V72: 0 | X72: 0 | Z72: 0 | IA72: 0
B73: 0 | C73: ES NET ETHERNET MEDIA CARD | D73: 4100-6306 | F73: 0
B74: 0 | C74: ES NET DSL MEDIA CARD | D74: 4100-6307 | F74: 0 | H74: 0 | J74: 0 | L74: 0 | N74: 0 | P74: 0 | R74: 0 | T74: 0 | V74: 0 | X74: 0 | Z74: 0 | IA74: 0
B75: 0 | C75: ES NET SM FIBER MEDIA CARD | D75: 4100-6308 | F75: 0
B76: 0 | C76: ES NET MM FIBER MEDIA CARD | D76: 4100-6309 | F76: 0
B77: 0 | C77: ESNET NTWK INTERFACE CARD FLAT | D77: 4100-6310 | F77: 0
B78: 0 | C78: ES Net Network Bridge | D78: 4100-6320 | F78: 0
B79: 0 | C79: BNIC MODULE | D79: 4100-6047 | F79: 0
A80: - | C80: IDNET AND ESMX LOOP MODULES | D80: 0
B81: =COUNTIF(F81:F81,0)-1 -> 0 | C81: IDNET2 250PT 2 LOOP MODULE | D81: 4100-3109 | F81: 0 | H81: =IF($D$11="IDnet2+",H$3*1,0) -> 0 | J81: =IF($D$11="IDnet2+",J$3*1,0) -> 0 | L81: =IF($D$11="IDnet2+",L$3*1,0) -> 0 | N81: =IF($D$11="IDnet2+",N$3*1,0) -> 0 | P81: =IF($D$11="IDnet2+",P$3*1,0) -> 0 | R81: =IF($D$11="IDnet2+",R$3*1,0) -> 0 | T81: =IF($D$11="IDnet2+",T$3*1,0) -> 0 | V81: =IF($D$11="IDnet2+",V$3*1,0) -> 0 | X81: =IF($D$11="IDnet2+",X$3*1,0) -> 0 | Z81: =IF($D$11="IDnet2+",Z$3*1,0) -> 0 | IA81: =IF($D$11="IDnet2+",$H3*1,0) -> 0
B82: 0 | C82: IDNET2+2 250 POINT 4 LOOP MOD | D82: 4100-3110 | F82: 0 | H82: =IF($D$11="IDnet2+2",$H3*1,0) -> 0 | J82: =IF($D$11="IDnet2+2",$H3*1,0) -> 0 | L82: =IF($D$11="IDnet2+2",$H3*1,0) -> 0 | N82: =IF($D$11="IDnet2+2",$H3*1,0) -> 0 | P82: =IF($D$11="IDnet2+2",$H3*1,0) -> 0 | R82: =IF($D$11="IDnet2+2",$H3*1,0) -> 0 | T82: =IF($D$11="IDnet2+2",$H3*1,0) -> 0 | V82: =IF($D$11="IDnet2+2",$H3*1,0) -> 0 | X82: =IF($D$11="IDnet2+2",$H3*1,0) -> 0 | Z82: =IF($D$11="IDnet2+2",$H3*1,0) -> 0 | IA82: =IF($D$11="IDnet2+2",$H3*1,0) -> 0
B83: 0 | C83: MSTR CTLR IDNET2, FACTORY ONLY | D83: 4100-3117 | F83: 0 | H83: 0 | J83: 0 | L83: 0 | N83: 0 | P83: 0 | R83: 0 | T83: 0 | V83: 0 | X83: 0 | Z83: 0 | IA83: 0
B84: 0 | C84: MSTR CTRL ESMXLOOP,FACTORY ONLY | D84: 4100-3120 | F84: 0
B85: 0 | C85: ESMX LOOP | D85: 4100-6311 | F85: 0 | H85: =IF($D$11="ESMX",$H6*1,0) -> 0 | J85: =IF($D$11="ESMX",$H6*1,0) -> 0 | L85: =IF($D$11="ESMX",$H6*1,0) -> 0 | N85: =IF($D$11="ESMX",$H6*1,0) -> 0 | P85: =IF($D$11="ESMX",$H6*1,0) -> 0 | R85: =IF($D$11="ESMX",$H6*1,0) -> 0 | T85: =IF($D$11="ESMX",$H6*1,0) -> 0 | V85: =IF($D$11="ESMX",$H6*1,0) -> 0 | X85: =IF($D$11="ESMX",$H6*1,0) -> 0 | Z85: =IF($D$11="ESMX",$H6*1,0) -> 0 | IA85: =IF($D$11="ESMX",$H6*1,0) -> 0
B86: 0 | C86: ESMX LOOP OPTION | D86: 4100-6312 | F86: 0
A87: + | B87: 0 | C87: ZONE MODULES | D87: 0
B88: 0 | C88: 8 Point Zone/Relay Card - FULLY LOADED | D88: 4100-5013 | F88: 0
B89: 0 | C89: 8 Point Zone/Relay Card - 8 CLASS B ZONES WITH 4 ZONES IN ALARM | D89: 4100-5013 | F89: 0
B90: 0 | C90: 8 Point Zone/Relay Card - CARD ONLY | D90: 4100-5013 | F90: 0
B91: 0 | C91: Total Configured Class B Zones | D91: 0 | F91: =SUM(H91:Z91) -> 0
B92: 0 | C92: Total Cconfigured Class A Zones | D92: 0 | F92: 0
B93: 0 | C93: Total Configured Relays De-Energized Normally | D93: 0 | F93: 0
B94: 0 | C94: Total Configured Relays Energized Normally | D94: 0 | F94: 0
B95: 0 | C95: ZONE MODULE, 8 IDC, CLASS B | D95: 4100-5005 | F95: 0
B96: 0 | C96: ZONE MODULE, 8 IDC, CLASS A | D96: 4100-5015 | F96: 0
A97: + | C97: CONNECTED SERVICES | D97: 0
C98: CS GATEWAY W/IP COM 4100ES | D98: 4100-2504 | F98: =SUM(H98:Z98) -> 0
A99: + | B99: 0 | C99: AUXILIARY RELAY MODULES | D99: 0
B100: 0 | C100: 4 PT 2A AUX RELAY CARD W-FB | D100: 4100-3207 | F100: =+H100+J100+L100+N100+P100+R100+T100+V100+X100+Z100+AB100+AD100 -> 0
B101: 0 | C101: 4 PT 10A AUX RELAY CARD W-FB | D101: 4100-3208 | F101: 0
B102: 0 | C102: 8 PT 3A AUX RELAY CARD | D102: 4100-3209 | F102: 0
A103: + | C103: Backbox and Others | D103: 0
B104: =COUNTIF(F104:F104,0)-1 -> 0 | C104: 3 BAY BB/GDOOR/DRESS PNL Platinium | D104: 2975-9446 | F104: =SUM(H104:Z104) -> 0 | H104: =IF($D$4="Platinium",IF($H$16=1,1,0),0) -> 0 | J104: =IF($D$4="Platinium",IF($H$16=1,1,0),0) -> 0 | L104: =IF($D$4="Platinium",IF($H$16=1,1,0),0) -> 0 | N104: =IF($D$4="Platinium",IF($H$16=1,1,0),0) -> 0 | P104: =IF($D$4="Platinium",IF($H$16=1,1,0),0) -> 0 | R104: =IF($D$4="Platinium",IF($H$16=1,1,0),0) -> 0 | T104: =IF($D$4="Platinium",IF($H$16=1,1,0),0) -> 0 | V104: =IF($D$4="Platinium",IF($H$16=1,1,0),0) -> 0 | X104: =IF($D$4="Platinium",IF($H$16=1,1,0),0) -> 0 | Z104: =IF($D$4="Platinium",IF($H$16=1,1,0),0) -> 0 | IA104: =IF($D$4="Platinium",IF($H$16=1,1,0),0) -> 0
B105: 0 | C105: 3 BAY BOX & SOLID DOOR PNL Platinium | D105: 2975-9452 | F105: 0
C106: 3 BAY BB/GDOOR/DRESS PNL RED | D106: 2975-9446 | F106: 0 | H106: =IF($D$4="Red",IF($H$16>=0,"1",0),0) -> 1 | J106: =IF($D$4="Red",IF($H$16>=0,"1",0),0) -> 1 | L106: =IF($D$4="Red",IF($H$16>=0,"1",0),0) -> 1 | N106: =IF($D$4="Red",IF($H$16>=0,"1",0),0) -> 1 | P106: =IF($D$4="Red",IF($H$16>=0,"1",0),0) -> 1 | R106: =IF($D$4="Red",IF($H$16>=0,"1",0),0) -> 1 | T106: =IF($D$4="Red",IF($H$16>=0,"1",0),0) -> 1 | V106: =IF($D$4="Red",IF($H$16>=0,"1",0),0) -> 1 | X106: =IF($D$4="Red",IF($H$16>=0,"1",0),0) -> 1 | Z106: =IF($D$4="Red",IF($H$16>=0,"1",0),0) -> 1 | IA106: =IF($D$4="Red",IF($H$16>=0,"1",0),0) -> 1
C107: 3 BAY BOX & SOLID DOOR PNL RED | D107: 2975-9452 | F107: 0
B108: -1 | C108: Indicator Only 3 Bay glass | D108: 41002153 | F108: 10 | H108: =IF($D$5="Glass",( (IF((+$H104+$H106)>0,1,0))),0) -> 1 | J108: =IF($D$5="Glass",( (IF((+$H104+$H106)>0,1,0))),0) -> 1 | L108: =IF($D$5="Glass",( (IF((+$H104+$H106)>0,1,0))),0) -> 1 | N108: =IF($D$5="Glass",( (IF((+$H104+$H106)>0,1,0))),0) -> 1 | P108: =IF($D$5="Glass",( (IF((+$H104+$H106)>0,1,0))),0) -> 1 | R108: =IF($D$5="Glass",( (IF((+$H104+$H106)>0,1,0))),0) -> 1 | T108: =IF($D$5="Glass",( (IF((+$H104+$H106)>0,1,0))),0) -> 1 | V108: =IF($D$5="Glass",( (IF((+$H104+$H106)>0,1,0))),0) -> 1 | X108: =IF($D$5="Glass",( (IF((+$H104+$H106)>0,1,0))),0) -> 1 | Z108: =IF($D$5="Glass",( (IF((+$H104+$H106)>0,1,0))),0) -> 1 | IA108: =IF($D$5="Glass",( (IF((+$H104+$H106)>0,1,0))),0) -> 1
B109: 0 | C109: Indicator Only 3 Bay Solid Door | D109: 41002163 | F109: 0 | H109: =IF($D$5="Glass",( (IF((+$H105+$H107)>0,1,0))),0) -> 0 | J109: =IF($D$5="Glass",( (IF((+$H105+$H107)>0,1,0))),0) -> 0 | L109: =IF($D$5="Glass",( (IF((+$H105+$H107)>0,1,0))),0) -> 0 | N109: =IF($D$5="Glass",( (IF((+$H105+$H107)>0,1,0))),0) -> 0 | P109: =IF($D$5="Glass",( (IF((+$H105+$H107)>0,1,0))),0) -> 0 | R109: =IF($D$5="Glass",( (IF((+$H105+$H107)>0,1,0))),0) -> 0 | T109: =IF($D$5="Glass",( (IF((+$H105+$H107)>0,1,0))),0) -> 0 | V109: =IF($D$5="Glass",( (IF((+$H105+$H107)>0,1,0))),0) -> 0 | X109: =IF($D$5="Glass",( (IF((+$H105+$H107)>0,1,0))),0) -> 0 | Z109: =IF($D$5="Glass",( (IF((+$H105+$H107)>0,1,0))),0) -> 0 | IA109: =IF($D$5="Glass",( (IF((+$H105+$H107)>0,1,0))),0) -> 0
A110: + | C110: Other Required Part number for Panel | D110: 0
B111: =COUNTIF(F111:F111,0)-1 -> 0 | C111: POWER DISTRIBUTION MODULE 220V | D111: 4100-0635 | F111: =SUM(H111:Z111) -> 0 | H111: =IF($D$4="Platinium",IF($H$16=1,"1",0),0) -> 0 | J111: =IF($D$4="Platinium",IF($H$16=1,"1",0),0) -> 0 | L111: =IF($D$4="Platinium",IF($H$16=1,"1",0),0) -> 0 | N111: =IF($D$4="Platinium",IF($H$16=1,"1",0),0) -> 0 | P111: =IF($D$4="Platinium",IF($H$16=1,"1",0),0) -> 0 | R111: =IF($D$4="Platinium",IF($H$16=1,"1",0),0) -> 0 | T111: =IF($D$4="Platinium",IF($H$16=1,"1",0),0) -> 0 | V111: =IF($D$4="Platinium",IF($H$16=1,"1",0),0) -> 0 | X111: =IF($D$4="Platinium",IF($H$16=1,"1",0),0) -> 0 | Z111: =IF($D$4="Platinium",IF($H$16=1,"1",0),0) -> 0 | IA111: =IF($D$4="Platinium",IF($H$16=1,"1",0),0) -> 0
B112: 0 | C112: 110V ES-PS PDM HARNESS | D112: 4100-0646 | F112: 0
B113: =COUNTIF(F113:F113,0)-1 -> 0 | C113: 220V ES-PS PDM HARNESS | D113: 4100-0646 | F113: 0
B114: 0 | C114: 230V ES-PS PDM HARNESS | D114: 4100-0646 | F114: 0
B115: =COUNTIF(F115:F115,0)-1 -> 0 | C115: 240V ES-PS PDM HARNESS | D115: 4100-0646 | F115: 0
C116: FACTORY BUILT-MAIN CONFIGURED | D116: 41007905 | F116: 0 | H116: =IF($D$4="Red",IF($H$16>=0,"1",0),0) -> 1 | J116: =IF($D$4="Red",IF($H$16>=0,"1",0),0) -> 1 | L116: =IF($D$4="Red",IF($H$16>=0,"1",0),0) -> 1 | N116: =IF($D$4="Red",IF($H$16>=0,"1",0),0) -> 1 | P116: =IF($D$4="Red",IF($H$16>=0,"1",0),0) -> 1 | R116: =IF($D$4="Red",IF($H$16>=0,"1",0),0) -> 1 | T116: =IF($D$4="Red",IF($H$16>=0,"1",0),0) -> 1 | V116: =IF($D$4="Red",IF($H$16>=0,"1",0),0) -> 1 | X116: =IF($D$4="Red",IF($H$16>=0,"1",0),0) -> 1 | Z116: =IF($D$4="Red",IF($H$16>=0,"1",0),0) -> 1 | IA116: =IF($D$4="Red",IF($H$16>=0,"1",0),0) -> 1
C117: SYSTEM WITHOUT DACT | D117: 41007908 | F117: 0
B118: =COUNTIF(F118:F118,0)-1 -> 0 | C118: EXPANSION BAY (PHASE 10 ONLY) | D118: 4100-2300 | F118: 0
B119: 0 | C119: 8 SLOT EXP BAY FILLER PANEL | D119: 4100-2302 | F119: 0
C120: 2" BLANK DISPLAY MODULE | D120: 4100-1279 | F120: 0
A121: + | C121: Batteries | D121: 0
B122: =COUNTIF(F122:F122,0)-1 -> 0 | C122: BATTERY SHELF | D122: 4100-0650LP | F122: =SUM(H122:Z122) -> 0
B123: 0 | C123: BATT CAB ONLY F/2081-9279 | D123: 2081-9280LP | F123: 0
B124: 0 | C124: BATTERY DIST TERM MODULE | D124: 4100-5128 | F124: 0
B125: 0 | C125: 25 AH BATTERY | D125: 2081-9287LP | F125: 0
B126: 0 | C126: 33 AH BATTERY | D126: 2081-9276LP | F126: 0
B127: 0 | C127: 50 AH BATTERY | D127: 2081-9296LP | F127: 0
B128: 0 | C128: 110 AH BATTERY | D128: 2081-9279LP | F128: 0
A129: + | C129: Truesite Graphic Workstation(TSW) | D129: 0
B130: =COUNTIF(F130:F130,0)-1 -> 0 | C130: TrueSite Workstation Server SOFTWARE ONLY | D130: 4190-8603 | F130: =SUM(H130:Z130) -> 0
B131: 0 | C131: TSW GRAPHIC ANNUN SW ONLY(TGA) | D131: 4190-8606 | F131: 0
B132: 0 | C132: TSW BSIU SW Only(Same Function as TGA, Limit 12K Pts) | D132: 4190-8408 | F132: 0
B133: 0 | C133: After Market Module | D133: 4100-8904 | F133: 0
B134: 0 | C134: After Market Module | D134: 4100-8904 | F134: 0
B135: 0 | C135: After Market Module | D135: 4100-8904 | F135: 0
B136: 0 | C136: After Market Module | D136: 4100-8904 | F136: 0
B137: 0 | C137: 24 I/O Remote IO Driver | D137: 4100-7401 | F137: 0

Sheet 4100Ref
B2: S/No | C2: PID | D2: Description | E2: Type | F2: ID1Loop | G2: ID2Loop | H2: ID3Loop | I2: ID4Loop | J2: ID5Loop | K2: ID6Loop | L2: ID7Loop | M2: ID8Loop | N2: ID9Loop | O2: ID10Loop | P2: ID11Loop | Q2: ID12Loop | R2: NDU | S2: NDUV | T2: TSW | U2: TGA | V2: BSIU | W2: Safelinc
B3: 1 | C3: 2975-9446 | D3: 3 BAY BB/GDOOR/DRESS PNL PLAT | E3: Backbox | F3: 1 | G3: 1 | H3: 1 | I3: 1 | J3: 1 | K3: 1 | L3: 1 | M3: 1 | N3: 1 | O3: 1 | P3: 1 | Q3: 1 | R3: 1 | S3: 1 | T3: 0 | U3: 0 | V3: 0 | W3: 0
B4: =+B3+1 -> 2 | C4: 2975-9452 | D4: 3 BAY BOX & SOLID DOOR PNL PLAT | E4: Backbox | F4: 0 | G4: 0 | H4: 0 | I4: 0 | J4: 0 | K4: 0 | L4: 0 | M4: 0 | N4: 0 | O4: 0 | P4: 0 | Q4: 1 | R4: 0 | S4: 0 | T4: 0 | U4: 0 | V4: 0 | W4: 0
B5: 3 | C5: 41002153 | D5: Indicator Only 3 Bay glass | E5: Door | F5: 1 | G5: 1 | H5: 1 | I5: 1 | J5: 1 | K5: 1 | L5: 1 | M5: 1 | N5: 1 | O5: 1 | P5: 1 | Q5: 1 | R5: 1 | S5: 1 | T5: 0 | U5: 0 | V5: 0 | W5: 0
B6: 4 | C6: 41002163 | D6: Indicator Only 3 Bay Solid Door | E6: Door | F6: 0 | G6: 0 | H6: 0 | I6: 0 | J6: 0 | K6: 0 | L6: 0 | M6: 0 | N6: 0 | O6: 0 | P6: 0 | Q6: 1 | R6: 0 | S6: 0 | T6: 0 | U6: 0 | V6: 0 | W6: 0
B7: =+B6+1 -> 5 | C7: 4100-9701 | D7: ES-PS MSTR CTRLR 2X40 line LCD | E7: CPU | F7: 1 | G7: 1 | H7: 1 | I7: 1 | J7: 1 | K7: 1 | L7: 1 | M7: 1 | N7: 1 | O7: 1 | P7: 1 | Q7: 1 | R7: 0 | S7: 0 | T7: 0 | U7: 0 | V7: 0 | W7: 0
B8: =+B7+1 -> 6 | C8: 4100-9750 | D8: ES-PS NDU 2X40 line LCD | E8: CPU | F8: 1 | G8: 1 | H8: 1 | I8: 1 | J8: 1 | K8: 1 | L8: 1 | M8: 1 | N8: 1 | O8: 1 | P8: 1 | Q8: 1 | R8: 1 | S8: 0 | T8: 0 | U8: 0 | V8: 0 | W8: 0
B9: 7 | C9: 4100-9760 | D9: ES-PS NDU with Voice 2X40 line LCD | E9: CPU | F9: 1 | G9: 1 | H9: 1 | I9: 1 | J9: 1 | K9: 1 | L9: 1 | M9: 1 | N9: 1 | O9: 1 | P9: 1 | Q9: 1 | R9: 0 | S9: 1 | T9: 0 | U9: 0 | V9: 0 | W9: 0
B10: =+B7+1 -> 6 | C10: 4100-0635 | D10: POWER DISTRIBUTION MODULE 220V | E10: PDM | F10: 1 | G10: 1 | H10: 1 | I10: 1 | J10: 1 | K10: 1 | L10: 1 | M10: 1 | N10: 1 | O10: 1 | P10: 1 | Q10: 1 | R10: 1 | S10: 1 | T10: 0 | U10: 0 | V10: 0 | W10: 0
B11: 7 | C11: 4100-0646 | D11: 230V ES-PS PDM HARNESS | E11: Harness | F11: 1 | G11: 1 | H11: 1 | I11: 2 | J11: 2 | K11: 2 | L11: 2 | M11: 2 | N11: 3 | O11: 3 | P11: 3 | Q11: 3 | R11: 1 | S11: 3 | T11: 0 | U11: 0 | V11: 0 | W11: 0
B12: 8 | C12: 41007905 | D12: FACTORY BUILT-MAIN CONFIGURED | E12: Configure | F12: 1 | G12: 1 | H12: 1 | I12: 1 | J12: 1 | K12: 1 | L12: 1 | M12: 1 | N12: 1 | O12: 1 | P12: 1 | Q12: 1 | R12: 1 | S12: 1 | T12: 0 | U12: 0 | V12: 0 | W12: 0
B13: 9 | C13: 41007908 | D13: SYSTEM WITHOUT DACT | E13: Configure | F13: 1 | G13: 1 | H13: 1 | I13: 1 | J13: 1 | K13: 1 | L13: 1 | M13: 1 | N13: 1 | O13: 1 | P13: 1 | Q13: 1 | R13: 1 | S13: 1 | T13: 0 | U13: 0 | V13: 0 | W13: 0
B14: 10 | C14: 4100-2300 | D14: EXPANSION BAY (PHASE 10 ONLY) | E14: Exp Bay | F14: 0 | G14: 0 | H14: 0 | I14: 0 | J14: 1 | K14: 1 | L14: 1 | M14: 1 | N14: 1 | O14: 1 | P14: 1 | Q14: 1 | R14: 0 | S14: 1 | T14: 0 | U14: 0 | V14: 0 | W14: 0
B15: 11 | C15: 4100-2302 | D15: 8 SLOT EXP BAY FILLER PANEL | E15: Filler | F15: 2 | G15: 2 | H15: 2 | I15: 2 | J15: 1 | K15: 1 | L15: 1 | M15: 1 | N15: 0 | O15: 0 | P15: 0 | Q15: 0 | R15: 2 | S15: 0 | T15: 0 | U15: 0 | V15: 0 | W15: 0
B16: 12 | C16: 4100-1279 | D16: 2" BLANK DISPLAY MODULE | E16: Filler | F16: 0 | G16: 0 | H16: 0 | I16: 0 | J16: 8 | K16: 8 | L16: 8 | M16: 8 | N16: 16 | O16: 16 | P16: 16 | Q16: 16 | R16: 0 | S16: 16 | T16: 0 | U16: 0 | V16: 0 | W16: 0
B17: 13 | C17: 4100-3117 | D17: Master Ctrl IDNET FOC Card | E17: Loop | F17: 1 | G17: 1 | H17: 1 | I17: 1 | J17: 1 | K17: 1 | L17: 1 | M17: 1 | N17: 1 | O17: 1 | P17: 1 | Q17: 1 | R17: 0 | S17: 1 | T17: 0 | U17: 0 | V17: 0 | W17: 0
B18: 14 | C18: 4100-3109 | D18: IDNET2 250PT 2 LOOP MODULE | E18: Loop | F18: 0 | G18: 1 | H18: 2 | I18: 3 | J18: 4 | K18: 5 | L18: 6 | M18: 7 | N18: 8 | O18: 9 | P18: 10 | Q18: 11 | R18: 0 | S18: 6 | T18: 0 | U18: 0 | V18: 0 | W18: 0
B19: 15 | C19: 4100-5401 | D19: ES-PS POWER SUPPLY | E19: PS | F19: 0 | G19: 0 | H19: 0 | I19: 0 | J19: 1 | K19: 1 | L19: 2 | M19: 2 | N19: 2 | O19: 2 | P19: 2 | Q19: 2 | R19: 0 | S19: 1 | T19: 0 | U19: 0 | V19: 0 | W19: 0
B20: 16 | C20: 4100-5450 | D20: NAC CARD | E20: NAC | F20: 1 | G20: 1 | H20: 1 | I20: 1 | J20: 2 | K20: 2 | L20: 2 | M20: 2 | N20: 3 | O20: 3 | P20: 3 | Q20: 3 | R20: 1 | S20: 1 | T20: 0 | U20: 0 | V20: 0 | W20: 0
B21: 17 | C21: 4100-6038 | D21: DUAL RS-232 IF CARD | E21: Interface | F21: 0 | G21: 0 | H21: 0 | I21: 0 | J21: 0 | K21: 0 | L21: 0 | M21: 0 | N21: 0 | O21: 0 | P21: 0 | Q21: 0 | R21: 1 | S21: 1 | T21: 0 | U21: 0 | V21: 0 | W21: 0
B22: 18 | C22: 4100-6069 | D22: BACpac ETHERNET MODULE | E22: Interface | F22: 0 | G22: 0 | H22: 0 | I22: 0 | J22: 0 | K22: 0 | L22: 0 | M22: 0 | N22: 0 | O22: 0 | P22: 0 | Q22: 0 | R22: 1 | S22: 1 | T22: 0 | U22: 0 | V22: 0 | W22: 0
B23: 19 | C23: 4100-6104 | D23: ESNET NTWK INTERFACE CARD SLOT | E23: Network | F23: 1 | G23: 1 | H23: 1 | I23: 1 | J23: 1 | K23: 1 | L23: 1 | M23: 1 | N23: 1 | O23: 1 | P23: 1 | Q23: 1 | R23: 1 | S23: 0 | T23: 0 | U23: 0 | V23: 0 | W23: 0
B24: 20 | C24: 4100-6307 | D24: ES NET DSL MEDIA CARD | E24: Network | F24: 1 | G24: 1 | H24: 1 | I24: 1 | J24: 1 | K24: 1 | L24: 1 | M24: 1 | N24: 1 | O24: 1 | P24: 1 | Q24: 1 | R24: 1 | S24: 2 | T24: 0 | U24: 0 | V24: 0 | W24: 0
B25: 21 | C25: 4100-0650LP | D25: BATTERY SHELF | E25: Battery | F25: 0 | G25: 1 | H25: 1 | I25: 1 | J25: 0 | K25: 0 | L25: 0 | M25: 0 | N25: 0 | O25: 0 | P25: 0 | Q25: 0 | R25: 0 | S25: 0 | T25: 0 | U25: 0 | V25: 0 | W25: 0
B26: 22 | C26: 2081-9280LP | D26: BATT CAB ONLY F/2081-9279 | E26: Battery | F26: 0 | G26: 0 | H26: 0 | I26: 0 | J26: 1 | K26: 1 | L26: 1 | M26: 1 | N26: 1 | O26: 1 | P26: 1 | Q26: 1 | R26: 0 | S26: 1 | T26: 0 | U26: 0 | V26: 0 | W26: 0
B27: 23 | C27: 4100-5128 | D27: BATTERY DIST TERM MODULE | E27: Battery | F27: 0 | G27: 0 | H27: 0 | I27: 0 | J27: 0 | K27: 0 | L27: 0 | M27: 0 | N27: 0 | O27: 0 | P27: 0 | Q27: 1 | R27: 0 | S27: 1 | T27: 0 | U27: 0 | V27: 0 | W27: 0
B28: 24 | C28: 2081-9287LP | D28: 25 AH BATTERY | E28: Battery | F28: 0 | G28: 0 | H28: 0 | I28: 0 | J28: 0 | K28: 0 | L28: 0 | M28: 0 | N28: 0 | O28: 0 | P28: 0 | Q28: 0 | R28: 2 | S28: 0 | T28: 0 | U28: 0 | V28: 0 | W28: 0
B29: 25 | C29: 2081-9276LP | D29: 33 AH BATTERY | E29: Battery | F29: 2 | G29: 0 | H29: 0 | I29: 0 | J29: 0 | K29: 0 | L29: 0 | M29: 0 | N29: 0 | O29: 0 | P29: 0 | Q29: 0 | R29: 0 | S29: 0 | T29: 0 | U29: 0 | V29: 0 | W29: 0
B30: 26 | C30: 2081-9296LP | D30: 50 AH BATTERY | E30: Battery | F30: 0 | G30: 2 | H30: 2 | I30: 2 | J30: 0 | K30: 0 | L30: 0 | M30: 0 | N30: 0 | O30: 0 | P30: 0 | Q30: 0 | R30: 0 | S30: 0 | T30: 0 | U30: 0 | V30: 0 | W30: 0
B31: 27 | C31: 2081-9279LP | D31: 110 AH BATTERY | E31: Battery | F31: 0 | G31: 0 | H31: 0 | I31: 0 | J31: 2 | K31: 2 | L31: 2 | M31: 2 | N31: 2 | O31: 2 | P31: 2 | Q31: 2 | R31: 0 | S31: 2 | T31: 0 | U31: 0 | V31: 0 | W31: 0
B32: =+B25+1 -> 22 | C32: 4190-8603 | D32: TrueSite Workstation Server SOFTWARE ONLY | E32: TSW | F32: 0 | G32: 0 | H32: 0 | I32: 0 | J32: 0 | K32: 0 | L32: 0 | M32: 0 | N32: 0 | O32: 0 | P32: 0 | Q32: 0 | R32: 0 | S32: 0 | T32: 1 | U32: 0 | V32: 0 | W32: 0
B33: 23 | C33: 4190-8606 | D33: TSW GRAPHIC ANNUN SW ONLY(TGA) | E33: TGA | F33: 0 | G33: 0 | H33: 0 | I33: 0 | J33: 0 | K33: 0 | L33: 0 | M33: 0 | N33: 0 | O33: 0 | P33: 0 | Q33: 0 | R33: 0 | S33: 0 | T33: 0 | U33: 1 | V33: 0 | W33: 0
B34: 24 | C34: 4190-8408 | D34: TSW BSIU SW Only(Same Function as TGA, Limit 12K Pts) | E34: BSIU | F34: 0 | G34: 0 | H34: 0 | I34: 0 | J34: 0 | K34: 0 | L34: 0 | M34: 0 | N34: 0 | O34: 0 | P34: 0 | Q34: 0 | R34: 0 | S34: 0 | T34: 0 | U34: 0 | V34: 1 | W34: 0
B35: 25 | C35: 4100-8904 | D35: After Market Module | E35: Annuciator | F35: 0 | G35: 0 | H35: 0 | I35: 0 | J35: 0 | K35: 0 | L35: 0 | M35: 0 | N35: 0 | O35: 0 | P35: 0 | Q35: 0 | R35: 0 | S35: 0 | T35: 0 | U35: 0 | V35: 0 | W35: 1
B36: 26 | C36: 4100-8904 | D36: After Market Module | E36: Annuciator | F36: 0 | G36: 0 | H36: 0 | I36: 0 | J36: 0 | K36: 0 | L36: 0 | M36: 0 | N36: 0 | O36: 0 | P36: 0 | Q36: 0 | R36: 0 | S36: 0 | T36: 0 | U36: 0 | V36: 0 | W36: 0
B37: 27 | C37: 4100-8904 | D37: After Market Module | E37: Annuciator | F37: 0 | G37: 0 | H37: 0 | I37: 0 | J37: 0 | K37: 0 | L37: 0 | M37: 0 | N37: 0 | O37: 0 | P37: 0 | Q37: 0 | R37: 0 | S37: 0 | T37: 0 | U37: 0 | V37: 0 | W37: 0
B38: =+B31+1 -> 28 | C38: 4100-8904 | D38: After Market Module | E38: Annuciator | F38: 0 | G38: 0 | H38: 0 | I38: 0 | J38: 0 | K38: 0 | L38: 0 | M38: 0 | N38: 0 | O38: 0 | P38: 0 | Q38: 0 | R38: 0 | S38: 0 | T38: 0 | U38: 0 | V38: 0 | W38: 0
B39: 29 | C39: 4100-7401 | D39: 24 I/O Remote IO Driver | E39: Annunicator | F39: 0 | G39: 0 | H39: 0 | I39: 0 | J39: 0 | K39: 0 | L39: 0 | M39: 0 | N39: 0 | O39: 0 | P39: 0 | Q39: 0 | R39: 0 | S39: 0 | T39: 0 | U39: 0 | V39: 0 | W39: 0

Sheet 4100ES (hidden)
DG2: Jump to List | DH2: Panel Color | DI2: Media Type | DJ2: Node Type
DG3: 4100ES Information
DG4: 4100ES Panels Fixed Loop Panels | DH4: Platinium | DI4: DSL | DJ4: 01 Loop
DG5: 4100ES Remote Annunicator Input | DH5: Red | DI5: SM Fiber Optic | DJ5: 02 Loop
DG6: 4100ES Truesite Workstation Add on Inputs | DH6: Voltage Select | DI6: MM Fiber Optic | DJ6: 03 Loop
DG7: 4100ES Safelinc Accessories Input Details | DI7: Ethernet | DJ7: 04 Loop
DH8: 120VAC | DI8: Loop Type | DJ8: 05 Loop
C9: 4100ES Fixed Loop Panels Selector - Navigator must be used to Validate. | F9: 1 | I9: ="Designation " & COLUMN(A1) -> Designation 1 | J9: ="Designation " & COLUMN(B1) -> Designation 2 | K9: Designation 3 | L9: Designation 4 | M9: Designation 5 | N9: Designation 6 | O9: Designation 7 | P9: Designation 8 | Q9: Designation 9 | R9: Designation 10 | S9: Designation 11 | T9: Designation 12 | U9: Designation 13 | V9: Designation 14 | W9: Designation 15 | X9: Designation 16 | Y9: Designation 17 | Z9: Designation 18 | AA9: Designation 19 | AB9: Designation 20 | AC9: Designation 21 | AD9: Designation 22 | AE9: Designation 23 | AF9: Designation 24 | AG9: Designation 25 | AH9: Designation 26 | AI9: Designation 27 | AJ9: Designation 28 | AK9: Designation 29 | AL9: Designation 30 | AM9: Designation 31 | AN9: Designation 32 | AO9: Designation 33 | AP9: Designation 34 | AQ9: Designation 35 | AR9: Designation 36 | AS9: Designation 37 | AT9: Designation 38 | AU9: Designation 39 | AV9: Designation 40 | AW9: Designation 41 | AX9: Designation 42 | AY9: Designation 43 | AZ9: Designation 44 | BA9: Designation 45 | BB9: Designation 46 | BC9: Designation 47 | BD9: Designation 48 | BE9: Designation 49 | BF9: Designation 50 | BG9: Designation 51 | BH9: Designation 52 | BI9: Designation 53 | BJ9: Designation 54 | BK9: Designation 55 | BL9: Designation 56 | BM9: Designation 57 | BN9: Designation 58 | BO9: Designation 59 | BP9: Designation 60 | BQ9: Designation 61 | BR9: Designation 62 | BS9: Designation 63 | BT9: Designation 64 | BU9: Designation 65 | BV9: ="Designation " & COLUMN(BN1) -> Designation 66 | BW9: Designation 67 | BX9: Designation 68 | BY9: Designation 69 | BZ9: Designation 70 | CA9: Designation 71 | CB9: Designation 72 | CC9: Designation 73 | CD9: Designation 74 | CE9: Designation 75 | CF9: Designation 76 | CG9: Designation 77 | CH9: Designation 78 | CI9: Designation 79 | CJ9: Designation 80 | CK9: Designation 81 | CL9: Designation 82 | CM9: Designation 83 | CN9: Designation 84 | CO9: Designation 85 | CP9: Designation 86 | CQ9: Designation 87 | CR9: Designation 88 | CS9: Designation 89 | CT9: Designation 90 | CU9: Designation 91 | CV9: Designation 92 | CW9: Designation 93 | CX9: Designation 94 | CY9: Designation 95 | CZ9: Designation 96 | DA9: Designation 97 | DB9: Designation 98 | DC9: Designation 99 | DH9: 220VAC | DJ9: 06 Loop
C10: ES4100ES Information | F10: Selected Parts | DH10: 230VAC | DI10: IDNet | DJ10: 07 Loop
C11: Enter Designation Name (Building, Floor Number or Area etc) | F11: =DH28 -> 0 | I11: ="Node " & COLUMN(A1) -> Node 1 | J11: ="Node " & COLUMN(B1) -> Node 2 | K11: ="Node " & COLUMN(C1) -> Node 3 | L11: Node 4 | M11: Node 5 | N11: Node 6 | O11: Node 7 | P11: Node 8 | Q11: Node 9 | R11: Node 10 | S11: Node 11 | T11: Node 12 | U11: Node 13 | V11: Node 14 | W11: Node 15 | X11: Node 16 | Y11: Node 17 | Z11: Node 18 | AA11: Node 19 | AB11: Node 20 | AC11: Node 21 | AD11: Node 22 | AE11: Node 23 | AF11: Node 24 | AG11: Node 25 | AH11: Node 26 | AI11: Node 27 | AJ11: Node 28 | AK11: Node 29 | AL11: Node 30 | AM11: Node 31 | AN11: Node 32 | AO11: Node 33 | AP11: Node 34 | AQ11: Node 35 | AR11: Node 36 | AS11: Node 37 | AT11: Node 38 | AU11: Node 39 | AV11: Node 40 | AW11: Node 41 | AX11: Node 42 | AY11: Node 43 | AZ11: Node 44 | BA11: Node 45 | BB11: Node 46 | BC11: Node 47 | BD11: Node 48 | BE11: Node 49 | BF11: Node 50 | BG11: Node 51 | BH11: Node 52 | BI11: Node 53 | BJ11: Node 54 | BK11: Node 55 | BL11: Node 56 | BM11: Node 57 | BN11: Node 58 | BO11: Node 59 | BP11: Node 60 | BQ11: Node 61 | BR11: Node 62 | BS11: Node 63 | BT11: Node 64 | BU11: Node 65 | BV11: Node 66 | BW11: ="Node " & COLUMN(BO1) -> Node 67 | BX11: Node 68 | BY11: Node 69 | BZ11: Node 70 | CA11: Node 71 | CB11: Node 72 | CC11: Node 73 | CD11: Node 74 | CE11: Node 75 | CF11: Node 76 | CG11: Node 77 | CH11: Node 78 | CI11: Node 79 | CJ11: Node 80 | CK11: Node 81 | CL11: Node 82 | CM11: Node 83 | CN11: Node 84 | CO11: Node 85 | CP11: Node 86 | CQ11: Node 87 | CR11: Node 88 | CS11: Node 89 | CT11: Node 90 | CU11: Node 91 | CV11: Node 92 | CW11: Node 93 | CX11: Node 94 | CY11: Node 95 | CZ11: Node 96 | DA11: Node 97 | DB11: Node 98 | DC11: Node 99 | DH11: 240VAC | DI11: ESMX Loop | DJ11: 08 Loop
F12: =DI28 -> 0 | DH12: LCD Type | DJ12: 09 Loop
F13: =DJ28 -> 0 | DJ13: 10 Loop
F14: =DK28 -> 0 | I14: Copy or Clear | J14: Copy or Clear | K14: Copy or Clear | L14: Copy or Clear | M14: Copy or Clear | N14: Copy or Clear | O14: Copy or Clear | P14: Copy or Clear | Q14: Copy or Clear | R14: Copy or Clear | S14: Copy or Clear | T14: Copy or Clear | U14: Copy or Clear | V14: Copy or Clear | W14: Copy or Clear | X14: Copy or Clear | Y14: Copy or Clear | Z14: Copy or Clear | AA14: Copy or Clear | AB14: Copy or Clear | AC14: Copy or Clear | AD14: Copy or Clear | AE14: Copy or Clear | AF14: Copy or Clear | AG14: Copy or Clear | AH14: Copy or Clear | AI14: Copy or Clear | AJ14: Copy or Clear | AK14: Copy or Clear | AL14: Copy or Clear | AM14: Copy or Clear | AN14: Copy or Clear | AO14: Copy or Clear | AP14: Copy or Clear | AQ14: Copy or Clear | AR14: Copy or Clear | AS14: Copy or Clear | AT14: Copy or Clear | AU14: Copy or Clear | AV14: Copy or Clear | AW14: Copy or Clear | AX14: Copy or Clear | AY14: Copy or Clear | AZ14: Copy or Clear | BA14: Copy or Clear | BB14: Copy or Clear | BC14: Copy or Clear | BD14: Copy or Clear | BE14: Copy or Clear | BF14: Copy or Clear | BG14: Copy or Clear | BH14: Copy or Clear | BI14: Copy or Clear | BJ14: Copy or Clear | BK14: Copy or Clear | BL14: Copy or Clear | BM14: Copy or Clear | BN14: Copy or Clear | BO14: Copy or Clear | BP14: Copy or Clear | BQ14: Copy or Clear | BR14: Copy or Clear | BS14: Copy or Clear | BT14: Copy or Clear | BU14: Copy or Clear | BV14: Copy or Clear | BW14: Copy or Clear | BX14: Copy or Clear | BY14: Copy or Clear | BZ14: Copy or Clear | CA14: Copy or Clear | CB14: Copy or Clear | CC14: Copy or Clear | CD14: Copy or Clear | CE14: Copy or Clear | CF14: Copy or Clear | CG14: Copy or Clear | CH14: Copy or Clear | CI14: Copy or Clear | CJ14: Copy or Clear | CK14: Copy or Clear | CL14: Copy or Clear | CM14: Copy or Clear | CN14: Copy or Clear | CO14: Copy or Clear | CP14: Copy or Clear | CQ14: Copy or Clear | CR14: Copy or Clear | CS14: Copy or Clear | CT14: Copy or Clear | CU14: Copy or Clear | CV14: Copy or Clear | CW14: Copy or Clear | CX14: Copy or Clear | CY14: Copy or Clear | CZ14: Copy or Clear | DA14: Copy or Clear | DB14: Copy or Clear | DC14: Copy or Clear | DH14: 2 Line | DJ14: 11 Loop
C15: Quick Tools - Select desired function from drop down menu per column | DH15: TSD | DJ15: 12 Loop
F16: Default Value for All Nodes | I16: Customised Option | J16: Customised | K16: Customised | L16: Customised | M16: Customised | N16: Customised | O16: Customised | P16: Customised | Q16: Customised | R16: Customised | S16: Customised | T16: Customised | U16: Customised | V16: Customised | W16: Customised | X16: Customised | Y16: Customised | Z16: Customised | AA16: Customised | AB16: Customised | AC16: Customised | AD16: Customised | AE16: Customised | AF16: Customised | AG16: Customised | AH16: Customised | AI16: Customised | AJ16: Customised | AK16: Customised | AL16: Customised | AM16: Customised | AN16: Customised | AO16: Customised | AP16: Customised | AQ16: Customised | AR16: Customised | AS16: Customised | AT16: Customised | AU16: Customised | AV16: Customised | AW16: Customised | AX16: Customised | AY16: Customised | AZ16: Customised | BA16: Customised | BB16: Customised | BC16: Customised | BD16: Customised | BE16: Customised | BF16: Customised | BG16: Customised | BH16: Customised | BI16: Customised | BJ16: Customised | BK16: Customised | BL16: Customised | BM16: Customised | BN16: Customised | BO16: Customised | BP16: Customised | BQ16: Customised | BR16: Customised | BS16: Customised | BT16: Customised | BU16: Customised | BV16: Customised | BW16: Customised | BX16: Customised | BY16: Customised | BZ16: Customised | CA16: Customised | CB16: Customised | CC16: Customised | CD16: Customised | CE16: Customised | CF16: Customised | CG16: Customised | CH16: Customised | CI16: Customised | CJ16: Customised | CK16: Customised | CL16: Customised | CM16: Customised | CN16: Customised | CO16: Customised | CP16: Customised | CQ16: Customised | CR16: Customised | CS16: Customised | CT16: Customised | CU16: Customised | CV16: Customised | CW16: Customised | CX16: Customised | CY16: Customised | CZ16: Customised | DA16: Customised | DB16: Customised | DC16: Customised | DH16: Network Type | DJ16: NDU
C17: Choose Color of Panel | F17: Platinium/Red Color - Default Platinium | I17: Platinium | DC17: Platinium | DJ17: NDUWVoice
C18: Input your AC voltage connected to Panel | F18: 120VAC/220VAC/230VAC/240VAC-Default 230VAC | I18: 230VAC | DC18: 230VAC | DH18: ES Network | DJ18: TSW
C19: Select 2 Line or Touch Screen Display | F19: 2 Line/TSD - Default 2 Line | I19: 2 Line | DC19: 2 Line | DH19: Standalone | DJ19: TGA
C20: Select ES Network or Standalone Panel | F20: ES Network/Standalone | I20: ES Network | DC20: ES Network | DH20: TSW Network | DJ20: BSIU
C21: Select External Network and Power Supply Model | F21: Ext Network 24VDC/120-240VAC - Default 24VDC | I21: Ext NW 24VDC | DC21: Ext NW 24VDC | DJ21: SafeLinc
C22: Select the media of connection between Nodes | F22: Media Card Type for All Network - Default DSL | I22: DSL | DC22: DSL | DH22: Ext NW 24VDC
C23: IDNet or MX Addressable Loop | F23: IDNet/ESMX Loop Card - Default IDNet | I23: IDNet | DC23: IDNet | DH23: Ext NW 120/240VAC
G27: Select Node Type
G29: Total All Groups | I29: =+I11 -> Node 1 | J29: =+J11 -> Node 2 | K29: Node 3 | L29: Node 4 | M29: Node 5 | N29: Node 6 | O29: Node 7 | P29: Node 8 | Q29: Node 9 | R29: Node 10 | S29: Node 11 | T29: Node 12 | U29: Node 13 | V29: Node 14 | W29: Node 15 | X29: Node 16 | Y29: Node 17 | Z29: Node 18 | AA29: Node 19 | AB29: Node 20 | AC29: Node 21 | AD29: Node 22 | AE29: Node 23 | AF29: Node 24 | AG29: Node 25 | AH29: Node 26 | AI29: Node 27 | AJ29: Node 28 | AK29: Node 29 | AL29: Node 30 | AM29: Node 31 | AN29: Node 32 | AO29: Node 33 | AP29: Node 34 | AQ29: Node 35 | AR29: Node 36 | AS29: Node 37 | AT29: Node 38 | AU29: Node 39 | AV29: Node 40 | AW29: Node 41 | AX29: Node 42 | AY29: Node 43 | AZ29: Node 44 | BA29: Node 45 | BB29: Node 46 | BC29: Node 47 | BD29: Node 48 | BE29: Node 49 | BF29: Node 50 | BG29: Node 51 | BH29: Node 52 | BI29: Node 53 | BJ29: Node 54 | BK29: Node 55 | BL29: Node 56 | BM29: Node 57 | BN29: Node 58 | BO29: Node 59 | BP29: Node 60 | BQ29: Node 61 | BR29: Node 62 | BS29: Node 63 | BT29: Node 64 | BU29: Node 65 | BV29: =+BV11 -> Node 66 | BW29: Node 67 | BX29: Node 68 | BY29: Node 69 | BZ29: Node 70 | CA29: Node 71 | CB29: Node 72 | CC29: Node 73 | CD29: Node 74 | CE29: Node 75 | CF29: Node 76 | CG29: Node 77 | CH29: Node 78 | CI29: Node 79 | CJ29: Node 80 | CK29: Node 81 | CL29: Node 82 | CM29: Node 83 | CN29: Node 84 | CO29: Node 85 | CP29: Node 86 | CQ29: Node 87 | CR29: Node 88 | CS29: Node 89 | CT29: Node 90 | CU29: Node 91 | CV29: Node 92 | CW29: Node 93 | CX29: Node 94 | CY29: Node 95 | CZ29: Node 96 | DA29: Node 97 | DB29: Node 98 | DC29: Node 99 | DH29: =IF(AND(Wb4100ActiveRow>ROWS(FQQ4100MainSKUList),INDIRECT(ADDRESS(Wb4100ActiveRow,COLUMN(#REF!)))<>0,ISNUMBER(SEARCH("SKU",INDIRECT(ADDRESS(Wb4100ActiveRow,COLUMN(#REF!)))))=FALSE),INDIRECT(ADDRESS(WbIDNetActiveRow,COLUMN(#REF!))),"") ->  | DI29: =IF(AND(WbIDNetActiveRow>ROWS(FQQIDNetMainSKUList),INDIRECT(ADDRESS(WbIDNetActiveRow,COLUMN(DI2)))<>0,ISNUMBER(SEARCH("SKU",INDIRECT(ADDRESS(WbIDNetActiveRow,COLUMN(DI2)))))=FALSE),INDIRECT(ADDRESS(WbIDNetActiveRow,COLUMN(DI2))),"") ->  | DJ29: =IF(AND(WbIDNetActiveRow>ROWS(FQQIDNetMainSKUList),INDIRECT(ADDRESS(WbIDNetActiveRow,COLUMN(DJ2)))<>0,ISNUMBER(SEARCH("SKU",INDIRECT(ADDRESS(WbIDNetActiveRow,COLUMN(DJ2)))))=FALSE),INDIRECT(ADDRESS(WbIDNetActiveRow,COLUMN(DJ2))),"") ->  | DK29: =IF(AND(WbIDNetActiveRow>ROWS(FQQIDNetMainSKUList),INDIRECT(ADDRESS(WbIDNetActiveRow,COLUMN(DK2)))<>0,ISNUMBER(SEARCH("SKU",INDIRECT(ADDRESS(WbIDNetActiveRow,COLUMN(DK2)))))=FALSE),INDIRECT(ADDRESS(WbIDNetActiveRow,COLUMN(DK2))),"") ->  | DL29: =IF(AND(WbIDNetActiveRow>ROWS(FQQIDNetMainSKUList),INDIRECT(ADDRESS(WbIDNetActiveRow,COLUMN(DK2)))<>0,ISNUMBER(SEARCH("SKU",INDIRECT(ADDRESS(WbIDNetActiveRow,COLUMN(DL2)))))=FALSE),INDIRECT(ADDRESS(WbIDNetActiveRow,COLUMN(DL2))),"") -> 
I30: Quantity | J30: Quantity | K30: Quantity | L30: Quantity | M30: Quantity | N30: Quantity | O30: Quantity | P30: Quantity | Q30: Quantity | R30: Quantity | S30: Quantity | T30: Quantity | U30: Quantity | V30: Quantity | W30: Quantity | X30: Quantity | Y30: Quantity | Z30: Quantity | AA30: Quantity | AB30: Quantity | AC30: Quantity | AD30: Quantity | AE30: Quantity | AF30: Quantity | AG30: Quantity | AH30: Quantity | AI30: Quantity | AJ30: Quantity | AK30: Quantity | AL30: Quantity | AM30: Quantity | AN30: Quantity | AO30: Quantity | AP30: Quantity | AQ30: Quantity | AR30: Quantity | AS30: Quantity | AT30: Quantity | AU30: Quantity | AV30: Quantity | AW30: Quantity | AX30: Quantity | AY30: Quantity | AZ30: Quantity | BA30: Quantity | BB30: Quantity | BC30: Quantity | BD30: Quantity | BE30: Quantity | BF30: Quantity | BG30: Quantity | BH30: Quantity | BI30: Quantity | BJ30: Quantity | BK30: Quantity | BL30: Quantity | BM30: Quantity | BN30: Quantity | BO30: Quantity | BP30: Quantity | BQ30: Quantity | BR30: Quantity | BS30: Quantity | BT30: Quantity | BU30: Quantity | BV30: Quantity | BW30: Quantity | BX30: Quantity | BY30: Quantity | BZ30: Quantity | CA30: Quantity | CB30: Quantity | CC30: Quantity | CD30: Quantity | CE30: Quantity | CF30: Quantity | CG30: Quantity | CH30: Quantity | CI30: Quantity | CJ30: Quantity | CK30: Quantity | CL30: Quantity | CM30: Quantity | CN30: Quantity | CO30: Quantity | CP30: Quantity | CQ30: Quantity | CR30: Quantity | CS30: Quantity | CT30: Quantity | CU30: Quantity | CV30: Quantity | CW30: Quantity | CX30: Quantity | CY30: Quantity | CZ30: Quantity | DA30: Quantity | DB30: Quantity | DC30: Quantity | DH30: Main SKU | DI30: Child1 SKU | DJ30: Child2 SKU | DK30: Child3 SKU | DL30: Child4 SKU | DN30: Addresses | DO30: Unit Loads | DP30: 24V Standby mA | DQ30: 24V Alarm mA | DR30: Alarm mA
C31: 4100ES Panels Part Number Selected for Fixed Loop Panels
B32: 1 | C32: =+DH32 -> 2975-9443 | D32: =+DG32 -> 3 BAY BB/GDOOR/DRESS PNL RED | G32: =IF(FQQ4100ESTotalSetting="Total All Groups",SUM(I32:DB32),SUMIF($I$28:$DB$28,FQQ4100ESTotalSetting,I32:DB32)) -> 0 | I32: =IF(I17="Red",(_xlfn.IFS(I$27=" ",'4100Ref'!$A3,I$27="01 Loop",'4100Ref'!$F3,I$27="02 Loop",'4100Ref'!$G3,I$27="03 Loop",'4100Ref'!$H3,I$27="04 Loop",'4100Ref'!$I3,I$27="05 Loop",'4100Ref'!$J3,I$27="06 Loop",'4100Ref'!$K3,I$27="07 Loop",'4100Ref'!$L3,I$27="08 Loop",'4100Ref'!$M3,I$27="09 Loop",'4100Ref'!$N3,I$27="10 Loop",'4100Ref'!$O3,I$27="11 Loop",'4100Ref'!$P3,I$27="12 Loop",'4100Ref'!$Q3,I$27="NDU",'4100Ref'!$R3,I$27="NDUWVoice",'4100Ref'!$S3,I$27="TSW",'4100Ref'!$T3,I$27="TGA",'4100Ref'!$U5,I$27=" ",'4100Ref'!$A3,I$27="BSIU",'4100Ref'!$V3,I$27="safelinc",'4100Ref'!$W3))," ") ->  | J32: =IF(J17="Red",(_xlfn.IFS(J$27=" ",'4100Ref'!$A3,J$27="01 Loop",'4100Ref'!$F3,J$27="02 Loop",'4100Ref'!$G3,J$27="03 Loop",'4100Ref'!$H3,J$27="04 Loop",'4100Ref'!$I3,J$27="05 Loop",'4100Ref'!$J3,J$27="06 Loop",'4100Ref'!$K3,J$27="07 Loop",'4100Ref'!$L3,J$27="08 Loop",'4100Ref'!$M3,J$27="09 Loop",'4100Ref'!$N3,J$27="10 Loop",'4100Ref'!$O3,J$27="11 Loop",'4100Ref'!$P3,J$27="12 Loop",'4100Ref'!$Q3,J$27="NDU",'4100Ref'!$R3,J$27="NDUWVoice",'4100Ref'!$S3,J$27="TSW",'4100Ref'!$T3,J$27="TGA",'4100Ref'!$U5,J$27=" ",'4100Ref'!$A3,J$27="BSIU",'4100Ref'!$V3,J$27="safelinc",'4100Ref'!$W3))," ") ->  | K32: =IF(K17="Red",(_xlfn.IFS(K$27=" ",'4100Ref'!$A3,K$27="01 Loop",'4100Ref'!$F3,K$27="02 Loop",'4100Ref'!$G3,K$27="03 Loop",'4100Ref'!$H3,K$27="04 Loop",'4100Ref'!$I3,K$27="05 Loop",'4100Ref'!$J3,K$27="06 Loop",'4100Ref'!$K3,K$27="07 Loop",'4100Ref'!$L3,K$27="08 Loop",'4100Ref'!$M3,K$27="09 Loop",'4100Ref'!$N3,K$27="10 Loop",'4100Ref'!$O3,K$27="11 Loop",'4100Ref'!$P3,K$27="12 Loop",'4100Ref'!$Q3,K$27="NDU",'4100Ref'!$R3,K$27="NDUWVoice",'4100Ref'!$S3,K$27="TSW",'4100Ref'!$T3,K$27="TGA",'4100Ref'!$U5,K$27=" ",'4100Ref'!$A3,K$27="BSIU",'4100Ref'!$V3,K$27="safelinc",'4100Ref'!$W3))," ") ->  | L32: =IF(L17="Red",(_xlfn.IFS(L$27=" ",'4100Ref'!$A3,L$27="01 Loop",'4100Ref'!$F3,L$27="02 Loop",'4100Ref'!$G3,L$27="03 Loop",'4100Ref'!$H3,L$27="04 Loop",'4100Ref'!$I3,L$27="05 Loop",'4100Ref'!$J3,L$27="06 Loop",'4100Ref'!$K3,L$27="07 Loop",'4100Ref'!$L3,L$27="08 Loop",'4100Ref'!$M3,L$27="09 Loop",'4100Ref'!$N3,L$27="10 Loop",'4100Ref'!$O3,L$27="11 Loop",'4100Ref'!$P3,L$27="12 Loop",'4100Ref'!$Q3,L$27="NDU",'4100Ref'!$R3,L$27="NDUWVoice",'4100Ref'!$S3,L$27="TSW",'4100Ref'!$T3,L$27="TGA",'4100Ref'!$U5,L$27=" ",'4100Ref'!$A3,L$27="BSIU",'4100Ref'!$V3,L$27="safelinc",'4100Ref'!$W3))," ") ->  | M32: =IF(M17="Red",(_xlfn.IFS(M$27=" ",'4100Ref'!$A3,M$27="01 Loop",'4100Ref'!$F3,M$27="02 Loop",'4100Ref'!$G3,M$27="03 Loop",'4100Ref'!$H3,M$27="04 Loop",'4100Ref'!$I3,M$27="05 Loop",'4100Ref'!$J3,M$27="06 Loop",'4100Ref'!$K3,M$27="07 Loop",'4100Ref'!$L3,M$27="08 Loop",'4100Ref'!$M3,M$27="09 Loop",'4100Ref'!$N3,M$27="10 Loop",'4100Ref'!$O3,M$27="11 Loop",'4100Ref'!$P3,M$27="12 Loop",'4100Ref'!$Q3,M$27="NDU",'4100Ref'!$R3,M$27="NDUWVoice",'4100Ref'!$S3,M$27="TSW",'4100Ref'!$T3,M$27="TGA",'4100Ref'!$U5,M$27=" ",'4100Ref'!$A3,M$27="BSIU",'4100Ref'!$V3,M$27="safelinc",'4100Ref'!$W3))," ") ->  | N32: =IF(N17="Red",(_xlfn.IFS(N$27=" ",'4100Ref'!$A3,N$27="01 Loop",'4100Ref'!$F3,N$27="02 Loop",'4100Ref'!$G3,N$27="03 Loop",'4100Ref'!$H3,N$27="04 Loop",'4100Ref'!$I3,N$27="05 Loop",'4100Ref'!$J3,N$27="06 Loop",'4100Ref'!$K3,N$27="07 Loop",'4100Ref'!$L3,N$27="08 Loop",'4100Ref'!$M3,N$27="09 Loop",'4100Ref'!$N3,N$27="10 Loop",'4100Ref'!$O3,N$27="11 Loop",'4100Ref'!$P3,N$27="12 Loop",'4100Ref'!$Q3,N$27="NDU",'4100Ref'!$R3,N$27="NDUWVoice",'4100Ref'!$S3,N$27="TSW",'4100Ref'!$T3,N$27="TGA",'4100Ref'!$U5,N$27=" ",'4100Ref'!$A3,N$27="BSIU",'4100Ref'!$V3,N$27="safelinc",'4100Ref'!$W3))," ") ->  | O32: =IF(O17="Red",(_xlfn.IFS(O$27=" ",'4100Ref'!$A3,O$27="01 Loop",'4100Ref'!$F3,O$27="02 Loop",'4100Ref'!$G3,O$27="03 Loop",'4100Ref'!$H3,O$27="04 Loop",'4100Ref'!$I3,O$27="05 Loop",'4100Ref'!$J3,O$27="06 Loop",'4100Ref'!$K3,O$27="07 Loop",'4100Ref'!$L3,O$27="08 Loop",'4100Ref'!$M3,O$27="09 Loop",'4100Ref'!$N3,O$27="10 Loop",'4100Ref'!$O3,O$27="11 Loop",'4100Ref'!$P3,O$27="12 Loop",'4100Ref'!$Q3,O$27="NDU",'4100Ref'!$R3,O$27="NDUWVoice",'4100Ref'!$S3,O$27="TSW",'4100Ref'!$T3,O$27="TGA",'4100Ref'!$U5,O$27=" ",'4100Ref'!$A3,O$27="BSIU",'4100Ref'!$V3,O$27="safelinc",'4100Ref'!$W3))," ") ->  | P32: =IF(P17="Red",(_xlfn.IFS(P$27=" ",'4100Ref'!$A3,P$27="01 Loop",'4100Ref'!$F3,P$27="02 Loop",'4100Ref'!$G3,P$27="03 Loop",'4100Ref'!$H3,P$27="04 Loop",'4100Ref'!$I3,P$27="05 Loop",'4100Ref'!$J3,P$27="06 Loop",'4100Ref'!$K3,P$27="07 Loop",'4100Ref'!$L3,P$27="08 Loop",'4100Ref'!$M3,P$27="09 Loop",'4100Ref'!$N3,P$27="10 Loop",'4100Ref'!$O3,P$27="11 Loop",'4100Ref'!$P3,P$27="12 Loop",'4100Ref'!$Q3,P$27="NDU",'4100Ref'!$R3,P$27="NDUWVoice",'4100Ref'!$S3,P$27="TSW",'4100Ref'!$T3,P$27="TGA",'4100Ref'!$U5,P$27=" ",'4100Ref'!$A3,P$27="BSIU",'4100Ref'!$V3,P$27="safelinc",'4100Ref'!$W3))," ") ->  | Q32: =IF(Q17="Red",(_xlfn.IFS(Q$27=" ",'4100Ref'!$A3,Q$27="01 Loop",'4100Ref'!$F3,Q$27="02 Loop",'4100Ref'!$G3,Q$27="03 Loop",'4100Ref'!$H3,Q$27="04 Loop",'4100Ref'!$I3,Q$27="05 Loop",'4100Ref'!$J3,Q$27="06 Loop",'4100Ref'!$K3,Q$27="07 Loop",'4100Ref'!$L3,Q$27="08 Loop",'4100Ref'!$M3,Q$27="09 Loop",'4100Ref'!$N3,Q$27="10 Loop",'4100Ref'!$O3,Q$27="11 Loop",'4100Ref'!$P3,Q$27="12 Loop",'4100Ref'!$Q3,Q$27="NDU",'4100Ref'!$R3,Q$27="NDUWVoice",'4100Ref'!$S3,Q$27="TSW",'4100Ref'!$T3,Q$27="TGA",'4100Ref'!$U5,Q$27=" ",'4100Ref'!$A3,Q$27="BSIU",'4100Ref'!$V3,Q$27="safelinc",'4100Ref'!$W3))," ") ->  | R32: =IF(R17="Red",(_xlfn.IFS(R$27=" ",'4100Ref'!$A3,R$27="01 Loop",'4100Ref'!$F3,R$27="02 Loop",'4100Ref'!$G3,R$27="03 Loop",'4100Ref'!$H3,R$27="04 Loop",'4100Ref'!$I3,R$27="05 Loop",'4100Ref'!$J3,R$27="06 Loop",'4100Ref'!$K3,R$27="07 Loop",'4100Ref'!$L3,R$27="08 Loop",'4100Ref'!$M3,R$27="09 Loop",'4100Ref'!$N3,R$27="10 Loop",'4100Ref'!$O3,R$27="11 Loop",'4100Ref'!$P3,R$27="12 Loop",'4100Ref'!$Q3,R$27="NDU",'4100Ref'!$R3,R$27="NDUWVoice",'4100Ref'!$S3,R$27="TSW",'4100Ref'!$T3,R$27="TGA",'4100Ref'!$U5,R$27=" ",'4100Ref'!$A3,R$27="BSIU",'4100Ref'!$V3,R$27="safelinc",'4100Ref'!$W3))," ") ->  | S32: =IF(S17="Red",(_xlfn.IFS(S$27=" ",'4100Ref'!$A3,S$27="01 Loop",'4100Ref'!$F3,S$27="02 Loop",'4100Ref'!$G3,S$27="03 Loop",'4100Ref'!$H3,S$27="04 Loop",'4100Ref'!$I3,S$27="05 Loop",'4100Ref'!$J3,S$27="06 Loop",'4100Ref'!$K3,S$27="07 Loop",'4100Ref'!$L3,S$27="08 Loop",'4100Ref'!$M3,S$27="09 Loop",'4100Ref'!$N3,S$27="10 Loop",'4100Ref'!$O3,S$27="11 Loop",'4100Ref'!$P3,S$27="12 Loop",'4100Ref'!$Q3,S$27="NDU",'4100Ref'!$R3,S$27="NDUWVoice",'4100Ref'!$S3,S$27="TSW",'4100Ref'!$T3,S$27="TGA",'4100Ref'!$U5,S$27=" ",'4100Ref'!$A3,S$27="BSIU",'4100Ref'!$V3,S$27="safelinc",'4100Ref'!$W3))," ") ->  | T32: =IF(T17="Red",(_xlfn.IFS(T$27=" ",'4100Ref'!$A3,T$27="01 Loop",'4100Ref'!$F3,T$27="02 Loop",'4100Ref'!$G3,T$27="03 Loop",'4100Ref'!$H3,T$27="04 Loop",'4100Ref'!$I3,T$27="05 Loop",'4100Ref'!$J3,T$27="06 Loop",'4100Ref'!$K3,T$27="07 Loop",'4100Ref'!$L3,T$27="08 Loop",'4100Ref'!$M3,T$27="09 Loop",'4100Ref'!$N3,T$27="10 Loop",'4100Ref'!$O3,T$27="11 Loop",'4100Ref'!$P3,T$27="12 Loop",'4100Ref'!$Q3,T$27="NDU",'4100Ref'!$R3,T$27="NDUWVoice",'4100Ref'!$S3,T$27="TSW",'4100Ref'!$T3,T$27="TGA",'4100Ref'!$U5,T$27=" ",'4100Ref'!$A3,T$27="BSIU",'4100Ref'!$V3,T$27="safelinc",'4100Ref'!$W3))," ") ->  | U32: =IF(U17="Red",(_xlfn.IFS(U$27=" ",'4100Ref'!$A3,U$27="01 Loop",'4100Ref'!$F3,U$27="02 Loop",'4100Ref'!$G3,U$27="03 Loop",'4100Ref'!$H3,U$27="04 Loop",'4100Ref'!$I3,U$27="05 Loop",'4100Ref'!$J3,U$27="06 Loop",'4100Ref'!$K3,U$27="07 Loop",'4100Ref'!$L3,U$27="08 Loop",'4100Ref'!$M3,U$27="09 Loop",'4100Ref'!$N3,U$27="10 Loop",'4100Ref'!$O3,U$27="11 Loop",'4100Ref'!$P3,U$27="12 Loop",'4100Ref'!$Q3,U$27="NDU",'4100Ref'!$R3,U$27="NDUWVoice",'4100Ref'!$S3,U$27="TSW",'4100Ref'!$T3,U$27="TGA",'4100Ref'!$U5,U$27=" ",'4100Ref'!$A3,U$27="BSIU",'4100Ref'!$V3,U$27="safelinc",'4100Ref'!$W3))," ") ->  | V32: =IF(V17="Red",(_xlfn.IFS(V$27=" ",'4100Ref'!$A3,V$27="01 Loop",'4100Ref'!$F3,V$27="02 Loop",'4100Ref'!$G3,V$27="03 Loop",'4100Ref'!$H3,V$27="04 Loop",'4100Ref'!$I3,V$27="05 Loop",'4100Ref'!$J3,V$27="06 Loop",'4100Ref'!$K3,V$27="07 Loop",'4100Ref'!$L3,V$27="08 Loop",'4100Ref'!$M3,V$27="09 Loop",'4100Ref'!$N3,V$27="10 Loop",'4100Ref'!$O3,V$27="11 Loop",'4100Ref'!$P3,V$27="12 Loop",'4100Ref'!$Q3,V$27="NDU",'4100Ref'!$R3,V$27="NDUWVoice",'4100Ref'!$S3,V$27="TSW",'4100Ref'!$T3,V$27="TGA",'4100Ref'!$U5,V$27=" ",'4100Ref'!$A3,V$27="BSIU",'4100Ref'!$V3,V$27="safelinc",'4100Ref'!$W3))," ") ->  | W32: =IF(W17="Red",(_xlfn.IFS(W$27=" ",'4100Ref'!$A3,W$27="01 Loop",'4100Ref'!$F3,W$27="02 Loop",'4100Ref'!$G3,W$27="03 Loop",'4100Ref'!$H3,W$27="04 Loop",'4100Ref'!$I3,W$27="05 Loop",'4100Ref'!$J3,W$27="06 Loop",'4100Ref'!$K3,W$27="07 Loop",'4100Ref'!$L3,W$27="08 Loop",'4100Ref'!$M3,W$27="09 Loop",'4100Ref'!$N3,W$27="10 Loop",'4100Ref'!$O3,W$27="11 Loop",'4100Ref'!$P3,W$27="12 Loop",'4100Ref'!$Q3,W$27="NDU",'4100Ref'!$R3,W$27="NDUWVoice",'4100Ref'!$S3,W$27="TSW",'4100Ref'!$T3,W$27="TGA",'4100Ref'!$U5,W$27=" ",'4100Ref'!$A3,W$27="BSIU",'4100Ref'!$V3,W$27="safelinc",'4100Ref'!$W3))," ") ->  | X32: =IF(X17="Red",(_xlfn.IFS(X$27=" ",'4100Ref'!$A3,X$27="01 Loop",'4100Ref'!$F3,X$27="02 Loop",'4100Ref'!$G3,X$27="03 Loop",'4100Ref'!$H3,X$27="04 Loop",'4100Ref'!$I3,X$27="05 Loop",'4100Ref'!$J3,X$27="06 Loop",'4100Ref'!$K3,X$27="07 Loop",'4100Ref'!$L3,X$27="08 Loop",'4100Ref'!$M3,X$27="09 Loop",'4100Ref'!$N3,X$27="10 Loop",'4100Ref'!$O3,X$27="11 Loop",'4100Ref'!$P3,X$27="12 Loop",'4100Ref'!$Q3,X$27="NDU",'4100Ref'!$R3,X$27="NDUWVoice",'4100Ref'!$S3,X$27="TSW",'4100Ref'!$T3,X$27="TGA",'4100Ref'!$U5,X$27=" ",'4100Ref'!$A3,X$27="BSIU",'4100Ref'!$V3,X$27="safelinc",'4100Ref'!$W3))," ") ->  | Y32: =IF(Y17="Red",(_xlfn.IFS(Y$27=" ",'4100Ref'!$A3,Y$27="01 Loop",'4100Ref'!$F3,Y$27="02 Loop",'4100Ref'!$G3,Y$27="03 Loop",'4100Ref'!$H3,Y$27="04 Loop",'4100Ref'!$I3,Y$27="05 Loop",'4100Ref'!$J3,Y$27="06 Loop",'4100Ref'!$K3,Y$27="07 Loop",'4100Ref'!$L3,Y$27="08 Loop",'4100Ref'!$M3,Y$27="09 Loop",'4100Ref'!$N3,Y$27="10 Loop",'4100Ref'!$O3,Y$27="11 Loop",'4100Ref'!$P3,Y$27="12 Loop",'4100Ref'!$Q3,Y$27="NDU",'4100Ref'!$R3,Y$27="NDUWVoice",'4100Ref'!$S3,Y$27="TSW",'4100Ref'!$T3,Y$27="TGA",'4100Ref'!$U5,Y$27=" ",'4100Ref'!$A3,Y$27="BSIU",'4100Ref'!$V3,Y$27="safelinc",'4100Ref'!$W3))," ") ->  | Z32: =IF(Z17="Red",(_xlfn.IFS(Z$27=" ",'4100Ref'!$A3,Z$27="01 Loop",'4100Ref'!$F3,Z$27="02 Loop",'4100Ref'!$G3,Z$27="03 Loop",'4100Ref'!$H3,Z$27="04 Loop",'4100Ref'!$I3,Z$27="05 Loop",'4100Ref'!$J3,Z$27="06 Loop",'4100Ref'!$K3,Z$27="07 Loop",'4100Ref'!$L3,Z$27="08 Loop",'4100Ref'!$M3,Z$27="09 Loop",'4100Ref'!$N3,Z$27="10 Loop",'4100Ref'!$O3,Z$27="11 Loop",'4100Ref'!$P3,Z$27="12 Loop",'4100Ref'!$Q3,Z$27="NDU",'4100Ref'!$R3,Z$27="NDUWVoice",'4100Ref'!$S3,Z$27="TSW",'4100Ref'!$T3,Z$27="TGA",'4100Ref'!$U5,Z$27=" ",'4100Ref'!$A3,Z$27="BSIU",'4100Ref'!$V3,Z$27="safelinc",'4100Ref'!$W3))," ") ->  | AA32: =IF(AA17="Red",(_xlfn.IFS(AA$27=" ",'4100Ref'!$A3,AA$27="01 Loop",'4100Ref'!$F3,AA$27="02 Loop",'4100Ref'!$G3,AA$27="03 Loop",'4100Ref'!$H3,AA$27="04 Loop",'4100Ref'!$I3,AA$27="05 Loop",'4100Ref'!$J3,AA$27="06 Loop",'4100Ref'!$K3,AA$27="07 Loop",'4100Ref'!$L3,AA$27="08 Loop",'4100Ref'!$M3,AA$27="09 Loop",'4100Ref'!$N3,AA$27="10 Loop",'4100Ref'!$O3,AA$27="11 Loop",'4100Ref'!$P3,AA$27="12 Loop",'4100Ref'!$Q3,AA$27="NDU",'4100Ref'!$R3,AA$27="NDUWVoice",'4100Ref'!$S3,AA$27="TSW",'4100Ref'!$T3,AA$27="TGA",'4100Ref'!$U5,AA$27=" ",'4100Ref'!$A3,AA$27="BSIU",'4100Ref'!$V3,AA$27="safelinc",'4100Ref'!$W3))," ") ->  | AB32: =IF(AB17="Red",(_xlfn.IFS(AB$27=" ",'4100Ref'!$A3,AB$27="01 Loop",'4100Ref'!$F3,AB$27="02 Loop",'4100Ref'!$G3,AB$27="03 Loop",'4100Ref'!$H3,AB$27="04 Loop",'4100Ref'!$I3,AB$27="05 Loop",'4100Ref'!$J3,AB$27="06 Loop",'4100Ref'!$K3,AB$27="07 Loop",'4100Ref'!$L3,AB$27="08 Loop",'4100Ref'!$M3,AB$27="09 Loop",'4100Ref'!$N3,AB$27="10 Loop",'4100Ref'!$O3,AB$27="11 Loop",'4100Ref'!$P3,AB$27="12 Loop",'4100Ref'!$Q3,AB$27="NDU",'4100Ref'!$R3,AB$27="NDUWVoice",'4100Ref'!$S3,AB$27="TSW",'4100Ref'!$T3,AB$27="TGA",'4100Ref'!$U5,AB$27=" ",'4100Ref'!$A3,AB$27="BSIU",'4100Ref'!$V3,AB$27="safelinc",'4100Ref'!$W3))," ") ->  | AC32: =IF(AC17="Red",(_xlfn.IFS(AC$27=" ",'4100Ref'!$A3,AC$27="01 Loop",'4100Ref'!$F3,AC$27="02 Loop",'4100Ref'!$G3,AC$27="03 Loop",'4100Ref'!$H3,AC$27="04 Loop",'4100Ref'!$I3,AC$27="05 Loop",'4100Ref'!$J3,AC$27="06 Loop",'4100Ref'!$K3,AC$27="07 Loop",'4100Ref'!$L3,AC$27="08 Loop",'4100Ref'!$M3,AC$27="09 Loop",'4100Ref'!$N3,AC$27="10 Loop",'4100Ref'!$O3,AC$27="11 Loop",'4100Ref'!$P3,AC$27="12 Loop",'4100Ref'!$Q3,AC$27="NDU",'4100Ref'!$R3,AC$27="NDUWVoice",'4100Ref'!$S3,AC$27="TSW",'4100Ref'!$T3,AC$27="TGA",'4100Ref'!$U5,AC$27=" ",'4100Ref'!$A3,AC$27="BSIU",'4100Ref'!$V3,AC$27="safelinc",'4100Ref'!$W3))," ") ->  | AD32: =IF(AD17="Red",(_xlfn.IFS(AD$27=" ",'4100Ref'!$A3,AD$27="01 Loop",'4100Ref'!$F3,AD$27="02 Loop",'4100Ref'!$G3,AD$27="03 Loop",'4100Ref'!$H3,AD$27="04 Loop",'4100Ref'!$I3,AD$27="05 Loop",'4100Ref'!$J3,AD$27="06 Loop",'4100Ref'!$K3,AD$27="07 Loop",'4100Ref'!$L3,AD$27="08 Loop",'4100Ref'!$M3,AD$27="09 Loop",'4100Ref'!$N3,AD$27="10 Loop",'4100Ref'!$O3,AD$27="11 Loop",'4100Ref'!$P3,AD$27="12 Loop",'4100Ref'!$Q3,AD$27="NDU",'4100Ref'!$R3,AD$27="NDUWVoice",'4100Ref'!$S3,AD$27="TSW",'4100Ref'!$T3,AD$27="TGA",'4100Ref'!$U5,AD$27=" ",'4100Ref'!$A3,AD$27="BSIU",'4100Ref'!$V3,AD$27="safelinc",'4100Ref'!$W3))," ") ->  | AE32: =IF(AE17="Red",(_xlfn.IFS(AE$27=" ",'4100Ref'!$A3,AE$27="01 Loop",'4100Ref'!$F3,AE$27="02 Loop",'4100Ref'!$G3,AE$27="03 Loop",'4100Ref'!$H3,AE$27="04 Loop",'4100Ref'!$I3,AE$27="05 Loop",'4100Ref'!$J3,AE$27="06 Loop",'4100Ref'!$K3,AE$27="07 Loop",'4100Ref'!$L3,AE$27="08 Loop",'4100Ref'!$M3,AE$27="09 Loop",'4100Ref'!$N3,AE$27="10 Loop",'4100Ref'!$O3,AE$27="11 Loop",'4100Ref'!$P3,AE$27="12 Loop",'4100Ref'!$Q3,AE$27="NDU",'4100Ref'!$R3,AE$27="NDUWVoice",'4100Ref'!$S3,AE$27="TSW",'4100Ref'!$T3,AE$27="TGA",'4100Ref'!$U5,AE$27=" ",'4100Ref'!$A3,AE$27="BSIU",'4100Ref'!$V3,AE$27="safelinc",'4100Ref'!$W3))," ") ->  | AF32: =IF(AF17="Red",(_xlfn.IFS(AF$27=" ",'4100Ref'!$A3,AF$27="01 Loop",'4100Ref'!$F3,AF$27="02 Loop",'4100Ref'!$G3,AF$27="03 Loop",'4100Ref'!$H3,AF$27="04 Loop",'4100Ref'!$I3,AF$27="05 Loop",'4100Ref'!$J3,AF$27="06 Loop",'4100Ref'!$K3,AF$27="07 Loop",'4100Ref'!$L3,AF$27="08 Loop",'4100Ref'!$M3,AF$27="09 Loop",'4100Ref'!$N3,AF$27="10 Loop",'4100Ref'!$O3,AF$27="11 Loop",'4100Ref'!$P3,AF$27="12 Loop",'4100Ref'!$Q3,AF$27="NDU",'4100Ref'!$R3,AF$27="NDUWVoice",'4100Ref'!$S3,AF$27="TSW",'4100Ref'!$T3,AF$27="TGA",'4100Ref'!$U5,AF$27=" ",'4100Ref'!$A3,AF$27="BSIU",'4100Ref'!$V3,AF$27="safelinc",'4100Ref'!$W3))," ") ->  | AG32: =IF(AG17="Red",(_xlfn.IFS(AG$27=" ",'4100Ref'!$A3,AG$27="01 Loop",'4100Ref'!$F3,AG$27="02 Loop",'4100Ref'!$G3,AG$27="03 Loop",'4100Ref'!$H3,AG$27="04 Loop",'4100Ref'!$I3,AG$27="05 Loop",'4100Ref'!$J3,AG$27="06 Loop",'4100Ref'!$K3,AG$27="07 Loop",'4100Ref'!$L3,AG$27="08 Loop",'4100Ref'!$M3,AG$27="09 Loop",'4100Ref'!$N3,AG$27="10 Loop",'4100Ref'!$O3,AG$27="11 Loop",'4100Ref'!$P3,AG$27="12 Loop",'4100Ref'!$Q3,AG$27="NDU",'4100Ref'!$R3,AG$27="NDUWVoice",'4100Ref'!$S3,AG$27="TSW",'4100Ref'!$T3,AG$27="TGA",'4100Ref'!$U5,AG$27=" ",'4100Ref'!$A3,AG$27="BSIU",'4100Ref'!$V3,AG$27="safelinc",'4100Ref'!$W3))," ") ->  | AH32: =IF(AH17="Red",(_xlfn.IFS(AH$27=" ",'4100Ref'!$A3,AH$27="01 Loop",'4100Ref'!$F3,AH$27="02 Loop",'4100Ref'!$G3,AH$27="03 Loop",'4100Ref'!$H3,AH$27="04 Loop",'4100Ref'!$I3,AH$27="05 Loop",'4100Ref'!$J3,AH$27="06 Loop",'4100Ref'!$K3,AH$27="07 Loop",'4100Ref'!$L3,AH$27="08 Loop",'4100Ref'!$M3,AH$27="09 Loop",'4100Ref'!$N3,AH$27="10 Loop",'4100Ref'!$O3,AH$27="11 Loop",'4100Ref'!$P3,AH$27="12 Loop",'4100Ref'!$Q3,AH$27="NDU",'4100Ref'!$R3,AH$27="NDUWVoice",'4100Ref'!$S3,AH$27="TSW",'4100Ref'!$T3,AH$27="TGA",'4100Ref'!$U5,AH$27=" ",'4100Ref'!$A3,AH$27="BSIU",'4100Ref'!$V3,AH$27="safelinc",'4100Ref'!$W3))," ") ->  | AI32: =IF(AI17="Red",(_xlfn.IFS(AI$27=" ",'4100Ref'!$A3,AI$27="01 Loop",'4100Ref'!$F3,AI$27="02 Loop",'4100Ref'!$G3,AI$27="03 Loop",'4100Ref'!$H3,AI$27="04 Loop",'4100Ref'!$I3,AI$27="05 Loop",'4100Ref'!$J3,AI$27="06 Loop",'4100Ref'!$K3,AI$27="07 Loop",'4100Ref'!$L3,AI$27="08 Loop",'4100Ref'!$M3,AI$27="09 Loop",'4100Ref'!$N3,AI$27="10 Loop",'4100Ref'!$O3,AI$27="11 Loop",'4100Ref'!$P3,AI$27="12 Loop",'4100Ref'!$Q3,AI$27="NDU",'4100Ref'!$R3,AI$27="NDUWVoice",'4100Ref'!$S3,AI$27="TSW",'4100Ref'!$T3,AI$27="TGA",'4100Ref'!$U5,AI$27=" ",'4100Ref'!$A3,AI$27="BSIU",'4100Ref'!$V3,AI$27="safelinc",'4100Ref'!$W3))," ") ->  | AJ32: =IF(AJ17="Red",(_xlfn.IFS(AJ$27=" ",'4100Ref'!$A3,AJ$27="01 Loop",'4100Ref'!$F3,AJ$27="02 Loop",'4100Ref'!$G3,AJ$27="03 Loop",'4100Ref'!$H3,AJ$27="04 Loop",'4100Ref'!$I3,AJ$27="05 Loop",'4100Ref'!$J3,AJ$27="06 Loop",'4100Ref'!$K3,AJ$27="07 Loop",'4100Ref'!$L3,AJ$27="08 Loop",'4100Ref'!$M3,AJ$27="09 Loop",'4100Ref'!$N3,AJ$27="10 Loop",'4100Ref'!$O3,AJ$27="11 Loop",'4100Ref'!$P3,AJ$27="12 Loop",'4100Ref'!$Q3,AJ$27="NDU",'4100Ref'!$R3,AJ$27="NDUWVoice",'4100Ref'!$S3,AJ$27="TSW",'4100Ref'!$T3,AJ$27="TGA",'4100Ref'!$U5,AJ$27=" ",'4100Ref'!$A3,AJ$27="BSIU",'4100Ref'!$V3,AJ$27="safelinc",'4100Ref'!$W3))," ") ->  | AK32: =IF(AK17="Red",(_xlfn.IFS(AK$27=" ",'4100Ref'!$A3,AK$27="01 Loop",'4100Ref'!$F3,AK$27="02 Loop",'4100Ref'!$G3,AK$27="03 Loop",'4100Ref'!$H3,AK$27="04 Loop",'4100Ref'!$I3,AK$27="05 Loop",'4100Ref'!$J3,AK$27="06 Loop",'4100Ref'!$K3,AK$27="07 Loop",'4100Ref'!$L3,AK$27="08 Loop",'4100Ref'!$M3,AK$27="09 Loop",'4100Ref'!$N3,AK$27="10 Loop",'4100Ref'!$O3,AK$27="11 Loop",'4100Ref'!$P3,AK$27="12 Loop",'4100Ref'!$Q3,AK$27="NDU",'4100Ref'!$R3,AK$27="NDUWVoice",'4100Ref'!$S3,AK$27="TSW",'4100Ref'!$T3,AK$27="TGA",'4100Ref'!$U5,AK$27=" ",'4100Ref'!$A3,AK$27="BSIU",'4100Ref'!$V3,AK$27="safelinc",'4100Ref'!$W3))," ") ->  | AL32: =IF(AL17="Red",(_xlfn.IFS(AL$27=" ",'4100Ref'!$A3,AL$27="01 Loop",'4100Ref'!$F3,AL$27="02 Loop",'4100Ref'!$G3,AL$27="03 Loop",'4100Ref'!$H3,AL$27="04 Loop",'4100Ref'!$I3,AL$27="05 Loop",'4100Ref'!$J3,AL$27="06 Loop",'4100Ref'!$K3,AL$27="07 Loop",'4100Ref'!$L3,AL$27="08 Loop",'4100Ref'!$M3,AL$27="09 Loop",'4100Ref'!$N3,AL$27="10 Loop",'4100Ref'!$O3,AL$27="11 Loop",'4100Ref'!$P3,AL$27="12 Loop",'4100Ref'!$Q3,AL$27="NDU",'4100Ref'!$R3,AL$27="NDUWVoice",'4100Ref'!$S3,AL$27="TSW",'4100Ref'!$T3,AL$27="TGA",'4100Ref'!$U5,AL$27=" ",'4100Ref'!$A3,AL$27="BSIU",'4100Ref'!$V3,AL$27="safelinc",'4100Ref'!$W3))," ") ->  | AM32: =IF(AM17="Red",(_xlfn.IFS(AM$27=" ",'4100Ref'!$A3,AM$27="01 Loop",'4100Ref'!$F3,AM$27="02 Loop",'4100Ref'!$G3,AM$27="03 Loop",'4100Ref'!$H3,AM$27="04 Loop",'4100Ref'!$I3,AM$27="05 Loop",'4100Ref'!$J3,AM$27="06 Loop",'4100Ref'!$K3,AM$27="07 Loop",'4100Ref'!$L3,AM$27="08 Loop",'4100Ref'!$M3,AM$27="09 Loop",'4100Ref'!$N3,AM$27="10 Loop",'4100Ref'!$O3,AM$27="11 Loop",'4100Ref'!$P3,AM$27="12 Loop",'4100Ref'!$Q3,AM$27="NDU",'4100Ref'!$R3,AM$27="NDUWVoice",'4100Ref'!$S3,AM$27="TSW",'4100Ref'!$T3,AM$27="TGA",'4100Ref'!$U5,AM$27=" ",'4100Ref'!$A3,AM$27="BSIU",'4100Ref'!$V3,AM$27="safelinc",'4100Ref'!$W3))," ") ->  | AN32: =IF(AN17="Red",(_xlfn.IFS(AN$27=" ",'4100Ref'!$A3,AN$27="01 Loop",'4100Ref'!$F3,AN$27="02 Loop",'4100Ref'!$G3,AN$27="03 Loop",'4100Ref'!$H3,AN$27="04 Loop",'4100Ref'!$I3,AN$27="05 Loop",'4100Ref'!$J3,AN$27="06 Loop",'4100Ref'!$K3,AN$27="07 Loop",'4100Ref'!$L3,AN$27="08 Loop",'4100Ref'!$M3,AN$27="09 Loop",'4100Ref'!$N3,AN$27="10 Loop",'4100Ref'!$O3,AN$27="11 Loop",'4100Ref'!$P3,AN$27="12 Loop",'4100Ref'!$Q3,AN$27="NDU",'4100Ref'!$R3,AN$27="NDUWVoice",'4100Ref'!$S3,AN$27="TSW",'4100Ref'!$T3,AN$27="TGA",'4100Ref'!$U5,AN$27=" ",'4100Ref'!$A3,AN$27="BSIU",'4100Ref'!$V3,AN$27="safelinc",'4100Ref'!$W3))," ") ->  | AO32: =IF(AO17="Red",(_xlfn.IFS(AO$27=" ",'4100Ref'!$A3,AO$27="01 Loop",'4100Ref'!$F3,AO$27="02 Loop",'4100Ref'!$G3,AO$27="03 Loop",'4100Ref'!$H3,AO$27="04 Loop",'4100Ref'!$I3,AO$27="05 Loop",'4100Ref'!$J3,AO$27="06 Loop",'4100Ref'!$K3,AO$27="07 Loop",'4100Ref'!$L3,AO$27="08 Loop",'4100Ref'!$M3,AO$27="09 Loop",'4100Ref'!$N3,AO$27="10 Loop",'4100Ref'!$O3,AO$27="11 Loop",'4100Ref'!$P3,AO$27="12 Loop",'4100Ref'!$Q3,AO$27="NDU",'4100Ref'!$R3,AO$27="NDUWVoice",'4100Ref'!$S3,AO$27="TSW",'4100Ref'!$T3,AO$27="TGA",'4100Ref'!$U5,AO$27=" ",'4100Ref'!$A3,AO$27="BSIU",'4100Ref'!$V3,AO$27="safelinc",'4100Ref'!$W3))," ") ->  | AP32: =IF(AP17="Red",(_xlfn.IFS(AP$27=" ",'4100Ref'!$A3,AP$27="01 Loop",'4100Ref'!$F3,AP$27="02 Loop",'4100Ref'!$G3,AP$27="03 Loop",'4100Ref'!$H3,AP$27="04 Loop",'4100Ref'!$I3,AP$27="05 Loop",'4100Ref'!$J3,AP$27="06 Loop",'4100Ref'!$K3,AP$27="07 Loop",'4100Ref'!$L3,AP$27="08 Loop",'4100Ref'!$M3,AP$27="09 Loop",'4100Ref'!$N3,AP$27="10 Loop",'4100Ref'!$O3,AP$27="11 Loop",'4100Ref'!$P3,AP$27="12 Loop",'4100Ref'!$Q3,AP$27="NDU",'4100Ref'!$R3,AP$27="NDUWVoice",'4100Ref'!$S3,AP$27="TSW",'4100Ref'!$T3,AP$27="TGA",'4100Ref'!$U5,AP$27=" ",'4100Ref'!$A3,AP$27="BSIU",'4100Ref'!$V3,AP$27="safelinc",'4100Ref'!$W3))," ") ->  | AQ32: =IF(AQ17="Red",(_xlfn.IFS(AQ$27=" ",'4100Ref'!$A3,AQ$27="01 Loop",'4100Ref'!$F3,AQ$27="02 Loop",'4100Ref'!$G3,AQ$27="03 Loop",'4100Ref'!$H3,AQ$27="04 Loop",'4100Ref'!$I3,AQ$27="05 Loop",'4100Ref'!$J3,AQ$27="06 Loop",'4100Ref'!$K3,AQ$27="07 Loop",'4100Ref'!$L3,AQ$27="08 Loop",'4100Ref'!$M3,AQ$27="09 Loop",'4100Ref'!$N3,AQ$27="10 Loop",'4100Ref'!$O3,AQ$27="11 Loop",'4100Ref'!$P3,AQ$27="12 Loop",'4100Ref'!$Q3,AQ$27="NDU",'4100Ref'!$R3,AQ$27="NDUWVoice",'4100Ref'!$S3,AQ$27="TSW",'4100Ref'!$T3,AQ$27="TGA",'4100Ref'!$U5,AQ$27=" ",'4100Ref'!$A3,AQ$27="BSIU",'4100Ref'!$V3,AQ$27="safelinc",'4100Ref'!$W3))," ") ->  | AR32: =IF(AR17="Red",(_xlfn.IFS(AR$27=" ",'4100Ref'!$A3,AR$27="01 Loop",'4100Ref'!$F3,AR$27="02 Loop",'4100Ref'!$G3,AR$27="03 Loop",'4100Ref'!$H3,AR$27="04 Loop",'4100Ref'!$I3,AR$27="05 Loop",'4100Ref'!$J3,AR$27="06 Loop",'4100Ref'!$K3,AR$27="07 Loop",'4100Ref'!$L3,AR$27="08 Loop",'4100Ref'!$M3,AR$27="09 Loop",'4100Ref'!$N3,AR$27="10 Loop",'4100Ref'!$O3,AR$27="11 Loop",'4100Ref'!$P3,AR$27="12 Loop",'4100Ref'!$Q3,AR$27="NDU",'4100Ref'!$R3,AR$27="NDUWVoice",'4100Ref'!$S3,AR$27="TSW",'4100Ref'!$T3,AR$27="TGA",'4100Ref'!$U5,AR$27=" ",'4100Ref'!$A3,AR$27="BSIU",'4100Ref'!$V3,AR$27="safelinc",'4100Ref'!$W3))," ") ->  | AS32: =IF(AS17="Red",(_xlfn.IFS(AS$27=" ",'4100Ref'!$A3,AS$27="01 Loop",'4100Ref'!$F3,AS$27="02 Loop",'4100Ref'!$G3,AS$27="03 Loop",'4100Ref'!$H3,AS$27="04 Loop",'4100Ref'!$I3,AS$27="05 Loop",'4100Ref'!$J3,AS$27="06 Loop",'4100Ref'!$K3,AS$27="07 Loop",'4100Ref'!$L3,AS$27="08 Loop",'4100Ref'!$M3,AS$27="09 Loop",'4100Ref'!$N3,AS$27="10 Loop",'4100Ref'!$O3,AS$27="11 Loop",'4100Ref'!$P3,AS$27="12 Loop",'4100Ref'!$Q3,AS$27="NDU",'4100Ref'!$R3,AS$27="NDUWVoice",'4100Ref'!$S3,AS$27="TSW",'4100Ref'!$T3,AS$27="TGA",'4100Ref'!$U5,AS$27=" ",'4100Ref'!$A3,AS$27="BSIU",'4100Ref'!$V3,AS$27="safelinc",'4100Ref'!$W3))," ") ->  | AT32: =IF(AT17="Red",(_xlfn.IFS(AT$27=" ",'4100Ref'!$A3,AT$27="01 Loop",'4100Ref'!$F3,AT$27="02 Loop",'4100Ref'!$G3,AT$27="03 Loop",'4100Ref'!$H3,AT$27="04 Loop",'4100Ref'!$I3,AT$27="05 Loop",'4100Ref'!$J3,AT$27="06 Loop",'4100Ref'!$K3,AT$27="07 Loop",'4100Ref'!$L3,AT$27="08 Loop",'4100Ref'!$M3,AT$27="09 Loop",'4100Ref'!$N3,AT$27="10 Loop",'4100Ref'!$O3,AT$27="11 Loop",'4100Ref'!$P3,AT$27="12 Loop",'4100Ref'!$Q3,AT$27="NDU",'4100Ref'!$R3,AT$27="NDUWVoice",'4100Ref'!$S3,AT$27="TSW",'4100Ref'!$T3,AT$27="TGA",'4100Ref'!$U5,AT$27=" ",'4100Ref'!$A3,AT$27="BSIU",'4100Ref'!$V3,AT$27="safelinc",'4100Ref'!$W3))," ") ->  | AU32: =IF(AU17="Red",(_xlfn.IFS(AU$27=" ",'4100Ref'!$A3,AU$27="01 Loop",'4100Ref'!$F3,AU$27="02 Loop",'4100Ref'!$G3,AU$27="03 Loop",'4100Ref'!$H3,AU$27="04 Loop",'4100Ref'!$I3,AU$27="05 Loop",'4100Ref'!$J3,AU$27="06 Loop",'4100Ref'!$K3,AU$27="07 Loop",'4100Ref'!$L3,AU$27="08 Loop",'4100Ref'!$M3,AU$27="09 Loop",'4100Ref'!$N3,AU$27="10 Loop",'4100Ref'!$O3,AU$27="11 Loop",'4100Ref'!$P3,AU$27="12 Loop",'4100Ref'!$Q3,AU$27="NDU",'4100Ref'!$R3,AU$27="NDUWVoice",'4100Ref'!$S3,AU$27="TSW",'4100Ref'!$T3,AU$27="TGA",'4100Ref'!$U5,AU$27=" ",'4100Ref'!$A3,AU$27="BSIU",'4100Ref'!$V3,AU$27="safelinc",'4100Ref'!$W3))," ") ->  | AV32: =IF(AV17="Red",(_xlfn.IFS(AV$27=" ",'4100Ref'!$A3,AV$27="01 Loop",'4100Ref'!$F3,AV$27="02 Loop",'4100Ref'!$G3,AV$27="03 Loop",'4100Ref'!$H3,AV$27="04 Loop",'4100Ref'!$I3,AV$27="05 Loop",'4100Ref'!$J3,AV$27="06 Loop",'4100Ref'!$K3,AV$27="07 Loop",'4100Ref'!$L3,AV$27="08 Loop",'4100Ref'!$M3,AV$27="09 Loop",'4100Ref'!$N3,AV$27="10 Loop",'4100Ref'!$O3,AV$27="11 Loop",'4100Ref'!$P3,AV$27="12 Loop",'4100Ref'!$Q3,AV$27="NDU",'4100Ref'!$R3,AV$27="NDUWVoice",'4100Ref'!$S3,AV$27="TSW",'4100Ref'!$T3,AV$27="TGA",'4100Ref'!$U5,AV$27=" ",'4100Ref'!$A3,AV$27="BSIU",'4100Ref'!$V3,AV$27="safelinc",'4100Ref'!$W3))," ") ->  | AW32: =IF(AW17="Red",(_xlfn.IFS(AW$27=" ",'4100Ref'!$A3,AW$27="01 Loop",'4100Ref'!$F3,AW$27="02 Loop",'4100Ref'!$G3,AW$27="03 Loop",'4100Ref'!$H3,AW$27="04 Loop",'4100Ref'!$I3,AW$27="05 Loop",'4100Ref'!$J3,AW$27="06 Loop",'4100Ref'!$K3,AW$27="07 Loop",'4100Ref'!$L3,AW$27="08 Loop",'4100Ref'!$M3,AW$27="09 Loop",'4100Ref'!$N3,AW$27="10 Loop",'4100Ref'!$O3,AW$27="11 Loop",'4100Ref'!$P3,AW$27="12 Loop",'4100Ref'!$Q3,AW$27="NDU",'4100Ref'!$R3,AW$27="NDUWVoice",'4100Ref'!$S3,AW$27="TSW",'4100Ref'!$T3,AW$27="TGA",'4100Ref'!$U5,AW$27=" ",'4100Ref'!$A3,AW$27="BSIU",'4100Ref'!$V3,AW$27="safelinc",'4100Ref'!$W3))," ") ->  | AX32: =IF(AX17="Red",(_xlfn.IFS(AX$27=" ",'4100Ref'!$A3,AX$27="01 Loop",'4100Ref'!$F3,AX$27="02 Loop",'4100Ref'!$G3,AX$27="03 Loop",'4100Ref'!$H3,AX$27="04 Loop",'4100Ref'!$I3,AX$27="05 Loop",'4100Ref'!$J3,AX$27="06 Loop",'4100Ref'!$K3,AX$27="07 Loop",'4100Ref'!$L3,AX$27="08 Loop",'4100Ref'!$M3,AX$27="09 Loop",'4100Ref'!$N3,AX$27="10 Loop",'4100Ref'!$O3,AX$27="11 Loop",'4100Ref'!$P3,AX$27="12 Loop",'4100Ref'!$Q3,AX$27="NDU",'4100Ref'!$R3,AX$27="NDUWVoice",'4100Ref'!$S3,AX$27="TSW",'4100Ref'!$T3,AX$27="TGA",'4100Ref'!$U5,AX$27=" ",'4100Ref'!$A3,AX$27="BSIU",'4100Ref'!$V3,AX$27="safelinc",'4100Ref'!$W3))," ") ->  | AY32: =IF(AY17="Red",(_xlfn.IFS(AY$27=" ",'4100Ref'!$A3,AY$27="01 Loop",'4100Ref'!$F3,AY$27="02 Loop",'4100Ref'!$G3,AY$27="03 Loop",'4100Ref'!$H3,AY$27="04 Loop",'4100Ref'!$I3,AY$27="05 Loop",'4100Ref'!$J3,AY$27="06 Loop",'4100Ref'!$K3,AY$27="07 Loop",'4100Ref'!$L3,AY$27="08 Loop",'4100Ref'!$M3,AY$27="09 Loop",'4100Ref'!$N3,AY$27="10 Loop",'4100Ref'!$O3,AY$27="11 Loop",'4100Ref'!$P3,AY$27="12 Loop",'4100Ref'!$Q3,AY$27="NDU",'4100Ref'!$R3,AY$27="NDUWVoice",'4100Ref'!$S3,AY$27="TSW",'4100Ref'!$T3,AY$27="TGA",'4100Ref'!$U5,AY$27=" ",'4100Ref'!$A3,AY$27="BSIU",'4100Ref'!$V3,AY$27="safelinc",'4100Ref'!$W3))," ") ->  | AZ32: =IF(AZ17="Red",(_xlfn.IFS(AZ$27=" ",'4100Ref'!$A3,AZ$27="01 Loop",'4100Ref'!$F3,AZ$27="02 Loop",'4100Ref'!$G3,AZ$27="03 Loop",'4100Ref'!$H3,AZ$27="04 Loop",'4100Ref'!$I3,AZ$27="05 Loop",'4100Ref'!$J3,AZ$27="06 Loop",'4100Ref'!$K3,AZ$27="07 Loop",'4100Ref'!$L3,AZ$27="08 Loop",'4100Ref'!$M3,AZ$27="09 Loop",'4100Ref'!$N3,AZ$27="10 Loop",'4100Ref'!$O3,AZ$27="11 Loop",'4100Ref'!$P3,AZ$27="12 Loop",'4100Ref'!$Q3,AZ$27="NDU",'4100Ref'!$R3,AZ$27="NDUWVoice",'4100Ref'!$S3,AZ$27="TSW",'4100Ref'!$T3,AZ$27="TGA",'4100Ref'!$U5,AZ$27=" ",'4100Ref'!$A3,AZ$27="BSIU",'4100Ref'!$V3,AZ$27="safelinc",'4100Ref'!$W3))," ") ->  | BA32: =IF(BA17="Red",(_xlfn.IFS(BA$27=" ",'4100Ref'!$A3,BA$27="01 Loop",'4100Ref'!$F3,BA$27="02 Loop",'4100Ref'!$G3,BA$27="03 Loop",'4100Ref'!$H3,BA$27="04 Loop",'4100Ref'!$I3,BA$27="05 Loop",'4100Ref'!$J3,BA$27="06 Loop",'4100Ref'!$K3,BA$27="07 Loop",'4100Ref'!$L3,BA$27="08 Loop",'4100Ref'!$M3,BA$27="09 Loop",'4100Ref'!$N3,BA$27="10 Loop",'4100Ref'!$O3,BA$27="11 Loop",'4100Ref'!$P3,BA$27="12 Loop",'4100Ref'!$Q3,BA$27="NDU",'4100Ref'!$R3,BA$27="NDUWVoice",'4100Ref'!$S3,BA$27="TSW",'4100Ref'!$T3,BA$27="TGA",'4100Ref'!$U5,BA$27=" ",'4100Ref'!$A3,BA$27="BSIU",'4100Ref'!$V3,BA$27="safelinc",'4100Ref'!$W3))," ") ->  | BB32: =IF(BB17="Red",(_xlfn.IFS(BB$27=" ",'4100Ref'!$A3,BB$27="01 Loop",'4100Ref'!$F3,BB$27="02 Loop",'4100Ref'!$G3,BB$27="03 Loop",'4100Ref'!$H3,BB$27="04 Loop",'4100Ref'!$I3,BB$27="05 Loop",'4100Ref'!$J3,BB$27="06 Loop",'4100Ref'!$K3,BB$27="07 Loop",'4100Ref'!$L3,BB$27="08 Loop",'4100Ref'!$M3,BB$27="09 Loop",'4100Ref'!$N3,BB$27="10 Loop",'4100Ref'!$O3,BB$27="11 Loop",'4100Ref'!$P3,BB$27="12 Loop",'4100Ref'!$Q3,BB$27="NDU",'4100Ref'!$R3,BB$27="NDUWVoice",'4100Ref'!$S3,BB$27="TSW",'4100Ref'!$T3,BB$27="TGA",'4100Ref'!$U5,BB$27=" ",'4100Ref'!$A3,BB$27="BSIU",'4100Ref'!$V3,BB$27="safelinc",'4100Ref'!$W3))," ") ->  | BC32: =IF(BC17="Red",(_xlfn.IFS(BC$27=" ",'4100Ref'!$A3,BC$27="01 Loop",'4100Ref'!$F3,BC$27="02 Loop",'4100Ref'!$G3,BC$27="03 Loop",'4100Ref'!$H3,BC$27="04 Loop",'4100Ref'!$I3,BC$27="05 Loop",'4100Ref'!$J3,BC$27="06 Loop",'4100Ref'!$K3,BC$27="07 Loop",'4100Ref'!$L3,BC$27="08 Loop",'4100Ref'!$M3,BC$27="09 Loop",'4100Ref'!$N3,BC$27="10 Loop",'4100Ref'!$O3,BC$27="11 Loop",'4100Ref'!$P3,BC$27="12 Loop",'4100Ref'!$Q3,BC$27="NDU",'4100Ref'!$R3,BC$27="NDUWVoice",'4100Ref'!$S3,BC$27="TSW",'4100Ref'!$T3,BC$27="TGA",'4100Ref'!$U5,BC$27=" ",'4100Ref'!$A3,BC$27="BSIU",'4100Ref'!$V3,BC$27="safelinc",'4100Ref'!$W3))," ") ->  | BD32: =IF(BD17="Red",(_xlfn.IFS(BD$27=" ",'4100Ref'!$A3,BD$27="01 Loop",'4100Ref'!$F3,BD$27="02 Loop",'4100Ref'!$G3,BD$27="03 Loop",'4100Ref'!$H3,BD$27="04 Loop",'4100Ref'!$I3,BD$27="05 Loop",'4100Ref'!$J3,BD$27="06 Loop",'4100Ref'!$K3,BD$27="07 Loop",'4100Ref'!$L3,BD$27="08 Loop",'4100Ref'!$M3,BD$27="09 Loop",'4100Ref'!$N3,BD$27="10 Loop",'4100Ref'!$O3,BD$27="11 Loop",'4100Ref'!$P3,BD$27="12 Loop",'4100Ref'!$Q3,BD$27="NDU",'4100Ref'!$R3,BD$27="NDUWVoice",'4100Ref'!$S3,BD$27="TSW",'4100Ref'!$T3,BD$27="TGA",'4100Ref'!$U5,BD$27=" ",'4100Ref'!$A3,BD$27="BSIU",'4100Ref'!$V3,BD$27="safelinc",'4100Ref'!$W3))," ") ->  | BE32: =IF(BE17="Red",(_xlfn.IFS(BE$27=" ",'4100Ref'!$A3,BE$27="01 Loop",'4100Ref'!$F3,BE$27="02 Loop",'4100Ref'!$G3,BE$27="03 Loop",'4100Ref'!$H3,BE$27="04 Loop",'4100Ref'!$I3,BE$27="05 Loop",'4100Ref'!$J3,BE$27="06 Loop",'4100Ref'!$K3,BE$27="07 Loop",'4100Ref'!$L3,BE$27="08 Loop",'4100Ref'!$M3,BE$27="09 Loop",'4100Ref'!$N3,BE$27="10 Loop",'4100Ref'!$O3,BE$27="11 Loop",'4100Ref'!$P3,BE$27="12 Loop",'4100Ref'!$Q3,BE$27="NDU",'4100Ref'!$R3,BE$27="NDUWVoice",'4100Ref'!$S3,BE$27="TSW",'4100Ref'!$T3,BE$27="TGA",'4100Ref'!$U5,BE$27=" ",'4100Ref'!$A3,BE$27="BSIU",'4100Ref'!$V3,BE$27="safelinc",'4100Ref'!$W3))," ") ->  | BF32: =IF(BF17="Red",(_xlfn.IFS(BF$27=" ",'4100Ref'!$A3,BF$27="01 Loop",'4100Ref'!$F3,BF$27="02 Loop",'4100Ref'!$G3,BF$27="03 Loop",'4100Ref'!$H3,BF$27="04 Loop",'4100Ref'!$I3,BF$27="05 Loop",'4100Ref'!$J3,BF$27="06 Loop",'4100Ref'!$K3,BF$27="07 Loop",'4100Ref'!$L3,BF$27="08 Loop",'4100Ref'!$M3,BF$27="09 Loop",'4100Ref'!$N3,BF$27="10 Loop",'4100Ref'!$O3,BF$27="11 Loop",'4100Ref'!$P3,BF$27="12 Loop",'4100Ref'!$Q3,BF$27="NDU",'4100Ref'!$R3,BF$27="NDUWVoice",'4100Ref'!$S3,BF$27="TSW",'4100Ref'!$T3,BF$27="TGA",'4100Ref'!$U5,BF$27=" ",'4100Ref'!$A3,BF$27="BSIU",'4100Ref'!$V3,BF$27="safelinc",'4100Ref'!$W3))," ") ->  | BG32: =IF(BG17="Red",(_xlfn.IFS(BG$27=" ",'4100Ref'!$A3,BG$27="01 Loop",'4100Ref'!$F3,BG$27="02 Loop",'4100Ref'!$G3,BG$27="03 Loop",'4100Ref'!$H3,BG$27="04 Loop",'4100Ref'!$I3,BG$27="05 Loop",'4100Ref'!$J3,BG$27="06 Loop",'4100Ref'!$K3,BG$27="07 Loop",'4100Ref'!$L3,BG$27="08 Loop",'4100Ref'!$M3,BG$27="09 Loop",'4100Ref'!$N3,BG$27="10 Loop",'4100Ref'!$O3,BG$27="11 Loop",'4100Ref'!$P3,BG$27="12 Loop",'4100Ref'!$Q3,BG$27="NDU",'4100Ref'!$R3,BG$27="NDUWVoice",'4100Ref'!$S3,BG$27="TSW",'4100Ref'!$T3,BG$27="TGA",'4100Ref'!$U5,BG$27=" ",'4100Ref'!$A3,BG$27="BSIU",'4100Ref'!$V3,BG$27="safelinc",'4100Ref'!$W3))," ") ->  | BH32: =IF(BH17="Red",(_xlfn.IFS(BH$27=" ",'4100Ref'!$A3,BH$27="01 Loop",'4100Ref'!$F3,BH$27="02 Loop",'4100Ref'!$G3,BH$27="03 Loop",'4100Ref'!$H3,BH$27="04 Loop",'4100Ref'!$I3,BH$27="05 Loop",'4100Ref'!$J3,BH$27="06 Loop",'4100Ref'!$K3,BH$27="07 Loop",'4100Ref'!$L3,BH$27="08 Loop",'4100Ref'!$M3,BH$27="09 Loop",'4100Ref'!$N3,BH$27="10 Loop",'4100Ref'!$O3,BH$27="11 Loop",'4100Ref'!$P3,BH$27="12 Loop",'4100Ref'!$Q3,BH$27="NDU",'4100Ref'!$R3,BH$27="NDUWVoice",'4100Ref'!$S3,BH$27="TSW",'4100Ref'!$T3,BH$27="TGA",'4100Ref'!$U5,BH$27=" ",'4100Ref'!$A3,BH$27="BSIU",'4100Ref'!$V3,BH$27="safelinc",'4100Ref'!$W3))," ") ->  | BI32: =IF(BI17="Red",(_xlfn.IFS(BI$27=" ",'4100Ref'!$A3,BI$27="01 Loop",'4100Ref'!$F3,BI$27="02 Loop",'4100Ref'!$G3,BI$27="03 Loop",'4100Ref'!$H3,BI$27="04 Loop",'4100Ref'!$I3,BI$27="05 Loop",'4100Ref'!$J3,BI$27="06 Loop",'4100Ref'!$K3,BI$27="07 Loop",'4100Ref'!$L3,BI$27="08 Loop",'4100Ref'!$M3,BI$27="09 Loop",'4100Ref'!$N3,BI$27="10 Loop",'4100Ref'!$O3,BI$27="11 Loop",'4100Ref'!$P3,BI$27="12 Loop",'4100Ref'!$Q3,BI$27="NDU",'4100Ref'!$R3,BI$27="NDUWVoice",'4100Ref'!$S3,BI$27="TSW",'4100Ref'!$T3,BI$27="TGA",'4100Ref'!$U5,BI$27=" ",'4100Ref'!$A3,BI$27="BSIU",'4100Ref'!$V3,BI$27="safelinc",'4100Ref'!$W3))," ") ->  | BJ32: =IF(BJ17="Red",(_xlfn.IFS(BJ$27=" ",'4100Ref'!$A3,BJ$27="01 Loop",'4100Ref'!$F3,BJ$27="02 Loop",'4100Ref'!$G3,BJ$27="03 Loop",'4100Ref'!$H3,BJ$27="04 Loop",'4100Ref'!$I3,BJ$27="05 Loop",'4100Ref'!$J3,BJ$27="06 Loop",'4100Ref'!$K3,BJ$27="07 Loop",'4100Ref'!$L3,BJ$27="08 Loop",'4100Ref'!$M3,BJ$27="09 Loop",'4100Ref'!$N3,BJ$27="10 Loop",'4100Ref'!$O3,BJ$27="11 Loop",'4100Ref'!$P3,BJ$27="12 Loop",'4100Ref'!$Q3,BJ$27="NDU",'4100Ref'!$R3,BJ$27="NDUWVoice",'4100Ref'!$S3,BJ$27="TSW",'4100Ref'!$T3,BJ$27="TGA",'4100Ref'!$U5,BJ$27=" ",'4100Ref'!$A3,BJ$27="BSIU",'4100Ref'!$V3,BJ$27="safelinc",'4100Ref'!$W3))," ") ->  | BK32: =IF(BK17="Red",(_xlfn.IFS(BK$27=" ",'4100Ref'!$A3,BK$27="01 Loop",'4100Ref'!$F3,BK$27="02 Loop",'4100Ref'!$G3,BK$27="03 Loop",'4100Ref'!$H3,BK$27="04 Loop",'4100Ref'!$I3,BK$27="05 Loop",'4100Ref'!$J3,BK$27="06 Loop",'4100Ref'!$K3,BK$27="07 Loop",'4100Ref'!$L3,BK$27="08 Loop",'4100Ref'!$M3,BK$27="09 Loop",'4100Ref'!$N3,BK$27="10 Loop",'4100Ref'!$O3,BK$27="11 Loop",'4100Ref'!$P3,BK$27="12 Loop",'4100Ref'!$Q3,BK$27="NDU",'4100Ref'!$R3,BK$27="NDUWVoice",'4100Ref'!$S3,BK$27="TSW",'4100Ref'!$T3,BK$27="TGA",'4100Ref'!$U5,BK$27=" ",'4100Ref'!$A3,BK$27="BSIU",'4100Ref'!$V3,BK$27="safelinc",'4100Ref'!$W3))," ") ->  | BL32: =IF(BL17="Red",(_xlfn.IFS(BL$27=" ",'4100Ref'!$A3,BL$27="01 Loop",'4100Ref'!$F3,BL$27="02 Loop",'4100Ref'!$G3,BL$27="03 Loop",'4100Ref'!$H3,BL$27="04 Loop",'4100Ref'!$I3,BL$27="05 Loop",'4100Ref'!$J3,BL$27="06 Loop",'4100Ref'!$K3,BL$27="07 Loop",'4100Ref'!$L3,BL$27="08 Loop",'4100Ref'!$M3,BL$27="09 Loop",'4100Ref'!$N3,BL$27="10 Loop",'4100Ref'!$O3,BL$27="11 Loop",'4100Ref'!$P3,BL$27="12 Loop",'4100Ref'!$Q3,BL$27="NDU",'4100Ref'!$R3,BL$27="NDUWVoice",'4100Ref'!$S3,BL$27="TSW",'4100Ref'!$T3,BL$27="TGA",'4100Ref'!$U5,BL$27=" ",'4100Ref'!$A3,BL$27="BSIU",'4100Ref'!$V3,BL$27="safelinc",'4100Ref'!$W3))," ") ->  | BM32: =IF(BM17="Red",(_xlfn.IFS(BM$27=" ",'4100Ref'!$A3,BM$27="01 Loop",'4100Ref'!$F3,BM$27="02 Loop",'4100Ref'!$G3,BM$27="03 Loop",'4100Ref'!$H3,BM$27="04 Loop",'4100Ref'!$I3,BM$27="05 Loop",'4100Ref'!$J3,BM$27="06 Loop",'4100Ref'!$K3,BM$27="07 Loop",'4100Ref'!$L3,BM$27="08 Loop",'4100Ref'!$M3,BM$27="09 Loop",'4100Ref'!$N3,BM$27="10 Loop",'4100Ref'!$O3,BM$27="11 Loop",'4100Ref'!$P3,BM$27="12 Loop",'4100Ref'!$Q3,BM$27="NDU",'4100Ref'!$R3,BM$27="NDUWVoice",'4100Ref'!$S3,BM$27="TSW",'4100Ref'!$T3,BM$27="TGA",'4100Ref'!$U5,BM$27=" ",'4100Ref'!$A3,BM$27="BSIU",'4100Ref'!$V3,BM$27="safelinc",'4100Ref'!$W3))," ") ->  | BN32: =IF(BN17="Red",(_xlfn.IFS(BN$27=" ",'4100Ref'!$A3,BN$27="01 Loop",'4100Ref'!$F3,BN$27="02 Loop",'4100Ref'!$G3,BN$27="03 Loop",'4100Ref'!$H3,BN$27="04 Loop",'4100Ref'!$I3,BN$27="05 Loop",'4100Ref'!$J3,BN$27="06 Loop",'4100Ref'!$K3,BN$27="07 Loop",'4100Ref'!$L3,BN$27="08 Loop",'4100Ref'!$M3,BN$27="09 Loop",'4100Ref'!$N3,BN$27="10 Loop",'4100Ref'!$O3,BN$27="11 Loop",'4100Ref'!$P3,BN$27="12 Loop",'4100Ref'!$Q3,BN$27="NDU",'4100Ref'!$R3,BN$27="NDUWVoice",'4100Ref'!$S3,BN$27="TSW",'4100Ref'!$T3,BN$27="TGA",'4100Ref'!$U5,BN$27=" ",'4100Ref'!$A3,BN$27="BSIU",'4100Ref'!$V3,BN$27="safelinc",'4100Ref'!$W3))," ") ->  | BO32: =IF(BO17="Red",(_xlfn.IFS(BO$27=" ",'4100Ref'!$A3,BO$27="01 Loop",'4100Ref'!$F3,BO$27="02 Loop",'4100Ref'!$G3,BO$27="03 Loop",'4100Ref'!$H3,BO$27="04 Loop",'4100Ref'!$I3,BO$27="05 Loop",'4100Ref'!$J3,BO$27="06 Loop",'4100Ref'!$K3,BO$27="07 Loop",'4100Ref'!$L3,BO$27="08 Loop",'4100Ref'!$M3,BO$27="09 Loop",'4100Ref'!$N3,BO$27="10 Loop",'4100Ref'!$O3,BO$27="11 Loop",'4100Ref'!$P3,BO$27="12 Loop",'4100Ref'!$Q3,BO$27="NDU",'4100Ref'!$R3,BO$27="NDUWVoice",'4100Ref'!$S3,BO$27="TSW",'4100Ref'!$T3,BO$27="TGA",'4100Ref'!$U5,BO$27=" ",'4100Ref'!$A3,BO$27="BSIU",'4100Ref'!$V3,BO$27="safelinc",'4100Ref'!$W3))," ") ->  | BP32: =IF(BP17="Red",(_xlfn.IFS(BP$27=" ",'4100Ref'!$A3,BP$27="01 Loop",'4100Ref'!$F3,BP$27="02 Loop",'4100Ref'!$G3,BP$27="03 Loop",'4100Ref'!$H3,BP$27="04 Loop",'4100Ref'!$I3,BP$27="05 Loop",'4100Ref'!$J3,BP$27="06 Loop",'4100Ref'!$K3,BP$27="07 Loop",'4100Ref'!$L3,BP$27="08 Loop",'4100Ref'!$M3,BP$27="09 Loop",'4100Ref'!$N3,BP$27="10 Loop",'4100Ref'!$O3,BP$27="11 Loop",'4100Ref'!$P3,BP$27="12 Loop",'4100Ref'!$Q3,BP$27="NDU",'4100Ref'!$R3,BP$27="NDUWVoice",'4100Ref'!$S3,BP$27="TSW",'4100Ref'!$T3,BP$27="TGA",'4100Ref'!$U5,BP$27=" ",'4100Ref'!$A3,BP$27="BSIU",'4100Ref'!$V3,BP$27="safelinc",'4100Ref'!$W3))," ") ->  | BQ32: =IF(BQ17="Red",(_xlfn.IFS(BQ$27=" ",'4100Ref'!$A3,BQ$27="01 Loop",'4100Ref'!$F3,BQ$27="02 Loop",'4100Ref'!$G3,BQ$27="03 Loop",'4100Ref'!$H3,BQ$27="04 Loop",'4100Ref'!$I3,BQ$27="05 Loop",'4100Ref'!$J3,BQ$27="06 Loop",'4100Ref'!$K3,BQ$27="07 Loop",'4100Ref'!$L3,BQ$27="08 Loop",'4100Ref'!$M3,BQ$27="09 Loop",'4100Ref'!$N3,BQ$27="10 Loop",'4100Ref'!$O3,BQ$27="11 Loop",'4100Ref'!$P3,BQ$27="12 Loop",'4100Ref'!$Q3,BQ$27="NDU",'4100Ref'!$R3,BQ$27="NDUWVoice",'4100Ref'!$S3,BQ$27="TSW",'4100Ref'!$T3,BQ$27="TGA",'4100Ref'!$U5,BQ$27=" ",'4100Ref'!$A3,BQ$27="BSIU",'4100Ref'!$V3,BQ$27="safelinc",'4100Ref'!$W3))," ") ->  | BR32: =IF(BR17="Red",(_xlfn.IFS(BR$27=" ",'4100Ref'!$A3,BR$27="01 Loop",'4100Ref'!$F3,BR$27="02 Loop",'4100Ref'!$G3,BR$27="03 Loop",'4100Ref'!$H3,BR$27="04 Loop",'4100Ref'!$I3,BR$27="05 Loop",'4100Ref'!$J3,BR$27="06 Loop",'4100Ref'!$K3,BR$27="07 Loop",'4100Ref'!$L3,BR$27="08 Loop",'4100Ref'!$M3,BR$27="09 Loop",'4100Ref'!$N3,BR$27="10 Loop",'4100Ref'!$O3,BR$27="11 Loop",'4100Ref'!$P3,BR$27="12 Loop",'4100Ref'!$Q3,BR$27="NDU",'4100Ref'!$R3,BR$27="NDUWVoice",'4100Ref'!$S3,BR$27="TSW",'4100Ref'!$T3,BR$27="TGA",'4100Ref'!$U5,BR$27=" ",'4100Ref'!$A3,BR$27="BSIU",'4100Ref'!$V3,BR$27="safelinc",'4100Ref'!$W3))," ") ->  | BS32: =IF(BS17="Red",(_xlfn.IFS(BS$27=" ",'4100Ref'!$A3,BS$27="01 Loop",'4100Ref'!$F3,BS$27="02 Loop",'4100Ref'!$G3,BS$27="03 Loop",'4100Ref'!$H3,BS$27="04 Loop",'4100Ref'!$I3,BS$27="05 Loop",'4100Ref'!$J3,BS$27="06 Loop",'4100Ref'!$K3,BS$27="07 Loop",'4100Ref'!$L3,BS$27="08 Loop",'4100Ref'!$M3,BS$27="09 Loop",'4100Ref'!$N3,BS$27="10 Loop",'4100Ref'!$O3,BS$27="11 Loop",'4100Ref'!$P3,BS$27="12 Loop",'4100Ref'!$Q3,BS$27="NDU",'4100Ref'!$R3,BS$27="NDUWVoice",'4100Ref'!$S3,BS$27="TSW",'4100Ref'!$T3,BS$27="TGA",'4100Ref'!$U5,BS$27=" ",'4100Ref'!$A3,BS$27="BSIU",'4100Ref'!$V3,BS$27="safelinc",'4100Ref'!$W3))," ") ->  | BT32: =IF(BT17="Red",(_xlfn.IFS(BT$27=" ",'4100Ref'!$A3,BT$27="01 Loop",'4100Ref'!$F3,BT$27="02 Loop",'4100Ref'!$G3,BT$27="03 Loop",'4100Ref'!$H3,BT$27="04 Loop",'4100Ref'!$I3,BT$27="05 Loop",'4100Ref'!$J3,BT$27="06 Loop",'4100Ref'!$K3,BT$27="07 Loop",'4100Ref'!$L3,BT$27="08 Loop",'4100Ref'!$M3,BT$27="09 Loop",'4100Ref'!$N3,BT$27="10 Loop",'4100Ref'!$O3,BT$27="11 Loop",'4100Ref'!$P3,BT$27="12 Loop",'4100Ref'!$Q3,BT$27="NDU",'4100Ref'!$R3,BT$27="NDUWVoice",'4100Ref'!$S3,BT$27="TSW",'4100Ref'!$T3,BT$27="TGA",'4100Ref'!$U5,BT$27=" ",'4100Ref'!$A3,BT$27="BSIU",'4100Ref'!$V3,BT$27="safelinc",'4100Ref'!$W3))," ") ->  | BU32: =IF(BU17="Red",(_xlfn.IFS(BU$27=" ",'4100Ref'!$A3,BU$27="01 Loop",'4100Ref'!$F3,BU$27="02 Loop",'4100Ref'!$G3,BU$27="03 Loop",'4100Ref'!$H3,BU$27="04 Loop",'4100Ref'!$I3,BU$27="05 Loop",'4100Ref'!$J3,BU$27="06 Loop",'4100Ref'!$K3,BU$27="07 Loop",'4100Ref'!$L3,BU$27="08 Loop",'4100Ref'!$M3,BU$27="09 Loop",'4100Ref'!$N3,BU$27="10 Loop",'4100Ref'!$O3,BU$27="11 Loop",'4100Ref'!$P3,BU$27="12 Loop",'4100Ref'!$Q3,BU$27="NDU",'4100Ref'!$R3,BU$27="NDUWVoice",'4100Ref'!$S3,BU$27="TSW",'4100Ref'!$T3,BU$27="TGA",'4100Ref'!$U5,BU$27=" ",'4100Ref'!$A3,BU$27="BSIU",'4100Ref'!$V3,BU$27="safelinc",'4100Ref'!$W3))," ") ->  | BV32: =IF(BV17="Red",(_xlfn.IFS(BV$27=" ",'4100Ref'!$A3,BV$27="01 Loop",'4100Ref'!$F3,BV$27="02 Loop",'4100Ref'!$G3,BV$27="03 Loop",'4100Ref'!$H3,BV$27="04 Loop",'4100Ref'!$I3,BV$27="05 Loop",'4100Ref'!$J3,BV$27="06 Loop",'4100Ref'!$K3,BV$27="07 Loop",'4100Ref'!$L3,BV$27="08 Loop",'4100Ref'!$M3,BV$27="09 Loop",'4100Ref'!$N3,BV$27="10 Loop",'4100Ref'!$O3,BV$27="11 Loop",'4100Ref'!$P3,BV$27="12 Loop",'4100Ref'!$Q3,BV$27="NDU",'4100Ref'!$R3,BV$27="NDUWVoice",'4100Ref'!$S3,BV$27="TSW",'4100Ref'!$T3,BV$27="TGA",'4100Ref'!$U5,BV$27=" ",'4100Ref'!$A3,BV$27="BSIU",'4100Ref'!$V3,BV$27="safelinc",'4100Ref'!$W3))," ") ->  | BW32: =IF(BW17="Red",(_xlfn.IFS(BW$27=" ",'4100Ref'!$A3,BW$27="01 Loop",'4100Ref'!$F3,BW$27="02 Loop",'4100Ref'!$G3,BW$27="03 Loop",'4100Ref'!$H3,BW$27="04 Loop",'4100Ref'!$I3,BW$27="05 Loop",'4100Ref'!$J3,BW$27="06 Loop",'4100Ref'!$K3,BW$27="07 Loop",'4100Ref'!$L3,BW$27="08 Loop",'4100Ref'!$M3,BW$27="09 Loop",'4100Ref'!$N3,BW$27="10 Loop",'4100Ref'!$O3,BW$27="11 Loop",'4100Ref'!$P3,BW$27="12 Loop",'4100Ref'!$Q3,BW$27="NDU",'4100Ref'!$R3,BW$27="NDUWVoice",'4100Ref'!$S3,BW$27="TSW",'4100Ref'!$T3,BW$27="TGA",'4100Ref'!$U5,BW$27=" ",'4100Ref'!$A3,BW$27="BSIU",'4100Ref'!$V3,BW$27="safelinc",'4100Ref'!$W3))," ") ->  | BX32: =IF(BX17="Red",(_xlfn.IFS(BX$27=" ",'4100Ref'!$A3,BX$27="01 Loop",'4100Ref'!$F3,BX$27="02 Loop",'4100Ref'!$G3,BX$27="03 Loop",'4100Ref'!$H3,BX$27="04 Loop",'4100Ref'!$I3,BX$27="05 Loop",'4100Ref'!$J3,BX$27="06 Loop",'4100Ref'!$K3,BX$27="07 Loop",'4100Ref'!$L3,BX$27="08 Loop",'4100Ref'!$M3,BX$27="09 Loop",'4100Ref'!$N3,BX$27="10 Loop",'4100Ref'!$O3,BX$27="11 Loop",'4100Ref'!$P3,BX$27="12 Loop",'4100Ref'!$Q3,BX$27="NDU",'4100Ref'!$R3,BX$27="NDUWVoice",'4100Ref'!$S3,BX$27="TSW",'4100Ref'!$T3,BX$27="TGA",'4100Ref'!$U5,BX$27=" ",'4100Ref'!$A3,BX$27="BSIU",'4100Ref'!$V3,BX$27="safelinc",'4100Ref'!$W3))," ") ->  | BY32: =IF(BY17="Red",(_xlfn.IFS(BY$27=" ",'4100Ref'!$A3,BY$27="01 Loop",'4100Ref'!$F3,BY$27="02 Loop",'4100Ref'!$G3,BY$27="03 Loop",'4100Ref'!$H3,BY$27="04 Loop",'4100Ref'!$I3,BY$27="05 Loop",'4100Ref'!$J3,BY$27="06 Loop",'4100Ref'!$K3,BY$27="07 Loop",'4100Ref'!$L3,BY$27="08 Loop",'4100Ref'!$M3,BY$27="09 Loop",'4100Ref'!$N3,BY$27="10 Loop",'4100Ref'!$O3,BY$27="11 Loop",'4100Ref'!$P3,BY$27="12 Loop",'4100Ref'!$Q3,BY$27="NDU",'4100Ref'!$R3,BY$27="NDUWVoice",'4100Ref'!$S3,BY$27="TSW",'4100Ref'!$T3,BY$27="TGA",'4100Ref'!$U5,BY$27=" ",'4100Ref'!$A3,BY$27="BSIU",'4100Ref'!$V3,BY$27="safelinc",'4100Ref'!$W3))," ") ->  | BZ32: =IF(BZ17="Red",(_xlfn.IFS(BZ$27=" ",'4100Ref'!$A3,BZ$27="01 Loop",'4100Ref'!$F3,BZ$27="02 Loop",'4100Ref'!$G3,BZ$27="03 Loop",'4100Ref'!$H3,BZ$27="04 Loop",'4100Ref'!$I3,BZ$27="05 Loop",'4100Ref'!$J3,BZ$27="06 Loop",'4100Ref'!$K3,BZ$27="07 Loop",'4100Ref'!$L3,BZ$27="08 Loop",'4100Ref'!$M3,BZ$27="09 Loop",'4100Ref'!$N3,BZ$27="10 Loop",'4100Ref'!$O3,BZ$27="11 Loop",'4100Ref'!$P3,BZ$27="12 Loop",'4100Ref'!$Q3,BZ$27="NDU",'4100Ref'!$R3,BZ$27="NDUWVoice",'4100Ref'!$S3,BZ$27="TSW",'4100Ref'!$T3,BZ$27="TGA",'4100Ref'!$U5,BZ$27=" ",'4100Ref'!$A3,BZ$27="BSIU",'4100Ref'!$V3,BZ$27="safelinc",'4100Ref'!$W3))," ") ->  | CA32: =IF(CA17="Red",(_xlfn.IFS(CA$27=" ",'4100Ref'!$A3,CA$27="01 Loop",'4100Ref'!$F3,CA$27="02 Loop",'4100Ref'!$G3,CA$27="03 Loop",'4100Ref'!$H3,CA$27="04 Loop",'4100Ref'!$I3,CA$27="05 Loop",'4100Ref'!$J3,CA$27="06 Loop",'4100Ref'!$K3,CA$27="07 Loop",'4100Ref'!$L3,CA$27="08 Loop",'4100Ref'!$M3,CA$27="09 Loop",'4100Ref'!$N3,CA$27="10 Loop",'4100Ref'!$O3,CA$27="11 Loop",'4100Ref'!$P3,CA$27="12 Loop",'4100Ref'!$Q3,CA$27="NDU",'4100Ref'!$R3,CA$27="NDUWVoice",'4100Ref'!$S3,CA$27="TSW",'4100Ref'!$T3,CA$27="TGA",'4100Ref'!$U5,CA$27=" ",'4100Ref'!$A3,CA$27="BSIU",'4100Ref'!$V3,CA$27="safelinc",'4100Ref'!$W3))," ") ->  | CB32: =IF(CB17="Red",(_xlfn.IFS(CB$27=" ",'4100Ref'!$A3,CB$27="01 Loop",'4100Ref'!$F3,CB$27="02 Loop",'4100Ref'!$G3,CB$27="03 Loop",'4100Ref'!$H3,CB$27="04 Loop",'4100Ref'!$I3,CB$27="05 Loop",'4100Ref'!$J3,CB$27="06 Loop",'4100Ref'!$K3,CB$27="07 Loop",'4100Ref'!$L3,CB$27="08 Loop",'4100Ref'!$M3,CB$27="09 Loop",'4100Ref'!$N3,CB$27="10 Loop",'4100Ref'!$O3,CB$27="11 Loop",'4100Ref'!$P3,CB$27="12 Loop",'4100Ref'!$Q3,CB$27="NDU",'4100Ref'!$R3,CB$27="NDUWVoice",'4100Ref'!$S3,CB$27="TSW",'4100Ref'!$T3,CB$27="TGA",'4100Ref'!$U5,CB$27=" ",'4100Ref'!$A3,CB$27="BSIU",'4100Ref'!$V3,CB$27="safelinc",'4100Ref'!$W3))," ") ->  | CC32: =IF(CC17="Red",(_xlfn.IFS(CC$27=" ",'4100Ref'!$A3,CC$27="01 Loop",'4100Ref'!$F3,CC$27="02 Loop",'4100Ref'!$G3,CC$27="03 Loop",'4100Ref'!$H3,CC$27="04 Loop",'4100Ref'!$I3,CC$27="05 Loop",'4100Ref'!$J3,CC$27="06 Loop",'4100Ref'!$K3,CC$27="07 Loop",'4100Ref'!$L3,CC$27="08 Loop",'4100Ref'!$M3,CC$27="09 Loop",'4100Ref'!$N3,CC$27="10 Loop",'4100Ref'!$O3,CC$27="11 Loop",'4100Ref'!$P3,CC$27="12 Loop",'4100Ref'!$Q3,CC$27="NDU",'4100Ref'!$R3,CC$27="NDUWVoice",'4100Ref'!$S3,CC$27="TSW",'4100Ref'!$T3,CC$27="TGA",'4100Ref'!$U5,CC$27=" ",'4100Ref'!$A3,CC$27="BSIU",'4100Ref'!$V3,CC$27="safelinc",'4100Ref'!$W3))," ") ->  | CD32: =IF(CD17="Red",(_xlfn.IFS(CD$27=" ",'4100Ref'!$A3,CD$27="01 Loop",'4100Ref'!$F3,CD$27="02 Loop",'4100Ref'!$G3,CD$27="03 Loop",'4100Ref'!$H3,CD$27="04 Loop",'4100Ref'!$I3,CD$27="05 Loop",'4100Ref'!$J3,CD$27="06 Loop",'4100Ref'!$K3,CD$27="07 Loop",'4100Ref'!$L3,CD$27="08 Loop",'4100Ref'!$M3,CD$27="09 Loop",'4100Ref'!$N3,CD$27="10 Loop",'4100Ref'!$O3,CD$27="11 Loop",'4100Ref'!$P3,CD$27="12 Loop",'4100Ref'!$Q3,CD$27="NDU",'4100Ref'!$R3,CD$27="NDUWVoice",'4100Ref'!$S3,CD$27="TSW",'4100Ref'!$T3,CD$27="TGA",'4100Ref'!$U5,CD$27=" ",'4100Ref'!$A3,CD$27="BSIU",'4100Ref'!$V3,CD$27="safelinc",'4100Ref'!$W3))," ") ->  | CE32: =IF(CE17="Red",(_xlfn.IFS(CE$27=" ",'4100Ref'!$A3,CE$27="01 Loop",'4100Ref'!$F3,CE$27="02 Loop",'4100Ref'!$G3,CE$27="03 Loop",'4100Ref'!$H3,CE$27="04 Loop",'4100Ref'!$I3,CE$27="05 Loop",'4100Ref'!$J3,CE$27="06 Loop",'4100Ref'!$K3,CE$27="07 Loop",'4100Ref'!$L3,CE$27="08 Loop",'4100Ref'!$M3,CE$27="09 Loop",'4100Ref'!$N3,CE$27="10 Loop",'4100Ref'!$O3,CE$27="11 Loop",'4100Ref'!$P3,CE$27="12 Loop",'4100Ref'!$Q3,CE$27="NDU",'4100Ref'!$R3,CE$27="NDUWVoice",'4100Ref'!$S3,CE$27="TSW",'4100Ref'!$T3,CE$27="TGA",'4100Ref'!$U5,CE$27=" ",'4100Ref'!$A3,CE$27="BSIU",'4100Ref'!$V3,CE$27="safelinc",'4100Ref'!$W3))," ") ->  | CF32: =IF(CF17="Red",(_xlfn.IFS(CF$27=" ",'4100Ref'!$A3,CF$27="01 Loop",'4100Ref'!$F3,CF$27="02 Loop",'4100Ref'!$G3,CF$27="03 Loop",'4100Ref'!$H3,CF$27="04 Loop",'4100Ref'!$I3,CF$27="05 Loop",'4100Ref'!$J3,CF$27="06 Loop",'4100Ref'!$K3,CF$27="07 Loop",'4100Ref'!$L3,CF$27="08 Loop",'4100Ref'!$M3,CF$27="09 Loop",'4100Ref'!$N3,CF$27="10 Loop",'4100Ref'!$O3,CF$27="11 Loop",'4100Ref'!$P3,CF$27="12 Loop",'4100Ref'!$Q3,CF$27="NDU",'4100Ref'!$R3,CF$27="NDUWVoice",'4100Ref'!$S3,CF$27="TSW",'4100Ref'!$T3,CF$27="TGA",'4100Ref'!$U5,CF$27=" ",'4100Ref'!$A3,CF$27="BSIU",'4100Ref'!$V3,CF$27="safelinc",'4100Ref'!$W3))," ") ->  | CG32: =IF(CG17="Red",(_xlfn.IFS(CG$27=" ",'4100Ref'!$A3,CG$27="01 Loop",'4100Ref'!$F3,CG$27="02 Loop",'4100Ref'!$G3,CG$27="03 Loop",'4100Ref'!$H3,CG$27="04 Loop",'4100Ref'!$I3,CG$27="05 Loop",'4100Ref'!$J3,CG$27="06 Loop",'4100Ref'!$K3,CG$27="07 Loop",'4100Ref'!$L3,CG$27="08 Loop",'4100Ref'!$M3,CG$27="09 Loop",'4100Ref'!$N3,CG$27="10 Loop",'4100Ref'!$O3,CG$27="11 Loop",'4100Ref'!$P3,CG$27="12 Loop",'4100Ref'!$Q3,CG$27="NDU",'4100Ref'!$R3,CG$27="NDUWVoice",'4100Ref'!$S3,CG$27="TSW",'4100Ref'!$T3,CG$27="TGA",'4100Ref'!$U5,CG$27=" ",'4100Ref'!$A3,CG$27="BSIU",'4100Ref'!$V3,CG$27="safelinc",'4100Ref'!$W3))," ") ->  | CH32: =IF(CH17="Red",(_xlfn.IFS(CH$27=" ",'4100Ref'!$A3,CH$27="01 Loop",'4100Ref'!$F3,CH$27="02 Loop",'4100Ref'!$G3,CH$27="03 Loop",'4100Ref'!$H3,CH$27="04 Loop",'4100Ref'!$I3,CH$27="05 Loop",'4100Ref'!$J3,CH$27="06 Loop",'4100Ref'!$K3,CH$27="07 Loop",'4100Ref'!$L3,CH$27="08 Loop",'4100Ref'!$M3,CH$27="09 Loop",'4100Ref'!$N3,CH$27="10 Loop",'4100Ref'!$O3,CH$27="11 Loop",'4100Ref'!$P3,CH$27="12 Loop",'4100Ref'!$Q3,CH$27="NDU",'4100Ref'!$R3,CH$27="NDUWVoice",'4100Ref'!$S3,CH$27="TSW",'4100Ref'!$T3,CH$27="TGA",'4100Ref'!$U5,CH$27=" ",'4100Ref'!$A3,CH$27="BSIU",'4100Ref'!$V3,CH$27="safelinc",'4100Ref'!$W3))," ") ->  | CI32: =IF(CI17="Red",(_xlfn.IFS(CI$27=" ",'4100Ref'!$A3,CI$27="01 Loop",'4100Ref'!$F3,CI$27="02 Loop",'4100Ref'!$G3,CI$27="03 Loop",'4100Ref'!$H3,CI$27="04 Loop",'4100Ref'!$I3,CI$27="05 Loop",'4100Ref'!$J3,CI$27="06 Loop",'4100Ref'!$K3,CI$27="07 Loop",'4100Ref'!$L3,CI$27="08 Loop",'4100Ref'!$M3,CI$27="09 Loop",'4100Ref'!$N3,CI$27="10 Loop",'4100Ref'!$O3,CI$27="11 Loop",'4100Ref'!$P3,CI$27="12 Loop",'4100Ref'!$Q3,CI$27="NDU",'4100Ref'!$R3,CI$27="NDUWVoice",'4100Ref'!$S3,CI$27="TSW",'4100Ref'!$T3,CI$27="TGA",'4100Ref'!$U5,CI$27=" ",'4100Ref'!$A3,CI$27="BSIU",'4100Ref'!$V3,CI$27="safelinc",'4100Ref'!$W3))," ") ->  | CJ32: =IF(CJ17="Red",(_xlfn.IFS(CJ$27=" ",'4100Ref'!$A3,CJ$27="01 Loop",'4100Ref'!$F3,CJ$27="02 Loop",'4100Ref'!$G3,CJ$27="03 Loop",'4100Ref'!$H3,CJ$27="04 Loop",'4100Ref'!$I3,CJ$27="05 Loop",'4100Ref'!$J3,CJ$27="06 Loop",'4100Ref'!$K3,CJ$27="07 Loop",'4100Ref'!$L3,CJ$27="08 Loop",'4100Ref'!$M3,CJ$27="09 Loop",'4100Ref'!$N3,CJ$27="10 Loop",'4100Ref'!$O3,CJ$27="11 Loop",'4100Ref'!$P3,CJ$27="12 Loop",'4100Ref'!$Q3,CJ$27="NDU",'4100Ref'!$R3,CJ$27="NDUWVoice",'4100Ref'!$S3,CJ$27="TSW",'4100Ref'!$T3,CJ$27="TGA",'4100Ref'!$U5,CJ$27=" ",'4100Ref'!$A3,CJ$27="BSIU",'4100Ref'!$V3,CJ$27="safelinc",'4100Ref'!$W3))," ") ->  | CK32: =IF(CK17="Red",(_xlfn.IFS(CK$27=" ",'4100Ref'!$A3,CK$27="01 Loop",'4100Ref'!$F3,CK$27="02 Loop",'4100Ref'!$G3,CK$27="03 Loop",'4100Ref'!$H3,CK$27="04 Loop",'4100Ref'!$I3,CK$27="05 Loop",'4100Ref'!$J3,CK$27="06 Loop",'4100Ref'!$K3,CK$27="07 Loop",'4100Ref'!$L3,CK$27="08 Loop",'4100Ref'!$M3,CK$27="09 Loop",'4100Ref'!$N3,CK$27="10 Loop",'4100Ref'!$O3,CK$27="11 Loop",'4100Ref'!$P3,CK$27="12 Loop",'4100Ref'!$Q3,CK$27="NDU",'4100Ref'!$R3,CK$27="NDUWVoice",'4100Ref'!$S3,CK$27="TSW",'4100Ref'!$T3,CK$27="TGA",'4100Ref'!$U5,CK$27=" ",'4100Ref'!$A3,CK$27="BSIU",'4100Ref'!$V3,CK$27="safelinc",'4100Ref'!$W3))," ") ->  | CL32: =IF(CL17="Red",(_xlfn.IFS(CL$27=" ",'4100Ref'!$A3,CL$27="01 Loop",'4100Ref'!$F3,CL$27="02 Loop",'4100Ref'!$G3,CL$27="03 Loop",'4100Ref'!$H3,CL$27="04 Loop",'4100Ref'!$I3,CL$27="05 Loop",'4100Ref'!$J3,CL$27="06 Loop",'4100Ref'!$K3,CL$27="07 Loop",'4100Ref'!$L3,CL$27="08 Loop",'4100Ref'!$M3,CL$27="09 Loop",'4100Ref'!$N3,CL$27="10 Loop",'4100Ref'!$O3,CL$27="11 Loop",'4100Ref'!$P3,CL$27="12 Loop",'4100Ref'!$Q3,CL$27="NDU",'4100Ref'!$R3,CL$27="NDUWVoice",'4100Ref'!$S3,CL$27="TSW",'4100Ref'!$T3,CL$27="TGA",'4100Ref'!$U5,CL$27=" ",'4100Ref'!$A3,CL$27="BSIU",'4100Ref'!$V3,CL$27="safelinc",'4100Ref'!$W3))," ") ->  | CM32: =IF(CM17="Red",(_xlfn.IFS(CM$27=" ",'4100Ref'!$A3,CM$27="01 Loop",'4100Ref'!$F3,CM$27="02 Loop",'4100Ref'!$G3,CM$27="03 Loop",'4100Ref'!$H3,CM$27="04 Loop",'4100Ref'!$I3,CM$27="05 Loop",'4100Ref'!$J3,CM$27="06 Loop",'4100Ref'!$K3,CM$27="07 Loop",'4100Ref'!$L3,CM$27="08 Loop",'4100Ref'!$M3,CM$27="09 Loop",'4100Ref'!$N3,CM$27="10 Loop",'4100Ref'!$O3,CM$27="11 Loop",'4100Ref'!$P3,CM$27="12 Loop",'4100Ref'!$Q3,CM$27="NDU",'4100Ref'!$R3,CM$27="NDUWVoice",'4100Ref'!$S3,CM$27="TSW",'4100Ref'!$T3,CM$27="TGA",'4100Ref'!$U5,CM$27=" ",'4100Ref'!$A3,CM$27="BSIU",'4100Ref'!$V3,CM$27="safelinc",'4100Ref'!$W3))," ") ->  | CN32: =IF(CN17="Red",(_xlfn.IFS(CN$27=" ",'4100Ref'!$A3,CN$27="01 Loop",'4100Ref'!$F3,CN$27="02 Loop",'4100Ref'!$G3,CN$27="03 Loop",'4100Ref'!$H3,CN$27="04 Loop",'4100Ref'!$I3,CN$27="05 Loop",'4100Ref'!$J3,CN$27="06 Loop",'4100Ref'!$K3,CN$27="07 Loop",'4100Ref'!$L3,CN$27="08 Loop",'4100Ref'!$M3,CN$27="09 Loop",'4100Ref'!$N3,CN$27="10 Loop",'4100Ref'!$O3,CN$27="11 Loop",'4100Ref'!$P3,CN$27="12 Loop",'4100Ref'!$Q3,CN$27="NDU",'4100Ref'!$R3,CN$27="NDUWVoice",'4100Ref'!$S3,CN$27="TSW",'4100Ref'!$T3,CN$27="TGA",'4100Ref'!$U5,CN$27=" ",'4100Ref'!$A3,CN$27="BSIU",'4100Ref'!$V3,CN$27="safelinc",'4100Ref'!$W3))," ") ->  | CO32: =IF(CO17="Red",(_xlfn.IFS(CO$27=" ",'4100Ref'!$A3,CO$27="01 Loop",'4100Ref'!$F3,CO$27="02 Loop",'4100Ref'!$G3,CO$27="03 Loop",'4100Ref'!$H3,CO$27="04 Loop",'4100Ref'!$I3,CO$27="05 Loop",'4100Ref'!$J3,CO$27="06 Loop",'4100Ref'!$K3,CO$27="07 Loop",'4100Ref'!$L3,CO$27="08 Loop",'4100Ref'!$M3,CO$27="09 Loop",'4100Ref'!$N3,CO$27="10 Loop",'4100Ref'!$O3,CO$27="11 Loop",'4100Ref'!$P3,CO$27="12 Loop",'4100Ref'!$Q3,CO$27="NDU",'4100Ref'!$R3,CO$27="NDUWVoice",'4100Ref'!$S3,CO$27="TSW",'4100Ref'!$T3,CO$27="TGA",'4100Ref'!$U5,CO$27=" ",'4100Ref'!$A3,CO$27="BSIU",'4100Ref'!$V3,CO$27="safelinc",'4100Ref'!$W3))," ") ->  | CP32: =IF(CP17="Red",(_xlfn.IFS(CP$27=" ",'4100Ref'!$A3,CP$27="01 Loop",'4100Ref'!$F3,CP$27="02 Loop",'4100Ref'!$G3,CP$27="03 Loop",'4100Ref'!$H3,CP$27="04 Loop",'4100Ref'!$I3,CP$27="05 Loop",'4100Ref'!$J3,CP$27="06 Loop",'4100Ref'!$K3,CP$27="07 Loop",'4100Ref'!$L3,CP$27="08 Loop",'4100Ref'!$M3,CP$27="09 Loop",'4100Ref'!$N3,CP$27="10 Loop",'4100Ref'!$O3,CP$27="11 Loop",'4100Ref'!$P3,CP$27="12 Loop",'4100Ref'!$Q3,CP$27="NDU",'4100Ref'!$R3,CP$27="NDUWVoice",'4100Ref'!$S3,CP$27="TSW",'4100Ref'!$T3,CP$27="TGA",'4100Ref'!$U5,CP$27=" ",'4100Ref'!$A3,CP$27="BSIU",'4100Ref'!$V3,CP$27="safelinc",'4100Ref'!$W3))," ") ->  | CQ32: =IF(CQ17="Red",(_xlfn.IFS(CQ$27=" ",'4100Ref'!$A3,CQ$27="01 Loop",'4100Ref'!$F3,CQ$27="02 Loop",'4100Ref'!$G3,CQ$27="03 Loop",'4100Ref'!$H3,CQ$27="04 Loop",'4100Ref'!$I3,CQ$27="05 Loop",'4100Ref'!$J3,CQ$27="06 Loop",'4100Ref'!$K3,CQ$27="07 Loop",'4100Ref'!$L3,CQ$27="08 Loop",'4100Ref'!$M3,CQ$27="09 Loop",'4100Ref'!$N3,CQ$27="10 Loop",'4100Ref'!$O3,CQ$27="11 Loop",'4100Ref'!$P3,CQ$27="12 Loop",'4100Ref'!$Q3,CQ$27="NDU",'4100Ref'!$R3,CQ$27="NDUWVoice",'4100Ref'!$S3,CQ$27="TSW",'4100Ref'!$T3,CQ$27="TGA",'4100Ref'!$U5,CQ$27=" ",'4100Ref'!$A3,CQ$27="BSIU",'4100Ref'!$V3,CQ$27="safelinc",'4100Ref'!$W3))," ") ->  | CR32: =IF(CR17="Red",(_xlfn.IFS(CR$27=" ",'4100Ref'!$A3,CR$27="01 Loop",'4100Ref'!$F3,CR$27="02 Loop",'4100Ref'!$G3,CR$27="03 Loop",'4100Ref'!$H3,CR$27="04 Loop",'4100Ref'!$I3,CR$27="05 Loop",'4100Ref'!$J3,CR$27="06 Loop",'4100Ref'!$K3,CR$27="07 Loop",'4100Ref'!$L3,CR$27="08 Loop",'4100Ref'!$M3,CR$27="09 Loop",'4100Ref'!$N3,CR$27="10 Loop",'4100Ref'!$O3,CR$27="11 Loop",'4100Ref'!$P3,CR$27="12 Loop",'4100Ref'!$Q3,CR$27="NDU",'4100Ref'!$R3,CR$27="NDUWVoice",'4100Ref'!$S3,CR$27="TSW",'4100Ref'!$T3,CR$27="TGA",'4100Ref'!$U5,CR$27=" ",'4100Ref'!$A3,CR$27="BSIU",'4100Ref'!$V3,CR$27="safelinc",'4100Ref'!$W3))," ") ->  | CS32: =IF(CS17="Red",(_xlfn.IFS(CS$27=" ",'4100Ref'!$A3,CS$27="01 Loop",'4100Ref'!$F3,CS$27="02 Loop",'4100Ref'!$G3,CS$27="03 Loop",'4100Ref'!$H3,CS$27="04 Loop",'4100Ref'!$I3,CS$27="05 Loop",'4100Ref'!$J3,CS$27="06 Loop",'4100Ref'!$K3,CS$27="07 Loop",'4100Ref'!$L3,CS$27="08 Loop",'4100Ref'!$M3,CS$27="09 Loop",'4100Ref'!$N3,CS$27="10 Loop",'4100Ref'!$O3,CS$27="11 Loop",'4100Ref'!$P3,CS$27="12 Loop",'4100Ref'!$Q3,CS$27="NDU",'4100Ref'!$R3,CS$27="NDUWVoice",'4100Ref'!$S3,CS$27="TSW",'4100Ref'!$T3,CS$27="TGA",'4100Ref'!$U5,CS$27=" ",'4100Ref'!$A3,CS$27="BSIU",'4100Ref'!$V3,CS$27="safelinc",'4100Ref'!$W3))," ") ->  | CT32: =IF(CT17="Red",(_xlfn.IFS(CT$27=" ",'4100Ref'!$A3,CT$27="01 Loop",'4100Ref'!$F3,CT$27="02 Loop",'4100Ref'!$G3,CT$27="03 Loop",'4100Ref'!$H3,CT$27="04 Loop",'4100Ref'!$I3,CT$27="05 Loop",'4100Ref'!$J3,CT$27="06 Loop",'4100Ref'!$K3,CT$27="07 Loop",'4100Ref'!$L3,CT$27="08 Loop",'4100Ref'!$M3,CT$27="09 Loop",'4100Ref'!$N3,CT$27="10 Loop",'4100Ref'!$O3,CT$27="11 Loop",'4100Ref'!$P3,CT$27="12 Loop",'4100Ref'!$Q3,CT$27="NDU",'4100Ref'!$R3,CT$27="NDUWVoice",'4100Ref'!$S3,CT$27="TSW",'4100Ref'!$T3,CT$27="TGA",'4100Ref'!$U5,CT$27=" ",'4100Ref'!$A3,CT$27="BSIU",'4100Ref'!$V3,CT$27="safelinc",'4100Ref'!$W3))," ") ->  | CU32: =IF(CU17="Red",(_xlfn.IFS(CU$27=" ",'4100Ref'!$A3,CU$27="01 Loop",'4100Ref'!$F3,CU$27="02 Loop",'4100Ref'!$G3,CU$27="03 Loop",'4100Ref'!$H3,CU$27="04 Loop",'4100Ref'!$I3,CU$27="05 Loop",'4100Ref'!$J3,CU$27="06 Loop",'4100Ref'!$K3,CU$27="07 Loop",'4100Ref'!$L3,CU$27="08 Loop",'4100Ref'!$M3,CU$27="09 Loop",'4100Ref'!$N3,CU$27="10 Loop",'4100Ref'!$O3,CU$27="11 Loop",'4100Ref'!$P3,CU$27="12 Loop",'4100Ref'!$Q3,CU$27="NDU",'4100Ref'!$R3,CU$27="NDUWVoice",'4100Ref'!$S3,CU$27="TSW",'4100Ref'!$T3,CU$27="TGA",'4100Ref'!$U5,CU$27=" ",'4100Ref'!$A3,CU$27="BSIU",'4100Ref'!$V3,CU$27="safelinc",'4100Ref'!$W3))," ") ->  | CV32: =IF(CV17="Red",(_xlfn.IFS(CV$27=" ",'4100Ref'!$A3,CV$27="01 Loop",'4100Ref'!$F3,CV$27="02 Loop",'4100Ref'!$G3,CV$27="03 Loop",'4100Ref'!$H3,CV$27="04 Loop",'4100Ref'!$I3,CV$27="05 Loop",'4100Ref'!$J3,CV$27="06 Loop",'4100Ref'!$K3,CV$27="07 Loop",'4100Ref'!$L3,CV$27="08 Loop",'4100Ref'!$M3,CV$27="09 Loop",'4100Ref'!$N3,CV$27="10 Loop",'4100Ref'!$O3,CV$27="11 Loop",'4100Ref'!$P3,CV$27="12 Loop",'4100Ref'!$Q3,CV$27="NDU",'4100Ref'!$R3,CV$27="NDUWVoice",'4100Ref'!$S3,CV$27="TSW",'4100Ref'!$T3,CV$27="TGA",'4100Ref'!$U5,CV$27=" ",'4100Ref'!$A3,CV$27="BSIU",'4100Ref'!$V3,CV$27="safelinc",'4100Ref'!$W3))," ") ->  | CW32: =IF(CW17="Red",(_xlfn.IFS(CW$27=" ",'4100Ref'!$A3,CW$27="01 Loop",'4100Ref'!$F3,CW$27="02 Loop",'4100Ref'!$G3,CW$27="03 Loop",'4100Ref'!$H3,CW$27="04 Loop",'4100Ref'!$I3,CW$27="05 Loop",'4100Ref'!$J3,CW$27="06 Loop",'4100Ref'!$K3,CW$27="07 Loop",'4100Ref'!$L3,CW$27="08 Loop",'4100Ref'!$M3,CW$27="09 Loop",'4100Ref'!$N3,CW$27="10 Loop",'4100Ref'!$O3,CW$27="11 Loop",'4100Ref'!$P3,CW$27="12 Loop",'4100Ref'!$Q3,CW$27="NDU",'4100Ref'!$R3,CW$27="NDUWVoice",'4100Ref'!$S3,CW$27="TSW",'4100Ref'!$T3,CW$27="TGA",'4100Ref'!$U5,CW$27=" ",'4100Ref'!$A3,CW$27="BSIU",'4100Ref'!$V3,CW$27="safelinc",'4100Ref'!$W3))," ") ->  | CX32: =IF(CX17="Red",(_xlfn.IFS(CX$27=" ",'4100Ref'!$A3,CX$27="01 Loop",'4100Ref'!$F3,CX$27="02 Loop",'4100Ref'!$G3,CX$27="03 Loop",'4100Ref'!$H3,CX$27="04 Loop",'4100Ref'!$I3,CX$27="05 Loop",'4100Ref'!$J3,CX$27="06 Loop",'4100Ref'!$K3,CX$27="07 Loop",'4100Ref'!$L3,CX$27="08 Loop",'4100Ref'!$M3,CX$27="09 Loop",'4100Ref'!$N3,CX$27="10 Loop",'4100Ref'!$O3,CX$27="11 Loop",'4100Ref'!$P3,CX$27="12 Loop",'4100Ref'!$Q3,CX$27="NDU",'4100Ref'!$R3,CX$27="NDUWVoice",'4100Ref'!$S3,CX$27="TSW",'4100Ref'!$T3,CX$27="TGA",'4100Ref'!$U5,CX$27=" ",'4100Ref'!$A3,CX$27="BSIU",'4100Ref'!$V3,CX$27="safelinc",'4100Ref'!$W3))," ") ->  | CY32: =IF(CY17="Red",(_xlfn.IFS(CY$27=" ",'4100Ref'!$A3,CY$27="01 Loop",'4100Ref'!$F3,CY$27="02 Loop",'4100Ref'!$G3,CY$27="03 Loop",'4100Ref'!$H3,CY$27="04 Loop",'4100Ref'!$I3,CY$27="05 Loop",'4100Ref'!$J3,CY$27="06 Loop",'4100Ref'!$K3,CY$27="07 Loop",'4100Ref'!$L3,CY$27="08 Loop",'4100Ref'!$M3,CY$27="09 Loop",'4100Ref'!$N3,CY$27="10 Loop",'4100Ref'!$O3,CY$27="11 Loop",'4100Ref'!$P3,CY$27="12 Loop",'4100Ref'!$Q3,CY$27="NDU",'4100Ref'!$R3,CY$27="NDUWVoice",'4100Ref'!$S3,CY$27="TSW",'4100Ref'!$T3,CY$27="TGA",'4100Ref'!$U5,CY$27=" ",'4100Ref'!$A3,CY$27="BSIU",'4100Ref'!$V3,CY$27="safelinc",'4100Ref'!$W3))," ") ->  | CZ32: =IF(CZ17="Red",(_xlfn.IFS(CZ$27=" ",'4100Ref'!$A3,CZ$27="01 Loop",'4100Ref'!$F3,CZ$27="02 Loop",'4100Ref'!$G3,CZ$27="03 Loop",'4100Ref'!$H3,CZ$27="04 Loop",'4100Ref'!$I3,CZ$27="05 Loop",'4100Ref'!$J3,CZ$27="06 Loop",'4100Ref'!$K3,CZ$27="07 Loop",'4100Ref'!$L3,CZ$27="08 Loop",'4100Ref'!$M3,CZ$27="09 Loop",'4100Ref'!$N3,CZ$27="10 Loop",'4100Ref'!$O3,CZ$27="11 Loop",'4100Ref'!$P3,CZ$27="12 Loop",'4100Ref'!$Q3,CZ$27="NDU",'4100Ref'!$R3,CZ$27="NDUWVoice",'4100Ref'!$S3,CZ$27="TSW",'4100Ref'!$T3,CZ$27="TGA",'4100Ref'!$U5,CZ$27=" ",'4100Ref'!$A3,CZ$27="BSIU",'4100Ref'!$V3,CZ$27="safelinc",'4100Ref'!$W3))," ") ->  | DA32: =IF(DA17="Red",(_xlfn.IFS(DA$27=" ",'4100Ref'!$A3,DA$27="01 Loop",'4100Ref'!$F3,DA$27="02 Loop",'4100Ref'!$G3,DA$27="03 Loop",'4100Ref'!$H3,DA$27="04 Loop",'4100Ref'!$I3,DA$27="05 Loop",'4100Ref'!$J3,DA$27="06 Loop",'4100Ref'!$K3,DA$27="07 Loop",'4100Ref'!$L3,DA$27="08 Loop",'4100Ref'!$M3,DA$27="09 Loop",'4100Ref'!$N3,DA$27="10 Loop",'4100Ref'!$O3,DA$27="11 Loop",'4100Ref'!$P3,DA$27="12 Loop",'4100Ref'!$Q3,DA$27="NDU",'4100Ref'!$R3,DA$27="NDUWVoice",'4100Ref'!$S3,DA$27="TSW",'4100Ref'!$T3,DA$27="TGA",'4100Ref'!$U5,DA$27=" ",'4100Ref'!$A3,DA$27="BSIU",'4100Ref'!$V3,DA$27="safelinc",'4100Ref'!$W3))," ") ->  | DB32: =IF(DB17="Red",(_xlfn.IFS(DB$27=" ",'4100Ref'!$A3,DB$27="01 Loop",'4100Ref'!$F3,DB$27="02 Loop",'4100Ref'!$G3,DB$27="03 Loop",'4100Ref'!$H3,DB$27="04 Loop",'4100Ref'!$I3,DB$27="05 Loop",'4100Ref'!$J3,DB$27="06 Loop",'4100Ref'!$K3,DB$27="07 Loop",'4100Ref'!$L3,DB$27="08 Loop",'4100Ref'!$M3,DB$27="09 Loop",'4100Ref'!$N3,DB$27="10 Loop",'4100Ref'!$O3,DB$27="11 Loop",'4100Ref'!$P3,DB$27="12 Loop",'4100Ref'!$Q3,DB$27="NDU",'4100Ref'!$R3,DB$27="NDUWVoice",'4100Ref'!$S3,DB$27="TSW",'4100Ref'!$T3,DB$27="TGA",'4100Ref'!$U5,DB$27=" ",'4100Ref'!$A3,DB$27="BSIU",'4100Ref'!$V3,DB$27="safelinc",'4100Ref'!$W3))," ") ->  | DC32: =IF(DC17="Red",(_xlfn.IFS(DC$27=" ",'4100Ref'!$A3,DC$27="01 Loop",'4100Ref'!$F3,DC$27="02 Loop",'4100Ref'!$G3,DC$27="03 Loop",'4100Ref'!$H3,DC$27="04 Loop",'4100Ref'!$I3,DC$27="05 Loop",'4100Ref'!$J3,DC$27="06 Loop",'4100Ref'!$K3,DC$27="07 Loop",'4100Ref'!$L3,DC$27="08 Loop",'4100Ref'!$M3,DC$27="09 Loop",'4100Ref'!$N3,DC$27="10 Loop",'4100Ref'!$O3,DC$27="11 Loop",'4100Ref'!$P3,DC$27="12 Loop",'4100Ref'!$Q3,DC$27="NDU",'4100Ref'!$R3,DC$27="NDUWVoice",'4100Ref'!$S3,DC$27="TSW",'4100Ref'!$T3,DC$27="TGA",'4100Ref'!$U5,DC$27=" ",'4100Ref'!$A3,DC$27="BSIU",'4100Ref'!$V3,DC$27="safelinc",'4100Ref'!$W3))," ") ->  | DG32: 3 BAY BB/GDOOR/DRESS PNL RED | DH32: 2975-9443
B33: =+B32+1 -> 2 | C33: =+DH33 -> 2975-9446 | D33: =+DG33 -> 3 BAY BB/GDOOR/DRESS PNL PLAT | G33: =IF(FQQ4100ESTotalSetting="Total All Groups",SUM(I33:DB33),SUMIF($I$28:$DB$28,FQQ4100ESTotalSetting,I33:DB33)) -> 0 | I33: =IF(I17="Red"," ",(_xlfn.IFS(I$27=" ",'4100Ref'!$A3,I$27="01 Loop",'4100Ref'!$F3,I$27="02 Loop",'4100Ref'!$G3,I$27="03 Loop",'4100Ref'!$H3,I$27="04 Loop",'4100Ref'!$I3,I$27="05 Loop",'4100Ref'!$J3,I$27="06 Loop",'4100Ref'!$K3,I$27="07 Loop",'4100Ref'!$L3,I$27="08 Loop",'4100Ref'!$M3,I$27="09 Loop",'4100Ref'!$N3,I$27="10 Loop",'4100Ref'!$O3,I$27="11 Loop",'4100Ref'!$P3,I$27="12 Loop",'4100Ref'!$Q3,I$27="NDU",'4100Ref'!$R3,I$27="NDUWVoice",'4100Ref'!$S3,I$27="TSW",'4100Ref'!$T3,I$27="TGA",'4100Ref'!$U3,I$27=" ",'4100Ref'!$A3,I$27="BSIU",'4100Ref'!$V3,I$27="safelinc",'4100Ref'!$W4))) -> 0 | J33: =IF(J17="Red"," ",(_xlfn.IFS(J$27=" ",'4100Ref'!$A3,J$27="01 Loop",'4100Ref'!$F3,J$27="02 Loop",'4100Ref'!$G3,J$27="03 Loop",'4100Ref'!$H3,J$27="04 Loop",'4100Ref'!$I3,J$27="05 Loop",'4100Ref'!$J3,J$27="06 Loop",'4100Ref'!$K3,J$27="07 Loop",'4100Ref'!$L3,J$27="08 Loop",'4100Ref'!$M3,J$27="09 Loop",'4100Ref'!$N3,J$27="10 Loop",'4100Ref'!$O3,J$27="11 Loop",'4100Ref'!$P3,J$27="12 Loop",'4100Ref'!$Q3,J$27="NDU",'4100Ref'!$R3,J$27="NDUWVoice",'4100Ref'!$S3,J$27="TSW",'4100Ref'!$T3,J$27="TGA",'4100Ref'!$U3,J$27=" ",'4100Ref'!$A3,J$27="BSIU",'4100Ref'!$V3,J$27="safelinc",'4100Ref'!$W4))) -> 0 | K33: =IF(K17="Red"," ",(_xlfn.IFS(K$27=" ",'4100Ref'!$A3,K$27="01 Loop",'4100Ref'!$F3,K$27="02 Loop",'4100Ref'!$G3,K$27="03 Loop",'4100Ref'!$H3,K$27="04 Loop",'4100Ref'!$I3,K$27="05 Loop",'4100Ref'!$J3,K$27="06 Loop",'4100Ref'!$K3,K$27="07 Loop",'4100Ref'!$L3,K$27="08 Loop",'4100Ref'!$M3,K$27="09 Loop",'4100Ref'!$N3,K$27="10 Loop",'4100Ref'!$O3,K$27="11 Loop",'4100Ref'!$P3,K$27="12 Loop",'4100Ref'!$Q3,K$27="NDU",'4100Ref'!$R3,K$27="NDUWVoice",'4100Ref'!$S3,K$27="TSW",'4100Ref'!$T3,K$27="TGA",'4100Ref'!$U3,K$27=" ",'4100Ref'!$A3,K$27="BSIU",'4100Ref'!$V3,K$27="safelinc",'4100Ref'!$W4))) -> 0 | L33: =IF(L17="Red"," ",(_xlfn.IFS(L$27=" ",'4100Ref'!$A3,L$27="01 Loop",'4100Ref'!$F3,L$27="02 Loop",'4100Ref'!$G3,L$27="03 Loop",'4100Ref'!$H3,L$27="04 Loop",'4100Ref'!$I3,L$27="05 Loop",'4100Ref'!$J3,L$27="06 Loop",'4100Ref'!$K3,L$27="07 Loop",'4100Ref'!$L3,L$27="08 Loop",'4100Ref'!$M3,L$27="09 Loop",'4100Ref'!$N3,L$27="10 Loop",'4100Ref'!$O3,L$27="11 Loop",'4100Ref'!$P3,L$27="12 Loop",'4100Ref'!$Q3,L$27="NDU",'4100Ref'!$R3,L$27="NDUWVoice",'4100Ref'!$S3,L$27="TSW",'4100Ref'!$T3,L$27="TGA",'4100Ref'!$U3,L$27=" ",'4100Ref'!$A3,L$27="BSIU",'4100Ref'!$V3,L$27="safelinc",'4100Ref'!$W4))) -> 0 | M33: =IF(M17="Red"," ",(_xlfn.IFS(M$27=" ",'4100Ref'!$A3,M$27="01 Loop",'4100Ref'!$F3,M$27="02 Loop",'4100Ref'!$G3,M$27="03 Loop",'4100Ref'!$H3,M$27="04 Loop",'4100Ref'!$I3,M$27="05 Loop",'4100Ref'!$J3,M$27="06 Loop",'4100Ref'!$K3,M$27="07 Loop",'4100Ref'!$L3,M$27="08 Loop",'4100Ref'!$M3,M$27="09 Loop",'4100Ref'!$N3,M$27="10 Loop",'4100Ref'!$O3,M$27="11 Loop",'4100Ref'!$P3,M$27="12 Loop",'4100Ref'!$Q3,M$27="NDU",'4100Ref'!$R3,M$27="NDUWVoice",'4100Ref'!$S3,M$27="TSW",'4100Ref'!$T3,M$27="TGA",'4100Ref'!$U3,M$27=" ",'4100Ref'!$A3,M$27="BSIU",'4100Ref'!$V3,M$27="safelinc",'4100Ref'!$W4))) -> 0 | N33: =IF(N17="Red"," ",(_xlfn.IFS(N$27=" ",'4100Ref'!$A3,N$27="01 Loop",'4100Ref'!$F3,N$27="02 Loop",'4100Ref'!$G3,N$27="03 Loop",'4100Ref'!$H3,N$27="04 Loop",'4100Ref'!$I3,N$27="05 Loop",'4100Ref'!$J3,N$27="06 Loop",'4100Ref'!$K3,N$27="07 Loop",'4100Ref'!$L3,N$27="08 Loop",'4100Ref'!$M3,N$27="09 Loop",'4100Ref'!$N3,N$27="10 Loop",'4100Ref'!$O3,N$27="11 Loop",'4100Ref'!$P3,N$27="12 Loop",'4100Ref'!$Q3,N$27="NDU",'4100Ref'!$R3,N$27="NDUWVoice",'4100Ref'!$S3,N$27="TSW",'4100Ref'!$T3,N$27="TGA",'4100Ref'!$U3,N$27=" ",'4100Ref'!$A3,N$27="BSIU",'4100Ref'!$V3,N$27="safelinc",'4100Ref'!$W4))) -> 0 | O33: =IF(O17="Red"," ",(_xlfn.IFS(O$27=" ",'4100Ref'!$A3,O$27="01 Loop",'4100Ref'!$F3,O$27="02 Loop",'4100Ref'!$G3,O$27="03 Loop",'4100Ref'!$H3,O$27="04 Loop",'4100Ref'!$I3,O$27="05 Loop",'4100Ref'!$J3,O$27="06 Loop",'4100Ref'!$K3,O$27="07 Loop",'4100Ref'!$L3,O$27="08 Loop",'4100Ref'!$M3,O$27="09 Loop",'4100Ref'!$N3,O$27="10 Loop",'4100Ref'!$O3,O$27="11 Loop",'4100Ref'!$P3,O$27="12 Loop",'4100Ref'!$Q3,O$27="NDU",'4100Ref'!$R3,O$27="NDUWVoice",'4100Ref'!$S3,O$27="TSW",'4100Ref'!$T3,O$27="TGA",'4100Ref'!$U3,O$27=" ",'4100Ref'!$A3,O$27="BSIU",'4100Ref'!$V3,O$27="safelinc",'4100Ref'!$W4))) -> 0 | P33: =IF(P17="Red"," ",(_xlfn.IFS(P$27=" ",'4100Ref'!$A3,P$27="01 Loop",'4100Ref'!$F3,P$27="02 Loop",'4100Ref'!$G3,P$27="03 Loop",'4100Ref'!$H3,P$27="04 Loop",'4100Ref'!$I3,P$27="05 Loop",'4100Ref'!$J3,P$27="06 Loop",'4100Ref'!$K3,P$27="07 Loop",'4100Ref'!$L3,P$27="08 Loop",'4100Ref'!$M3,P$27="09 Loop",'4100Ref'!$N3,P$27="10 Loop",'4100Ref'!$O3,P$27="11 Loop",'4100Ref'!$P3,P$27="12 Loop",'4100Ref'!$Q3,P$27="NDU",'4100Ref'!$R3,P$27="NDUWVoice",'4100Ref'!$S3,P$27="TSW",'4100Ref'!$T3,P$27="TGA",'4100Ref'!$U3,P$27=" ",'4100Ref'!$A3,P$27="BSIU",'4100Ref'!$V3,P$27="safelinc",'4100Ref'!$W4))) -> 0 | Q33: =IF(Q17="Red"," ",(_xlfn.IFS(Q$27=" ",'4100Ref'!$A3,Q$27="01 Loop",'4100Ref'!$F3,Q$27="02 Loop",'4100Ref'!$G3,Q$27="03 Loop",'4100Ref'!$H3,Q$27="04 Loop",'4100Ref'!$I3,Q$27="05 Loop",'4100Ref'!$J3,Q$27="06 Loop",'4100Ref'!$K3,Q$27="07 Loop",'4100Ref'!$L3,Q$27="08 Loop",'4100Ref'!$M3,Q$27="09 Loop",'4100Ref'!$N3,Q$27="10 Loop",'4100Ref'!$O3,Q$27="11 Loop",'4100Ref'!$P3,Q$27="12 Loop",'4100Ref'!$Q3,Q$27="NDU",'4100Ref'!$R3,Q$27="NDUWVoice",'4100Ref'!$S3,Q$27="TSW",'4100Ref'!$T3,Q$27="TGA",'4100Ref'!$U3,Q$27=" ",'4100Ref'!$A3,Q$27="BSIU",'4100Ref'!$V3,Q$27="safelinc",'4100Ref'!$W4))) -> 0 | R33: =IF(R17="Red"," ",(_xlfn.IFS(R$27=" ",'4100Ref'!$A3,R$27="01 Loop",'4100Ref'!$F3,R$27="02 Loop",'4100Ref'!$G3,R$27="03 Loop",'4100Ref'!$H3,R$27="04 Loop",'4100Ref'!$I3,R$27="05 Loop",'4100Ref'!$J3,R$27="06 Loop",'4100Ref'!$K3,R$27="07 Loop",'4100Ref'!$L3,R$27="08 Loop",'4100Ref'!$M3,R$27="09 Loop",'4100Ref'!$N3,R$27="10 Loop",'4100Ref'!$O3,R$27="11 Loop",'4100Ref'!$P3,R$27="12 Loop",'4100Ref'!$Q3,R$27="NDU",'4100Ref'!$R3,R$27="NDUWVoice",'4100Ref'!$S3,R$27="TSW",'4100Ref'!$T3,R$27="TGA",'4100Ref'!$U3,R$27=" ",'4100Ref'!$A3,R$27="BSIU",'4100Ref'!$V3,R$27="safelinc",'4100Ref'!$W4))) -> 0 | S33: =IF(S17="Red"," ",(_xlfn.IFS(S$27=" ",'4100Ref'!$A3,S$27="01 Loop",'4100Ref'!$F3,S$27="02 Loop",'4100Ref'!$G3,S$27="03 Loop",'4100Ref'!$H3,S$27="04 Loop",'4100Ref'!$I3,S$27="05 Loop",'4100Ref'!$J3,S$27="06 Loop",'4100Ref'!$K3,S$27="07 Loop",'4100Ref'!$L3,S$27="08 Loop",'4100Ref'!$M3,S$27="09 Loop",'4100Ref'!$N3,S$27="10 Loop",'4100Ref'!$O3,S$27="11 Loop",'4100Ref'!$P3,S$27="12 Loop",'4100Ref'!$Q3,S$27="NDU",'4100Ref'!$R3,S$27="NDUWVoice",'4100Ref'!$S3,S$27="TSW",'4100Ref'!$T3,S$27="TGA",'4100Ref'!$U3,S$27=" ",'4100Ref'!$A3,S$27="BSIU",'4100Ref'!$V3,S$27="safelinc",'4100Ref'!$W4))) -> 0 | T33: =IF(T17="Red"," ",(_xlfn.IFS(T$27=" ",'4100Ref'!$A3,T$27="01 Loop",'4100Ref'!$F3,T$27="02 Loop",'4100Ref'!$G3,T$27="03 Loop",'4100Ref'!$H3,T$27="04 Loop",'4100Ref'!$I3,T$27="05 Loop",'4100Ref'!$J3,T$27="06 Loop",'4100Ref'!$K3,T$27="07 Loop",'4100Ref'!$L3,T$27="08 Loop",'4100Ref'!$M3,T$27="09 Loop",'4100Ref'!$N3,T$27="10 Loop",'4100Ref'!$O3,T$27="11 Loop",'4100Ref'!$P3,T$27="12 Loop",'4100Ref'!$Q3,T$27="NDU",'4100Ref'!$R3,T$27="NDUWVoice",'4100Ref'!$S3,T$27="TSW",'4100Ref'!$T3,T$27="TGA",'4100Ref'!$U3,T$27=" ",'4100Ref'!$A3,T$27="BSIU",'4100Ref'!$V3,T$27="safelinc",'4100Ref'!$W4))) -> 0 | U33: =IF(U17="Red"," ",(_xlfn.IFS(U$27=" ",'4100Ref'!$A3,U$27="01 Loop",'4100Ref'!$F3,U$27="02 Loop",'4100Ref'!$G3,U$27="03 Loop",'4100Ref'!$H3,U$27="04 Loop",'4100Ref'!$I3,U$27="05 Loop",'4100Ref'!$J3,U$27="06 Loop",'4100Ref'!$K3,U$27="07 Loop",'4100Ref'!$L3,U$27="08 Loop",'4100Ref'!$M3,U$27="09 Loop",'4100Ref'!$N3,U$27="10 Loop",'4100Ref'!$O3,U$27="11 Loop",'4100Ref'!$P3,U$27="12 Loop",'4100Ref'!$Q3,U$27="NDU",'4100Ref'!$R3,U$27="NDUWVoice",'4100Ref'!$S3,U$27="TSW",'4100Ref'!$T3,U$27="TGA",'4100Ref'!$U3,U$27=" ",'4100Ref'!$A3,U$27="BSIU",'4100Ref'!$V3,U$27="safelinc",'4100Ref'!$W4))) -> 0 | V33: =IF(V17="Red"," ",(_xlfn.IFS(V$27=" ",'4100Ref'!$A3,V$27="01 Loop",'4100Ref'!$F3,V$27="02 Loop",'4100Ref'!$G3,V$27="03 Loop",'4100Ref'!$H3,V$27="04 Loop",'4100Ref'!$I3,V$27="05 Loop",'4100Ref'!$J3,V$27="06 Loop",'4100Ref'!$K3,V$27="07 Loop",'4100Ref'!$L3,V$27="08 Loop",'4100Ref'!$M3,V$27="09 Loop",'4100Ref'!$N3,V$27="10 Loop",'4100Ref'!$O3,V$27="11 Loop",'4100Ref'!$P3,V$27="12 Loop",'4100Ref'!$Q3,V$27="NDU",'4100Ref'!$R3,V$27="NDUWVoice",'4100Ref'!$S3,V$27="TSW",'4100Ref'!$T3,V$27="TGA",'4100Ref'!$U3,V$27=" ",'4100Ref'!$A3,V$27="BSIU",'4100Ref'!$V3,V$27="safelinc",'4100Ref'!$W4))) -> 0 | W33: =IF(W17="Red"," ",(_xlfn.IFS(W$27=" ",'4100Ref'!$A3,W$27="01 Loop",'4100Ref'!$F3,W$27="02 Loop",'4100Ref'!$G3,W$27="03 Loop",'4100Ref'!$H3,W$27="04 Loop",'4100Ref'!$I3,W$27="05 Loop",'4100Ref'!$J3,W$27="06 Loop",'4100Ref'!$K3,W$27="07 Loop",'4100Ref'!$L3,W$27="08 Loop",'4100Ref'!$M3,W$27="09 Loop",'4100Ref'!$N3,W$27="10 Loop",'4100Ref'!$O3,W$27="11 Loop",'4100Ref'!$P3,W$27="12 Loop",'4100Ref'!$Q3,W$27="NDU",'4100Ref'!$R3,W$27="NDUWVoice",'4100Ref'!$S3,W$27="TSW",'4100Ref'!$T3,W$27="TGA",'4100Ref'!$U3,W$27=" ",'4100Ref'!$A3,W$27="BSIU",'4100Ref'!$V3,W$27="safelinc",'4100Ref'!$W4))) -> 0 | X33: =IF(X17="Red"," ",(_xlfn.IFS(X$27=" ",'4100Ref'!$A3,X$27="01 Loop",'4100Ref'!$F3,X$27="02 Loop",'4100Ref'!$G3,X$27="03 Loop",'4100Ref'!$H3,X$27="04 Loop",'4100Ref'!$I3,X$27="05 Loop",'4100Ref'!$J3,X$27="06 Loop",'4100Ref'!$K3,X$27="07 Loop",'4100Ref'!$L3,X$27="08 Loop",'4100Ref'!$M3,X$27="09 Loop",'4100Ref'!$N3,X$27="10 Loop",'4100Ref'!$O3,X$27="11 Loop",'4100Ref'!$P3,X$27="12 Loop",'4100Ref'!$Q3,X$27="NDU",'4100Ref'!$R3,X$27="NDUWVoice",'4100Ref'!$S3,X$27="TSW",'4100Ref'!$T3,X$27="TGA",'4100Ref'!$U3,X$27=" ",'4100Ref'!$A3,X$27="BSIU",'4100Ref'!$V3,X$27="safelinc",'4100Ref'!$W4))) -> 0 | Y33: =IF(Y17="Red"," ",(_xlfn.IFS(Y$27=" ",'4100Ref'!$A3,Y$27="01 Loop",'4100Ref'!$F3,Y$27="02 Loop",'4100Ref'!$G3,Y$27="03 Loop",'4100Ref'!$H3,Y$27="04 Loop",'4100Ref'!$I3,Y$27="05 Loop",'4100Ref'!$J3,Y$27="06 Loop",'4100Ref'!$K3,Y$27="07 Loop",'4100Ref'!$L3,Y$27="08 Loop",'4100Ref'!$M3,Y$27="09 Loop",'4100Ref'!$N3,Y$27="10 Loop",'4100Ref'!$O3,Y$27="11 Loop",'4100Ref'!$P3,Y$27="12 Loop",'4100Ref'!$Q3,Y$27="NDU",'4100Ref'!$R3,Y$27="NDUWVoice",'4100Ref'!$S3,Y$27="TSW",'4100Ref'!$T3,Y$27="TGA",'4100Ref'!$U3,Y$27=" ",'4100Ref'!$A3,Y$27="BSIU",'4100Ref'!$V3,Y$27="safelinc",'4100Ref'!$W4))) -> 0 | Z33: =IF(Z17="Red"," ",(_xlfn.IFS(Z$27=" ",'4100Ref'!$A3,Z$27="01 Loop",'4100Ref'!$F3,Z$27="02 Loop",'4100Ref'!$G3,Z$27="03 Loop",'4100Ref'!$H3,Z$27="04 Loop",'4100Ref'!$I3,Z$27="05 Loop",'4100Ref'!$J3,Z$27="06 Loop",'4100Ref'!$K3,Z$27="07 Loop",'4100Ref'!$L3,Z$27="08 Loop",'4100Ref'!$M3,Z$27="09 Loop",'4100Ref'!$N3,Z$27="10 Loop",'4100Ref'!$O3,Z$27="11 Loop",'4100Ref'!$P3,Z$27="12 Loop",'4100Ref'!$Q3,Z$27="NDU",'4100Ref'!$R3,Z$27="NDUWVoice",'4100Ref'!$S3,Z$27="TSW",'4100Ref'!$T3,Z$27="TGA",'4100Ref'!$U3,Z$27=" ",'4100Ref'!$A3,Z$27="BSIU",'4100Ref'!$V3,Z$27="safelinc",'4100Ref'!$W4))) -> 0 | AA33: =IF(AA17="Red"," ",(_xlfn.IFS(AA$27=" ",'4100Ref'!$A3,AA$27="01 Loop",'4100Ref'!$F3,AA$27="02 Loop",'4100Ref'!$G3,AA$27="03 Loop",'4100Ref'!$H3,AA$27="04 Loop",'4100Ref'!$I3,AA$27="05 Loop",'4100Ref'!$J3,AA$27="06 Loop",'4100Ref'!$K3,AA$27="07 Loop",'4100Ref'!$L3,AA$27="08 Loop",'4100Ref'!$M3,AA$27="09 Loop",'4100Ref'!$N3,AA$27="10 Loop",'4100Ref'!$O3,AA$27="11 Loop",'4100Ref'!$P3,AA$27="12 Loop",'4100Ref'!$Q3,AA$27="NDU",'4100Ref'!$R3,AA$27="NDUWVoice",'4100Ref'!$S3,AA$27="TSW",'4100Ref'!$T3,AA$27="TGA",'4100Ref'!$U3,AA$27=" ",'4100Ref'!$A3,AA$27="BSIU",'4100Ref'!$V3,AA$27="safelinc",'4100Ref'!$W4))) -> 0 | AB33: =IF(AB17="Red"," ",(_xlfn.IFS(AB$27=" ",'4100Ref'!$A3,AB$27="01 Loop",'4100Ref'!$F3,AB$27="02 Loop",'4100Ref'!$G3,AB$27="03 Loop",'4100Ref'!$H3,AB$27="04 Loop",'4100Ref'!$I3,AB$27="05 Loop",'4100Ref'!$J3,AB$27="06 Loop",'4100Ref'!$K3,AB$27="07 Loop",'4100Ref'!$L3,AB$27="08 Loop",'4100Ref'!$M3,AB$27="09 Loop",'4100Ref'!$N3,AB$27="10 Loop",'4100Ref'!$O3,AB$27="11 Loop",'4100Ref'!$P3,AB$27="12 Loop",'4100Ref'!$Q3,AB$27="NDU",'4100Ref'!$R3,AB$27="NDUWVoice",'4100Ref'!$S3,AB$27="TSW",'4100Ref'!$T3,AB$27="TGA",'4100Ref'!$U3,AB$27=" ",'4100Ref'!$A3,AB$27="BSIU",'4100Ref'!$V3,AB$27="safelinc",'4100Ref'!$W4))) -> 0 | AC33: =IF(AC17="Red"," ",(_xlfn.IFS(AC$27=" ",'4100Ref'!$A3,AC$27="01 Loop",'4100Ref'!$F3,AC$27="02 Loop",'4100Ref'!$G3,AC$27="03 Loop",'4100Ref'!$H3,AC$27="04 Loop",'4100Ref'!$I3,AC$27="05 Loop",'4100Ref'!$J3,AC$27="06 Loop",'4100Ref'!$K3,AC$27="07 Loop",'4100Ref'!$L3,AC$27="08 Loop",'4100Ref'!$M3,AC$27="09 Loop",'4100Ref'!$N3,AC$27="10 Loop",'4100Ref'!$O3,AC$27="11 Loop",'4100Ref'!$P3,AC$27="12 Loop",'4100Ref'!$Q3,AC$27="NDU",'4100Ref'!$R3,AC$27="NDUWVoice",'4100Ref'!$S3,AC$27="TSW",'4100Ref'!$T3,AC$27="TGA",'4100Ref'!$U3,AC$27=" ",'4100Ref'!$A3,AC$27="BSIU",'4100Ref'!$V3,AC$27="safelinc",'4100Ref'!$W4))) -> 0 | AD33: =IF(AD17="Red"," ",(_xlfn.IFS(AD$27=" ",'4100Ref'!$A3,AD$27="01 Loop",'4100Ref'!$F3,AD$27="02 Loop",'4100Ref'!$G3,AD$27="03 Loop",'4100Ref'!$H3,AD$27="04 Loop",'4100Ref'!$I3,AD$27="05 Loop",'4100Ref'!$J3,AD$27="06 Loop",'4100Ref'!$K3,AD$27="07 Loop",'4100Ref'!$L3,AD$27="08 Loop",'4100Ref'!$M3,AD$27="09 Loop",'4100Ref'!$N3,AD$27="10 Loop",'4100Ref'!$O3,AD$27="11 Loop",'4100Ref'!$P3,AD$27="12 Loop",'4100Ref'!$Q3,AD$27="NDU",'4100Ref'!$R3,AD$27="NDUWVoice",'4100Ref'!$S3,AD$27="TSW",'4100Ref'!$T3,AD$27="TGA",'4100Ref'!$U3,AD$27=" ",'4100Ref'!$A3,AD$27="BSIU",'4100Ref'!$V3,AD$27="safelinc",'4100Ref'!$W4))) -> 0 | AE33: =IF(AE17="Red"," ",(_xlfn.IFS(AE$27=" ",'4100Ref'!$A3,AE$27="01 Loop",'4100Ref'!$F3,AE$27="02 Loop",'4100Ref'!$G3,AE$27="03 Loop",'4100Ref'!$H3,AE$27="04 Loop",'4100Ref'!$I3,AE$27="05 Loop",'4100Ref'!$J3,AE$27="06 Loop",'4100Ref'!$K3,AE$27="07 Loop",'4100Ref'!$L3,AE$27="08 Loop",'4100Ref'!$M3,AE$27="09 Loop",'4100Ref'!$N3,AE$27="10 Loop",'4100Ref'!$O3,AE$27="11 Loop",'4100Ref'!$P3,AE$27="12 Loop",'4100Ref'!$Q3,AE$27="NDU",'4100Ref'!$R3,AE$27="NDUWVoice",'4100Ref'!$S3,AE$27="TSW",'4100Ref'!$T3,AE$27="TGA",'4100Ref'!$U3,AE$27=" ",'4100Ref'!$A3,AE$27="BSIU",'4100Ref'!$V3,AE$27="safelinc",'4100Ref'!$W4))) -> 0 | AF33: =IF(AF17="Red"," ",(_xlfn.IFS(AF$27=" ",'4100Ref'!$A3,AF$27="01 Loop",'4100Ref'!$F3,AF$27="02 Loop",'4100Ref'!$G3,AF$27="03 Loop",'4100Ref'!$H3,AF$27="04 Loop",'4100Ref'!$I3,AF$27="05 Loop",'4100Ref'!$J3,AF$27="06 Loop",'4100Ref'!$K3,AF$27="07 Loop",'4100Ref'!$L3,AF$27="08 Loop",'4100Ref'!$M3,AF$27="09 Loop",'4100Ref'!$N3,AF$27="10 Loop",'4100Ref'!$O3,AF$27="11 Loop",'4100Ref'!$P3,AF$27="12 Loop",'4100Ref'!$Q3,AF$27="NDU",'4100Ref'!$R3,AF$27="NDUWVoice",'4100Ref'!$S3,AF$27="TSW",'4100Ref'!$T3,AF$27="TGA",'4100Ref'!$U3,AF$27=" ",'4100Ref'!$A3,AF$27="BSIU",'4100Ref'!$V3,AF$27="safelinc",'4100Ref'!$W4))) -> 0 | AG33: =IF(AG17="Red"," ",(_xlfn.IFS(AG$27=" ",'4100Ref'!$A3,AG$27="01 Loop",'4100Ref'!$F3,AG$27="02 Loop",'4100Ref'!$G3,AG$27="03 Loop",'4100Ref'!$H3,AG$27="04 Loop",'4100Ref'!$I3,AG$27="05 Loop",'4100Ref'!$J3,AG$27="06 Loop",'4100Ref'!$K3,AG$27="07 Loop",'4100Ref'!$L3,AG$27="08 Loop",'4100Ref'!$M3,AG$27="09 Loop",'4100Ref'!$N3,AG$27="10 Loop",'4100Ref'!$O3,AG$27="11 Loop",'4100Ref'!$P3,AG$27="12 Loop",'4100Ref'!$Q3,AG$27="NDU",'4100Ref'!$R3,AG$27="NDUWVoice",'4100Ref'!$S3,AG$27="TSW",'4100Ref'!$T3,AG$27="TGA",'4100Ref'!$U3,AG$27=" ",'4100Ref'!$A3,AG$27="BSIU",'4100Ref'!$V3,AG$27="safelinc",'4100Ref'!$W4))) -> 0 | AH33: =IF(AH17="Red"," ",(_xlfn.IFS(AH$27=" ",'4100Ref'!$A3,AH$27="01 Loop",'4100Ref'!$F3,AH$27="02 Loop",'4100Ref'!$G3,AH$27="03 Loop",'4100Ref'!$H3,AH$27="04 Loop",'4100Ref'!$I3,AH$27="05 Loop",'4100Ref'!$J3,AH$27="06 Loop",'4100Ref'!$K3,AH$27="07 Loop",'4100Ref'!$L3,AH$27="08 Loop",'4100Ref'!$M3,AH$27="09 Loop",'4100Ref'!$N3,AH$27="10 Loop",'4100Ref'!$O3,AH$27="11 Loop",'4100Ref'!$P3,AH$27="12 Loop",'4100Ref'!$Q3,AH$27="NDU",'4100Ref'!$R3,AH$27="NDUWVoice",'4100Ref'!$S3,AH$27="TSW",'4100Ref'!$T3,AH$27="TGA",'4100Ref'!$U3,AH$27=" ",'4100Ref'!$A3,AH$27="BSIU",'4100Ref'!$V3,AH$27="safelinc",'4100Ref'!$W4))) -> 0 | AI33: =IF(AI17="Red"," ",(_xlfn.IFS(AI$27=" ",'4100Ref'!$A3,AI$27="01 Loop",'4100Ref'!$F3,AI$27="02 Loop",'4100Ref'!$G3,AI$27="03 Loop",'4100Ref'!$H3,AI$27="04 Loop",'4100Ref'!$I3,AI$27="05 Loop",'4100Ref'!$J3,AI$27="06 Loop",'4100Ref'!$K3,AI$27="07 Loop",'4100Ref'!$L3,AI$27="08 Loop",'4100Ref'!$M3,AI$27="09 Loop",'4100Ref'!$N3,AI$27="10 Loop",'4100Ref'!$O3,AI$27="11 Loop",'4100Ref'!$P3,AI$27="12 Loop",'4100Ref'!$Q3,AI$27="NDU",'4100Ref'!$R3,AI$27="NDUWVoice",'4100Ref'!$S3,AI$27="TSW",'4100Ref'!$T3,AI$27="TGA",'4100Ref'!$U3,AI$27=" ",'4100Ref'!$A3,AI$27="BSIU",'4100Ref'!$V3,AI$27="safelinc",'4100Ref'!$W4))) -> 0 | AJ33: =IF(AJ17="Red"," ",(_xlfn.IFS(AJ$27=" ",'4100Ref'!$A3,AJ$27="01 Loop",'4100Ref'!$F3,AJ$27="02 Loop",'4100Ref'!$G3,AJ$27="03 Loop",'4100Ref'!$H3,AJ$27="04 Loop",'4100Ref'!$I3,AJ$27="05 Loop",'4100Ref'!$J3,AJ$27="06 Loop",'4100Ref'!$K3,AJ$27="07 Loop",'4100Ref'!$L3,AJ$27="08 Loop",'4100Ref'!$M3,AJ$27="09 Loop",'4100Ref'!$N3,AJ$27="10 Loop",'4100Ref'!$O3,AJ$27="11 Loop",'4100Ref'!$P3,AJ$27="12 Loop",'4100Ref'!$Q3,AJ$27="NDU",'4100Ref'!$R3,AJ$27="NDUWVoice",'4100Ref'!$S3,AJ$27="TSW",'4100Ref'!$T3,AJ$27="TGA",'4100Ref'!$U3,AJ$27=" ",'4100Ref'!$A3,AJ$27="BSIU",'4100Ref'!$V3,AJ$27="safelinc",'4100Ref'!$W4))) -> 0 | AK33: =IF(AK17="Red"," ",(_xlfn.IFS(AK$27=" ",'4100Ref'!$A3,AK$27="01 Loop",'4100Ref'!$F3,AK$27="02 Loop",'4100Ref'!$G3,AK$27="03 Loop",'4100Ref'!$H3,AK$27="04 Loop",'4100Ref'!$I3,AK$27="05 Loop",'4100Ref'!$J3,AK$27="06 Loop",'4100Ref'!$K3,AK$27="07 Loop",'4100Ref'!$L3,AK$27="08 Loop",'4100Ref'!$M3,AK$27="09 Loop",'4100Ref'!$N3,AK$27="10 Loop",'4100Ref'!$O3,AK$27="11 Loop",'4100Ref'!$P3,AK$27="12 Loop",'4100Ref'!$Q3,AK$27="NDU",'4100Ref'!$R3,AK$27="NDUWVoice",'4100Ref'!$S3,AK$27="TSW",'4100Ref'!$T3,AK$27="TGA",'4100Ref'!$U3,AK$27=" ",'4100Ref'!$A3,AK$27="BSIU",'4100Ref'!$V3,AK$27="safelinc",'4100Ref'!$W4))) -> 0 | AL33: =IF(AL17="Red"," ",(_xlfn.IFS(AL$27=" ",'4100Ref'!$A3,AL$27="01 Loop",'4100Ref'!$F3,AL$27="02 Loop",'4100Ref'!$G3,AL$27="03 Loop",'4100Ref'!$H3,AL$27="04 Loop",'4100Ref'!$I3,AL$27="05 Loop",'4100Ref'!$J3,AL$27="06 Loop",'4100Ref'!$K3,AL$27="07 Loop",'4100Ref'!$L3,AL$27="08 Loop",'4100Ref'!$M3,AL$27="09 Loop",'4100Ref'!$N3,AL$27="10 Loop",'4100Ref'!$O3,AL$27="11 Loop",'4100Ref'!$P3,AL$27="12 Loop",'4100Ref'!$Q3,AL$27="NDU",'4100Ref'!$R3,AL$27="NDUWVoice",'4100Ref'!$S3,AL$27="TSW",'4100Ref'!$T3,AL$27="TGA",'4100Ref'!$U3,AL$27=" ",'4100Ref'!$A3,AL$27="BSIU",'4100Ref'!$V3,AL$27="safelinc",'4100Ref'!$W4))) -> 0 | AM33: =IF(AM17="Red"," ",(_xlfn.IFS(AM$27=" ",'4100Ref'!$A3,AM$27="01 Loop",'4100Ref'!$F3,AM$27="02 Loop",'4100Ref'!$G3,AM$27="03 Loop",'4100Ref'!$H3,AM$27="04 Loop",'4100Ref'!$I3,AM$27="05 Loop",'4100Ref'!$J3,AM$27="06 Loop",'4100Ref'!$K3,AM$27="07 Loop",'4100Ref'!$L3,AM$27="08 Loop",'4100Ref'!$M3,AM$27="09 Loop",'4100Ref'!$N3,AM$27="10 Loop",'4100Ref'!$O3,AM$27="11 Loop",'4100Ref'!$P3,AM$27="12 Loop",'4100Ref'!$Q3,AM$27="NDU",'4100Ref'!$R3,AM$27="NDUWVoice",'4100Ref'!$S3,AM$27="TSW",'4100Ref'!$T3,AM$27="TGA",'4100Ref'!$U3,AM$27=" ",'4100Ref'!$A3,AM$27="BSIU",'4100Ref'!$V3,AM$27="safelinc",'4100Ref'!$W4))) -> 0 | AN33: =IF(AN17="Red"," ",(_xlfn.IFS(AN$27=" ",'4100Ref'!$A3,AN$27="01 Loop",'4100Ref'!$F3,AN$27="02 Loop",'4100Ref'!$G3,AN$27="03 Loop",'4100Ref'!$H3,AN$27="04 Loop",'4100Ref'!$I3,AN$27="05 Loop",'4100Ref'!$J3,AN$27="06 Loop",'4100Ref'!$K3,AN$27="07 Loop",'4100Ref'!$L3,AN$27="08 Loop",'4100Ref'!$M3,AN$27="09 Loop",'4100Ref'!$N3,AN$27="10 Loop",'4100Ref'!$O3,AN$27="11 Loop",'4100Ref'!$P3,AN$27="12 Loop",'4100Ref'!$Q3,AN$27="NDU",'4100Ref'!$R3,AN$27="NDUWVoice",'4100Ref'!$S3,AN$27="TSW",'4100Ref'!$T3,AN$27="TGA",'4100Ref'!$U3,AN$27=" ",'4100Ref'!$A3,AN$27="BSIU",'4100Ref'!$V3,AN$27="safelinc",'4100Ref'!$W4))) -> 0 | AO33: =IF(AO17="Red"," ",(_xlfn.IFS(AO$27=" ",'4100Ref'!$A3,AO$27="01 Loop",'4100Ref'!$F3,AO$27="02 Loop",'4100Ref'!$G3,AO$27="03 Loop",'4100Ref'!$H3,AO$27="04 Loop",'4100Ref'!$I3,AO$27="05 Loop",'4100Ref'!$J3,AO$27="06 Loop",'4100Ref'!$K3,AO$27="07 Loop",'4100Ref'!$L3,AO$27="08 Loop",'4100Ref'!$M3,AO$27="09 Loop",'4100Ref'!$N3,AO$27="10 Loop",'4100Ref'!$O3,AO$27="11 Loop",'4100Ref'!$P3,AO$27="12 Loop",'4100Ref'!$Q3,AO$27="NDU",'4100Ref'!$R3,AO$27="NDUWVoice",'4100Ref'!$S3,AO$27="TSW",'4100Ref'!$T3,AO$27="TGA",'4100Ref'!$U3,AO$27=" ",'4100Ref'!$A3,AO$27="BSIU",'4100Ref'!$V3,AO$27="safelinc",'4100Ref'!$W4))) -> 0 | AP33: =IF(AP17="Red"," ",(_xlfn.IFS(AP$27=" ",'4100Ref'!$A3,AP$27="01 Loop",'4100Ref'!$F3,AP$27="02 Loop",'4100Ref'!$G3,AP$27="03 Loop",'4100Ref'!$H3,AP$27="04 Loop",'4100Ref'!$I3,AP$27="05 Loop",'4100Ref'!$J3,AP$27="06 Loop",'4100Ref'!$K3,AP$27="07 Loop",'4100Ref'!$L3,AP$27="08 Loop",'4100Ref'!$M3,AP$27="09 Loop",'4100Ref'!$N3,AP$27="10 Loop",'4100Ref'!$O3,AP$27="11 Loop",'4100Ref'!$P3,AP$27="12 Loop",'4100Ref'!$Q3,AP$27="NDU",'4100Ref'!$R3,AP$27="NDUWVoice",'4100Ref'!$S3,AP$27="TSW",'4100Ref'!$T3,AP$27="TGA",'4100Ref'!$U3,AP$27=" ",'4100Ref'!$A3,AP$27="BSIU",'4100Ref'!$V3,AP$27="safelinc",'4100Ref'!$W4))) -> 0 | AQ33: =IF(AQ17="Red"," ",(_xlfn.IFS(AQ$27=" ",'4100Ref'!$A3,AQ$27="01 Loop",'4100Ref'!$F3,AQ$27="02 Loop",'4100Ref'!$G3,AQ$27="03 Loop",'4100Ref'!$H3,AQ$27="04 Loop",'4100Ref'!$I3,AQ$27="05 Loop",'4100Ref'!$J3,AQ$27="06 Loop",'4100Ref'!$K3,AQ$27="07 Loop",'4100Ref'!$L3,AQ$27="08 Loop",'4100Ref'!$M3,AQ$27="09 Loop",'4100Ref'!$N3,AQ$27="10 Loop",'4100Ref'!$O3,AQ$27="11 Loop",'4100Ref'!$P3,AQ$27="12 Loop",'4100Ref'!$Q3,AQ$27="NDU",'4100Ref'!$R3,AQ$27="NDUWVoice",'4100Ref'!$S3,AQ$27="TSW",'4100Ref'!$T3,AQ$27="TGA",'4100Ref'!$U3,AQ$27=" ",'4100Ref'!$A3,AQ$27="BSIU",'4100Ref'!$V3,AQ$27="safelinc",'4100Ref'!$W4))) -> 0 | AR33: =IF(AR17="Red"," ",(_xlfn.IFS(AR$27=" ",'4100Ref'!$A3,AR$27="01 Loop",'4100Ref'!$F3,AR$27="02 Loop",'4100Ref'!$G3,AR$27="03 Loop",'4100Ref'!$H3,AR$27="04 Loop",'4100Ref'!$I3,AR$27="05 Loop",'4100Ref'!$J3,AR$27="06 Loop",'4100Ref'!$K3,AR$27="07 Loop",'4100Ref'!$L3,AR$27="08 Loop",'4100Ref'!$M3,AR$27="09 Loop",'4100Ref'!$N3,AR$27="10 Loop",'4100Ref'!$O3,AR$27="11 Loop",'4100Ref'!$P3,AR$27="12 Loop",'4100Ref'!$Q3,AR$27="NDU",'4100Ref'!$R3,AR$27="NDUWVoice",'4100Ref'!$S3,AR$27="TSW",'4100Ref'!$T3,AR$27="TGA",'4100Ref'!$U3,AR$27=" ",'4100Ref'!$A3,AR$27="BSIU",'4100Ref'!$V3,AR$27="safelinc",'4100Ref'!$W4))) -> 0 | AS33: =IF(AS17="Red"," ",(_xlfn.IFS(AS$27=" ",'4100Ref'!$A3,AS$27="01 Loop",'4100Ref'!$F3,AS$27="02 Loop",'4100Ref'!$G3,AS$27="03 Loop",'4100Ref'!$H3,AS$27="04 Loop",'4100Ref'!$I3,AS$27="05 Loop",'4100Ref'!$J3,AS$27="06 Loop",'4100Ref'!$K3,AS$27="07 Loop",'4100Ref'!$L3,AS$27="08 Loop",'4100Ref'!$M3,AS$27="09 Loop",'4100Ref'!$N3,AS$27="10 Loop",'4100Ref'!$O3,AS$27="11 Loop",'4100Ref'!$P3,AS$27="12 Loop",'4100Ref'!$Q3,AS$27="NDU",'4100Ref'!$R3,AS$27="NDUWVoice",'4100Ref'!$S3,AS$27="TSW",'4100Ref'!$T3,AS$27="TGA",'4100Ref'!$U3,AS$27=" ",'4100Ref'!$A3,AS$27="BSIU",'4100Ref'!$V3,AS$27="safelinc",'4100Ref'!$W4))) -> 0 | AT33: =IF(AT17="Red"," ",(_xlfn.IFS(AT$27=" ",'4100Ref'!$A3,AT$27="01 Loop",'4100Ref'!$F3,AT$27="02 Loop",'4100Ref'!$G3,AT$27="03 Loop",'4100Ref'!$H3,AT$27="04 Loop",'4100Ref'!$I3,AT$27="05 Loop",'4100Ref'!$J3,AT$27="06 Loop",'4100Ref'!$K3,AT$27="07 Loop",'4100Ref'!$L3,AT$27="08 Loop",'4100Ref'!$M3,AT$27="09 Loop",'4100Ref'!$N3,AT$27="10 Loop",'4100Ref'!$O3,AT$27="11 Loop",'4100Ref'!$P3,AT$27="12 Loop",'4100Ref'!$Q3,AT$27="NDU",'4100Ref'!$R3,AT$27="NDUWVoice",'4100Ref'!$S3,AT$27="TSW",'4100Ref'!$T3,AT$27="TGA",'4100Ref'!$U3,AT$27=" ",'4100Ref'!$A3,AT$27="BSIU",'4100Ref'!$V3,AT$27="safelinc",'4100Ref'!$W4))) -> 0 | AU33: =IF(AU17="Red"," ",(_xlfn.IFS(AU$27=" ",'4100Ref'!$A3,AU$27="01 Loop",'4100Ref'!$F3,AU$27="02 Loop",'4100Ref'!$G3,AU$27="03 Loop",'4100Ref'!$H3,AU$27="04 Loop",'4100Ref'!$I3,AU$27="05 Loop",'4100Ref'!$J3,AU$27="06 Loop",'4100Ref'!$K3,AU$27="07 Loop",'4100Ref'!$L3,AU$27="08 Loop",'4100Ref'!$M3,AU$27="09 Loop",'4100Ref'!$N3,AU$27="10 Loop",'4100Ref'!$O3,AU$27="11 Loop",'4100Ref'!$P3,AU$27="12 Loop",'4100Ref'!$Q3,AU$27="NDU",'4100Ref'!$R3,AU$27="NDUWVoice",'4100Ref'!$S3,AU$27="TSW",'4100Ref'!$T3,AU$27="TGA",'4100Ref'!$U3,AU$27=" ",'4100Ref'!$A3,AU$27="BSIU",'4100Ref'!$V3,AU$27="safelinc",'4100Ref'!$W4))) -> 0 | AV33: =IF(AV17="Red"," ",(_xlfn.IFS(AV$27=" ",'4100Ref'!$A3,AV$27="01 Loop",'4100Ref'!$F3,AV$27="02 Loop",'4100Ref'!$G3,AV$27="03 Loop",'4100Ref'!$H3,AV$27="04 Loop",'4100Ref'!$I3,AV$27="05 Loop",'4100Ref'!$J3,AV$27="06 Loop",'4100Ref'!$K3,AV$27="07 Loop",'4100Ref'!$L3,AV$27="08 Loop",'4100Ref'!$M3,AV$27="09 Loop",'4100Ref'!$N3,AV$27="10 Loop",'4100Ref'!$O3,AV$27="11 Loop",'4100Ref'!$P3,AV$27="12 Loop",'4100Ref'!$Q3,AV$27="NDU",'4100Ref'!$R3,AV$27="NDUWVoice",'4100Ref'!$S3,AV$27="TSW",'4100Ref'!$T3,AV$27="TGA",'4100Ref'!$U3,AV$27=" ",'4100Ref'!$A3,AV$27="BSIU",'4100Ref'!$V3,AV$27="safelinc",'4100Ref'!$W4))) -> 0 | AW33: =IF(AW17="Red"," ",(_xlfn.IFS(AW$27=" ",'4100Ref'!$A3,AW$27="01 Loop",'4100Ref'!$F3,AW$27="02 Loop",'4100Ref'!$G3,AW$27="03 Loop",'4100Ref'!$H3,AW$27="04 Loop",'4100Ref'!$I3,AW$27="05 Loop",'4100Ref'!$J3,AW$27="06 Loop",'4100Ref'!$K3,AW$27="07 Loop",'4100Ref'!$L3,AW$27="08 Loop",'4100Ref'!$M3,AW$27="09 Loop",'4100Ref'!$N3,AW$27="10 Loop",'4100Ref'!$O3,AW$27="11 Loop",'4100Ref'!$P3,AW$27="12 Loop",'4100Ref'!$Q3,AW$27="NDU",'4100Ref'!$R3,AW$27="NDUWVoice",'4100Ref'!$S3,AW$27="TSW",'4100Ref'!$T3,AW$27="TGA",'4100Ref'!$U3,AW$27=" ",'4100Ref'!$A3,AW$27="BSIU",'4100Ref'!$V3,AW$27="safelinc",'4100Ref'!$W4))) -> 0 | AX33: =IF(AX17="Red"," ",(_xlfn.IFS(AX$27=" ",'4100Ref'!$A3,AX$27="01 Loop",'4100Ref'!$F3,AX$27="02 Loop",'4100Ref'!$G3,AX$27="03 Loop",'4100Ref'!$H3,AX$27="04 Loop",'4100Ref'!$I3,AX$27="05 Loop",'4100Ref'!$J3,AX$27="06 Loop",'4100Ref'!$K3,AX$27="07 Loop",'4100Ref'!$L3,AX$27="08 Loop",'4100Ref'!$M3,AX$27="09 Loop",'4100Ref'!$N3,AX$27="10 Loop",'4100Ref'!$O3,AX$27="11 Loop",'4100Ref'!$P3,AX$27="12 Loop",'4100Ref'!$Q3,AX$27="NDU",'4100Ref'!$R3,AX$27="NDUWVoice",'4100Ref'!$S3,AX$27="TSW",'4100Ref'!$T3,AX$27="TGA",'4100Ref'!$U3,AX$27=" ",'4100Ref'!$A3,AX$27="BSIU",'4100Ref'!$V3,AX$27="safelinc",'4100Ref'!$W4))) -> 0 | AY33: =IF(AY17="Red"," ",(_xlfn.IFS(AY$27=" ",'4100Ref'!$A3,AY$27="01 Loop",'4100Ref'!$F3,AY$27="02 Loop",'4100Ref'!$G3,AY$27="03 Loop",'4100Ref'!$H3,AY$27="04 Loop",'4100Ref'!$I3,AY$27="05 Loop",'4100Ref'!$J3,AY$27="06 Loop",'4100Ref'!$K3,AY$27="07 Loop",'4100Ref'!$L3,AY$27="08 Loop",'4100Ref'!$M3,AY$27="09 Loop",'4100Ref'!$N3,AY$27="10 Loop",'4100Ref'!$O3,AY$27="11 Loop",'4100Ref'!$P3,AY$27="12 Loop",'4100Ref'!$Q3,AY$27="NDU",'4100Ref'!$R3,AY$27="NDUWVoice",'4100Ref'!$S3,AY$27="TSW",'4100Ref'!$T3,AY$27="TGA",'4100Ref'!$U3,AY$27=" ",'4100Ref'!$A3,AY$27="BSIU",'4100Ref'!$V3,AY$27="safelinc",'4100Ref'!$W4))) -> 0 | AZ33: =IF(AZ17="Red"," ",(_xlfn.IFS(AZ$27=" ",'4100Ref'!$A3,AZ$27="01 Loop",'4100Ref'!$F3,AZ$27="02 Loop",'4100Ref'!$G3,AZ$27="03 Loop",'4100Ref'!$H3,AZ$27="04 Loop",'4100Ref'!$I3,AZ$27="05 Loop",'4100Ref'!$J3,AZ$27="06 Loop",'4100Ref'!$K3,AZ$27="07 Loop",'4100Ref'!$L3,AZ$27="08 Loop",'4100Ref'!$M3,AZ$27="09 Loop",'4100Ref'!$N3,AZ$27="10 Loop",'4100Ref'!$O3,AZ$27="11 Loop",'4100Ref'!$P3,AZ$27="12 Loop",'4100Ref'!$Q3,AZ$27="NDU",'4100Ref'!$R3,AZ$27="NDUWVoice",'4100Ref'!$S3,AZ$27="TSW",'4100Ref'!$T3,AZ$27="TGA",'4100Ref'!$U3,AZ$27=" ",'4100Ref'!$A3,AZ$27="BSIU",'4100Ref'!$V3,AZ$27="safelinc",'4100Ref'!$W4))) -> 0 | BA33: =IF(BA17="Red"," ",(_xlfn.IFS(BA$27=" ",'4100Ref'!$A3,BA$27="01 Loop",'4100Ref'!$F3,BA$27="02 Loop",'4100Ref'!$G3,BA$27="03 Loop",'4100Ref'!$H3,BA$27="04 Loop",'4100Ref'!$I3,BA$27="05 Loop",'4100Ref'!$J3,BA$27="06 Loop",'4100Ref'!$K3,BA$27="07 Loop",'4100Ref'!$L3,BA$27="08 Loop",'4100Ref'!$M3,BA$27="09 Loop",'4100Ref'!$N3,BA$27="10 Loop",'4100Ref'!$O3,BA$27="11 Loop",'4100Ref'!$P3,BA$27="12 Loop",'4100Ref'!$Q3,BA$27="NDU",'4100Ref'!$R3,BA$27="NDUWVoice",'4100Ref'!$S3,BA$27="TSW",'4100Ref'!$T3,BA$27="TGA",'4100Ref'!$U3,BA$27=" ",'4100Ref'!$A3,BA$27="BSIU",'4100Ref'!$V3,BA$27="safelinc",'4100Ref'!$W4))) -> 0 | BB33: =IF(BB17="Red"," ",(_xlfn.IFS(BB$27=" ",'4100Ref'!$A3,BB$27="01 Loop",'4100Ref'!$F3,BB$27="02 Loop",'4100Ref'!$G3,BB$27="03 Loop",'4100Ref'!$H3,BB$27="04 Loop",'4100Ref'!$I3,BB$27="05 Loop",'4100Ref'!$J3,BB$27="06 Loop",'4100Ref'!$K3,BB$27="07 Loop",'4100Ref'!$L3,BB$27="08 Loop",'4100Ref'!$M3,BB$27="09 Loop",'4100Ref'!$N3,BB$27="10 Loop",'4100Ref'!$O3,BB$27="11 Loop",'4100Ref'!$P3,BB$27="12 Loop",'4100Ref'!$Q3,BB$27="NDU",'4100Ref'!$R3,BB$27="NDUWVoice",'4100Ref'!$S3,BB$27="TSW",'4100Ref'!$T3,BB$27="TGA",'4100Ref'!$U3,BB$27=" ",'4100Ref'!$A3,BB$27="BSIU",'4100Ref'!$V3,BB$27="safelinc",'4100Ref'!$W4))) -> 0 | BC33: =IF(BC17="Red"," ",(_xlfn.IFS(BC$27=" ",'4100Ref'!$A3,BC$27="01 Loop",'4100Ref'!$F3,BC$27="02 Loop",'4100Ref'!$G3,BC$27="03 Loop",'4100Ref'!$H3,BC$27="04 Loop",'4100Ref'!$I3,BC$27="05 Loop",'4100Ref'!$J3,BC$27="06 Loop",'4100Ref'!$K3,BC$27="07 Loop",'4100Ref'!$L3,BC$27="08 Loop",'4100Ref'!$M3,BC$27="09 Loop",'4100Ref'!$N3,BC$27="10 Loop",'4100Ref'!$O3,BC$27="11 Loop",'4100Ref'!$P3,BC$27="12 Loop",'4100Ref'!$Q3,BC$27="NDU",'4100Ref'!$R3,BC$27="NDUWVoice",'4100Ref'!$S3,BC$27="TSW",'4100Ref'!$T3,BC$27="TGA",'4100Ref'!$U3,BC$27=" ",'4100Ref'!$A3,BC$27="BSIU",'4100Ref'!$V3,BC$27="safelinc",'4100Ref'!$W4))) -> 0 | BD33: =IF(BD17="Red"," ",(_xlfn.IFS(BD$27=" ",'4100Ref'!$A3,BD$27="01 Loop",'4100Ref'!$F3,BD$27="02 Loop",'4100Ref'!$G3,BD$27="03 Loop",'4100Ref'!$H3,BD$27="04 Loop",'4100Ref'!$I3,BD$27="05 Loop",'4100Ref'!$J3,BD$27="06 Loop",'4100Ref'!$K3,BD$27="07 Loop",'4100Ref'!$L3,BD$27="08 Loop",'4100Ref'!$M3,BD$27="09 Loop",'4100Ref'!$N3,BD$27="10 Loop",'4100Ref'!$O3,BD$27="11 Loop",'4100Ref'!$P3,BD$27="12 Loop",'4100Ref'!$Q3,BD$27="NDU",'4100Ref'!$R3,BD$27="NDUWVoice",'4100Ref'!$S3,BD$27="TSW",'4100Ref'!$T3,BD$27="TGA",'4100Ref'!$U3,BD$27=" ",'4100Ref'!$A3,BD$27="BSIU",'4100Ref'!$V3,BD$27="safelinc",'4100Ref'!$W4))) -> 0 | BE33: =IF(BE17="Red"," ",(_xlfn.IFS(BE$27=" ",'4100Ref'!$A3,BE$27="01 Loop",'4100Ref'!$F3,BE$27="02 Loop",'4100Ref'!$G3,BE$27="03 Loop",'4100Ref'!$H3,BE$27="04 Loop",'4100Ref'!$I3,BE$27="05 Loop",'4100Ref'!$J3,BE$27="06 Loop",'4100Ref'!$K3,BE$27="07 Loop",'4100Ref'!$L3,BE$27="08 Loop",'4100Ref'!$M3,BE$27="09 Loop",'4100Ref'!$N3,BE$27="10 Loop",'4100Ref'!$O3,BE$27="11 Loop",'4100Ref'!$P3,BE$27="12 Loop",'4100Ref'!$Q3,BE$27="NDU",'4100Ref'!$R3,BE$27="NDUWVoice",'4100Ref'!$S3,BE$27="TSW",'4100Ref'!$T3,BE$27="TGA",'4100Ref'!$U3,BE$27=" ",'4100Ref'!$A3,BE$27="BSIU",'4100Ref'!$V3,BE$27="safelinc",'4100Ref'!$W4))) -> 0 | BF33: =IF(BF17="Red"," ",(_xlfn.IFS(BF$27=" ",'4100Ref'!$A3,BF$27="01 Loop",'4100Ref'!$F3,BF$27="02 Loop",'4100Ref'!$G3,BF$27="03 Loop",'4100Ref'!$H3,BF$27="04 Loop",'4100Ref'!$I3,BF$27="05 Loop",'4100Ref'!$J3,BF$27="06 Loop",'4100Ref'!$K3,BF$27="07 Loop",'4100Ref'!$L3,BF$27="08 Loop",'4100Ref'!$M3,BF$27="09 Loop",'4100Ref'!$N3,BF$27="10 Loop",'4100Ref'!$O3,BF$27="11 Loop",'4100Ref'!$P3,BF$27="12 Loop",'4100Ref'!$Q3,BF$27="NDU",'4100Ref'!$R3,BF$27="NDUWVoice",'4100Ref'!$S3,BF$27="TSW",'4100Ref'!$T3,BF$27="TGA",'4100Ref'!$U3,BF$27=" ",'4100Ref'!$A3,BF$27="BSIU",'4100Ref'!$V3,BF$27="safelinc",'4100Ref'!$W4))) -> 0 | BG33: =IF(BG17="Red"," ",(_xlfn.IFS(BG$27=" ",'4100Ref'!$A3,BG$27="01 Loop",'4100Ref'!$F3,BG$27="02 Loop",'4100Ref'!$G3,BG$27="03 Loop",'4100Ref'!$H3,BG$27="04 Loop",'4100Ref'!$I3,BG$27="05 Loop",'4100Ref'!$J3,BG$27="06 Loop",'4100Ref'!$K3,BG$27="07 Loop",'4100Ref'!$L3,BG$27="08 Loop",'4100Ref'!$M3,BG$27="09 Loop",'4100Ref'!$N3,BG$27="10 Loop",'4100Ref'!$O3,BG$27="11 Loop",'4100Ref'!$P3,BG$27="12 Loop",'4100Ref'!$Q3,BG$27="NDU",'4100Ref'!$R3,BG$27="NDUWVoice",'4100Ref'!$S3,BG$27="TSW",'4100Ref'!$T3,BG$27="TGA",'4100Ref'!$U3,BG$27=" ",'4100Ref'!$A3,BG$27="BSIU",'4100Ref'!$V3,BG$27="safelinc",'4100Ref'!$W4))) -> 0 | BH33: =IF(BH17="Red"," ",(_xlfn.IFS(BH$27=" ",'4100Ref'!$A3,BH$27="01 Loop",'4100Ref'!$F3,BH$27="02 Loop",'4100Ref'!$G3,BH$27="03 Loop",'4100Ref'!$H3,BH$27="04 Loop",'4100Ref'!$I3,BH$27="05 Loop",'4100Ref'!$J3,BH$27="06 Loop",'4100Ref'!$K3,BH$27="07 Loop",'4100Ref'!$L3,BH$27="08 Loop",'4100Ref'!$M3,BH$27="09 Loop",'4100Ref'!$N3,BH$27="10 Loop",'4100Ref'!$O3,BH$27="11 Loop",'4100Ref'!$P3,BH$27="12 Loop",'4100Ref'!$Q3,BH$27="NDU",'4100Ref'!$R3,BH$27="NDUWVoice",'4100Ref'!$S3,BH$27="TSW",'4100Ref'!$T3,BH$27="TGA",'4100Ref'!$U3,BH$27=" ",'4100Ref'!$A3,BH$27="BSIU",'4100Ref'!$V3,BH$27="safelinc",'4100Ref'!$W4))) -> 0 | BI33: =IF(BI17="Red"," ",(_xlfn.IFS(BI$27=" ",'4100Ref'!$A3,BI$27="01 Loop",'4100Ref'!$F3,BI$27="02 Loop",'4100Ref'!$G3,BI$27="03 Loop",'4100Ref'!$H3,BI$27="04 Loop",'4100Ref'!$I3,BI$27="05 Loop",'4100Ref'!$J3,BI$27="06 Loop",'4100Ref'!$K3,BI$27="07 Loop",'4100Ref'!$L3,BI$27="08 Loop",'4100Ref'!$M3,BI$27="09 Loop",'4100Ref'!$N3,BI$27="10 Loop",'4100Ref'!$O3,BI$27="11 Loop",'4100Ref'!$P3,BI$27="12 Loop",'4100Ref'!$Q3,BI$27="NDU",'4100Ref'!$R3,BI$27="NDUWVoice",'4100Ref'!$S3,BI$27="TSW",'4100Ref'!$T3,BI$27="TGA",'4100Ref'!$U3,BI$27=" ",'4100Ref'!$A3,BI$27="BSIU",'4100Ref'!$V3,BI$27="safelinc",'4100Ref'!$W4))) -> 0 | BJ33: =IF(BJ17="Red"," ",(_xlfn.IFS(BJ$27=" ",'4100Ref'!$A3,BJ$27="01 Loop",'4100Ref'!$F3,BJ$27="02 Loop",'4100Ref'!$G3,BJ$27="03 Loop",'4100Ref'!$H3,BJ$27="04 Loop",'4100Ref'!$I3,BJ$27="05 Loop",'4100Ref'!$J3,BJ$27="06 Loop",'4100Ref'!$K3,BJ$27="07 Loop",'4100Ref'!$L3,BJ$27="08 Loop",'4100Ref'!$M3,BJ$27="09 Loop",'4100Ref'!$N3,BJ$27="10 Loop",'4100Ref'!$O3,BJ$27="11 Loop",'4100Ref'!$P3,BJ$27="12 Loop",'4100Ref'!$Q3,BJ$27="NDU",'4100Ref'!$R3,BJ$27="NDUWVoice",'4100Ref'!$S3,BJ$27="TSW",'4100Ref'!$T3,BJ$27="TGA",'4100Ref'!$U3,BJ$27=" ",'4100Ref'!$A3,BJ$27="BSIU",'4100Ref'!$V3,BJ$27="safelinc",'4100Ref'!$W4))) -> 0 | BK33: =IF(BK17="Red"," ",(_xlfn.IFS(BK$27=" ",'4100Ref'!$A3,BK$27="01 Loop",'4100Ref'!$F3,BK$27="02 Loop",'4100Ref'!$G3,BK$27="03 Loop",'4100Ref'!$H3,BK$27="04 Loop",'4100Ref'!$I3,BK$27="05 Loop",'4100Ref'!$J3,BK$27="06 Loop",'4100Ref'!$K3,BK$27="07 Loop",'4100Ref'!$L3,BK$27="08 Loop",'4100Ref'!$M3,BK$27="09 Loop",'4100Ref'!$N3,BK$27="10 Loop",'4100Ref'!$O3,BK$27="11 Loop",'4100Ref'!$P3,BK$27="12 Loop",'4100Ref'!$Q3,BK$27="NDU",'4100Ref'!$R3,BK$27="NDUWVoice",'4100Ref'!$S3,BK$27="TSW",'4100Ref'!$T3,BK$27="TGA",'4100Ref'!$U3,BK$27=" ",'4100Ref'!$A3,BK$27="BSIU",'4100Ref'!$V3,BK$27="safelinc",'4100Ref'!$W4))) -> 0 | BL33: =IF(BL17="Red"," ",(_xlfn.IFS(BL$27=" ",'4100Ref'!$A3,BL$27="01 Loop",'4100Ref'!$F3,BL$27="02 Loop",'4100Ref'!$G3,BL$27="03 Loop",'4100Ref'!$H3,BL$27="04 Loop",'4100Ref'!$I3,BL$27="05 Loop",'4100Ref'!$J3,BL$27="06 Loop",'4100Ref'!$K3,BL$27="07 Loop",'4100Ref'!$L3,BL$27="08 Loop",'4100Ref'!$M3,BL$27="09 Loop",'4100Ref'!$N3,BL$27="10 Loop",'4100Ref'!$O3,BL$27="11 Loop",'4100Ref'!$P3,BL$27="12 Loop",'4100Ref'!$Q3,BL$27="NDU",'4100Ref'!$R3,BL$27="NDUWVoice",'4100Ref'!$S3,BL$27="TSW",'4100Ref'!$T3,BL$27="TGA",'4100Ref'!$U3,BL$27=" ",'4100Ref'!$A3,BL$27="BSIU",'4100Ref'!$V3,BL$27="safelinc",'4100Ref'!$W4))) -> 0 | BM33: =IF(BM17="Red"," ",(_xlfn.IFS(BM$27=" ",'4100Ref'!$A3,BM$27="01 Loop",'4100Ref'!$F3,BM$27="02 Loop",'4100Ref'!$G3,BM$27="03 Loop",'4100Ref'!$H3,BM$27="04 Loop",'4100Ref'!$I3,BM$27="05 Loop",'4100Ref'!$J3,BM$27="06 Loop",'4100Ref'!$K3,BM$27="07 Loop",'4100Ref'!$L3,BM$27="08 Loop",'4100Ref'!$M3,BM$27="09 Loop",'4100Ref'!$N3,BM$27="10 Loop",'4100Ref'!$O3,BM$27="11 Loop",'4100Ref'!$P3,BM$27="12 Loop",'4100Ref'!$Q3,BM$27="NDU",'4100Ref'!$R3,BM$27="NDUWVoice",'4100Ref'!$S3,BM$27="TSW",'4100Ref'!$T3,BM$27="TGA",'4100Ref'!$U3,BM$27=" ",'4100Ref'!$A3,BM$27="BSIU",'4100Ref'!$V3,BM$27="safelinc",'4100Ref'!$W4))) -> 0 | BN33: =IF(BN17="Red"," ",(_xlfn.IFS(BN$27=" ",'4100Ref'!$A3,BN$27="01 Loop",'4100Ref'!$F3,BN$27="02 Loop",'4100Ref'!$G3,BN$27="03 Loop",'4100Ref'!$H3,BN$27="04 Loop",'4100Ref'!$I3,BN$27="05 Loop",'4100Ref'!$J3,BN$27="06 Loop",'4100Ref'!$K3,BN$27="07 Loop",'4100Ref'!$L3,BN$27="08 Loop",'4100Ref'!$M3,BN$27="09 Loop",'4100Ref'!$N3,BN$27="10 Loop",'4100Ref'!$O3,BN$27="11 Loop",'4100Ref'!$P3,BN$27="12 Loop",'4100Ref'!$Q3,BN$27="NDU",'4100Ref'!$R3,BN$27="NDUWVoice",'4100Ref'!$S3,BN$27="TSW",'4100Ref'!$T3,BN$27="TGA",'4100Ref'!$U3,BN$27=" ",'4100Ref'!$A3,BN$27="BSIU",'4100Ref'!$V3,BN$27="safelinc",'4100Ref'!$W4))) -> 0 | BO33: =IF(BO17="Red"," ",(_xlfn.IFS(BO$27=" ",'4100Ref'!$A3,BO$27="01 Loop",'4100Ref'!$F3,BO$27="02 Loop",'4100Ref'!$G3,BO$27="03 Loop",'4100Ref'!$H3,BO$27="04 Loop",'4100Ref'!$I3,BO$27="05 Loop",'4100Ref'!$J3,BO$27="06 Loop",'4100Ref'!$K3,BO$27="07 Loop",'4100Ref'!$L3,BO$27="08 Loop",'4100Ref'!$M3,BO$27="09 Loop",'4100Ref'!$N3,BO$27="10 Loop",'4100Ref'!$O3,BO$27="11 Loop",'4100Ref'!$P3,BO$27="12 Loop",'4100Ref'!$Q3,BO$27="NDU",'4100Ref'!$R3,BO$27="NDUWVoice",'4100Ref'!$S3,BO$27="TSW",'4100Ref'!$T3,BO$27="TGA",'4100Ref'!$U3,BO$27=" ",'4100Ref'!$A3,BO$27="BSIU",'4100Ref'!$V3,BO$27="safelinc",'4100Ref'!$W4))) -> 0 | BP33: =IF(BP17="Red"," ",(_xlfn.IFS(BP$27=" ",'4100Ref'!$A3,BP$27="01 Loop",'4100Ref'!$F3,BP$27="02 Loop",'4100Ref'!$G3,BP$27="03 Loop",'4100Ref'!$H3,BP$27="04 Loop",'4100Ref'!$I3,BP$27="05 Loop",'4100Ref'!$J3,BP$27="06 Loop",'4100Ref'!$K3,BP$27="07 Loop",'4100Ref'!$L3,BP$27="08 Loop",'4100Ref'!$M3,BP$27="09 Loop",'4100Ref'!$N3,BP$27="10 Loop",'4100Ref'!$O3,BP$27="11 Loop",'4100Ref'!$P3,BP$27="12 Loop",'4100Ref'!$Q3,BP$27="NDU",'4100Ref'!$R3,BP$27="NDUWVoice",'4100Ref'!$S3,BP$27="TSW",'4100Ref'!$T3,BP$27="TGA",'4100Ref'!$U3,BP$27=" ",'4100Ref'!$A3,BP$27="BSIU",'4100Ref'!$V3,BP$27="safelinc",'4100Ref'!$W4))) -> 0 | BQ33: =IF(BQ17="Red"," ",(_xlfn.IFS(BQ$27=" ",'4100Ref'!$A3,BQ$27="01 Loop",'4100Ref'!$F3,BQ$27="02 Loop",'4100Ref'!$G3,BQ$27="03 Loop",'4100Ref'!$H3,BQ$27="04 Loop",'4100Ref'!$I3,BQ$27="05 Loop",'4100Ref'!$J3,BQ$27="06 Loop",'4100Ref'!$K3,BQ$27="07 Loop",'4100Ref'!$L3,BQ$27="08 Loop",'4100Ref'!$M3,BQ$27="09 Loop",'4100Ref'!$N3,BQ$27="10 Loop",'4100Ref'!$O3,BQ$27="11 Loop",'4100Ref'!$P3,BQ$27="12 Loop",'4100Ref'!$Q3,BQ$27="NDU",'4100Ref'!$R3,BQ$27="NDUWVoice",'4100Ref'!$S3,BQ$27="TSW",'4100Ref'!$T3,BQ$27="TGA",'4100Ref'!$U3,BQ$27=" ",'4100Ref'!$A3,BQ$27="BSIU",'4100Ref'!$V3,BQ$27="safelinc",'4100Ref'!$W4))) -> 0 | BR33: =IF(BR17="Red"," ",(_xlfn.IFS(BR$27=" ",'4100Ref'!$A3,BR$27="01 Loop",'4100Ref'!$F3,BR$27="02 Loop",'4100Ref'!$G3,BR$27="03 Loop",'4100Ref'!$H3,BR$27="04 Loop",'4100Ref'!$I3,BR$27="05 Loop",'4100Ref'!$J3,BR$27="06 Loop",'4100Ref'!$K3,BR$27="07 Loop",'4100Ref'!$L3,BR$27="08 Loop",'4100Ref'!$M3,BR$27="09 Loop",'4100Ref'!$N3,BR$27="10 Loop",'4100Ref'!$O3,BR$27="11 Loop",'4100Ref'!$P3,BR$27="12 Loop",'4100Ref'!$Q3,BR$27="NDU",'4100Ref'!$R3,BR$27="NDUWVoice",'4100Ref'!$S3,BR$27="TSW",'4100Ref'!$T3,BR$27="TGA",'4100Ref'!$U3,BR$27=" ",'4100Ref'!$A3,BR$27="BSIU",'4100Ref'!$V3,BR$27="safelinc",'4100Ref'!$W4))) -> 0 | BS33: =IF(BS17="Red"," ",(_xlfn.IFS(BS$27=" ",'4100Ref'!$A3,BS$27="01 Loop",'4100Ref'!$F3,BS$27="02 Loop",'4100Ref'!$G3,BS$27="03 Loop",'4100Ref'!$H3,BS$27="04 Loop",'4100Ref'!$I3,BS$27="05 Loop",'4100Ref'!$J3,BS$27="06 Loop",'4100Ref'!$K3,BS$27="07 Loop",'4100Ref'!$L3,BS$27="08 Loop",'4100Ref'!$M3,BS$27="09 Loop",'4100Ref'!$N3,BS$27="10 Loop",'4100Ref'!$O3,BS$27="11 Loop",'4100Ref'!$P3,BS$27="12 Loop",'4100Ref'!$Q3,BS$27="NDU",'4100Ref'!$R3,BS$27="NDUWVoice",'4100Ref'!$S3,BS$27="TSW",'4100Ref'!$T3,BS$27="TGA",'4100Ref'!$U3,BS$27=" ",'4100Ref'!$A3,BS$27="BSIU",'4100Ref'!$V3,BS$27="safelinc",'4100Ref'!$W4))) -> 0 | BT33: =IF(BT17="Red"," ",(_xlfn.IFS(BT$27=" ",'4100Ref'!$A3,BT$27="01 Loop",'4100Ref'!$F3,BT$27="02 Loop",'4100Ref'!$G3,BT$27="03 Loop",'4100Ref'!$H3,BT$27="04 Loop",'4100Ref'!$I3,BT$27="05 Loop",'4100Ref'!$J3,BT$27="06 Loop",'4100Ref'!$K3,BT$27="07 Loop",'4100Ref'!$L3,BT$27="08 Loop",'4100Ref'!$M3,BT$27="09 Loop",'4100Ref'!$N3,BT$27="10 Loop",'4100Ref'!$O3,BT$27="11 Loop",'4100Ref'!$P3,BT$27="12 Loop",'4100Ref'!$Q3,BT$27="NDU",'4100Ref'!$R3,BT$27="NDUWVoice",'4100Ref'!$S3,BT$27="TSW",'4100Ref'!$T3,BT$27="TGA",'4100Ref'!$U3,BT$27=" ",'4100Ref'!$A3,BT$27="BSIU",'4100Ref'!$V3,BT$27="safelinc",'4100Ref'!$W4))) -> 0 | BU33: =IF(BU17="Red"," ",(_xlfn.IFS(BU$27=" ",'4100Ref'!$A3,BU$27="01 Loop",'4100Ref'!$F3,BU$27="02 Loop",'4100Ref'!$G3,BU$27="03 Loop",'4100Ref'!$H3,BU$27="04 Loop",'4100Ref'!$I3,BU$27="05 Loop",'4100Ref'!$J3,BU$27="06 Loop",'4100Ref'!$K3,BU$27="07 Loop",'4100Ref'!$L3,BU$27="08 Loop",'4100Ref'!$M3,BU$27="09 Loop",'4100Ref'!$N3,BU$27="10 Loop",'4100Ref'!$O3,BU$27="11 Loop",'4100Ref'!$P3,BU$27="12 Loop",'4100Ref'!$Q3,BU$27="NDU",'4100Ref'!$R3,BU$27="NDUWVoice",'4100Ref'!$S3,BU$27="TSW",'4100Ref'!$T3,BU$27="TGA",'4100Ref'!$U3,BU$27=" ",'4100Ref'!$A3,BU$27="BSIU",'4100Ref'!$V3,BU$27="safelinc",'4100Ref'!$W4))) -> 0 | BV33: =IF(BV17="Red"," ",(_xlfn.IFS(BV$27=" ",'4100Ref'!$A3,BV$27="01 Loop",'4100Ref'!$F3,BV$27="02 Loop",'4100Ref'!$G3,BV$27="03 Loop",'4100Ref'!$H3,BV$27="04 Loop",'4100Ref'!$I3,BV$27="05 Loop",'4100Ref'!$J3,BV$27="06 Loop",'4100Ref'!$K3,BV$27="07 Loop",'4100Ref'!$L3,BV$27="08 Loop",'4100Ref'!$M3,BV$27="09 Loop",'4100Ref'!$N3,BV$27="10 Loop",'4100Ref'!$O3,BV$27="11 Loop",'4100Ref'!$P3,BV$27="12 Loop",'4100Ref'!$Q3,BV$27="NDU",'4100Ref'!$R3,BV$27="NDUWVoice",'4100Ref'!$S3,BV$27="TSW",'4100Ref'!$T3,BV$27="TGA",'4100Ref'!$U3,BV$27=" ",'4100Ref'!$A3,BV$27="BSIU",'4100Ref'!$V3,BV$27="safelinc",'4100Ref'!$W4))) -> 0 | BW33: =IF(BW17="Red"," ",(_xlfn.IFS(BW$27=" ",'4100Ref'!$A3,BW$27="01 Loop",'4100Ref'!$F3,BW$27="02 Loop",'4100Ref'!$G3,BW$27="03 Loop",'4100Ref'!$H3,BW$27="04 Loop",'4100Ref'!$I3,BW$27="05 Loop",'4100Ref'!$J3,BW$27="06 Loop",'4100Ref'!$K3,BW$27="07 Loop",'4100Ref'!$L3,BW$27="08 Loop",'4100Ref'!$M3,BW$27="09 Loop",'4100Ref'!$N3,BW$27="10 Loop",'4100Ref'!$O3,BW$27="11 Loop",'4100Ref'!$P3,BW$27="12 Loop",'4100Ref'!$Q3,BW$27="NDU",'4100Ref'!$R3,BW$27="NDUWVoice",'4100Ref'!$S3,BW$27="TSW",'4100Ref'!$T3,BW$27="TGA",'4100Ref'!$U3,BW$27=" ",'4100Ref'!$A3,BW$27="BSIU",'4100Ref'!$V3,BW$27="safelinc",'4100Ref'!$W4))) -> 0 | BX33: =IF(BX17="Red"," ",(_xlfn.IFS(BX$27=" ",'4100Ref'!$A3,BX$27="01 Loop",'4100Ref'!$F3,BX$27="02 Loop",'4100Ref'!$G3,BX$27="03 Loop",'4100Ref'!$H3,BX$27="04 Loop",'4100Ref'!$I3,BX$27="05 Loop",'4100Ref'!$J3,BX$27="06 Loop",'4100Ref'!$K3,BX$27="07 Loop",'4100Ref'!$L3,BX$27="08 Loop",'4100Ref'!$M3,BX$27="09 Loop",'4100Ref'!$N3,BX$27="10 Loop",'4100Ref'!$O3,BX$27="11 Loop",'4100Ref'!$P3,BX$27="12 Loop",'4100Ref'!$Q3,BX$27="NDU",'4100Ref'!$R3,BX$27="NDUWVoice",'4100Ref'!$S3,BX$27="TSW",'4100Ref'!$T3,BX$27="TGA",'4100Ref'!$U3,BX$27=" ",'4100Ref'!$A3,BX$27="BSIU",'4100Ref'!$V3,BX$27="safelinc",'4100Ref'!$W4))) -> 0 | BY33: =IF(BY17="Red"," ",(_xlfn.IFS(BY$27=" ",'4100Ref'!$A3,BY$27="01 Loop",'4100Ref'!$F3,BY$27="02 Loop",'4100Ref'!$G3,BY$27="03 Loop",'4100Ref'!$H3,BY$27="04 Loop",'4100Ref'!$I3,BY$27="05 Loop",'4100Ref'!$J3,BY$27="06 Loop",'4100Ref'!$K3,BY$27="07 Loop",'4100Ref'!$L3,BY$27="08 Loop",'4100Ref'!$M3,BY$27="09 Loop",'4100Ref'!$N3,BY$27="10 Loop",'4100Ref'!$O3,BY$27="11 Loop",'4100Ref'!$P3,BY$27="12 Loop",'4100Ref'!$Q3,BY$27="NDU",'4100Ref'!$R3,BY$27="NDUWVoice",'4100Ref'!$S3,BY$27="TSW",'4100Ref'!$T3,BY$27="TGA",'4100Ref'!$U3,BY$27=" ",'4100Ref'!$A3,BY$27="BSIU",'4100Ref'!$V3,BY$27="safelinc",'4100Ref'!$W4))) -> 0 | BZ33: =IF(BZ17="Red"," ",(_xlfn.IFS(BZ$27=" ",'4100Ref'!$A3,BZ$27="01 Loop",'4100Ref'!$F3,BZ$27="02 Loop",'4100Ref'!$G3,BZ$27="03 Loop",'4100Ref'!$H3,BZ$27="04 Loop",'4100Ref'!$I3,BZ$27="05 Loop",'4100Ref'!$J3,BZ$27="06 Loop",'4100Ref'!$K3,BZ$27="07 Loop",'4100Ref'!$L3,BZ$27="08 Loop",'4100Ref'!$M3,BZ$27="09 Loop",'4100Ref'!$N3,BZ$27="10 Loop",'4100Ref'!$O3,BZ$27="11 Loop",'4100Ref'!$P3,BZ$27="12 Loop",'4100Ref'!$Q3,BZ$27="NDU",'4100Ref'!$R3,BZ$27="NDUWVoice",'4100Ref'!$S3,BZ$27="TSW",'4100Ref'!$T3,BZ$27="TGA",'4100Ref'!$U3,BZ$27=" ",'4100Ref'!$A3,BZ$27="BSIU",'4100Ref'!$V3,BZ$27="safelinc",'4100Ref'!$W4))) -> 0 | CA33: =IF(CA17="Red"," ",(_xlfn.IFS(CA$27=" ",'4100Ref'!$A3,CA$27="01 Loop",'4100Ref'!$F3,CA$27="02 Loop",'4100Ref'!$G3,CA$27="03 Loop",'4100Ref'!$H3,CA$27="04 Loop",'4100Ref'!$I3,CA$27="05 Loop",'4100Ref'!$J3,CA$27="06 Loop",'4100Ref'!$K3,CA$27="07 Loop",'4100Ref'!$L3,CA$27="08 Loop",'4100Ref'!$M3,CA$27="09 Loop",'4100Ref'!$N3,CA$27="10 Loop",'4100Ref'!$O3,CA$27="11 Loop",'4100Ref'!$P3,CA$27="12 Loop",'4100Ref'!$Q3,CA$27="NDU",'4100Ref'!$R3,CA$27="NDUWVoice",'4100Ref'!$S3,CA$27="TSW",'4100Ref'!$T3,CA$27="TGA",'4100Ref'!$U3,CA$27=" ",'4100Ref'!$A3,CA$27="BSIU",'4100Ref'!$V3,CA$27="safelinc",'4100Ref'!$W4))) -> 0 | CB33: =IF(CB17="Red"," ",(_xlfn.IFS(CB$27=" ",'4100Ref'!$A3,CB$27="01 Loop",'4100Ref'!$F3,CB$27="02 Loop",'4100Ref'!$G3,CB$27="03 Loop",'4100Ref'!$H3,CB$27="04 Loop",'4100Ref'!$I3,CB$27="05 Loop",'4100Ref'!$J3,CB$27="06 Loop",'4100Ref'!$K3,CB$27="07 Loop",'4100Ref'!$L3,CB$27="08 Loop",'4100Ref'!$M3,CB$27="09 Loop",'4100Ref'!$N3,CB$27="10 Loop",'4100Ref'!$O3,CB$27="11 Loop",'4100Ref'!$P3,CB$27="12 Loop",'4100Ref'!$Q3,CB$27="NDU",'4100Ref'!$R3,CB$27="NDUWVoice",'4100Ref'!$S3,CB$27="TSW",'4100Ref'!$T3,CB$27="TGA",'4100Ref'!$U3,CB$27=" ",'4100Ref'!$A3,CB$27="BSIU",'4100Ref'!$V3,CB$27="safelinc",'4100Ref'!$W4))) -> 0 | CC33: =IF(CC17="Red"," ",(_xlfn.IFS(CC$27=" ",'4100Ref'!$A3,CC$27="01 Loop",'4100Ref'!$F3,CC$27="02 Loop",'4100Ref'!$G3,CC$27="03 Loop",'4100Ref'!$H3,CC$27="04 Loop",'4100Ref'!$I3,CC$27="05 Loop",'4100Ref'!$J3,CC$27="06 Loop",'4100Ref'!$K3,CC$27="07 Loop",'4100Ref'!$L3,CC$27="08 Loop",'4100Ref'!$M3,CC$27="09 Loop",'4100Ref'!$N3,CC$27="10 Loop",'4100Ref'!$O3,CC$27="11 Loop",'4100Ref'!$P3,CC$27="12 Loop",'4100Ref'!$Q3,CC$27="NDU",'4100Ref'!$R3,CC$27="NDUWVoice",'4100Ref'!$S3,CC$27="TSW",'4100Ref'!$T3,CC$27="TGA",'4100Ref'!$U3,CC$27=" ",'4100Ref'!$A3,CC$27="BSIU",'4100Ref'!$V3,CC$27="safelinc",'4100Ref'!$W4))) -> 0 | CD33: =IF(CD17="Red"," ",(_xlfn.IFS(CD$27=" ",'4100Ref'!$A3,CD$27="01 Loop",'4100Ref'!$F3,CD$27="02 Loop",'4100Ref'!$G3,CD$27="03 Loop",'4100Ref'!$H3,CD$27="04 Loop",'4100Ref'!$I3,CD$27="05 Loop",'4100Ref'!$J3,CD$27="06 Loop",'4100Ref'!$K3,CD$27="07 Loop",'4100Ref'!$L3,CD$27="08 Loop",'4100Ref'!$M3,CD$27="09 Loop",'4100Ref'!$N3,CD$27="10 Loop",'4100Ref'!$O3,CD$27="11 Loop",'4100Ref'!$P3,CD$27="12 Loop",'4100Ref'!$Q3,CD$27="NDU",'4100Ref'!$R3,CD$27="NDUWVoice",'4100Ref'!$S3,CD$27="TSW",'4100Ref'!$T3,CD$27="TGA",'4100Ref'!$U3,CD$27=" ",'4100Ref'!$A3,CD$27="BSIU",'4100Ref'!$V3,CD$27="safelinc",'4100Ref'!$W4))) -> 0 | CE33: =IF(CE17="Red"," ",(_xlfn.IFS(CE$27=" ",'4100Ref'!$A3,CE$27="01 Loop",'4100Ref'!$F3,CE$27="02 Loop",'4100Ref'!$G3,CE$27="03 Loop",'4100Ref'!$H3,CE$27="04 Loop",'4100Ref'!$I3,CE$27="05 Loop",'4100Ref'!$J3,CE$27="06 Loop",'4100Ref'!$K3,CE$27="07 Loop",'4100Ref'!$L3,CE$27="08 Loop",'4100Ref'!$M3,CE$27="09 Loop",'4100Ref'!$N3,CE$27="10 Loop",'4100Ref'!$O3,CE$27="11 Loop",'4100Ref'!$P3,CE$27="12 Loop",'4100Ref'!$Q3,CE$27="NDU",'4100Ref'!$R3,CE$27="NDUWVoice",'4100Ref'!$S3,CE$27="TSW",'4100Ref'!$T3,CE$27="TGA",'4100Ref'!$U3,CE$27=" ",'4100Ref'!$A3,CE$27="BSIU",'4100Ref'!$V3,CE$27="safelinc",'4100Ref'!$W4))) -> 0 | CF33: =IF(CF17="Red"," ",(_xlfn.IFS(CF$27=" ",'4100Ref'!$A3,CF$27="01 Loop",'4100Ref'!$F3,CF$27="02 Loop",'4100Ref'!$G3,CF$27="03 Loop",'4100Ref'!$H3,CF$27="04 Loop",'4100Ref'!$I3,CF$27="05 Loop",'4100Ref'!$J3,CF$27="06 Loop",'4100Ref'!$K3,CF$27="07 Loop",'4100Ref'!$L3,CF$27="08 Loop",'4100Ref'!$M3,CF$27="09 Loop",'4100Ref'!$N3,CF$27="10 Loop",'4100Ref'!$O3,CF$27="11 Loop",'4100Ref'!$P3,CF$27="12 Loop",'4100Ref'!$Q3,CF$27="NDU",'4100Ref'!$R3,CF$27="NDUWVoice",'4100Ref'!$S3,CF$27="TSW",'4100Ref'!$T3,CF$27="TGA",'4100Ref'!$U3,CF$27=" ",'4100Ref'!$A3,CF$27="BSIU",'4100Ref'!$V3,CF$27="safelinc",'4100Ref'!$W4))) -> 0 | CG33: =IF(CG17="Red"," ",(_xlfn.IFS(CG$27=" ",'4100Ref'!$A3,CG$27="01 Loop",'4100Ref'!$F3,CG$27="02 Loop",'4100Ref'!$G3,CG$27="03 Loop",'4100Ref'!$H3,CG$27="04 Loop",'4100Ref'!$I3,CG$27="05 Loop",'4100Ref'!$J3,CG$27="06 Loop",'4100Ref'!$K3,CG$27="07 Loop",'4100Ref'!$L3,CG$27="08 Loop",'4100Ref'!$M3,CG$27="09 Loop",'4100Ref'!$N3,CG$27="10 Loop",'4100Ref'!$O3,CG$27="11 Loop",'4100Ref'!$P3,CG$27="12 Loop",'4100Ref'!$Q3,CG$27="NDU",'4100Ref'!$R3,CG$27="NDUWVoice",'4100Ref'!$S3,CG$27="TSW",'4100Ref'!$T3,CG$27="TGA",'4100Ref'!$U3,CG$27=" ",'4100Ref'!$A3,CG$27="BSIU",'4100Ref'!$V3,CG$27="safelinc",'4100Ref'!$W4))) -> 0 | CH33: =IF(CH17="Red"," ",(_xlfn.IFS(CH$27=" ",'4100Ref'!$A3,CH$27="01 Loop",'4100Ref'!$F3,CH$27="02 Loop",'4100Ref'!$G3,CH$27="03 Loop",'4100Ref'!$H3,CH$27="04 Loop",'4100Ref'!$I3,CH$27="05 Loop",'4100Ref'!$J3,CH$27="06 Loop",'4100Ref'!$K3,CH$27="07 Loop",'4100Ref'!$L3,CH$27="08 Loop",'4100Ref'!$M3,CH$27="09 Loop",'4100Ref'!$N3,CH$27="10 Loop",'4100Ref'!$O3,CH$27="11 Loop",'4100Ref'!$P3,CH$27="12 Loop",'4100Ref'!$Q3,CH$27="NDU",'4100Ref'!$R3,CH$27="NDUWVoice",'4100Ref'!$S3,CH$27="TSW",'4100Ref'!$T3,CH$27="TGA",'4100Ref'!$U3,CH$27=" ",'4100Ref'!$A3,CH$27="BSIU",'4100Ref'!$V3,CH$27="safelinc",'4100Ref'!$W4))) -> 0 | CI33: =IF(CI17="Red"," ",(_xlfn.IFS(CI$27=" ",'4100Ref'!$A3,CI$27="01 Loop",'4100Ref'!$F3,CI$27="02 Loop",'4100Ref'!$G3,CI$27="03 Loop",'4100Ref'!$H3,CI$27="04 Loop",'4100Ref'!$I3,CI$27="05 Loop",'4100Ref'!$J3,CI$27="06 Loop",'4100Ref'!$K3,CI$27="07 Loop",'4100Ref'!$L3,CI$27="08 Loop",'4100Ref'!$M3,CI$27="09 Loop",'4100Ref'!$N3,CI$27="10 Loop",'4100Ref'!$O3,CI$27="11 Loop",'4100Ref'!$P3,CI$27="12 Loop",'4100Ref'!$Q3,CI$27="NDU",'4100Ref'!$R3,CI$27="NDUWVoice",'4100Ref'!$S3,CI$27="TSW",'4100Ref'!$T3,CI$27="TGA",'4100Ref'!$U3,CI$27=" ",'4100Ref'!$A3,CI$27="BSIU",'4100Ref'!$V3,CI$27="safelinc",'4100Ref'!$W4))) -> 0 | CJ33: =IF(CJ17="Red"," ",(_xlfn.IFS(CJ$27=" ",'4100Ref'!$A3,CJ$27="01 Loop",'4100Ref'!$F3,CJ$27="02 Loop",'4100Ref'!$G3,CJ$27="03 Loop",'4100Ref'!$H3,CJ$27="04 Loop",'4100Ref'!$I3,CJ$27="05 Loop",'4100Ref'!$J3,CJ$27="06 Loop",'4100Ref'!$K3,CJ$27="07 Loop",'4100Ref'!$L3,CJ$27="08 Loop",'4100Ref'!$M3,CJ$27="09 Loop",'4100Ref'!$N3,CJ$27="10 Loop",'4100Ref'!$O3,CJ$27="11 Loop",'4100Ref'!$P3,CJ$27="12 Loop",'4100Ref'!$Q3,CJ$27="NDU",'4100Ref'!$R3,CJ$27="NDUWVoice",'4100Ref'!$S3,CJ$27="TSW",'4100Ref'!$T3,CJ$27="TGA",'4100Ref'!$U3,CJ$27=" ",'4100Ref'!$A3,CJ$27="BSIU",'4100Ref'!$V3,CJ$27="safelinc",'4100Ref'!$W4))) -> 0 | CK33: =IF(CK17="Red"," ",(_xlfn.IFS(CK$27=" ",'4100Ref'!$A3,CK$27="01 Loop",'4100Ref'!$F3,CK$27="02 Loop",'4100Ref'!$G3,CK$27="03 Loop",'4100Ref'!$H3,CK$27="04 Loop",'4100Ref'!$I3,CK$27="05 Loop",'4100Ref'!$J3,CK$27="06 Loop",'4100Ref'!$K3,CK$27="07 Loop",'4100Ref'!$L3,CK$27="08 Loop",'4100Ref'!$M3,CK$27="09 Loop",'4100Ref'!$N3,CK$27="10 Loop",'4100Ref'!$O3,CK$27="11 Loop",'4100Ref'!$P3,CK$27="12 Loop",'4100Ref'!$Q3,CK$27="NDU",'4100Ref'!$R3,CK$27="NDUWVoice",'4100Ref'!$S3,CK$27="TSW",'4100Ref'!$T3,CK$27="TGA",'4100Ref'!$U3,CK$27=" ",'4100Ref'!$A3,CK$27="BSIU",'4100Ref'!$V3,CK$27="safelinc",'4100Ref'!$W4))) -> 0 | CL33: =IF(CL17="Red"," ",(_xlfn.IFS(CL$27=" ",'4100Ref'!$A3,CL$27="01 Loop",'4100Ref'!$F3,CL$27="02 Loop",'4100Ref'!$G3,CL$27="03 Loop",'4100Ref'!$H3,CL$27="04 Loop",'4100Ref'!$I3,CL$27="05 Loop",'4100Ref'!$J3,CL$27="06 Loop",'4100Ref'!$K3,CL$27="07 Loop",'4100Ref'!$L3,CL$27="08 Loop",'4100Ref'!$M3,CL$27="09 Loop",'4100Ref'!$N3,CL$27="10 Loop",'4100Ref'!$O3,CL$27="11 Loop",'4100Ref'!$P3,CL$27="12 Loop",'4100Ref'!$Q3,CL$27="NDU",'4100Ref'!$R3,CL$27="NDUWVoice",'4100Ref'!$S3,CL$27="TSW",'4100Ref'!$T3,CL$27="TGA",'4100Ref'!$U3,CL$27=" ",'4100Ref'!$A3,CL$27="BSIU",'4100Ref'!$V3,CL$27="safelinc",'4100Ref'!$W4))) -> 0 | CM33: =IF(CM17="Red"," ",(_xlfn.IFS(CM$27=" ",'4100Ref'!$A3,CM$27="01 Loop",'4100Ref'!$F3,CM$27="02 Loop",'4100Ref'!$G3,CM$27="03 Loop",'4100Ref'!$H3,CM$27="04 Loop",'4100Ref'!$I3,CM$27="05 Loop",'4100Ref'!$J3,CM$27="06 Loop",'4100Ref'!$K3,CM$27="07 Loop",'4100Ref'!$L3,CM$27="08 Loop",'4100Ref'!$M3,CM$27="09 Loop",'4100Ref'!$N3,CM$27="10 Loop",'4100Ref'!$O3,CM$27="11 Loop",'4100Ref'!$P3,CM$27="12 Loop",'4100Ref'!$Q3,CM$27="NDU",'4100Ref'!$R3,CM$27="NDUWVoice",'4100Ref'!$S3,CM$27="TSW",'4100Ref'!$T3,CM$27="TGA",'4100Ref'!$U3,CM$27=" ",'4100Ref'!$A3,CM$27="BSIU",'4100Ref'!$V3,CM$27="safelinc",'4100Ref'!$W4))) -> 0 | CN33: =IF(CN17="Red"," ",(_xlfn.IFS(CN$27=" ",'4100Ref'!$A3,CN$27="01 Loop",'4100Ref'!$F3,CN$27="02 Loop",'4100Ref'!$G3,CN$27="03 Loop",'4100Ref'!$H3,CN$27="04 Loop",'4100Ref'!$I3,CN$27="05 Loop",'4100Ref'!$J3,CN$27="06 Loop",'4100Ref'!$K3,CN$27="07 Loop",'4100Ref'!$L3,CN$27="08 Loop",'4100Ref'!$M3,CN$27="09 Loop",'4100Ref'!$N3,CN$27="10 Loop",'4100Ref'!$O3,CN$27="11 Loop",'4100Ref'!$P3,CN$27="12 Loop",'4100Ref'!$Q3,CN$27="NDU",'4100Ref'!$R3,CN$27="NDUWVoice",'4100Ref'!$S3,CN$27="TSW",'4100Ref'!$T3,CN$27="TGA",'4100Ref'!$U3,CN$27=" ",'4100Ref'!$A3,CN$27="BSIU",'4100Ref'!$V3,CN$27="safelinc",'4100Ref'!$W4))) -> 0 | CO33: =IF(CO17="Red"," ",(_xlfn.IFS(CO$27=" ",'4100Ref'!$A3,CO$27="01 Loop",'4100Ref'!$F3,CO$27="02 Loop",'4100Ref'!$G3,CO$27="03 Loop",'4100Ref'!$H3,CO$27="04 Loop",'4100Ref'!$I3,CO$27="05 Loop",'4100Ref'!$J3,CO$27="06 Loop",'4100Ref'!$K3,CO$27="07 Loop",'4100Ref'!$L3,CO$27="08 Loop",'4100Ref'!$M3,CO$27="09 Loop",'4100Ref'!$N3,CO$27="10 Loop",'4100Ref'!$O3,CO$27="11 Loop",'4100Ref'!$P3,CO$27="12 Loop",'4100Ref'!$Q3,CO$27="NDU",'4100Ref'!$R3,CO$27="NDUWVoice",'4100Ref'!$S3,CO$27="TSW",'4100Ref'!$T3,CO$27="TGA",'4100Ref'!$U3,CO$27=" ",'4100Ref'!$A3,CO$27="BSIU",'4100Ref'!$V3,CO$27="safelinc",'4100Ref'!$W4))) -> 0 | CP33: =IF(CP17="Red"," ",(_xlfn.IFS(CP$27=" ",'4100Ref'!$A3,CP$27="01 Loop",'4100Ref'!$F3,CP$27="02 Loop",'4100Ref'!$G3,CP$27="03 Loop",'4100Ref'!$H3,CP$27="04 Loop",'4100Ref'!$I3,CP$27="05 Loop",'4100Ref'!$J3,CP$27="06 Loop",'4100Ref'!$K3,CP$27="07 Loop",'4100Ref'!$L3,CP$27="08 Loop",'4100Ref'!$M3,CP$27="09 Loop",'4100Ref'!$N3,CP$27="10 Loop",'4100Ref'!$O3,CP$27="11 Loop",'4100Ref'!$P3,CP$27="12 Loop",'4100Ref'!$Q3,CP$27="NDU",'4100Ref'!$R3,CP$27="NDUWVoice",'4100Ref'!$S3,CP$27="TSW",'4100Ref'!$T3,CP$27="TGA",'4100Ref'!$U3,CP$27=" ",'4100Ref'!$A3,CP$27="BSIU",'4100Ref'!$V3,CP$27="safelinc",'4100Ref'!$W4))) -> 0 | CQ33: =IF(CQ17="Red"," ",(_xlfn.IFS(CQ$27=" ",'4100Ref'!$A3,CQ$27="01 Loop",'4100Ref'!$F3,CQ$27="02 Loop",'4100Ref'!$G3,CQ$27="03 Loop",'4100Ref'!$H3,CQ$27="04 Loop",'4100Ref'!$I3,CQ$27="05 Loop",'4100Ref'!$J3,CQ$27="06 Loop",'4100Ref'!$K3,CQ$27="07 Loop",'4100Ref'!$L3,CQ$27="08 Loop",'4100Ref'!$M3,CQ$27="09 Loop",'4100Ref'!$N3,CQ$27="10 Loop",'4100Ref'!$O3,CQ$27="11 Loop",'4100Ref'!$P3,CQ$27="12 Loop",'4100Ref'!$Q3,CQ$27="NDU",'4100Ref'!$R3,CQ$27="NDUWVoice",'4100Ref'!$S3,CQ$27="TSW",'4100Ref'!$T3,CQ$27="TGA",'4100Ref'!$U3,CQ$27=" ",'4100Ref'!$A3,CQ$27="BSIU",'4100Ref'!$V3,CQ$27="safelinc",'4100Ref'!$W4))) -> 0 | CR33: =IF(CR17="Red"," ",(_xlfn.IFS(CR$27=" ",'4100Ref'!$A3,CR$27="01 Loop",'4100Ref'!$F3,CR$27="02 Loop",'4100Ref'!$G3,CR$27="03 Loop",'4100Ref'!$H3,CR$27="04 Loop",'4100Ref'!$I3,CR$27="05 Loop",'4100Ref'!$J3,CR$27="06 Loop",'4100Ref'!$K3,CR$27="07 Loop",'4100Ref'!$L3,CR$27="08 Loop",'4100Ref'!$M3,CR$27="09 Loop",'4100Ref'!$N3,CR$27="10 Loop",'4100Ref'!$O3,CR$27="11 Loop",'4100Ref'!$P3,CR$27="12 Loop",'4100Ref'!$Q3,CR$27="NDU",'4100Ref'!$R3,CR$27="NDUWVoice",'4100Ref'!$S3,CR$27="TSW",'4100Ref'!$T3,CR$27="TGA",'4100Ref'!$U3,CR$27=" ",'4100Ref'!$A3,CR$27="BSIU",'4100Ref'!$V3,CR$27="safelinc",'4100Ref'!$W4))) -> 0 | CS33: =IF(CS17="Red"," ",(_xlfn.IFS(CS$27=" ",'4100Ref'!$A3,CS$27="01 Loop",'4100Ref'!$F3,CS$27="02 Loop",'4100Ref'!$G3,CS$27="03 Loop",'4100Ref'!$H3,CS$27="04 Loop",'4100Ref'!$I3,CS$27="05 Loop",'4100Ref'!$J3,CS$27="06 Loop",'4100Ref'!$K3,CS$27="07 Loop",'4100Ref'!$L3,CS$27="08 Loop",'4100Ref'!$M3,CS$27="09 Loop",'4100Ref'!$N3,CS$27="10 Loop",'4100Ref'!$O3,CS$27="11 Loop",'4100Ref'!$P3,CS$27="12 Loop",'4100Ref'!$Q3,CS$27="NDU",'4100Ref'!$R3,CS$27="NDUWVoice",'4100Ref'!$S3,CS$27="TSW",'4100Ref'!$T3,CS$27="TGA",'4100Ref'!$U3,CS$27=" ",'4100Ref'!$A3,CS$27="BSIU",'4100Ref'!$V3,CS$27="safelinc",'4100Ref'!$W4))) -> 0 | CT33: =IF(CT17="Red"," ",(_xlfn.IFS(CT$27=" ",'4100Ref'!$A3,CT$27="01 Loop",'4100Ref'!$F3,CT$27="02 Loop",'4100Ref'!$G3,CT$27="03 Loop",'4100Ref'!$H3,CT$27="04 Loop",'4100Ref'!$I3,CT$27="05 Loop",'4100Ref'!$J3,CT$27="06 Loop",'4100Ref'!$K3,CT$27="07 Loop",'4100Ref'!$L3,CT$27="08 Loop",'4100Ref'!$M3,CT$27="09 Loop",'4100Ref'!$N3,CT$27="10 Loop",'4100Ref'!$O3,CT$27="11 Loop",'4100Ref'!$P3,CT$27="12 Loop",'4100Ref'!$Q3,CT$27="NDU",'4100Ref'!$R3,CT$27="NDUWVoice",'4100Ref'!$S3,CT$27="TSW",'4100Ref'!$T3,CT$27="TGA",'4100Ref'!$U3,CT$27=" ",'4100Ref'!$A3,CT$27="BSIU",'4100Ref'!$V3,CT$27="safelinc",'4100Ref'!$W4))) -> 0 | CU33: =IF(CU17="Red"," ",(_xlfn.IFS(CU$27=" ",'4100Ref'!$A3,CU$27="01 Loop",'4100Ref'!$F3,CU$27="02 Loop",'4100Ref'!$G3,CU$27="03 Loop",'4100Ref'!$H3,CU$27="04 Loop",'4100Ref'!$I3,CU$27="05 Loop",'4100Ref'!$J3,CU$27="06 Loop",'4100Ref'!$K3,CU$27="07 Loop",'4100Ref'!$L3,CU$27="08 Loop",'4100Ref'!$M3,CU$27="09 Loop",'4100Ref'!$N3,CU$27="10 Loop",'4100Ref'!$O3,CU$27="11 Loop",'4100Ref'!$P3,CU$27="12 Loop",'4100Ref'!$Q3,CU$27="NDU",'4100Ref'!$R3,CU$27="NDUWVoice",'4100Ref'!$S3,CU$27="TSW",'4100Ref'!$T3,CU$27="TGA",'4100Ref'!$U3,CU$27=" ",'4100Ref'!$A3,CU$27="BSIU",'4100Ref'!$V3,CU$27="safelinc",'4100Ref'!$W4))) -> 0 | CV33: =IF(CV17="Red"," ",(_xlfn.IFS(CV$27=" ",'4100Ref'!$A3,CV$27="01 Loop",'4100Ref'!$F3,CV$27="02 Loop",'4100Ref'!$G3,CV$27="03 Loop",'4100Ref'!$H3,CV$27="04 Loop",'4100Ref'!$I3,CV$27="05 Loop",'4100Ref'!$J3,CV$27="06 Loop",'4100Ref'!$K3,CV$27="07 Loop",'4100Ref'!$L3,CV$27="08 Loop",'4100Ref'!$M3,CV$27="09 Loop",'4100Ref'!$N3,CV$27="10 Loop",'4100Ref'!$O3,CV$27="11 Loop",'4100Ref'!$P3,CV$27="12 Loop",'4100Ref'!$Q3,CV$27="NDU",'4100Ref'!$R3,CV$27="NDUWVoice",'4100Ref'!$S3,CV$27="TSW",'4100Ref'!$T3,CV$27="TGA",'4100Ref'!$U3,CV$27=" ",'4100Ref'!$A3,CV$27="BSIU",'4100Ref'!$V3,CV$27="safelinc",'4100Ref'!$W4))) -> 0 | CW33: =IF(CW17="Red"," ",(_xlfn.IFS(CW$27=" ",'4100Ref'!$A3,CW$27="01 Loop",'4100Ref'!$F3,CW$27="02 Loop",'4100Ref'!$G3,CW$27="03 Loop",'4100Ref'!$H3,CW$27="04 Loop",'4100Ref'!$I3,CW$27="05 Loop",'4100Ref'!$J3,CW$27="06 Loop",'4100Ref'!$K3,CW$27="07 Loop",'4100Ref'!$L3,CW$27="08 Loop",'4100Ref'!$M3,CW$27="09 Loop",'4100Ref'!$N3,CW$27="10 Loop",'4100Ref'!$O3,CW$27="11 Loop",'4100Ref'!$P3,CW$27="12 Loop",'4100Ref'!$Q3,CW$27="NDU",'4100Ref'!$R3,CW$27="NDUWVoice",'4100Ref'!$S3,CW$27="TSW",'4100Ref'!$T3,CW$27="TGA",'4100Ref'!$U3,CW$27=" ",'4100Ref'!$A3,CW$27="BSIU",'4100Ref'!$V3,CW$27="safelinc",'4100Ref'!$W4))) -> 0 | CX33: =IF(CX17="Red"," ",(_xlfn.IFS(CX$27=" ",'4100Ref'!$A3,CX$27="01 Loop",'4100Ref'!$F3,CX$27="02 Loop",'4100Ref'!$G3,CX$27="03 Loop",'4100Ref'!$H3,CX$27="04 Loop",'4100Ref'!$I3,CX$27="05 Loop",'4100Ref'!$J3,CX$27="06 Loop",'4100Ref'!$K3,CX$27="07 Loop",'4100Ref'!$L3,CX$27="08 Loop",'4100Ref'!$M3,CX$27="09 Loop",'4100Ref'!$N3,CX$27="10 Loop",'4100Ref'!$O3,CX$27="11 Loop",'4100Ref'!$P3,CX$27="12 Loop",'4100Ref'!$Q3,CX$27="NDU",'4100Ref'!$R3,CX$27="NDUWVoice",'4100Ref'!$S3,CX$27="TSW",'4100Ref'!$T3,CX$27="TGA",'4100Ref'!$U3,CX$27=" ",'4100Ref'!$A3,CX$27="BSIU",'4100Ref'!$V3,CX$27="safelinc",'4100Ref'!$W4))) -> 0 | CY33: =IF(CY17="Red"," ",(_xlfn.IFS(CY$27=" ",'4100Ref'!$A3,CY$27="01 Loop",'4100Ref'!$F3,CY$27="02 Loop",'4100Ref'!$G3,CY$27="03 Loop",'4100Ref'!$H3,CY$27="04 Loop",'4100Ref'!$I3,CY$27="05 Loop",'4100Ref'!$J3,CY$27="06 Loop",'4100Ref'!$K3,CY$27="07 Loop",'4100Ref'!$L3,CY$27="08 Loop",'4100Ref'!$M3,CY$27="09 Loop",'4100Ref'!$N3,CY$27="10 Loop",'4100Ref'!$O3,CY$27="11 Loop",'4100Ref'!$P3,CY$27="12 Loop",'4100Ref'!$Q3,CY$27="NDU",'4100Ref'!$R3,CY$27="NDUWVoice",'4100Ref'!$S3,CY$27="TSW",'4100Ref'!$T3,CY$27="TGA",'4100Ref'!$U3,CY$27=" ",'4100Ref'!$A3,CY$27="BSIU",'4100Ref'!$V3,CY$27="safelinc",'4100Ref'!$W4))) -> 0 | CZ33: =IF(CZ17="Red"," ",(_xlfn.IFS(CZ$27=" ",'4100Ref'!$A3,CZ$27="01 Loop",'4100Ref'!$F3,CZ$27="02 Loop",'4100Ref'!$G3,CZ$27="03 Loop",'4100Ref'!$H3,CZ$27="04 Loop",'4100Ref'!$I3,CZ$27="05 Loop",'4100Ref'!$J3,CZ$27="06 Loop",'4100Ref'!$K3,CZ$27="07 Loop",'4100Ref'!$L3,CZ$27="08 Loop",'4100Ref'!$M3,CZ$27="09 Loop",'4100Ref'!$N3,CZ$27="10 Loop",'4100Ref'!$O3,CZ$27="11 Loop",'4100Ref'!$P3,CZ$27="12 Loop",'4100Ref'!$Q3,CZ$27="NDU",'4100Ref'!$R3,CZ$27="NDUWVoice",'4100Ref'!$S3,CZ$27="TSW",'4100Ref'!$T3,CZ$27="TGA",'4100Ref'!$U3,CZ$27=" ",'4100Ref'!$A3,CZ$27="BSIU",'4100Ref'!$V3,CZ$27="safelinc",'4100Ref'!$W4))) -> 0 | DA33: =IF(DA17="Red"," ",(_xlfn.IFS(DA$27=" ",'4100Ref'!$A3,DA$27="01 Loop",'4100Ref'!$F3,DA$27="02 Loop",'4100Ref'!$G3,DA$27="03 Loop",'4100Ref'!$H3,DA$27="04 Loop",'4100Ref'!$I3,DA$27="05 Loop",'4100Ref'!$J3,DA$27="06 Loop",'4100Ref'!$K3,DA$27="07 Loop",'4100Ref'!$L3,DA$27="08 Loop",'4100Ref'!$M3,DA$27="09 Loop",'4100Ref'!$N3,DA$27="10 Loop",'4100Ref'!$O3,DA$27="11 Loop",'4100Ref'!$P3,DA$27="12 Loop",'4100Ref'!$Q3,DA$27="NDU",'4100Ref'!$R3,DA$27="NDUWVoice",'4100Ref'!$S3,DA$27="TSW",'4100Ref'!$T3,DA$27="TGA",'4100Ref'!$U3,DA$27=" ",'4100Ref'!$A3,DA$27="BSIU",'4100Ref'!$V3,DA$27="safelinc",'4100Ref'!$W4))) -> 0 | DB33: =IF(DB17="Red"," ",(_xlfn.IFS(DB$27=" ",'4100Ref'!$A3,DB$27="01 Loop",'4100Ref'!$F3,DB$27="02 Loop",'4100Ref'!$G3,DB$27="03 Loop",'4100Ref'!$H3,DB$27="04 Loop",'4100Ref'!$I3,DB$27="05 Loop",'4100Ref'!$J3,DB$27="06 Loop",'4100Ref'!$K3,DB$27="07 Loop",'4100Ref'!$L3,DB$27="08 Loop",'4100Ref'!$M3,DB$27="09 Loop",'4100Ref'!$N3,DB$27="10 Loop",'4100Ref'!$O3,DB$27="11 Loop",'4100Ref'!$P3,DB$27="12 Loop",'4100Ref'!$Q3,DB$27="NDU",'4100Ref'!$R3,DB$27="NDUWVoice",'4100Ref'!$S3,DB$27="TSW",'4100Ref'!$T3,DB$27="TGA",'4100Ref'!$U3,DB$27=" ",'4100Ref'!$A3,DB$27="BSIU",'4100Ref'!$V3,DB$27="safelinc",'4100Ref'!$W4))) -> 0 | DC33: =IF(DC17="Red"," ",(_xlfn.IFS(DC$27=" ",'4100Ref'!$A3,DC$27="01 Loop",'4100Ref'!$F3,DC$27="02 Loop",'4100Ref'!$G3,DC$27="03 Loop",'4100Ref'!$H3,DC$27="04 Loop",'4100Ref'!$I3,DC$27="05 Loop",'4100Ref'!$J3,DC$27="06 Loop",'4100Ref'!$K3,DC$27="07 Loop",'4100Ref'!$L3,DC$27="08 Loop",'4100Ref'!$M3,DC$27="09 Loop",'4100Ref'!$N3,DC$27="10 Loop",'4100Ref'!$O3,DC$27="11 Loop",'4100Ref'!$P3,DC$27="12 Loop",'4100Ref'!$Q3,DC$27="NDU",'4100Ref'!$R3,DC$27="NDUWVoice",'4100Ref'!$S3,DC$27="TSW",'4100Ref'!$T3,DC$27="TGA",'4100Ref'!$U3,DC$27=" ",'4100Ref'!$A3,DC$27="BSIU",'4100Ref'!$V3,DC$27="safelinc",'4100Ref'!$W4))) -> 0 | DG33: 3 BAY BB/GDOOR/DRESS PNL PLAT | DH33: 2975-9446
